Workbook

Sheet COVER
C2: COVER
C4: NAVIGATION
C6: COMMENTS
C9: Bonneville Power Administration
C10: 6P Energy Conservation Standards Savings Model
C11: AUTOMATIC COMMERCIAL ICEMAKERS
C13: Product Description
C14: Automatic commercial icemakers make and harvest cube, flake, tube, and nugget ice. Ice makers are used in hotels, hospitals, schools, office buildings, supermarkets, and other facilities where foods and beverages are served or sold. The product classification of the ice-makers depends on (1) equipment configuration: if the equipment is an ice-making head, self-contained unit, or a remote condensing unit i)wth remote compressor ii) without remote compressor; (2) condensor cooling media: if the compressor is air-cooled or water-cooled; (3) the capacity of the ice-maker, and (4) ice-making process: batch type or continuous type. Batch type ice makers alternate freezing and harvesting periods which produces cube or tube ice; Continuous type ice makers continually freeze and harvest ice-cubes which produces flakes or nugget ice.
C16: Standard Compliance Year
C17: Estimated 2018; Notice of Proposed Rulemaking (NOPR)
C19: Major changes from previous rulemaking (2009 effective standard)
C20: Expand coverage to include continuous ice makers. Previous rulemaking only covered batch ice makers.
C21: Expand coverage to include capacity up to 4,000 lbs/24 hours harvest rate. Previous rulemaking capped at 2,500lbs/24 hours.
C23: 6P Baseline
C24: The product was modeled in the Sixth Power Plan. The Sixth Plan assumed the 2010 standard in the baseline.
C26: Prepared By:
C27: Navigant Consulting | D27: Cadeo Group
C28: One Market Street | Spear Street Tower, Suite 1200 | D28: 840 First Street, Suite 300
C29: San Francisco, CA 94105 | D29: Washington, DC 20002

Sheet Definitions
C2: Definitions
C4: NAVIGATION
C6: COMMENTS
C9: Average Megawatt (aMW) | D9: The average number of megawatts over a specified time period
C10: Adjustment to 6P Baseline | D10: Adjustment to reconcile the 6P projected energy consumption and the modeled consumption calculated using best available data.
C11: Department of Energy Aggregate Lifecycle Savings | D11: Sum of 'Total First Year Savings'. This accounts for the cumulative savings in accordance with DOE Carbon Accounting Practices.
C12: Department of Energy Notice of Proposed Rulemaking (DOE NOPR) | D12: Federal Register notice detailing analyses conducted by the DOE to establish proposed energy conservation standards.
C13: Efficiency Level (EL) | D13: The discrete efficiency ratings of a product. Each efficiency level is associated with a different UEC.
C14: Efficiency Level Distribution | D14: The mix of various equipment efficiencies shipped in a given year.
C15: Incremental Savings | D15: Savings due to the higher standards for units installed in a particular year. First year savings are highest following the standards compliance year while the stock turns over, after which first year savings are only attributed to shipments associated with new construction.
C16: Governmental Regulatory Impact Model (GRIM) | D16: The industry cash flow model used by DOE to assess impacts on manufacturers due to proposed energy conservation standards
C17: Installed Unit Energy Consumption (Installed UEC) | D17: The average annual unit energy consumption of all installed units in a given year.
C18: Market Unit Energy Consumption (Market UEC) | D18: The average annual unit energy consumption of units shipped in a given year.
C19: National Impact Analysis (NIA) | D19: The energy impact analysis used by DOE to calculate energy savings associated with each standard.
C20: Pre-case | D20: The case representing 6P baseline assumptions where energy consumption due to the product accounts for shipment and shipment UEC by year, without the affect of standards announced following the development of the 6P.
C21: Post-case | D21: The case in which standards are implemented. If the 6P already captured the analyzed standard, the post-case will be the same as the pre-case.
C22: Product Class | D22: Product classificiation determined by product configuration, size, application, location, and other attributes that contribute to consumer utility. DOE is allowed to establish different standards for each product class.
C23: Product Class Distribution | D23: Market share/mix of each product class shipped in a given year.
C24: Product Lifetime | D24: The average time a given class of products stays in the field as part of the installed stock. Some products will last longer (delaying replacement) whereas others will fail and be retired earlier (accelerating replacement), but the lifetime represents the market average.
C25: Shipments | D25: Sales of products. This may be presented by product class, efficiency distribution, or delineated by other metrics. Shipments may be attributed to new construction and/or replacements and retrofits.
C26: Sixth Power Plan (6P) | D26: The Pacific Northwest Resource Plan published by the Northwest Power Conservation Council. The 6P timeframe is from 2010-2015.
C27: Sixth Power Plan Baseline (6P Baseline) | D27: The 6P assumes equipment efficiency and shipment units in the region. When available, the 6P assumptions are the baseline for each standard impact analysis.
C28: Standard Compliance Year | D28: The year when the appliance standard goes into effect.
C29: Stock | D29: All units installed in previous years which remain in operation.
C30: Technical Support Document (TSD) | D30: TSDs are published by the DOE as companion documents to Federal Register notices (e.g., ANOPRs/preliminary analyses and NOPRs). The TSDs include technical detail that supports the notices. The final rule TSD includes the discussion of the Manufacturer Impact Analysis (MIA) and National Impact Analysis (NIA).
C31: Cumulative Savings through 2034 | D31: The sum of incremental savings from 2010 through 2034
C32: Trial Standard Level (TSL) | D32: A proposed efficiency standard evaluated by DOE during the NOPR and Final Rule phase analyses. A TSL may specify different standard efficiency levels for each product class included in the rulemaking.

Sheet Navigation
C2: NAVIGATION
C4: COMMENTS
C7: INFORMATION TABS | E7: INPUT TABS | H7: UEC CALCULATIONS | J7: RESULTS | L7: CHARTS
C9: COVER | E9: PRODUCT CLASSES
C11: DEFINITIONS | E11: EFFICIENCY LEVELS
C13: NAVIGATION | E13: PRODUCT CLASS DISTRIBUTION | H13: UEC DEVELOPMENT
C15: COMMENTS | E15: EFFICIENCY DISTRIBUTION
C17: CENTRAL COMMERCIAL MODEL (EXTERNAL) | E17: SHIPMENTS AND STOCKS | H17: UEC | J17: RESULTS | L17: CHARTS - ALL
E19: 6P UEC DEVELOPMENT
E21: CONSTANTS AND MENUS | J21: SUMMARY RESULTS

Sheet Comments
C2: Comments
C4: NAVIGATION
C7: Tab | D7: Comment
C8: Example | D8: Please use this space to document your comments as you review the model. We look forward to receiving your feedback. Thank you.

Sheet Product Classes
C2: Selection of Product Classes for Model
C4: NAVIGATION
C6: COMMENTS
C9: All Product Classes | D9: 6th Plan PCs | E9: 2010 DFR PCs | F9: 2014 DOE NOPR PCs | G9: 2018 DOE NOPR Analyzed PCs | I9: Model PCs | J9: Rationale
C10: Ice Making Head-Water Cooled-Small-Batch | D10: 6P-PC1 | E10: 2010-DOE-PC1 | F10: DOE-PC1 | G10: PC1 | I10: PC1 | J10: Combined Product Classes represent 91% of shipments
C11: Ice Making Head-Water Cooled-Med-Batch | E11: 2010-DOE-PC2 | F11: DOE-PC2 | G11: PC2 | I11: PC2 | J11: Combined Product Classes represent 91% of shipments
C12: Ice Making Head-Water Cooled-Large-Batch-1 | E12: 2010-DOE-PC3 | F12: DOE-PC3 | G12: PC3 | I12: PC3 | J12: Combined Product Classes represent 91% of shipments | K12: *Split
C13: Ice Making Head-Water Cooled-Large-Batch-2 | F13: DOE-PC4 | G13: PC4 | I13: PC4 | J13: Combined Product Classes represent 91% of shipments | K13: *Split
C14: Ice Making Head-Air Cooled-Small-Batch | D14: 6P-PC2 | E14: 2010-DOE-PC4 | F14: DOE-PC5 | G14: PC5 | I14: PC5 | J14: Combined Product Classes represent 91% of shipments
C15: Ice Making Head-Air Cooled-Large-Batch-1 | E15: 2010-DOE-PC5 | F15: DOE-PC6 | G15: PC6 | I15: PC6 | J15: Combined Product Classes represent 91% of shipments | K15: *Split
C16: Ice Making Head-Air Cooled-Large-Batch-2 | F16: DOE-PC7 | G16: PC7 | I16: PC7 | J16: Combined Product Classes represent 91% of shipments | K16: *Split
C17: Remote Condensing Unit-Not Remote Condensor-Small-Batch | D17: 6P-PC3 | E17: 2010-DOE-PC6 | F17: DOE-PC8
C18: Remote Condensing Unit-Remote Condensor-Small-Batch | F18: DOE-PC9
C19: Remote Condensing Unit-Not Remote Condensor-Large-Batch-1 | E19: 2010-DOE-PC7 | F19: DOE-PC10 | G19: PC9 | I19: PC8 | J19: Combined Product Classes represent 91% of shipments | K19: *Split
C20: Remote Condensing Unit-Not Remote Condensor-Large-Batch-2 | F20: DOE-PC11 | G20: PC10 | I20: PC9 | J20: Combined Product Classes represent 91% of shipments | K20: *Split
C21: Remote Condensing Unit-Remote Condensor-Large-Batch | F21: DOE-PC12
C22: Self-Contained Unit-Water-Cooled-Small-Batch | D22: 6P-PC4 | E22: 2010-DOE-PC8 | F22: DOE-PC13
C23: Self-Contained Unit-Water Cooled-Large-Batch | D23: 6P-PC5 | E23: 2010-DOE-PC9 | F23: DOE-PC14 | G23: PC14 | I23: PC10 | J23: Combined Product Classes represent 91% of shipments
C24: Self-Contained Unit-Air-Cooled-Small-Batch | D24: 6P-PC6 | E24: 2010-DOE-PC10 | F24: DOE-PC15 | G24: PC15 | I24: PC11 | J24: Combined Product Classes represent 91% of shipments
C25: Self-Contained Unit-Air-Cooled-Large-Batch | D25: 6P-PC7 | E25: 2010-DOE-PC11 | F25: DOE-PC16 | G25: PC16 | I25: PC12 | J25: Combined Product Classes represent 91% of shipments
C26: Ice Maker Head-Water-Cooled-Small-Continuous | F26: DOE-PC17
C27: Ice Making Head-Water-Cooled-Large-Continuous | F27: DOE-PC18
C28: Ice-Making Head-Air-Cooled-Small-Continous | F28: DOE-PC19 | G28: PC19 | I28: PC13 | J28: Combined Product Classes represent 91% of shipments
C29: Ice-Making Head-Air-Cooled-Large-Continuous | F29: DOE-PC20 | G29: PC20 | I29: PC14 | J29: Combined Product Classes represent 91% of shipments
C30: Remote Condensing Unit-Not Remote Condensor-Small-Continuous | F30: DOE-PC21
C31: Remote Condensing Unit-Not Remote Condensor-Large-Continuous | F31: DOE-PC22
C32: Self-Contained Unit-Water-Cooled-Small-C | F32: DOE-PC23
C33: Self-Contained Unit-Water-Cooled-Large-Continuous | F33: DOE-PC24
C34: Self-Contained Unit-Air-Cooled-Small-Continuous | F34: DOE-PC25 | G34: PC25 | I34: PC15 | J34: Combined Product Classes represent 91% of shipments
C35: Self-Contained Unit-Air-Cooled-Large-Continuous | F35: DOE-PC26
C37: Sources | D37: DOE Automatic Commercial Ice Makers 2014, Notice of Proposed Rulemaking (NOPR) Technical Support Document Chapter 3, Section 3.2.4 Table 3.2.7 Proposed NOPR Automatic Commercial Ice-Making Equipment Classes (page 3-13)
D38: 6P Conservation Supply Curve Files: Refrigerators Freezers Ice Makers Beverage Vending, ‘IceARI’ tab, cells R31:R39 (Unknown Origin)

Sheet Efficiency Levels
C2: Efficiency Levels and Standards for Each Product Class
C4: NAVIGATION
C6: COMMENTS
C9: PC1 | D9: =OFFSET('Product Classes'!$C$9,MATCH(C9,'Product Classes'!$I$10:$I$35,0),0) -> Ice Making Head-Water Cooled-Small-Batch
C11: Model ELs | D11: Energy Level (kWh/year) | E11: Compliance Year | F11: Efficiency Level Description
C12: EL0 | D12: ='6P UEC Development'!$D$63 -> 7745.949985 | F12: 6P Weighted average of all IMH ice-maker machines
C13: EL1 | D13: 3389.025 | F13: NIA baseline
C14: EL2 | D14: 3052.3125 | F14: 10% more efficient than baseline
C15: EL3 | D15: 2883.95625 | F15: 15% more efficient than baseline
C16: EL4 | D16: 2715.6 | F16: 20% more efficient than baseline
C17: EL5 | D17: 2547.24375 | E17: 2018 | F17: 25% more efficient than baseline
C18: EL6 | D18: 2399.965811 | F18: 30% more efficient than baseline
C19: EL7
C21: Sources | D21: DOE Automatic Commercial Ice Makers 2014, Notice of Proposed Rulemaking (NOPR) Technical Support Document Chapter 7, Table 7.2.1 Total Annual Energy Usage (page 7-2)
C26: PC2 | D26: =OFFSET('Product Classes'!$C$9,MATCH(C26,'Product Classes'!$I$10:$I$35,0),0) -> Ice Making Head-Water Cooled-Med-Batch
C28: Model ELs | D28: Energy Level (kWh/year) | E28: Compliance Year | F28: Efficiency Level Description
C29: EL0 | D29: ='6P UEC Development'!$D$63 -> 7745.949985 | F29: 6P Weighted average of all IMH ice-maker machines
C30: EL1 | D30: 7227.45625 | F30: NIA baseline
C31: EL2 | D31: 6506.900625 | F31: 10% more efficient than baseline
C32: EL3 | D32: 6146.622812 | E32: 2018 | F32: 15% more efficient than baseline
C33: EL4 | D33: 5786.345 | F33: 20% more efficient than baseline
C34: EL5 | D34: 5690.86765 | F34: 25% more efficient than baseline
C35: EL6
C36: EL7
C38: Sources | D38: DOE Automatic Commercial Ice Makers 2014, Notice of Proposed Rulemaking (NOPR) Technical Support Document Chapter 7, Table 7.2.1 Total Annual Energy Usage (page 7-2)
C43: PC3 | D43: =OFFSET('Product Classes'!$C$9,MATCH(C43,'Product Classes'!$I$10:$I$35,0),0) -> Ice Making Head-Water Cooled-Large-Batch-1
C45: Model ELs | D45: Energy Level (kWh/year) | E45: Compliance Year | F45: Efficiency Level Description
C46: EL0 | D46: ='6P UEC Development'!$D$63 -> 7745.949985 | F46: 6P Weighted average of all IMH ice-maker machines
C47: EL1 | D47: 10971.9 | F47: NIA baseline
C48: EL2 | D48: 9876.9 | E48: 2018 | F48: 10% more efficient than baseline
C49: EL3 | D49: 9329.4 | F49: 15% more efficient than baseline
C50: EL4 | D50: 9146.9 | F50: 20% more efficient than baseline
C51: EL5
C52: EL6
C53: EL7
C55: Sources | D55: DOE Automatic Commercial Ice Makers 2014, Notice of Proposed Rulemaking (NOPR) Technical Support Document Chapter 7, Table 7.2.1 Total Annual Energy Usage (page 7-2)
C60: PC4 | D60: =OFFSET('Product Classes'!$C$9,MATCH(C60,'Product Classes'!$I$10:$I$35,0),0) -> Ice Making Head-Water Cooled-Large-Batch-2
C62: Model ELs | D62: Energy Level (kWh/year) | E62: Compliance Year | F62: Efficiency Level Description
C63: EL0 | D63: ='6P UEC Development'!$D$63 -> 7745.949985 | F63: 6P Weighted average of all IMH ice-maker machines
C64: EL1 | D64: 19001.9 | F64: NIA baseline
C65: EL2 | D65: 17103.9 | E65: 2018 | F65: 10% more efficient than baseline
C66: EL3 | D66: 16154.9 | F66: 15% more efficient than baseline
C67: EL4 | D67: 16067.33641 | F67: 20% more efficient than baseline
C68: EL5
C69: EL6
C70: EL7
C72: Sources | D72: DOE Automatic Commercial Ice Makers 2014, Notice of Proposed Rulemaking (NOPR) Technical Support Document Chapter 7, Table 7.2.1 Total Annual Energy Usage (page 7-2)
C77: PC5 | D77: =OFFSET('Product Classes'!$C$9,MATCH(C77,'Product Classes'!$I$10:$I$35,0),0) -> Ice Making Head-Air Cooled-Small-Batch
C79: Model ELs | D79: Energy Level (kWh/year) | E79: Compliance Year | F79: Efficiency Level Description
C80: EL0 | D80: ='6P UEC Development'!$D$62 -> 7804.871048 | F80: 6P Weighted average of all IMH ice-maker machines
C81: EL1 | D81: 4226.7 | F81: NIA baseline
C82: EL2 | D82: 3806.22 | F82: 10% more efficient than baseline
C83: EL3 | D83: 3595.98 | F83: 15% more efficient than baseline
C84: EL4 | D84: 3385.74 | F84: 20% more efficient than baseline
C85: EL5 | D85: 3175.5 | E85: 2018 | F85: 25% more efficient than baseline
C86: EL6 | D86: 2965.26 | F86: 30% more efficient than baseline
C87: EL7 | D87: 2908.777612 | F87: Max Tech
C89: Sources | D89: DOE Automatic Commercial Ice Makers 2014, Notice of Proposed Rulemaking (NOPR) Technical Support Document Chapter 7, Table 7.2.1 Total Annual Energy Usage (page 7-2)
C94: PC6 | D94: =OFFSET('Product Classes'!$C$9,MATCH(C94,'Product Classes'!$I$10:$I$35,0),0) -> Ice Making Head-Air Cooled-Large-Batch-1
C96: Model ELs | D96: Energy Level (kWh/year) | E96: Compliance Year | F96: Efficiency Level Description
C97: EL0 | D97: ='6P UEC Development'!$D$62 -> 7804.871048 | F97: 6P Weighted average of all IMH ice-maker machines
C98: EL1 | D98: 8796.5 | F98: NIA baseline
C99: EL2 | D99: 7919.04 | F99: 10% more efficient than baseline
C100: EL3 | D100: 7480.31 | F100: 15% more efficient than baseline
C101: EL4 | D101: 7041.58 | F101: 20% more efficient than baseline
C102: EL5 | D102: 6602.85 | E102: 2018 | F102: 25% more efficient than baseline
C103: EL6 | D103: 6213.115228 | F103: 30% more efficient than baseline
C104: EL7
C106: Sources | D106: DOE Automatic Commercial Ice Makers 2014, Notice of Proposed Rulemaking (NOPR) Technical Support Document Chapter 7, Table 7.2.1 Total Annual Energy Usage (page 7-2)
C111: PC7 | D111: =OFFSET('Product Classes'!$C$9,MATCH(C111,'Product Classes'!$I$10:$I$35,0),0) -> Ice Making Head-Air Cooled-Large-Batch-2
C113: Model ELs | D113: Energy Level (kWh/year) | E113: Compliance Year | F113: Efficiency Level Description
C114: EL0 | D114: ='6P UEC Development'!$D$62 -> 7804.871048 | F114: 6P Weighted average of all IMH ice-maker machines
C115: EL1 | D115: 14366.4 | F115: NIA baseline
C116: EL2 | D116: 12931.95 | F116: 10% more efficient than baseline
C117: EL3 | D117: 12214.725 | E117: 2018 | F117: 15% more efficient than baseline
C118: EL4 | D118: 11497.5 | F118: 20% more efficient than baseline
C119: EL5
C120: EL6
C121: EL7
C123: Sources | D123: DOE Automatic Commercial Ice Makers 2014, Notice of Proposed Rulemaking (NOPR) Technical Support Document Chapter 7, Table 7.2.1 Total Annual Energy Usage (page 7-2)
C128: PC8 | D128: =OFFSET('Product Classes'!$C$9,MATCH(C128,'Product Classes'!$I$10:$I$35,0),0) -> Remote Condensing Unit-Not Remote Condensor-Large-Batch-1
C130: Model ELs | D130: Energy Level (kWh/year) | E130: Compliance Year | F130: Efficiency Level Description
C131: EL0 | D131: ='6P UEC Development'!$D$64 -> 9645.636 | F131: 6P Weighted average of all RU ice-maker machines
C132: EL1 | D132: 13983.15 | F132: NIA baseline
C133: EL2 | D133: 12726.6375 | F133: 10% more efficient than baseline
C134: EL3 | D134: 11888.9625 | E134: 2018 | F134: 15% more efficient than baseline
C135: EL4 | D135: 11190.9 | F135: 20% more efficient than baseline
C136: EL5 | D136: 11107.96188 | F136: 25% more efficient than baseline
C137: EL6
C138: EL7
C140: Sources | D140: DOE Automatic Commercial Ice Makers 2014, Notice of Proposed Rulemaking (NOPR) Technical Support Document Chapter 7, Table 7.2.1 Total Annual Energy Usage (page 7-2)
C145: PC9 | D145: =OFFSET('Product Classes'!$C$9,MATCH(C145,'Product Classes'!$I$10:$I$35,0),0) -> Remote Condensing Unit-Not Remote Condensor-Large-Batch-2
C147: Model ELs | D147: Energy Level (kWh/year) | E147: Compliance Year | F147: Efficiency Level Description
C148: EL0 | D148: ='6P UEC Development'!$D$64 -> 9645.636 | F148: 6P Weighted average of all RU ice-maker machines
C149: EL1 | D149: 22359.9 | F149: NIA baseline
C150: EL2 | D150: 20349.48 | F150: 10% more efficient than baseline
C151: EL3 | D151: 19009.2 | E151: 2018 | F151: 15% more efficient than baseline
C152: EL4 | D152: 17892.3 | F152: 20% more efficient than baseline
C153: EL5 | D153: 17778.86484 | F153: 25% more efficient than baseline
C154: EL6
C155: EL7
C157: Sources | D157: DOE Automatic Commercial Ice Makers 2014, Notice of Proposed Rulemaking (NOPR) Technical Support Document Chapter 7, Table 7.2.1 Total Annual Energy Usage (page 7-2)
C162: PC10 | D162: =OFFSET('Product Classes'!$C$9,MATCH(C162,'Product Classes'!$I$10:$I$35,0),0) -> Self-Contained Unit-Water Cooled-Large-Batch
C164: Model ELs | D164: Energy Level (kWh/year) | E164: Compliance Year | F164: Efficiency Level Description
C165: EL0 | D165: ='6P UEC Development'!$D$68 -> 3552.701429 | F165: 6P Weighted average of all SC ice-maker machines
C166: EL1 | D166: 4182.9 | F166: NIA baseline
C167: EL2 | D167: 3891.63 | F167: 10% more efficient than baseline
C168: EL3 | D168: 3558.75 | F168: 15% more efficient than baseline
C169: EL4 | D169: 3350.7 | F169: 20% more efficient than baseline
C170: EL5 | D170: 3142.65 | E170: 2018 | F170: 25% more efficient than baseline
C171: EL6 | D171: 2934.6 | F171: 30% more efficient than baseline
C172: EL7 | D172: 2924.66665 | F172: Max Tech
C174: Sources | D174: DOE Automatic Commercial Ice Makers 2014, Notice of Proposed Rulemaking (NOPR) Technical Support Document Chapter 7, Table 7.2.1 Total Annual Energy Usage (page 7-2)
C179: PC11 | D179: =OFFSET('Product Classes'!$C$9,MATCH(C179,'Product Classes'!$I$10:$I$35,0),0) -> Self-Contained Unit-Air-Cooled-Small-Batch
C181: Model ELs | D181: Energy Level (kWh/year) | E181: Compliance Year | F181: Efficiency Level Description
C182: EL0 | D182: ='6P UEC Development'!$D$65 -> 2449.626156 | F182: 6P Weighted average of all SC ice-maker machines
C183: EL1 | D183: 2599.53 | F183: NIA baseline
C184: EL2 | D184: 2419.0959 | F184: 10% more efficient than baseline
C185: EL3 | D185: 2212.8855 | F185: 15% more efficient than baseline
C186: EL4 | D186: 2084.004 | F186: 20% more efficient than baseline
C187: EL5 | D187: 1955.1225 | F187: 25% more efficient than baseline
C188: EL6 | D188: 1826.241 | E188: 2018 | F188: 30% more efficient than baseline
C189: EL7 | D189: 1585.262567 | F189: Max Tech
C191: Sources | D191: DOE Automatic Commercial Ice Makers 2014, Notice of Proposed Rulemaking (NOPR) Technical Support Document Chapter 7, Table 7.2.1 Total Annual Energy Usage (page 7-2)
C196: PC12 | D196: =OFFSET('Product Classes'!$C$9,MATCH(C196,'Product Classes'!$I$10:$I$35,0),0) -> Self-Contained Unit-Air-Cooled-Large-Batch
C198: Model ELs | D198: Energy Level (kWh/year) | E198: Compliance Year | F198: Efficiency Level Description
C199: EL0 | D199: ='6P UEC Development'!$D$66 -> 4379.589375 | F199: 6P Weighted average of all SC ice-maker machines
C200: EL1 | D200: 3598.9 | F200: NIA baseline
C201: EL2 | D201: 3348.51 | F201: 10% more efficient than baseline
C202: EL3 | D202: 3062.35 | F202: 15% more efficient than baseline
C203: EL4 | D203: 2883.5 | F203: 20% more efficient than baseline
C204: EL5 | D204: 2704.65 | F204: 25% more efficient than baseline
C205: EL6 | D205: 2525.8 | E205: 2018 | F205: 30% more efficient than baseline
C206: EL7 | D206: 2351.094487 | F206: Max Tech
C208: Sources | D208: DOE Automatic Commercial Ice Makers 2014, Notice of Proposed Rulemaking (NOPR) Technical Support Document Chapter 7, Table 7.2.1 Total Annual Energy Usage (page 7-2)
C213: PC13 | D213: =OFFSET('Product Classes'!$C$9,MATCH(C213,'Product Classes'!$I$10:$I$35,0),0) -> Ice-Making Head-Air-Cooled-Small-Continous
C215: Model ELs | D215: Energy Level (kWh/year) | E215: Compliance Year | F215: Efficiency Level Description
C216: EL0 | D216: 5141.9375 | F216: No previous compliance. Hence EL0 is from 2018 NIA
C217: EL1 | D217: 4629.93375 | F217: 10% more efficient than baseline
C218: EL2 | D218: 4373.931875 | F218: 15% more efficient than baseline
C219: EL3 | D219: 4117.93 | E219: 2018 | F219: 20% more efficient than baseline
C220: EL4 | D220: 3861.928125 | F220: 25% more efficient than baseline
C221: EL5 | D221: 3605.92625 | F221: 30% more efficient than baseline
C222: EL6 | D222: 3555.288516 | F222: 31% more efficient than baseline
C223: EL7
C225: Sources | D225: DOE Automatic Commercial Ice Makers 2014, Notice of Proposed Rulemaking (NOPR) Technical Support Document Chapter 7, Table 7.2.1 Total Annual Energy Usage (page 7-2)
C230: PC14 | D230: =OFFSET('Product Classes'!$C$9,MATCH(C230,'Product Classes'!$I$10:$I$35,0),0) -> Ice-Making Head-Air-Cooled-Large-Continuous
C232: Model ELs | D232: Energy Level (kWh/year) | E232: Compliance Year | F232: Efficiency Level Description
C233: EL0 | D233: 9898.8 | F233: No previous compliance. Hence EL0 is from 2018 NIA
C234: EL1 | D234: 8911.11 | F234: 10% more efficient than baseline
C235: EL2 | D235: 8417.265 | F235: 15% more efficient than baseline
C236: EL3 | D236: 7923.42 | F236: 20% more efficient than baseline
C237: EL4 | D237: 7429.575 | E237: 2018 | F237: 25% more efficient than baseline
C238: EL5 | D238: 6935.73 | F238: 30% more efficient than baseline
C239: EL6 | D239: 6912.02544 | F239: 30% more efficient than baseline
C240: EL7
C242: Sources | D242: DOE Automatic Commercial Ice Makers 2014, Notice of Proposed Rulemaking (NOPR) Technical Support Document Chapter 7, Table 7.2.1 Total Annual Energy Usage (page 7-2)
C247: PC15 | D247: =OFFSET('Product Classes'!$C$9,MATCH(C247,'Product Classes'!$I$10:$I$35,0),0) -> Self-Contained Unit-Air-Cooled-Small-Continuous
C249: Model ELs | D249: Energy Level (kWh/year) | E249: Compliance Year | F249: Efficiency Level Description
C250: EL0 | D250: 2192.0075 | F250: No previous compliance. Hence EL0 is from 2018 NIA
C251: EL1 | D251: 2040.099975 | F251: 10% more efficient than baseline
C252: EL2 | D252: 1866.491375 | F252: 15% more efficient than baseline
C253: EL3 | D253: 1757.986 | E253: 2018 | F253: 20% more efficient than baseline
C254: EL4 | D254: 1649.480625 | F254: 25% more efficient than baseline
C255: EL5 | D255: 1580.094006 | F255: 30% more efficient than baseline
C256: EL6
C257: EL7
C259: Sources | D259: DOE Automatic Commercial Ice Makers 2014, Notice of Proposed Rulemaking (NOPR) Technical Support Document Chapter 7, Table 7.2.1 Total Annual Energy Usage (page 7-2)

Sheet Constants and Menus
C2: Constants and Menus
C4: NAVIGATION
C6: COMMENTS
C10: Hours/Day | D10: 24
C11: Days/Week | D11: 7
C12: Days/Year | D12: 365.25
C13: kW/MW | D13: 1000
C14: Equipment Lifetime (years) | D14: 8.5 | E14: DOE Automatic Commercial Ice Makers 2014, Notice of Proposed Rulemaking (NOPR) Technical Support Document Chapter 3, Table 3.2.10 Estimates for Automatic Commercial Ice Maker Lifetimes (page 3-16)
C15: Standard Compliance Year | D15: 2018
D19: Building Type
D20: Large Off
D21: Medium Off
D22: Small Off
D23: Big Box
D24: Small Box
D25: High End
D26: Anchor
D27: K-12
D28: University
D29: Warehouse
D30: Supermarket
D31: MIniMart
D32: Restaurant
D33: Lodging
D34: Hospital
D35: OtherHealth
D36: Assembly
D37: Other
D38: TOTAL

Sheet Product Class Dist
C2: Product Class Distributions
C4: NAVIGATION
C6: COMMENTS
C9: PRE-Case | D9: 1990 | E9: =D9+1 -> 1991 | F9: =E9+1 -> 1992 | G9: 1993 | H9: 1994 | I9: 1995 | J9: 1996 | K9: 1997 | L9: 1998 | M9: 1999 | N9: 2000 | O9: 2001 | P9: 2002 | Q9: 2003 | R9: 2004 | S9: 2005 | T9: 2006 | U9: 2007 | V9: 2008 | W9: =V9+1 -> 2009 | X9: 2010 | Y9: 2011 | Z9: 2012 | AA9: 2013 | AB9: 2014 | AC9: 2015 | AD9: 2016 | AE9: 2017 | AF9: 2018 | AG9: 2019 | AH9: 2020 | AI9: 2021 | AJ9: 2022 | AK9: 2023 | AL9: 2024 | AM9: 2025 | AN9: 2026 | AO9: 2027 | AP9: 2028 | AQ9: 2029 | AR9: 2030 | AS9: 2031 | AT9: 2032 | AU9: 2033 | AV9: 2034
C10: PC1 - Ice Making Head - Water Cooled - Small - Batch | D10: 0.04978667625 | E10: 0.04978667625 | F10: 0.04978667625 | G10: 0.04978667625 | H10: 0.04978667625 | I10: 0.04978667625 | J10: 0.04978667625 | K10: 0.04978667625 | L10: 0.04978667625 | M10: 0.04978667625 | N10: 0.04978667625 | O10: 0.04978667625 | P10: 0.04978667625 | Q10: 0.04978667625 | R10: 0.04978667625 | S10: 0.04978667625 | T10: 0.04978667625 | U10: 0.04978667625 | V10: 0.04978667625 | W10: 0.04978667625 | X10: 0.04978667625 | Y10: 0.04978667625 | Z10: 0.04978667625 | AA10: 0.04978667625 | AB10: 0.04978667625 | AC10: 0.04978667625 | AD10: 0.04978667625 | AE10: 0.04978667625 | AF10: 0.04978667625 | AG10: 0.04978667625 | AH10: 0.04978667625 | AI10: 0.04978667625 | AJ10: 0.04978667625 | AK10: 0.04978667625 | AL10: 0.04978667625 | AM10: 0.04978667625 | AN10: 0.04978667625 | AO10: 0.04978667625 | AP10: 0.04978667625 | AQ10: 0.04978667625 | AR10: 0.04978667625 | AS10: 0.04978667625 | AT10: 0.04978667625 | AU10: 0.04978667625 | AV10: 0.04978667625
C11: PC2 - Ice Making Head - Water Cooled - Medium - Batch | D11: 0.03179613504 | E11: 0.03179613504 | F11: 0.03179613504 | G11: 0.03179613504 | H11: 0.03179613504 | I11: 0.03179613504 | J11: 0.03179613504 | K11: 0.03179613504 | L11: 0.03179613504 | M11: 0.03179613504 | N11: 0.03179613504 | O11: 0.03179613504 | P11: 0.03179613504 | Q11: 0.03179613504 | R11: 0.03179613504 | S11: 0.03179613504 | T11: 0.03179613504 | U11: 0.03179613504 | V11: 0.03179613504 | W11: 0.03179613504 | X11: 0.03179613504 | Y11: 0.03179613504 | Z11: 0.03179613504 | AA11: 0.03179613504 | AB11: 0.03179613504 | AC11: 0.03179613504 | AD11: 0.03179613504 | AE11: 0.03179613504 | AF11: 0.03179613504 | AG11: 0.03179613504 | AH11: 0.03179613504 | AI11: 0.03179613504 | AJ11: 0.03179613504 | AK11: 0.03179613504 | AL11: 0.03179613504 | AM11: 0.03179613504 | AN11: 0.03179613504 | AO11: 0.03179613504 | AP11: 0.03179613504 | AQ11: 0.03179613504 | AR11: 0.03179613504 | AS11: 0.03179613504 | AT11: 0.03179613504 | AU11: 0.03179613504 | AV11: 0.03179613504
C12: PC3 - Ice Making Head - Water Cooled - Large - Batch-1 | D12: 0.004021647594 | E12: 0.004021647594 | F12: 0.004021647594 | G12: 0.004021647594 | H12: 0.004021647594 | I12: 0.004021647594 | J12: 0.004021647594 | K12: 0.004021647594 | L12: 0.004021647594 | M12: 0.004021647594 | N12: 0.004021647594 | O12: 0.004021647594 | P12: 0.004021647594 | Q12: 0.004021647594 | R12: 0.004021647594 | S12: 0.004021647594 | T12: 0.004021647594 | U12: 0.004021647594 | V12: 0.004021647594 | W12: 0.004021647594 | X12: 0.004021647594 | Y12: 0.004021647594 | Z12: 0.004021647594 | AA12: 0.004021647594 | AB12: 0.004021647594 | AC12: 0.004021647594 | AD12: 0.004021647594 | AE12: 0.004021647594 | AF12: 0.004021647594 | AG12: 0.004021647594 | AH12: 0.004021647594 | AI12: 0.004021647594 | AJ12: 0.004021647594 | AK12: 0.004021647594 | AL12: 0.004021647594 | AM12: 0.004021647594 | AN12: 0.004021647594 | AO12: 0.004021647594 | AP12: 0.004021647594 | AQ12: 0.004021647594 | AR12: 0.004021647594 | AS12: 0.004021647594 | AT12: 0.004021647594 | AU12: 0.004021647594 | AV12: 0.004021647594
C13: PC4 - Ice Making Head - Water Cooled - Large - Batch-2 | D13: 0.00124503095 | E13: 0.00124503095 | F13: 0.00124503095 | G13: 0.00124503095 | H13: 0.00124503095 | I13: 0.00124503095 | J13: 0.00124503095 | K13: 0.00124503095 | L13: 0.00124503095 | M13: 0.00124503095 | N13: 0.00124503095 | O13: 0.00124503095 | P13: 0.00124503095 | Q13: 0.00124503095 | R13: 0.00124503095 | S13: 0.00124503095 | T13: 0.00124503095 | U13: 0.00124503095 | V13: 0.00124503095 | W13: 0.00124503095 | X13: 0.00124503095 | Y13: 0.00124503095 | Z13: 0.00124503095 | AA13: 0.00124503095 | AB13: 0.00124503095 | AC13: 0.00124503095 | AD13: 0.00124503095 | AE13: 0.00124503095 | AF13: 0.00124503095 | AG13: 0.00124503095 | AH13: 0.00124503095 | AI13: 0.00124503095 | AJ13: 0.00124503095 | AK13: 0.00124503095 | AL13: 0.00124503095 | AM13: 0.00124503095 | AN13: 0.00124503095 | AO13: 0.00124503095 | AP13: 0.00124503095 | AQ13: 0.00124503095 | AR13: 0.00124503095 | AS13: 0.00124503095 | AT13: 0.00124503095 | AU13: 0.00124503095 | AV13: 0.00124503095
C14: PC5 - Ice Making Head - Air Cooled - Small - Batch | D14: 0.2968878754 | E14: 0.2968878754 | F14: 0.2968878754 | G14: 0.2968878754 | H14: 0.2968878754 | I14: 0.2968878754 | J14: 0.2968878754 | K14: 0.2968878754 | L14: 0.2968878754 | M14: 0.2968878754 | N14: 0.2968878754 | O14: 0.2968878754 | P14: 0.2968878754 | Q14: 0.2968878754 | R14: 0.2968878754 | S14: 0.2968878754 | T14: 0.2968878754 | U14: 0.2968878754 | V14: 0.2968878754 | W14: 0.2968878754 | X14: 0.2968878754 | Y14: 0.2968878754 | Z14: 0.2968878754 | AA14: 0.2968878754 | AB14: 0.2968878754 | AC14: 0.2968878754 | AD14: 0.2968878754 | AE14: 0.2968878754 | AF14: 0.2968878754 | AG14: 0.2968878754 | AH14: 0.2968878754 | AI14: 0.2968878754 | AJ14: 0.2968878754 | AK14: 0.2968878754 | AL14: 0.2968878754 | AM14: 0.2968878754 | AN14: 0.2968878754 | AO14: 0.2968878754 | AP14: 0.2968878754 | AQ14: 0.2968878754 | AR14: 0.2968878754 | AS14: 0.2968878754 | AT14: 0.2968878754 | AU14: 0.2968878754 | AV14: 0.2968878754
C15: PC6 - Ice Making Head - Air Cooled - Large - Batch-1 | D15: 0.1492454925 | E15: 0.1492454925 | F15: 0.1492454925 | G15: 0.1492454925 | H15: 0.1492454925 | I15: 0.1492454925 | J15: 0.1492454925 | K15: 0.1492454925 | L15: 0.1492454925 | M15: 0.1492454925 | N15: 0.1492454925 | O15: 0.1492454925 | P15: 0.1492454925 | Q15: 0.1492454925 | R15: 0.1492454925 | S15: 0.1492454925 | T15: 0.1492454925 | U15: 0.1492454925 | V15: 0.1492454925 | W15: 0.1492454925 | X15: 0.1492454925 | Y15: 0.1492454925 | Z15: 0.1492454925 | AA15: 0.1492454925 | AB15: 0.1492454925 | AC15: 0.1492454925 | AD15: 0.1492454925 | AE15: 0.1492454925 | AF15: 0.1492454925 | AG15: 0.1492454925 | AH15: 0.1492454925 | AI15: 0.1492454925 | AJ15: 0.1492454925 | AK15: 0.1492454925 | AL15: 0.1492454925 | AM15: 0.1492454925 | AN15: 0.1492454925 | AO15: 0.1492454925 | AP15: 0.1492454925 | AQ15: 0.1492454925 | AR15: 0.1492454925 | AS15: 0.1492454925 | AT15: 0.1492454925 | AU15: 0.1492454925 | AV15: 0.1492454925
C16: PC7 - Ice Making Head - Air Cooled - Large - Batch-2 | D16: 0.02770583912 | E16: 0.02770583912 | F16: 0.02770583912 | G16: 0.02770583912 | H16: 0.02770583912 | I16: 0.02770583912 | J16: 0.02770583912 | K16: 0.02770583912 | L16: 0.02770583912 | M16: 0.02770583912 | N16: 0.02770583912 | O16: 0.02770583912 | P16: 0.02770583912 | Q16: 0.02770583912 | R16: 0.02770583912 | S16: 0.02770583912 | T16: 0.02770583912 | U16: 0.02770583912 | V16: 0.02770583912 | W16: 0.02770583912 | X16: 0.02770583912 | Y16: 0.02770583912 | Z16: 0.02770583912 | AA16: 0.02770583912 | AB16: 0.02770583912 | AC16: 0.02770583912 | AD16: 0.02770583912 | AE16: 0.02770583912 | AF16: 0.02770583912 | AG16: 0.02770583912 | AH16: 0.02770583912 | AI16: 0.02770583912 | AJ16: 0.02770583912 | AK16: 0.02770583912 | AL16: 0.02770583912 | AM16: 0.02770583912 | AN16: 0.02770583912 | AO16: 0.02770583912 | AP16: 0.02770583912 | AQ16: 0.02770583912 | AR16: 0.02770583912 | AS16: 0.02770583912 | AT16: 0.02770583912 | AU16: 0.02770583912 | AV16: 0.02770583912
C17: PC8 - Remote Condensing Unit - *** - Large - Batch-1 | D17: 0.06363663796 | E17: 0.06363663796 | F17: 0.06363663796 | G17: 0.06363663796 | H17: 0.06363663796 | I17: 0.06363663796 | J17: 0.06363663796 | K17: 0.06363663796 | L17: 0.06363663796 | M17: 0.06363663796 | N17: 0.06363663796 | O17: 0.06363663796 | P17: 0.06363663796 | Q17: 0.06363663796 | R17: 0.06363663796 | S17: 0.06363663796 | T17: 0.06363663796 | U17: 0.06363663796 | V17: 0.06363663796 | W17: 0.06363663796 | X17: 0.06363663796 | Y17: 0.06363663796 | Z17: 0.06363663796 | AA17: 0.06363663796 | AB17: 0.06363663796 | AC17: 0.06363663796 | AD17: 0.06363663796 | AE17: 0.06363663796 | AF17: 0.06363663796 | AG17: 0.06363663796 | AH17: 0.06363663796 | AI17: 0.06363663796 | AJ17: 0.06363663796 | AK17: 0.06363663796 | AL17: 0.06363663796 | AM17: 0.06363663796 | AN17: 0.06363663796 | AO17: 0.06363663796 | AP17: 0.06363663796 | AQ17: 0.06363663796 | AR17: 0.06363663796 | AS17: 0.06363663796 | AT17: 0.06363663796 | AU17: 0.06363663796 | AV17: 0.06363663796
C18: PC9 - Remote Condensing Unit - *** - Large - Batch-2 | D18: 0.002998000985 | E18: 0.002998000985 | F18: 0.002998000985 | G18: 0.002998000985 | H18: 0.002998000985 | I18: 0.002998000985 | J18: 0.002998000985 | K18: 0.002998000985 | L18: 0.002998000985 | M18: 0.002998000985 | N18: 0.002998000985 | O18: 0.002998000985 | P18: 0.002998000985 | Q18: 0.002998000985 | R18: 0.002998000985 | S18: 0.002998000985 | T18: 0.002998000985 | U18: 0.002998000985 | V18: 0.002998000985 | W18: 0.002998000985 | X18: 0.002998000985 | Y18: 0.002998000985 | Z18: 0.002998000985 | AA18: 0.002998000985 | AB18: 0.002998000985 | AC18: 0.002998000985 | AD18: 0.002998000985 | AE18: 0.002998000985 | AF18: 0.002998000985 | AG18: 0.002998000985 | AH18: 0.002998000985 | AI18: 0.002998000985 | AJ18: 0.002998000985 | AK18: 0.002998000985 | AL18: 0.002998000985 | AM18: 0.002998000985 | AN18: 0.002998000985 | AO18: 0.002998000985 | AP18: 0.002998000985 | AQ18: 0.002998000985 | AR18: 0.002998000985 | AS18: 0.002998000985 | AT18: 0.002998000985 | AU18: 0.002998000985 | AV18: 0.002998000985
C19: PC10 - Self Contained Unit - Water Cooled - Large - Batch | D19: 0.002373047714 | E19: 0.002373047714 | F19: 0.002373047714 | G19: 0.002373047714 | H19: 0.002373047714 | I19: 0.002373047714 | J19: 0.002373047714 | K19: 0.002373047714 | L19: 0.002373047714 | M19: 0.002373047714 | N19: 0.002373047714 | O19: 0.002373047714 | P19: 0.002373047714 | Q19: 0.002373047714 | R19: 0.002373047714 | S19: 0.002373047714 | T19: 0.002373047714 | U19: 0.002373047714 | V19: 0.002373047714 | W19: 0.002373047714 | X19: 0.002373047714 | Y19: 0.002373047714 | Z19: 0.002373047714 | AA19: 0.002373047714 | AB19: 0.002373047714 | AC19: 0.002373047714 | AD19: 0.002373047714 | AE19: 0.002373047714 | AF19: 0.002373047714 | AG19: 0.002373047714 | AH19: 0.002373047714 | AI19: 0.002373047714 | AJ19: 0.002373047714 | AK19: 0.002373047714 | AL19: 0.002373047714 | AM19: 0.002373047714 | AN19: 0.002373047714 | AO19: 0.002373047714 | AP19: 0.002373047714 | AQ19: 0.002373047714 | AR19: 0.002373047714 | AS19: 0.002373047714 | AT19: 0.002373047714 | AU19: 0.002373047714 | AV19: 0.002373047714
C20: PC11 - Self Contained Unit - Air Cooled - Small - Batch | D20: 0.151902097 | E20: 0.151902097 | F20: 0.151902097 | G20: 0.151902097 | H20: 0.151902097 | I20: 0.151902097 | J20: 0.151902097 | K20: 0.151902097 | L20: 0.151902097 | M20: 0.151902097 | N20: 0.151902097 | O20: 0.151902097 | P20: 0.151902097 | Q20: 0.151902097 | R20: 0.151902097 | S20: 0.151902097 | T20: 0.151902097 | U20: 0.151902097 | V20: 0.151902097 | W20: 0.151902097 | X20: 0.151902097 | Y20: 0.151902097 | Z20: 0.151902097 | AA20: 0.151902097 | AB20: 0.151902097 | AC20: 0.151902097 | AD20: 0.151902097 | AE20: 0.151902097 | AF20: 0.151902097 | AG20: 0.151902097 | AH20: 0.151902097 | AI20: 0.151902097 | AJ20: 0.151902097 | AK20: 0.151902097 | AL20: 0.151902097 | AM20: 0.151902097 | AN20: 0.151902097 | AO20: 0.151902097 | AP20: 0.151902097 | AQ20: 0.151902097 | AR20: 0.151902097 | AS20: 0.151902097 | AT20: 0.151902097 | AU20: 0.151902097 | AV20: 0.151902097
C21: PC12 - Self Contained Unit - Air Cooled - Large - Batch | D21: 0.07193512158 | E21: 0.07193512158 | F21: 0.07193512158 | G21: 0.07193512158 | H21: 0.07193512158 | I21: 0.07193512158 | J21: 0.07193512158 | K21: 0.07193512158 | L21: 0.07193512158 | M21: 0.07193512158 | N21: 0.07193512158 | O21: 0.07193512158 | P21: 0.07193512158 | Q21: 0.07193512158 | R21: 0.07193512158 | S21: 0.07193512158 | T21: 0.07193512158 | U21: 0.07193512158 | V21: 0.07193512158 | W21: 0.07193512158 | X21: 0.07193512158 | Y21: 0.07193512158 | Z21: 0.07193512158 | AA21: 0.07193512158 | AB21: 0.07193512158 | AC21: 0.07193512158 | AD21: 0.07193512158 | AE21: 0.07193512158 | AF21: 0.07193512158 | AG21: 0.07193512158 | AH21: 0.07193512158 | AI21: 0.07193512158 | AJ21: 0.07193512158 | AK21: 0.07193512158 | AL21: 0.07193512158 | AM21: 0.07193512158 | AN21: 0.07193512158 | AO21: 0.07193512158 | AP21: 0.07193512158 | AQ21: 0.07193512158 | AR21: 0.07193512158 | AS21: 0.07193512158 | AT21: 0.07193512158 | AU21: 0.07193512158 | AV21: 0.07193512158
C22: PC13 - Ice Making Head - Air Cooled - Small - Continuous | D22: 0.0387507649 | E22: 0.0387507649 | F22: 0.0387507649 | G22: 0.0387507649 | H22: 0.0387507649 | I22: 0.0387507649 | J22: 0.0387507649 | K22: 0.0387507649 | L22: 0.0387507649 | M22: 0.0387507649 | N22: 0.0387507649 | O22: 0.0387507649 | P22: 0.0387507649 | Q22: 0.0387507649 | R22: 0.0387507649 | S22: 0.0387507649 | T22: 0.0387507649 | U22: 0.0387507649 | V22: 0.0387507649 | W22: 0.0387507649 | X22: 0.0387507649 | Y22: 0.0387507649 | Z22: 0.0387507649 | AA22: 0.0387507649 | AB22: 0.0387507649 | AC22: 0.0387507649 | AD22: 0.0387507649 | AE22: 0.0387507649 | AF22: 0.0387507649 | AG22: 0.0387507649 | AH22: 0.0387507649 | AI22: 0.0387507649 | AJ22: 0.0387507649 | AK22: 0.0387507649 | AL22: 0.0387507649 | AM22: 0.0387507649 | AN22: 0.0387507649 | AO22: 0.0387507649 | AP22: 0.0387507649 | AQ22: 0.0387507649 | AR22: 0.0387507649 | AS22: 0.0387507649 | AT22: 0.0387507649 | AU22: 0.0387507649 | AV22: 0.0387507649
C23: PC14 - Ice Making Head - Air Cooled - Large - Continuous | D23: 0.0117728407 | E23: 0.0117728407 | F23: 0.0117728407 | G23: 0.0117728407 | H23: 0.0117728407 | I23: 0.0117728407 | J23: 0.0117728407 | K23: 0.0117728407 | L23: 0.0117728407 | M23: 0.0117728407 | N23: 0.0117728407 | O23: 0.0117728407 | P23: 0.0117728407 | Q23: 0.0117728407 | R23: 0.0117728407 | S23: 0.0117728407 | T23: 0.0117728407 | U23: 0.0117728407 | V23: 0.0117728407 | W23: 0.0117728407 | X23: 0.0117728407 | Y23: 0.0117728407 | Z23: 0.0117728407 | AA23: 0.0117728407 | AB23: 0.0117728407 | AC23: 0.0117728407 | AD23: 0.0117728407 | AE23: 0.0117728407 | AF23: 0.0117728407 | AG23: 0.0117728407 | AH23: 0.0117728407 | AI23: 0.0117728407 | AJ23: 0.0117728407 | AK23: 0.0117728407 | AL23: 0.0117728407 | AM23: 0.0117728407 | AN23: 0.0117728407 | AO23: 0.0117728407 | AP23: 0.0117728407 | AQ23: 0.0117728407 | AR23: 0.0117728407 | AS23: 0.0117728407 | AT23: 0.0117728407 | AU23: 0.0117728407 | AV23: 0.0117728407
C24: PC15 - Self Contained Unit - Air Cooled - Small - Continuous | D24: 0.09594279233 | E24: 0.09594279233 | F24: 0.09594279233 | G24: 0.09594279233 | H24: 0.09594279233 | I24: 0.09594279233 | J24: 0.09594279233 | K24: 0.09594279233 | L24: 0.09594279233 | M24: 0.09594279233 | N24: 0.09594279233 | O24: 0.09594279233 | P24: 0.09594279233 | Q24: 0.09594279233 | R24: 0.09594279233 | S24: 0.09594279233 | T24: 0.09594279233 | U24: 0.09594279233 | V24: 0.09594279233 | W24: 0.09594279233 | X24: 0.09594279233 | Y24: 0.09594279233 | Z24: 0.09594279233 | AA24: 0.09594279233 | AB24: 0.09594279233 | AC24: 0.09594279233 | AD24: 0.09594279233 | AE24: 0.09594279233 | AF24: 0.09594279233 | AG24: 0.09594279233 | AH24: 0.09594279233 | AI24: 0.09594279233 | AJ24: 0.09594279233 | AK24: 0.09594279233 | AL24: 0.09594279233 | AM24: 0.09594279233 | AN24: 0.09594279233 | AO24: 0.09594279233 | AP24: 0.09594279233 | AQ24: 0.09594279233 | AR24: 0.09594279233 | AS24: 0.09594279233 | AT24: 0.09594279233 | AU24: 0.09594279233 | AV24: 0.09594279233
C26: POST-Case | D26: 1990 | E26: =D26+1 -> 1991 | F26: =E26+1 -> 1992 | G26: =F26+1 -> 1993 | H26: =G26+1 -> 1994 | I26: =H26+1 -> 1995 | J26: =I26+1 -> 1996 | K26: =J26+1 -> 1997 | L26: =K26+1 -> 1998 | M26: =L26+1 -> 1999 | N26: =M26+1 -> 2000 | O26: =N26+1 -> 2001 | P26: =O26+1 -> 2002 | Q26: =P26+1 -> 2003 | R26: =Q26+1 -> 2004 | S26: =R26+1 -> 2005 | T26: =S26+1 -> 2006 | U26: =T26+1 -> 2007 | V26: =U26+1 -> 2008 | W26: =V26+1 -> 2009 | X26: =W26+1 -> 2010 | Y26: =X26+1 -> 2011 | Z26: =Y26+1 -> 2012 | AA26: =Z26+1 -> 2013 | AB26: =AA26+1 -> 2014 | AC26: =AB26+1 -> 2015 | AD26: =AC26+1 -> 2016 | AE26: =AD26+1 -> 2017 | AF26: =AE26+1 -> 2018 | AG26: =AF26+1 -> 2019 | AH26: =AG26+1 -> 2020 | AI26: =AH26+1 -> 2021 | AJ26: =AI26+1 -> 2022 | AK26: =AJ26+1 -> 2023 | AL26: =AK26+1 -> 2024 | AM26: =AL26+1 -> 2025 | AN26: =AM26+1 -> 2026 | AO26: =AN26+1 -> 2027 | AP26: =AO26+1 -> 2028 | AQ26: =AP26+1 -> 2029 | AR26: =AQ26+1 -> 2030 | AS26: =AR26+1 -> 2031 | AT26: =AS26+1 -> 2032 | AU26: =AT26+1 -> 2033 | AV26: =AU26+1 -> 2034
C27: PC1 - Ice Making Head - Water Cooled - Small - Batch | D27: 0.04978667625 | E27: 0.04978667625 | F27: 0.04978667625 | G27: 0.04978667625 | H27: 0.04978667625 | I27: 0.04978667625 | J27: 0.04978667625 | K27: 0.04978667625 | L27: 0.04978667625 | M27: 0.04978667625 | N27: 0.04978667625 | O27: 0.04978667625 | P27: 0.04978667625 | Q27: 0.04978667625 | R27: 0.04978667625 | S27: 0.04978667625 | T27: 0.04978667625 | U27: 0.04978667625 | V27: 0.04978667625 | W27: 0.04978667625 | X27: 0.04978667625 | Y27: 0.04978667625 | Z27: 0.04978667625 | AA27: 0.04978667625 | AB27: 0.04978667625 | AC27: 0.04978667625 | AD27: 0.04978667625 | AE27: 0.04978667625 | AF27: 0.04978667625 | AG27: 0.04978667625 | AH27: 0.04978667625 | AI27: 0.04978667625 | AJ27: 0.04978667625 | AK27: 0.04978667625 | AL27: 0.04978667625 | AM27: 0.04978667625 | AN27: 0.04978667625 | AO27: 0.04978667625 | AP27: 0.04978667625 | AQ27: 0.04978667625 | AR27: 0.04978667625 | AS27: 0.04978667625 | AT27: 0.04978667625 | AU27: 0.04978667625 | AV27: 0.04978667625
C28: PC2 - Ice Making Head - Water Cooled - Medium - Batch | D28: 0.03179613504 | E28: 0.03179613504 | F28: 0.03179613504 | G28: 0.03179613504 | H28: 0.03179613504 | I28: 0.03179613504 | J28: 0.03179613504 | K28: 0.03179613504 | L28: 0.03179613504 | M28: 0.03179613504 | N28: 0.03179613504 | O28: 0.03179613504 | P28: 0.03179613504 | Q28: 0.03179613504 | R28: 0.03179613504 | S28: 0.03179613504 | T28: 0.03179613504 | U28: 0.03179613504 | V28: 0.03179613504 | W28: 0.03179613504 | X28: 0.03179613504 | Y28: 0.03179613504 | Z28: 0.03179613504 | AA28: 0.03179613504 | AB28: 0.03179613504 | AC28: 0.03179613504 | AD28: 0.03179613504 | AE28: 0.03179613504 | AF28: 0.03179613504 | AG28: 0.03179613504 | AH28: 0.03179613504 | AI28: 0.03179613504 | AJ28: 0.03179613504 | AK28: 0.03179613504 | AL28: 0.03179613504 | AM28: 0.03179613504 | AN28: 0.03179613504 | AO28: 0.03179613504 | AP28: 0.03179613504 | AQ28: 0.03179613504 | AR28: 0.03179613504 | AS28: 0.03179613504 | AT28: 0.03179613504 | AU28: 0.03179613504 | AV28: 0.03179613504
C29: PC3 - Ice Making Head - Water Cooled - Large - Batch-1 | D29: 0.004021647594 | E29: 0.004021647594 | F29: 0.004021647594 | G29: 0.004021647594 | H29: 0.004021647594 | I29: 0.004021647594 | J29: 0.004021647594 | K29: 0.004021647594 | L29: 0.004021647594 | M29: 0.004021647594 | N29: 0.004021647594 | O29: 0.004021647594 | P29: 0.004021647594 | Q29: 0.004021647594 | R29: 0.004021647594 | S29: 0.004021647594 | T29: 0.004021647594 | U29: 0.004021647594 | V29: 0.004021647594 | W29: 0.004021647594 | X29: 0.004021647594 | Y29: 0.004021647594 | Z29: 0.004021647594 | AA29: 0.004021647594 | AB29: 0.004021647594 | AC29: 0.004021647594 | AD29: 0.004021647594 | AE29: 0.004021647594 | AF29: 0.004021647594 | AG29: 0.004021647594 | AH29: 0.004021647594 | AI29: 0.004021647594 | AJ29: 0.004021647594 | AK29: 0.004021647594 | AL29: 0.004021647594 | AM29: 0.004021647594 | AN29: 0.004021647594 | AO29: 0.004021647594 | AP29: 0.004021647594 | AQ29: 0.004021647594 | AR29: 0.004021647594 | AS29: 0.004021647594 | AT29: 0.004021647594 | AU29: 0.004021647594 | AV29: 0.004021647594
C30: PC4 - Ice Making Head - Water Cooled - Large - Batch-2 | D30: 0.00124503095 | E30: 0.00124503095 | F30: 0.00124503095 | G30: 0.00124503095 | H30: 0.00124503095 | I30: 0.00124503095 | J30: 0.00124503095 | K30: 0.00124503095 | L30: 0.00124503095 | M30: 0.00124503095 | N30: 0.00124503095 | O30: 0.00124503095 | P30: 0.00124503095 | Q30: 0.00124503095 | R30: 0.00124503095 | S30: 0.00124503095 | T30: 0.00124503095 | U30: 0.00124503095 | V30: 0.00124503095 | W30: 0.00124503095 | X30: 0.00124503095 | Y30: 0.00124503095 | Z30: 0.00124503095 | AA30: 0.00124503095 | AB30: 0.00124503095 | AC30: 0.00124503095 | AD30: 0.00124503095 | AE30: 0.00124503095 | AF30: 0.00124503095 | AG30: 0.00124503095 | AH30: 0.00124503095 | AI30: 0.00124503095 | AJ30: 0.00124503095 | AK30: 0.00124503095 | AL30: 0.00124503095 | AM30: 0.00124503095 | AN30: 0.00124503095 | AO30: 0.00124503095 | AP30: 0.00124503095 | AQ30: 0.00124503095 | AR30: 0.00124503095 | AS30: 0.00124503095 | AT30: 0.00124503095 | AU30: 0.00124503095 | AV30: 0.00124503095
C31: PC5 - Ice Making Head - Air Cooled - Small - Batch | D31: 0.2968878754 | E31: 0.2968878754 | F31: 0.2968878754 | G31: 0.2968878754 | H31: 0.2968878754 | I31: 0.2968878754 | J31: 0.2968878754 | K31: 0.2968878754 | L31: 0.2968878754 | M31: 0.2968878754 | N31: 0.2968878754 | O31: 0.2968878754 | P31: 0.2968878754 | Q31: 0.2968878754 | R31: 0.2968878754 | S31: 0.2968878754 | T31: 0.2968878754 | U31: 0.2968878754 | V31: 0.2968878754 | W31: 0.2968878754 | X31: 0.2968878754 | Y31: 0.2968878754 | Z31: 0.2968878754 | AA31: 0.2968878754 | AB31: 0.2968878754 | AC31: 0.2968878754 | AD31: 0.2968878754 | AE31: 0.2968878754 | AF31: 0.2968878754 | AG31: 0.2968878754 | AH31: 0.2968878754 | AI31: 0.2968878754 | AJ31: 0.2968878754 | AK31: 0.2968878754 | AL31: 0.2968878754 | AM31: 0.2968878754 | AN31: 0.2968878754 | AO31: 0.2968878754 | AP31: 0.2968878754 | AQ31: 0.2968878754 | AR31: 0.2968878754 | AS31: 0.2968878754 | AT31: 0.2968878754 | AU31: 0.2968878754 | AV31: 0.2968878754
C32: PC6 - Ice Making Head - Air Cooled - Large - Batch-1 | D32: 0.1492454925 | E32: 0.1492454925 | F32: 0.1492454925 | G32: 0.1492454925 | H32: 0.1492454925 | I32: 0.1492454925 | J32: 0.1492454925 | K32: 0.1492454925 | L32: 0.1492454925 | M32: 0.1492454925 | N32: 0.1492454925 | O32: 0.1492454925 | P32: 0.1492454925 | Q32: 0.1492454925 | R32: 0.1492454925 | S32: 0.1492454925 | T32: 0.1492454925 | U32: 0.1492454925 | V32: 0.1492454925 | W32: 0.1492454925 | X32: 0.1492454925 | Y32: 0.1492454925 | Z32: 0.1492454925 | AA32: 0.1492454925 | AB32: 0.1492454925 | AC32: 0.1492454925 | AD32: 0.1492454925 | AE32: 0.1492454925 | AF32: 0.1492454925 | AG32: 0.1492454925 | AH32: 0.1492454925 | AI32: 0.1492454925 | AJ32: 0.1492454925 | AK32: 0.1492454925 | AL32: 0.1492454925 | AM32: 0.1492454925 | AN32: 0.1492454925 | AO32: 0.1492454925 | AP32: 0.1492454925 | AQ32: 0.1492454925 | AR32: 0.1492454925 | AS32: 0.1492454925 | AT32: 0.1492454925 | AU32: 0.1492454925 | AV32: 0.1492454925
C33: PC7 - Ice Making Head - Air Cooled - Large - Batch-2 | D33: 0.02770583912 | E33: 0.02770583912 | F33: 0.02770583912 | G33: 0.02770583912 | H33: 0.02770583912 | I33: 0.02770583912 | J33: 0.02770583912 | K33: 0.02770583912 | L33: 0.02770583912 | M33: 0.02770583912 | N33: 0.02770583912 | O33: 0.02770583912 | P33: 0.02770583912 | Q33: 0.02770583912 | R33: 0.02770583912 | S33: 0.02770583912 | T33: 0.02770583912 | U33: 0.02770583912 | V33: 0.02770583912 | W33: 0.02770583912 | X33: 0.02770583912 | Y33: 0.02770583912 | Z33: 0.02770583912 | AA33: 0.02770583912 | AB33: 0.02770583912 | AC33: 0.02770583912 | AD33: 0.02770583912 | AE33: 0.02770583912 | AF33: 0.02770583912 | AG33: 0.02770583912 | AH33: 0.02770583912 | AI33: 0.02770583912 | AJ33: 0.02770583912 | AK33: 0.02770583912 | AL33: 0.02770583912 | AM33: 0.02770583912 | AN33: 0.02770583912 | AO33: 0.02770583912 | AP33: 0.02770583912 | AQ33: 0.02770583912 | AR33: 0.02770583912 | AS33: 0.02770583912 | AT33: 0.02770583912 | AU33: 0.02770583912 | AV33: 0.02770583912
C34: PC8 - Remote Condensing Unit - *** - Large - Batch-1 | D34: 0.06363663796 | E34: 0.06363663796 | F34: 0.06363663796 | G34: 0.06363663796 | H34: 0.06363663796 | I34: 0.06363663796 | J34: 0.06363663796 | K34: 0.06363663796 | L34: 0.06363663796 | M34: 0.06363663796 | N34: 0.06363663796 | O34: 0.06363663796 | P34: 0.06363663796 | Q34: 0.06363663796 | R34: 0.06363663796 | S34: 0.06363663796 | T34: 0.06363663796 | U34: 0.06363663796 | V34: 0.06363663796 | W34: 0.06363663796 | X34: 0.06363663796 | Y34: 0.06363663796 | Z34: 0.06363663796 | AA34: 0.06363663796 | AB34: 0.06363663796 | AC34: 0.06363663796 | AD34: 0.06363663796 | AE34: 0.06363663796 | AF34: 0.06363663796 | AG34: 0.06363663796 | AH34: 0.06363663796 | AI34: 0.06363663796 | AJ34: 0.06363663796 | AK34: 0.06363663796 | AL34: 0.06363663796 | AM34: 0.06363663796 | AN34: 0.06363663796 | AO34: 0.06363663796 | AP34: 0.06363663796 | AQ34: 0.06363663796 | AR34: 0.06363663796 | AS34: 0.06363663796 | AT34: 0.06363663796 | AU34: 0.06363663796 | AV34: 0.06363663796
C35: PC9 - Remote Condensing Unit - *** - Large - Batch-2 | D35: 0.002998000985 | E35: 0.002998000985 | F35: 0.002998000985 | G35: 0.002998000985 | H35: 0.002998000985 | I35: 0.002998000985 | J35: 0.002998000985 | K35: 0.002998000985 | L35: 0.002998000985 | M35: 0.002998000985 | N35: 0.002998000985 | O35: 0.002998000985 | P35: 0.002998000985 | Q35: 0.002998000985 | R35: 0.002998000985 | S35: 0.002998000985 | T35: 0.002998000985 | U35: 0.002998000985 | V35: 0.002998000985 | W35: 0.002998000985 | X35: 0.002998000985 | Y35: 0.002998000985 | Z35: 0.002998000985 | AA35: 0.002998000985 | AB35: 0.002998000985 | AC35: 0.002998000985 | AD35: 0.002998000985 | AE35: 0.002998000985 | AF35: 0.002998000985 | AG35: 0.002998000985 | AH35: 0.002998000985 | AI35: 0.002998000985 | AJ35: 0.002998000985 | AK35: 0.002998000985 | AL35: 0.002998000985 | AM35: 0.002998000985 | AN35: 0.002998000985 | AO35: 0.002998000985 | AP35: 0.002998000985 | AQ35: 0.002998000985 | AR35: 0.002998000985 | AS35: 0.002998000985 | AT35: 0.002998000985 | AU35: 0.002998000985 | AV35: 0.002998000985
C36: PC10 - Self Contained Unit - Water Cooled - Large - Batch | D36: 0.002373047714 | E36: 0.002373047714 | F36: 0.002373047714 | G36: 0.002373047714 | H36: 0.002373047714 | I36: 0.002373047714 | J36: 0.002373047714 | K36: 0.002373047714 | L36: 0.002373047714 | M36: 0.002373047714 | N36: 0.002373047714 | O36: 0.002373047714 | P36: 0.002373047714 | Q36: 0.002373047714 | R36: 0.002373047714 | S36: 0.002373047714 | T36: 0.002373047714 | U36: 0.002373047714 | V36: 0.002373047714 | W36: 0.002373047714 | X36: 0.002373047714 | Y36: 0.002373047714 | Z36: 0.002373047714 | AA36: 0.002373047714 | AB36: 0.002373047714 | AC36: 0.002373047714 | AD36: 0.002373047714 | AE36: 0.002373047714 | AF36: 0.002373047714 | AG36: 0.002373047714 | AH36: 0.002373047714 | AI36: 0.002373047714 | AJ36: 0.002373047714 | AK36: 0.002373047714 | AL36: 0.002373047714 | AM36: 0.002373047714 | AN36: 0.002373047714 | AO36: 0.002373047714 | AP36: 0.002373047714 | AQ36: 0.002373047714 | AR36: 0.002373047714 | AS36: 0.002373047714 | AT36: 0.002373047714 | AU36: 0.002373047714 | AV36: 0.002373047714
C37: PC11 - Self Contained Unit - Air Cooled - Small - Batch | D37: 0.151902097 | E37: 0.151902097 | F37: 0.151902097 | G37: 0.151902097 | H37: 0.151902097 | I37: 0.151902097 | J37: 0.151902097 | K37: 0.151902097 | L37: 0.151902097 | M37: 0.151902097 | N37: 0.151902097 | O37: 0.151902097 | P37: 0.151902097 | Q37: 0.151902097 | R37: 0.151902097 | S37: 0.151902097 | T37: 0.151902097 | U37: 0.151902097 | V37: 0.151902097 | W37: 0.151902097 | X37: 0.151902097 | Y37: 0.151902097 | Z37: 0.151902097 | AA37: 0.151902097 | AB37: 0.151902097 | AC37: 0.151902097 | AD37: 0.151902097 | AE37: 0.151902097 | AF37: 0.151902097 | AG37: 0.151902097 | AH37: 0.151902097 | AI37: 0.151902097 | AJ37: 0.151902097 | AK37: 0.151902097 | AL37: 0.151902097 | AM37: 0.151902097 | AN37: 0.151902097 | AO37: 0.151902097 | AP37: 0.151902097 | AQ37: 0.151902097 | AR37: 0.151902097 | AS37: 0.151902097 | AT37: 0.151902097 | AU37: 0.151902097 | AV37: 0.151902097
C38: PC12 - Self Contained Unit - Air Cooled - Large - Batch | D38: 0.07193512158 | E38: 0.07193512158 | F38: 0.07193512158 | G38: 0.07193512158 | H38: 0.07193512158 | I38: 0.07193512158 | J38: 0.07193512158 | K38: 0.07193512158 | L38: 0.07193512158 | M38: 0.07193512158 | N38: 0.07193512158 | O38: 0.07193512158 | P38: 0.07193512158 | Q38: 0.07193512158 | R38: 0.07193512158 | S38: 0.07193512158 | T38: 0.07193512158 | U38: 0.07193512158 | V38: 0.07193512158 | W38: 0.07193512158 | X38: 0.07193512158 | Y38: 0.07193512158 | Z38: 0.07193512158 | AA38: 0.07193512158 | AB38: 0.07193512158 | AC38: 0.07193512158 | AD38: 0.07193512158 | AE38: 0.07193512158 | AF38: 0.07193512158 | AG38: 0.07193512158 | AH38: 0.07193512158 | AI38: 0.07193512158 | AJ38: 0.07193512158 | AK38: 0.07193512158 | AL38: 0.07193512158 | AM38: 0.07193512158 | AN38: 0.07193512158 | AO38: 0.07193512158 | AP38: 0.07193512158 | AQ38: 0.07193512158 | AR38: 0.07193512158 | AS38: 0.07193512158 | AT38: 0.07193512158 | AU38: 0.07193512158 | AV38: 0.07193512158
C39: PC13 - Ice Making Head - Air Cooled - Small - Continuous | D39: 0.0387507649 | E39: 0.0387507649 | F39: 0.0387507649 | G39: 0.0387507649 | H39: 0.0387507649 | I39: 0.0387507649 | J39: 0.0387507649 | K39: 0.0387507649 | L39: 0.0387507649 | M39: 0.0387507649 | N39: 0.0387507649 | O39: 0.0387507649 | P39: 0.0387507649 | Q39: 0.0387507649 | R39: 0.0387507649 | S39: 0.0387507649 | T39: 0.0387507649 | U39: 0.0387507649 | V39: 0.0387507649 | W39: 0.0387507649 | X39: 0.0387507649 | Y39: 0.0387507649 | Z39: 0.0387507649 | AA39: 0.0387507649 | AB39: 0.0387507649 | AC39: 0.0387507649 | AD39: 0.0387507649 | AE39: 0.0387507649 | AF39: 0.0387507649 | AG39: 0.0387507649 | AH39: 0.0387507649 | AI39: 0.0387507649 | AJ39: 0.0387507649 | AK39: 0.0387507649 | AL39: 0.0387507649 | AM39: 0.0387507649 | AN39: 0.0387507649 | AO39: 0.0387507649 | AP39: 0.0387507649 | AQ39: 0.0387507649 | AR39: 0.0387507649 | AS39: 0.0387507649 | AT39: 0.0387507649 | AU39: 0.0387507649 | AV39: 0.0387507649
C40: PC14 - Ice Making Head - Air Cooled - Large - Continuous | D40: 0.0117728407 | E40: 0.0117728407 | F40: 0.0117728407 | G40: 0.0117728407 | H40: 0.0117728407 | I40: 0.0117728407 | J40: 0.0117728407 | K40: 0.0117728407 | L40: 0.0117728407 | M40: 0.0117728407 | N40: 0.0117728407 | O40: 0.0117728407 | P40: 0.0117728407 | Q40: 0.0117728407 | R40: 0.0117728407 | S40: 0.0117728407 | T40: 0.0117728407 | U40: 0.0117728407 | V40: 0.0117728407 | W40: 0.0117728407 | X40: 0.0117728407 | Y40: 0.0117728407 | Z40: 0.0117728407 | AA40: 0.0117728407 | AB40: 0.0117728407 | AC40: 0.0117728407 | AD40: 0.0117728407 | AE40: 0.0117728407 | AF40: 0.0117728407 | AG40: 0.0117728407 | AH40: 0.0117728407 | AI40: 0.0117728407 | AJ40: 0.0117728407 | AK40: 0.0117728407 | AL40: 0.0117728407 | AM40: 0.0117728407 | AN40: 0.0117728407 | AO40: 0.0117728407 | AP40: 0.0117728407 | AQ40: 0.0117728407 | AR40: 0.0117728407 | AS40: 0.0117728407 | AT40: 0.0117728407 | AU40: 0.0117728407 | AV40: 0.0117728407
C41: PC15 - Self Contained Unit - Air Cooled - Small - Continuous | D41: 0.09594279233 | E41: 0.09594279233 | F41: 0.09594279233 | G41: 0.09594279233 | H41: 0.09594279233 | I41: 0.09594279233 | J41: 0.09594279233 | K41: 0.09594279233 | L41: 0.09594279233 | M41: 0.09594279233 | N41: 0.09594279233 | O41: 0.09594279233 | P41: 0.09594279233 | Q41: 0.09594279233 | R41: 0.09594279233 | S41: 0.09594279233 | T41: 0.09594279233 | U41: 0.09594279233 | V41: 0.09594279233 | W41: 0.09594279233 | X41: 0.09594279233 | Y41: 0.09594279233 | Z41: 0.09594279233 | AA41: 0.09594279233 | AB41: 0.09594279233 | AC41: 0.09594279233 | AD41: 0.09594279233 | AE41: 0.09594279233 | AF41: 0.09594279233 | AG41: 0.09594279233 | AH41: 0.09594279233 | AI41: 0.09594279233 | AJ41: 0.09594279233 | AK41: 0.09594279233 | AL41: 0.09594279233 | AM41: 0.09594279233 | AN41: 0.09594279233 | AO41: 0.09594279233 | AP41: 0.09594279233 | AQ41: 0.09594279233 | AR41: 0.09594279233 | AS41: 0.09594279233 | AT41: 0.09594279233 | AU41: 0.09594279233 | AV41: 0.09594279233
C43: Source/Rationale | D43: DOE Automatic Commercial Ice Makers 2014, Notice of Proposed Rulemaking (NOPR) Technical Support Document Chapter 9, Table 9.3.3, ACIM Equipment Shipments, Percent by Equipment Class (page 9-8) - reweighted to represent 100% of market

Sheet Efficiency Dist
C2: Efficiency Distributions by Product Class - Single Family
C4: NAVIGATION
C6: COMMENTS
D9: =CONCATENATE('Efficiency Levels'!$C$9," - ",'Efficiency Levels'!$D$9) -> PC1 - Ice Making Head-Water Cooled-Small-Batch
D11: PRE-Case | F11: Static Distribution
D12: Efficiency Level | E12: EL (kWh/day) | F12: 2006 | H12: 1990 | I12: =H12+1 -> 1991 | J12: =I12+1 -> 1992 | K12: 1993 | L12: 1994 | M12: 1995 | N12: 1996 | O12: 1997 | P12: 1998 | Q12: 1999 | R12: 2000 | S12: 2001 | T12: 2002 | U12: 2003 | V12: 2004 | W12: 2005 | X12: 2006 | Y12: 2007 | Z12: 2008 | AA12: 2009 | AB12: 2010 | AC12: 2011 | AD12: 2012 | AE12: 2013 | AF12: 2014 | AG12: 2015 | AH12: 2016 | AI12: 2017 | AJ12: 2018 | AK12: 2019 | AL12: 2020 | AM12: 2021 | AN12: 2022 | AO12: 2023 | AP12: 2024 | AQ12: 2025 | AR12: 2026 | AS12: 2027 | AT12: 2028 | AU12: 2029 | AV12: 2030 | AW12: 2031 | AX12: 2032 | AY12: 2033 | AZ12: 2034
D13: ='Efficiency Levels'!C12 -> EL0 | E13: ='Efficiency Levels'!D12 -> 7745.949985 | F13: 0 | H13: 1 | I13: 1 | J13: 1 | K13: 1 | L13: 1 | M13: 1 | N13: 1 | O13: 1 | P13: 1 | Q13: 1 | R13: 1 | S13: 1 | T13: 1 | U13: 1 | V13: 1 | W13: 1 | X13: 1 | Y13: 1 | Z13: 1 | AA13: 1 | AB13: =$F13 -> 0 | AC13: =$F13 -> 0 | AD13: 0 | AE13: 0 | AF13: 0 | AG13: 0 | AH13: 0 | AI13: 0 | AJ13: 0 | AK13: 0 | AL13: 0 | AM13: 0 | AN13: 0 | AO13: 0 | AP13: 0 | AQ13: 0 | AR13: 0 | AS13: 0 | AT13: 0 | AU13: 0 | AV13: 0 | AW13: 0 | AX13: 0 | AY13: 0 | AZ13: 0
D14: ='Efficiency Levels'!C13 -> EL1 | E14: ='Efficiency Levels'!D13 -> 3389.025 | F14: 0.391 | H14: 0 | I14: 0 | J14: 0 | K14: 0 | L14: 0 | M14: 0 | N14: 0 | O14: 0 | P14: 0 | Q14: 0 | R14: 0 | S14: 0 | T14: 0 | U14: 0 | V14: 0 | W14: 0 | X14: 0 | Y14: 0 | Z14: 0 | AA14: 0 | AB14: =$F14 -> 0.391 | AC14: 0.391 | AD14: 0.391 | AE14: 0.391 | AF14: 0.391 | AG14: 0.391 | AH14: 0.391 | AI14: 0.391 | AJ14: 0.391 | AK14: 0.391 | AL14: 0.391 | AM14: 0.391 | AN14: 0.391 | AO14: 0.391 | AP14: 0.391 | AQ14: 0.391 | AR14: 0.391 | AS14: 0.391 | AT14: 0.391 | AU14: 0.391 | AV14: 0.391 | AW14: 0.391 | AX14: 0.391 | AY14: 0.391 | AZ14: 0.391
D15: ='Efficiency Levels'!C14 -> EL2 | E15: ='Efficiency Levels'!D14 -> 3052.3125 | F15: 0.261 | H15: 0 | I15: 0 | J15: 0 | K15: 0 | L15: 0 | M15: 0 | N15: 0 | O15: 0 | P15: 0 | Q15: 0 | R15: 0 | S15: 0 | T15: 0 | U15: 0 | V15: 0 | W15: 0 | X15: 0 | Y15: 0 | Z15: 0 | AA15: 0 | AB15: 0.261 | AC15: 0.261 | AD15: 0.261 | AE15: 0.261 | AF15: 0.261 | AG15: 0.261 | AH15: 0.261 | AI15: 0.261 | AJ15: 0.261 | AK15: 0.261 | AL15: 0.261 | AM15: 0.261 | AN15: 0.261 | AO15: 0.261 | AP15: 0.261 | AQ15: 0.261 | AR15: 0.261 | AS15: 0.261 | AT15: 0.261 | AU15: 0.261 | AV15: 0.261 | AW15: 0.261 | AX15: 0.261 | AY15: 0.261 | AZ15: 0.261
D16: ='Efficiency Levels'!C15 -> EL3 | E16: ='Efficiency Levels'!D15 -> 2883.95625 | F16: 0.239 | H16: 0 | I16: 0 | J16: 0 | K16: 0 | L16: 0 | M16: 0 | N16: 0 | O16: 0 | P16: 0 | Q16: 0 | R16: 0 | S16: 0 | T16: 0 | U16: 0 | V16: 0 | W16: 0 | X16: 0 | Y16: 0 | Z16: 0 | AA16: 0 | AB16: 0.239 | AC16: 0.239 | AD16: 0.239 | AE16: 0.239 | AF16: 0.239 | AG16: 0.239 | AH16: 0.239 | AI16: 0.239 | AJ16: 0.239 | AK16: 0.239 | AL16: 0.239 | AM16: 0.239 | AN16: 0.239 | AO16: 0.239 | AP16: 0.239 | AQ16: 0.239 | AR16: 0.239 | AS16: 0.239 | AT16: 0.239 | AU16: 0.239 | AV16: 0.239 | AW16: 0.239 | AX16: 0.239 | AY16: 0.239 | AZ16: 0.239
D17: ='Efficiency Levels'!C16 -> EL4 | E17: ='Efficiency Levels'!D16 -> 2715.6 | F17: 0.109 | H17: 0 | I17: 0 | J17: 0 | K17: 0 | L17: 0 | M17: 0 | N17: 0 | O17: 0 | P17: 0 | Q17: 0 | R17: 0 | S17: 0 | T17: 0 | U17: 0 | V17: 0 | W17: 0 | X17: 0 | Y17: 0 | Z17: 0 | AA17: 0 | AB17: 0.109 | AC17: 0.109 | AD17: 0.109 | AE17: 0.109 | AF17: 0.109 | AG17: 0.109 | AH17: 0.109 | AI17: 0.109 | AJ17: 0.109 | AK17: 0.109 | AL17: 0.109 | AM17: 0.109 | AN17: 0.109 | AO17: 0.109 | AP17: 0.109 | AQ17: 0.109 | AR17: 0.109 | AS17: 0.109 | AT17: 0.109 | AU17: 0.109 | AV17: 0.109 | AW17: 0.109 | AX17: 0.109 | AY17: 0.109 | AZ17: 0.109
D18: ='Efficiency Levels'!C17 -> EL5 | E18: ='Efficiency Levels'!D17 -> 2547.24375 | F18: 0 | H18: =$F18 -> 0 | I18: 0 | J18: 0 | K18: 0 | L18: 0 | M18: 0 | N18: 0 | O18: 0 | P18: 0 | Q18: 0 | R18: 0 | S18: 0 | T18: 0 | U18: 0 | V18: 0 | W18: 0 | X18: 0 | Y18: 0 | Z18: =$F18 -> 0 | AA18: 0 | AB18: 0 | AC18: 0 | AD18: 0 | AE18: 0 | AF18: 0 | AG18: 0 | AH18: 0 | AI18: 0 | AJ18: 0 | AK18: 0 | AL18: 0 | AM18: 0 | AN18: 0 | AO18: 0 | AP18: 0 | AQ18: 0 | AR18: 0 | AS18: 0 | AT18: 0 | AU18: 0 | AV18: 0 | AW18: 0 | AX18: 0 | AY18: 0 | AZ18: 0
D19: ='Efficiency Levels'!C18 -> EL6 | E19: ='Efficiency Levels'!D18 -> 2399.965811 | F19: 0 | H19: 0 | I19: 0 | J19: 0 | K19: 0 | L19: 0 | M19: 0 | N19: 0 | O19: 0 | P19: 0 | Q19: 0 | R19: 0 | S19: 0 | T19: 0 | U19: 0 | V19: 0 | W19: 0 | X19: 0 | Y19: 0 | Z19: 0 | AA19: 0 | AB19: 0 | AC19: 0 | AD19: 0 | AE19: 0 | AF19: 0 | AG19: 0 | AH19: 0 | AI19: 0 | AJ19: 0 | AK19: 0 | AL19: 0 | AM19: 0 | AN19: 0 | AO19: 0 | AP19: 0 | AQ19: 0 | AR19: 0 | AS19: 0 | AT19: 0 | AU19: 0 | AV19: 0 | AW19: 0 | AX19: 0 | AY19: 0 | AZ19: 0
D20: ='Efficiency Levels'!C19 -> EL7 | E20: ='Efficiency Levels'!D19 -> 0 | F20: 0 | H20: 0 | I20: 0 | J20: 0 | K20: 0 | L20: 0 | M20: 0 | N20: 0 | O20: 0 | P20: 0 | Q20: 0 | R20: 0 | S20: 0 | T20: 0 | U20: 0 | V20: 0 | W20: 0 | X20: 0 | Y20: 0 | Z20: 0 | AA20: 0 | AB20: 0 | AC20: 0 | AD20: 0 | AE20: 0 | AF20: 0 | AG20: 0 | AH20: 0 | AI20: 0 | AJ20: 0 | AK20: 0 | AL20: 0 | AM20: 0 | AN20: 0 | AO20: 0 | AP20: 0 | AQ20: 0 | AR20: 0 | AS20: 0 | AT20: 0 | AU20: 0 | AV20: 0 | AW20: 0 | AX20: 0 | AY20: 0 | AZ20: 0
D21: TOTAL | F21: =SUM(F13:F20) -> 1 | H21: =SUM(H13:H20) -> 1 | I21: 1 | J21: 1 | K21: 1 | L21: 1 | M21: 1 | N21: 1 | O21: 1 | P21: 1 | Q21: 1 | R21: 1 | S21: 1 | T21: 1 | U21: 1 | V21: 1 | W21: 1 | X21: 1 | Y21: 1 | Z21: 1 | AA21: 1 | AB21: 1 | AC21: 1 | AD21: 1 | AE21: 1 | AF21: 1 | AG21: 1 | AH21: 1 | AI21: 1 | AJ21: 1 | AK21: 1 | AL21: 1 | AM21: 1 | AN21: 1 | AO21: 1 | AP21: 1 | AQ21: 1 | AR21: 1 | AS21: 1 | AT21: 1 | AU21: 1 | AV21: 1 | AW21: 1 | AX21: 1 | AY21: 1 | AZ21: 1
D23: POST-Case
D24: Efficiency Level | E24: EL (kWh/day) | H24: 1990 | I24: =H24+1 -> 1991 | J24: =I24+1 -> 1992 | K24: 1993 | L24: 1994 | M24: 1995 | N24: 1996 | O24: 1997 | P24: 1998 | Q24: 1999 | R24: 2000 | S24: 2001 | T24: 2002 | U24: 2003 | V24: 2004 | W24: 2005 | X24: =X12 -> 2006 | Y24: 2007 | Z24: 2008 | AA24: 2009 | AB24: 2010 | AC24: 2011 | AD24: 2012 | AE24: 2013 | AF24: 2014 | AG24: 2015 | AH24: 2016 | AI24: 2017 | AJ24: 2018 | AK24: 2019 | AL24: 2020 | AM24: 2021 | AN24: 2022 | AO24: 2023 | AP24: 2024 | AQ24: 2025 | AR24: 2026 | AS24: 2027 | AT24: 2028 | AU24: 2029 | AV24: 2030 | AW24: 2031 | AX24: 2032 | AY24: 2033 | AZ24: 2034
D25: ='Efficiency Levels'!C12 -> EL0 | E25: ='Efficiency Levels'!D12 -> 7745.949985 | H25: =H13 -> 1 | I25: =I13 -> 1 | J25: 1 | K25: 1 | L25: 1 | M25: 1 | N25: 1 | O25: 1 | P25: 1 | Q25: 1 | R25: 1 | S25: 1 | T25: 1 | U25: 1 | V25: 1 | W25: 1 | X25: 1 | Y25: 1 | Z25: 1 | AA25: 1 | AB25: 0 | AC25: =AC13 -> 0 | AD25: 0 | AE25: 0 | AF25: 0 | AG25: 0 | AH25: 0 | AI25: 0 | AJ25: 0 | AK25: 0 | AL25: 0 | AM25: 0 | AN25: 0 | AO25: 0 | AP25: 0 | AQ25: 0 | AR25: 0 | AS25: 0 | AT25: 0 | AU25: 0 | AV25: 0 | AW25: 0 | AX25: 0 | AY25: 0 | AZ25: 0
D26: ='Efficiency Levels'!C13 -> EL1 | E26: ='Efficiency Levels'!D13 -> 3389.025 | H26: =H14 -> 0 | I26: 0 | J26: 0 | K26: 0 | L26: 0 | M26: 0 | N26: 0 | O26: 0 | P26: 0 | Q26: 0 | R26: 0 | S26: 0 | T26: 0 | U26: 0 | V26: 0 | W26: 0 | X26: 0 | Y26: 0 | Z26: 0 | AA26: 0 | AB26: 0.391 | AC26: =AC14 -> 0.391 | AD26: 0.391 | AE26: 0.391 | AF26: 0.391 | AG26: 0.391 | AH26: 0.391 | AI26: 0.391 | AJ26: 0 | AK26: 0 | AL26: 0 | AM26: 0 | AN26: 0 | AO26: 0 | AP26: 0 | AQ26: 0 | AR26: 0 | AS26: 0 | AT26: 0 | AU26: 0 | AV26: 0 | AW26: 0 | AX26: 0 | AY26: 0 | AZ26: 0
D27: ='Efficiency Levels'!C14 -> EL2 | E27: ='Efficiency Levels'!D14 -> 3052.3125 | H27: 0 | I27: 0 | J27: 0 | K27: 0 | L27: 0 | M27: 0 | N27: 0 | O27: 0 | P27: 0 | Q27: 0 | R27: 0 | S27: 0 | T27: 0 | U27: 0 | V27: 0 | W27: 0 | X27: 0 | Y27: 0 | Z27: 0 | AA27: 0 | AB27: 0.261 | AC27: =AC15 -> 0.261 | AD27: 0.261 | AE27: 0.261 | AF27: 0.261 | AG27: 0.261 | AH27: 0.261 | AI27: 0.261 | AJ27: 0 | AK27: 0 | AL27: 0 | AM27: 0 | AN27: 0 | AO27: 0 | AP27: 0 | AQ27: 0 | AR27: 0 | AS27: 0 | AT27: 0 | AU27: 0 | AV27: 0 | AW27: 0 | AX27: 0 | AY27: 0 | AZ27: 0
D28: ='Efficiency Levels'!C15 -> EL3 | E28: ='Efficiency Levels'!D15 -> 2883.95625 | H28: 0 | I28: 0 | J28: 0 | K28: 0 | L28: 0 | M28: 0 | N28: 0 | O28: 0 | P28: 0 | Q28: 0 | R28: 0 | S28: 0 | T28: 0 | U28: 0 | V28: 0 | W28: 0 | X28: 0 | Y28: 0 | Z28: 0 | AA28: 0 | AB28: 0.239 | AC28: =AC16 -> 0.239 | AD28: 0.239 | AE28: 0.239 | AF28: 0.239 | AG28: 0.239 | AH28: 0.239 | AI28: 0.239 | AJ28: 0 | AK28: 0 | AL28: 0 | AM28: 0 | AN28: 0 | AO28: 0 | AP28: 0 | AQ28: 0 | AR28: 0 | AS28: 0 | AT28: 0 | AU28: 0 | AV28: 0 | AW28: 0 | AX28: 0 | AY28: 0 | AZ28: 0
D29: ='Efficiency Levels'!C16 -> EL4 | E29: ='Efficiency Levels'!D16 -> 2715.6 | H29: 0 | I29: 0 | J29: 0 | K29: 0 | L29: 0 | M29: 0 | N29: 0 | O29: 0 | P29: 0 | Q29: 0 | R29: 0 | S29: 0 | T29: 0 | U29: 0 | V29: 0 | W29: 0 | X29: 0 | Y29: 0 | Z29: 0 | AA29: 0 | AB29: 0.109 | AC29: =AC17 -> 0.109 | AD29: 0.109 | AE29: 0.109 | AF29: 0.109 | AG29: 0.109 | AH29: 0.109 | AI29: 0.109 | AJ29: 0 | AK29: 0 | AL29: 0 | AM29: 0 | AN29: 0 | AO29: 0 | AP29: 0 | AQ29: 0 | AR29: 0 | AS29: 0 | AT29: 0 | AU29: 0 | AV29: 0 | AW29: 0 | AX29: 0 | AY29: 0 | AZ29: 0
D30: ='Efficiency Levels'!C17 -> EL5 | E30: ='Efficiency Levels'!D17 -> 2547.24375 | H30: 0 | I30: 0 | J30: 0 | K30: 0 | L30: 0 | M30: 0 | N30: 0 | O30: 0 | P30: 0 | Q30: 0 | R30: 0 | S30: 0 | T30: 0 | U30: 0 | V30: 0 | W30: 0 | X30: 0 | Y30: 0 | Z30: 0 | AA30: 0 | AB30: 0 | AC30: =AC18 -> 0 | AD30: 0 | AE30: 0 | AF30: 0 | AG30: 0 | AH30: 0 | AI30: 0 | AJ30: 1 | AK30: 1 | AL30: 1 | AM30: 1 | AN30: 1 | AO30: 1 | AP30: 1 | AQ30: 1 | AR30: 1 | AS30: 1 | AT30: 1 | AU30: 1 | AV30: 1 | AW30: 1 | AX30: 1 | AY30: 1 | AZ30: 1
D31: ='Efficiency Levels'!C18 -> EL6 | E31: ='Efficiency Levels'!D18 -> 2399.965811 | H31: 0 | I31: 0 | J31: 0 | K31: 0 | L31: 0 | M31: 0 | N31: 0 | O31: 0 | P31: 0 | Q31: 0 | R31: 0 | S31: 0 | T31: 0 | U31: 0 | V31: 0 | W31: 0 | X31: 0 | Y31: 0 | Z31: 0 | AA31: 0 | AB31: 0 | AC31: =AC19 -> 0 | AD31: 0 | AE31: 0 | AF31: 0 | AG31: 0 | AH31: 0 | AI31: 0 | AJ31: 0 | AK31: 0 | AL31: 0 | AM31: 0 | AN31: 0 | AO31: 0 | AP31: 0 | AQ31: 0 | AR31: 0 | AS31: 0 | AT31: 0 | AU31: 0 | AV31: 0 | AW31: 0 | AX31: 0 | AY31: 0 | AZ31: 0
D32: ='Efficiency Levels'!C19 -> EL7 | E32: ='Efficiency Levels'!D19 -> 0 | H32: 0 | I32: 0 | J32: 0 | K32: 0 | L32: 0 | M32: 0 | N32: 0 | O32: 0 | P32: 0 | Q32: 0 | R32: 0 | S32: 0 | T32: 0 | U32: 0 | V32: 0 | W32: 0 | X32: 0 | Y32: 0 | Z32: 0 | AA32: 0 | AB32: 0 | AC32: =AC20 -> 0 | AD32: 0 | AE32: 0 | AF32: 0 | AG32: 0 | AH32: 0 | AI32: 0 | AJ32: =AJ20 -> 0 | AK32: =AK20 -> 0 | AL32: 0 | AM32: 0 | AN32: 0 | AO32: 0 | AP32: 0 | AQ32: 0 | AR32: 0 | AS32: 0 | AT32: 0 | AU32: 0 | AV32: 0 | AW32: 0 | AX32: 0 | AY32: 0 | AZ32: 0
D33: TOTAL | H33: =SUM(H25:H32) -> 1 | I33: =SUM(I25:I32) -> 1 | J33: =SUM(J25:J32) -> 1 | K33: =SUM(K25:K32) -> 1 | L33: =SUM(L25:L32) -> 1 | M33: =SUM(M25:M32) -> 1 | N33: =SUM(N25:N32) -> 1 | O33: =SUM(O25:O32) -> 1 | P33: =SUM(P25:P32) -> 1 | Q33: =SUM(Q25:Q32) -> 1 | R33: =SUM(R25:R32) -> 1 | S33: =SUM(S25:S32) -> 1 | T33: =SUM(T25:T32) -> 1 | U33: =SUM(U25:U32) -> 1 | V33: =SUM(V25:V32) -> 1 | W33: =SUM(W25:W32) -> 1 | X33: =SUM(X25:X32) -> 1 | Y33: =SUM(Y25:Y32) -> 1 | Z33: =SUM(Z25:Z32) -> 1 | AA33: =SUM(AA25:AA32) -> 1 | AB33: =SUM(AB25:AB32) -> 1 | AC33: =SUM(AC25:AC32) -> 1 | AD33: =SUM(AD25:AD32) -> 1 | AE33: =SUM(AE25:AE32) -> 1 | AF33: =SUM(AF25:AF32) -> 1 | AG33: =SUM(AG25:AG32) -> 1 | AH33: =SUM(AH25:AH32) -> 1 | AI33: =SUM(AI25:AI32) -> 1 | AJ33: =SUM(AJ25:AJ32) -> 1 | AK33: =SUM(AK25:AK32) -> 1 | AL33: =SUM(AL25:AL32) -> 1 | AM33: =SUM(AM25:AM32) -> 1 | AN33: =SUM(AN25:AN32) -> 1 | AO33: =SUM(AO25:AO32) -> 1 | AP33: =SUM(AP25:AP32) -> 1 | AQ33: =SUM(AQ25:AQ32) -> 1 | AR33: =SUM(AR25:AR32) -> 1 | AS33: =SUM(AS25:AS32) -> 1 | AT33: =SUM(AT25:AT32) -> 1 | AU33: =SUM(AU25:AU32) -> 1 | AV33: =SUM(AV25:AV32) -> 1 | AW33: =SUM(AW25:AW32) -> 1 | AX33: =SUM(AX25:AX32) -> 1 | AY33: =SUM(AY25:AY32) -> 1 | AZ33: =SUM(AZ25:AZ32) -> 1
D35: Sources | E35: DOE Automatic Commercial Ice Makers 2014, Notice of Proposed Rulemaking (NOPR) Technical Support Document Chapter 10, Table 10.2.2 Base Case Shipment Weighted Market Shares by Efficiency Level (page 10-3); TSL 3 is proposed in the NOPR. TSL 3 corresponds to different EL's for different product classes
D39: =CONCATENATE('Efficiency Levels'!$C26," - ",'Efficiency Levels'!$D26) -> PC2 - Ice Making Head-Water Cooled-Med-Batch
D41: PRE-Case | F41: Static Distribution
D42: Efficiency Level | E42: EL (kWh/day) | F42: 2006 | H42: 1990 | I42: =H42+1 -> 1991 | J42: =I42+1 -> 1992 | K42: =J42+1 -> 1993 | L42: =K42+1 -> 1994 | M42: =L42+1 -> 1995 | N42: =M42+1 -> 1996 | O42: =N42+1 -> 1997 | P42: =O42+1 -> 1998 | Q42: =P42+1 -> 1999 | R42: =Q42+1 -> 2000 | S42: =R42+1 -> 2001 | T42: =S42+1 -> 2002 | U42: =T42+1 -> 2003 | V42: =U42+1 -> 2004 | W42: =V42+1 -> 2005 | X42: =W42+1 -> 2006 | Y42: =X42+1 -> 2007 | Z42: =Y42+1 -> 2008 | AA42: =Z42+1 -> 2009 | AB42: =AA42+1 -> 2010 | AC42: =AB42+1 -> 2011 | AD42: =AC42+1 -> 2012 | AE42: =AD42+1 -> 2013 | AF42: =AE42+1 -> 2014 | AG42: =AF42+1 -> 2015 | AH42: =AG42+1 -> 2016 | AI42: =AH42+1 -> 2017 | AJ42: =AI42+1 -> 2018 | AK42: =AJ42+1 -> 2019 | AL42: =AK42+1 -> 2020 | AM42: =AL42+1 -> 2021 | AN42: =AM42+1 -> 2022 | AO42: =AN42+1 -> 2023 | AP42: =AO42+1 -> 2024 | AQ42: =AP42+1 -> 2025 | AR42: =AQ42+1 -> 2026 | AS42: =AR42+1 -> 2027 | AT42: =AS42+1 -> 2028 | AU42: =AT42+1 -> 2029 | AV42: =AU42+1 -> 2030 | AW42: =AV42+1 -> 2031 | AX42: =AW42+1 -> 2032 | AY42: =AX42+1 -> 2033 | AZ42: =AY42+1 -> 2034
D43: ='Efficiency Levels'!C29 -> EL0 | E43: ='Efficiency Levels'!D29 -> 7745.949985 | F43: 0 | H43: 1 | I43: 1 | J43: 1 | K43: 1 | L43: 1 | M43: 1 | N43: 1 | O43: 1 | P43: 1 | Q43: 1 | R43: 1 | S43: 1 | T43: 1 | U43: 1 | V43: 1 | W43: 1 | X43: 1 | Y43: 1 | Z43: 1 | AA43: 1 | AB43: =$F43 -> 0 | AC43: 0 | AD43: 0 | AE43: 0 | AF43: =$F43 -> 0 | AG43: 0 | AH43: 0 | AI43: 0 | AJ43: 0 | AK43: 0 | AL43: 0 | AM43: 0 | AN43: 0 | AO43: 0 | AP43: 0 | AQ43: 0 | AR43: 0 | AS43: 0 | AT43: 0 | AU43: 0 | AV43: 0 | AW43: 0 | AX43: 0 | AY43: 0 | AZ43: 0
D44: ='Efficiency Levels'!C30 -> EL1 | E44: ='Efficiency Levels'!D30 -> 7227.45625 | F44: 0.6904761905 | H44: 0 | I44: 0 | J44: 0 | K44: 0 | L44: 0 | M44: 0 | N44: 0 | O44: 0 | P44: 0 | Q44: 0 | R44: 0 | S44: 0 | T44: 0 | U44: 0 | V44: 0 | W44: 0 | X44: 0 | Y44: 0 | Z44: 0 | AA44: 0 | AB44: 0.6904761905 | AC44: 0.6904761905 | AD44: 0.6904761905 | AE44: 0.6904761905 | AF44: 0.6904761905 | AG44: 0.6904761905 | AH44: 0.6904761905 | AI44: 0.6904761905 | AJ44: 0.6904761905 | AK44: 0.6904761905 | AL44: 0.6904761905 | AM44: 0.6904761905 | AN44: 0.6904761905 | AO44: 0.6904761905 | AP44: 0.6904761905 | AQ44: 0.6904761905 | AR44: 0.6904761905 | AS44: 0.6904761905 | AT44: 0.6904761905 | AU44: 0.6904761905 | AV44: 0.6904761905 | AW44: 0.6904761905 | AX44: 0.6904761905 | AY44: 0.6904761905 | AZ44: 0.6904761905
D45: ='Efficiency Levels'!C31 -> EL2 | E45: ='Efficiency Levels'!D31 -> 6506.900625 | F45: 0.1666666667 | H45: 0 | I45: 0 | J45: 0 | K45: 0 | L45: 0 | M45: 0 | N45: 0 | O45: 0 | P45: 0 | Q45: 0 | R45: 0 | S45: 0 | T45: 0 | U45: 0 | V45: 0 | W45: 0 | X45: 0 | Y45: 0 | Z45: 0 | AA45: 0 | AB45: 0.1666666667 | AC45: 0.1666666667 | AD45: 0.1666666667 | AE45: 0.1666666667 | AF45: 0.1666666667 | AG45: 0.1666666667 | AH45: 0.1666666667 | AI45: 0.1666666667 | AJ45: 0.1666666667 | AK45: 0.1666666667 | AL45: 0.1666666667 | AM45: 0.1666666667 | AN45: 0.1666666667 | AO45: 0.1666666667 | AP45: 0.1666666667 | AQ45: 0.1666666667 | AR45: 0.1666666667 | AS45: 0.1666666667 | AT45: 0.1666666667 | AU45: 0.1666666667 | AV45: 0.1666666667 | AW45: 0.1666666667 | AX45: 0.1666666667 | AY45: 0.1666666667 | AZ45: 0.1666666667
D46: ='Efficiency Levels'!C32 -> EL3 | E46: ='Efficiency Levels'!D32 -> 6146.622812 | F46: 0.119047619 | H46: 0 | I46: 0 | J46: 0 | K46: 0 | L46: 0 | M46: 0 | N46: 0 | O46: 0 | P46: 0 | Q46: 0 | R46: 0 | S46: 0 | T46: 0 | U46: 0 | V46: 0 | W46: 0 | X46: 0 | Y46: 0 | Z46: 0 | AA46: 0 | AB46: 0.119047619 | AC46: 0.119047619 | AD46: 0.119047619 | AE46: 0.119047619 | AF46: 0.119047619 | AG46: 0.119047619 | AH46: 0.119047619 | AI46: 0.119047619 | AJ46: 0.119047619 | AK46: 0.119047619 | AL46: 0.119047619 | AM46: 0.119047619 | AN46: 0.119047619 | AO46: 0.119047619 | AP46: 0.119047619 | AQ46: 0.119047619 | AR46: 0.119047619 | AS46: 0.119047619 | AT46: 0.119047619 | AU46: 0.119047619 | AV46: 0.119047619 | AW46: 0.119047619 | AX46: 0.119047619 | AY46: 0.119047619 | AZ46: 0.119047619
D47: ='Efficiency Levels'!C33 -> EL4 | E47: ='Efficiency Levels'!D33 -> 5786.345 | F47: 0 | H47: 0 | I47: 0 | J47: 0 | K47: 0 | L47: 0 | M47: 0 | N47: 0 | O47: 0 | P47: 0 | Q47: 0 | R47: 0 | S47: 0 | T47: 0 | U47: 0 | V47: 0 | W47: 0 | X47: 0 | Y47: 0 | Z47: 0 | AA47: 0 | AB47: 0 | AC47: 0 | AD47: 0 | AE47: 0 | AF47: 0 | AG47: 0 | AH47: 0 | AI47: 0 | AJ47: 0 | AK47: 0 | AL47: 0 | AM47: 0 | AN47: 0 | AO47: 0 | AP47: 0 | AQ47: 0 | AR47: 0 | AS47: 0 | AT47: 0 | AU47: 0 | AV47: 0 | AW47: 0 | AX47: 0 | AY47: 0 | AZ47: 0
D48: ='Efficiency Levels'!C34 -> EL5 | E48: ='Efficiency Levels'!D34 -> 5690.86765 | F48: 0.02380952381 | H48: 0 | I48: 0 | J48: 0 | K48: 0 | L48: 0 | M48: 0 | N48: 0 | O48: 0 | P48: 0 | Q48: 0 | R48: 0 | S48: 0 | T48: 0 | U48: 0 | V48: 0 | W48: 0 | X48: 0 | Y48: 0 | Z48: 0 | AA48: 0 | AB48: 0.02380952381 | AC48: 0.02380952381 | AD48: 0.02380952381 | AE48: 0.02380952381 | AF48: 0.02380952381 | AG48: 0.02380952381 | AH48: 0.02380952381 | AI48: 0.02380952381 | AJ48: 0.02380952381 | AK48: 0.02380952381 | AL48: 0.02380952381 | AM48: 0.02380952381 | AN48: 0.02380952381 | AO48: 0.02380952381 | AP48: 0.02380952381 | AQ48: 0.02380952381 | AR48: 0.02380952381 | AS48: 0.02380952381 | AT48: 0.02380952381 | AU48: 0.02380952381 | AV48: 0.02380952381 | AW48: 0.02380952381 | AX48: 0.02380952381 | AY48: 0.02380952381 | AZ48: 0.02380952381
D49: ='Efficiency Levels'!C35 -> EL6 | E49: ='Efficiency Levels'!D35 -> 0 | F49: 0 | H49: 0 | I49: 0 | J49: 0 | K49: 0 | L49: 0 | M49: 0 | N49: 0 | O49: 0 | P49: 0 | Q49: 0 | R49: 0 | S49: 0 | T49: 0 | U49: 0 | V49: 0 | W49: 0 | X49: 0 | Y49: 0 | Z49: 0 | AA49: 0 | AB49: =$F49 -> 0 | AC49: 0 | AD49: 0 | AE49: 0 | AF49: 0 | AG49: 0 | AH49: 0 | AI49: 0 | AJ49: 0 | AK49: 0 | AL49: 0 | AM49: 0 | AN49: 0 | AO49: 0 | AP49: 0 | AQ49: 0 | AR49: 0 | AS49: 0 | AT49: 0 | AU49: 0 | AV49: 0 | AW49: 0 | AX49: 0 | AY49: 0 | AZ49: 0
D50: ='Efficiency Levels'!C36 -> EL7 | E50: ='Efficiency Levels'!D36 -> 0 | F50: 0 | H50: 0 | I50: 0 | J50: 0 | K50: 0 | L50: 0 | M50: 0 | N50: 0 | O50: 0 | P50: 0 | Q50: 0 | R50: 0 | S50: 0 | T50: 0 | U50: 0 | V50: 0 | W50: 0 | X50: 0 | Y50: 0 | Z50: 0 | AA50: 0 | AB50: 0 | AC50: 0 | AD50: 0 | AE50: 0 | AF50: 0 | AG50: 0 | AH50: 0 | AI50: 0 | AJ50: 0 | AK50: 0 | AL50: 0 | AM50: 0 | AN50: 0 | AO50: 0 | AP50: 0 | AQ50: 0 | AR50: 0 | AS50: 0 | AT50: 0 | AU50: 0 | AV50: 0 | AW50: 0 | AX50: 0 | AY50: 0 | AZ50: 0
D51: TOTAL | F51: =SUM(F43:F50) -> 1 | H51: =SUM(H43:H50) -> 1 | I51: 1 | J51: 1 | K51: 1 | L51: 1 | M51: 1 | N51: 1 | O51: 1 | P51: 1 | Q51: 1 | R51: 1 | S51: 1 | T51: 1 | U51: 1 | V51: 1 | W51: 1 | X51: 1 | Y51: 1 | Z51: 1 | AA51: 1 | AB51: 1 | AC51: 1 | AD51: 1 | AE51: 1 | AF51: 1 | AG51: 1 | AH51: 1 | AI51: 1 | AJ51: 1 | AK51: 1 | AL51: 1 | AM51: 1 | AN51: 1 | AO51: 1 | AP51: 1 | AQ51: 1 | AR51: 1 | AS51: 1 | AT51: 1 | AU51: 1 | AV51: 1 | AW51: 1 | AX51: 1 | AY51: 1 | AZ51: 1
D53: POST-Case
D54: Efficiency Level | E54: EL (kWh/day) | H54: 1990 | I54: =H54+1 -> 1991 | J54: =I54+1 -> 1992 | K54: =J54+1 -> 1993 | L54: =K54+1 -> 1994 | M54: =L54+1 -> 1995 | N54: =M54+1 -> 1996 | O54: =N54+1 -> 1997 | P54: =O54+1 -> 1998 | Q54: =P54+1 -> 1999 | R54: =Q54+1 -> 2000 | S54: =R54+1 -> 2001 | T54: =S54+1 -> 2002 | U54: =T54+1 -> 2003 | V54: =U54+1 -> 2004 | W54: =V54+1 -> 2005 | X54: =X42 -> 2006 | Y54: 2007 | Z54: 2008 | AA54: 2009 | AB54: 2010 | AC54: 2011 | AD54: 2012 | AE54: 2013 | AF54: 2014 | AG54: 2015 | AH54: 2016 | AI54: 2017 | AJ54: 2018 | AK54: 2019 | AL54: 2020 | AM54: 2021 | AN54: 2022 | AO54: 2023 | AP54: 2024 | AQ54: 2025 | AR54: 2026 | AS54: 2027 | AT54: 2028 | AU54: 2029 | AV54: 2030 | AW54: 2031 | AX54: 2032 | AY54: 2033 | AZ54: 2034
D55: ='Efficiency Levels'!C29 -> EL0 | E55: ='Efficiency Levels'!D29 -> 7745.949985 | H55: =H43 -> 1 | I55: =I43 -> 1 | J55: 1 | K55: 1 | L55: 1 | M55: 1 | N55: 1 | O55: 1 | P55: 1 | Q55: 1 | R55: 1 | S55: 1 | T55: 1 | U55: 1 | V55: 1 | W55: 1 | X55: 1 | Y55: 1 | Z55: 1 | AA55: 1 | AB55: 0 | AC55: 0 | AD55: 0 | AE55: 0 | AF55: 0 | AG55: 0 | AH55: 0 | AI55: 0 | AJ55: 0 | AK55: 0 | AL55: 0 | AM55: 0 | AN55: 0 | AO55: 0 | AP55: 0 | AQ55: 0 | AR55: 0 | AS55: 0 | AT55: 0 | AU55: 0 | AV55: 0 | AW55: 0 | AX55: 0 | AY55: 0 | AZ55: 0
D56: ='Efficiency Levels'!C30 -> EL1 | E56: ='Efficiency Levels'!D30 -> 7227.45625 | H56: =H44 -> 0 | I56: =I44 -> 0 | J56: 0 | K56: 0 | L56: 0 | M56: 0 | N56: 0 | O56: 0 | P56: 0 | Q56: 0 | R56: 0 | S56: 0 | T56: 0 | U56: 0 | V56: 0 | W56: 0 | X56: 0 | Y56: 0 | Z56: 0 | AA56: 0 | AB56: 0.6904761905 | AC56: 0.6904761905 | AD56: 0.6904761905 | AE56: 0.6904761905 | AF56: 0.6904761905 | AG56: 0.6904761905 | AH56: 0.6904761905 | AI56: 0.6904761905 | AJ56: 0 | AK56: 0 | AL56: 0 | AM56: 0 | AN56: 0 | AO56: 0 | AP56: 0 | AQ56: 0 | AR56: 0 | AS56: 0 | AT56: 0 | AU56: 0 | AV56: 0 | AW56: 0 | AX56: 0 | AY56: 0 | AZ56: 0
D57: ='Efficiency Levels'!C31 -> EL2 | E57: ='Efficiency Levels'!D31 -> 6506.900625 | H57: =H45 -> 0 | I57: =I45 -> 0 | J57: 0 | K57: 0 | L57: 0 | M57: 0 | N57: 0 | O57: 0 | P57: 0 | Q57: 0 | R57: 0 | S57: 0 | T57: 0 | U57: 0 | V57: 0 | W57: 0 | X57: 0 | Y57: 0 | Z57: 0 | AA57: 0 | AB57: 0.1666666667 | AC57: 0.1666666667 | AD57: 0.1666666667 | AE57: 0.1666666667 | AF57: 0.1666666667 | AG57: 0.1666666667 | AH57: 0.1666666667 | AI57: 0.1666666667 | AJ57: 0 | AK57: 0 | AL57: 0 | AM57: 0 | AN57: 0 | AO57: 0 | AP57: 0 | AQ57: 0 | AR57: 0 | AS57: 0 | AT57: 0 | AU57: 0 | AV57: 0 | AW57: 0 | AX57: 0 | AY57: 0 | AZ57: 0
D58: ='Efficiency Levels'!C32 -> EL3 | E58: ='Efficiency Levels'!D32 -> 6146.622812 | H58: =H46 -> 0 | I58: 0 | J58: 0 | K58: 0 | L58: 0 | M58: 0 | N58: 0 | O58: 0 | P58: 0 | Q58: 0 | R58: 0 | S58: 0 | T58: 0 | U58: 0 | V58: 0 | W58: 0 | X58: 0 | Y58: 0 | Z58: 0 | AA58: 0 | AB58: 0.119047619 | AC58: 0.119047619 | AD58: 0.119047619 | AE58: 0.119047619 | AF58: 0.119047619 | AG58: 0.119047619 | AH58: 0.119047619 | AI58: 0.119047619 | AJ58: 0.9761904762 | AK58: 0.9761904762 | AL58: 0.9761904762 | AM58: 0.9761904762 | AN58: 0.9761904762 | AO58: 0.9761904762 | AP58: 0.9761904762 | AQ58: 0.9761904762 | AR58: 0.9761904762 | AS58: 0.9761904762 | AT58: 0.9761904762 | AU58: 0.9761904762 | AV58: 0.9761904762 | AW58: 0.9761904762 | AX58: 0.9761904762 | AY58: 0.9761904762 | AZ58: 0.9761904762
D59: ='Efficiency Levels'!C33 -> EL4 | E59: ='Efficiency Levels'!D33 -> 5786.345 | H59: 0 | I59: 0 | J59: 0 | K59: 0 | L59: 0 | M59: 0 | N59: 0 | O59: 0 | P59: 0 | Q59: 0 | R59: 0 | S59: 0 | T59: 0 | U59: 0 | V59: 0 | W59: 0 | X59: 0 | Y59: 0 | Z59: 0 | AA59: 0 | AB59: 0 | AC59: 0 | AD59: 0 | AE59: 0 | AF59: 0 | AG59: 0 | AH59: 0 | AI59: 0 | AJ59: =AI59 -> 0 | AK59: =AJ59 -> 0 | AL59: 0 | AM59: 0 | AN59: 0 | AO59: 0 | AP59: 0 | AQ59: 0 | AR59: 0 | AS59: 0 | AT59: 0 | AU59: 0 | AV59: 0 | AW59: 0 | AX59: 0 | AY59: 0 | AZ59: 0
D60: ='Efficiency Levels'!C34 -> EL5 | E60: ='Efficiency Levels'!D34 -> 5690.86765 | H60: 0 | I60: 0 | J60: 0 | K60: 0 | L60: 0 | M60: 0 | N60: 0 | O60: 0 | P60: 0 | Q60: 0 | R60: 0 | S60: 0 | T60: 0 | U60: 0 | V60: 0 | W60: 0 | X60: 0 | Y60: 0 | Z60: 0 | AA60: 0 | AB60: 0.02380952381 | AC60: 0.02380952381 | AD60: 0.02380952381 | AE60: 0.02380952381 | AF60: 0.02380952381 | AG60: 0.02380952381 | AH60: 0.02380952381 | AI60: 0.02380952381 | AJ60: 0.02380952381 | AK60: 0.02380952381 | AL60: 0.02380952381 | AM60: 0.02380952381 | AN60: 0.02380952381 | AO60: 0.02380952381 | AP60: 0.02380952381 | AQ60: 0.02380952381 | AR60: 0.02380952381 | AS60: 0.02380952381 | AT60: 0.02380952381 | AU60: 0.02380952381 | AV60: 0.02380952381 | AW60: 0.02380952381 | AX60: 0.02380952381 | AY60: 0.02380952381 | AZ60: 0.02380952381
D61: ='Efficiency Levels'!C35 -> EL6 | E61: ='Efficiency Levels'!D35 -> 0 | H61: 0 | I61: 0 | J61: 0 | K61: 0 | L61: 0 | M61: 0 | N61: 0 | O61: 0 | P61: 0 | Q61: 0 | R61: 0 | S61: 0 | T61: 0 | U61: 0 | V61: 0 | W61: 0 | X61: 0 | Y61: 0 | Z61: 0 | AA61: 0 | AB61: 0 | AC61: 0 | AD61: 0 | AE61: 0 | AF61: 0 | AG61: 0 | AH61: 0 | AI61: 0 | AJ61: 0 | AK61: 0 | AL61: 0 | AM61: 0 | AN61: 0 | AO61: 0 | AP61: 0 | AQ61: 0 | AR61: 0 | AS61: 0 | AT61: 0 | AU61: 0 | AV61: 0 | AW61: 0 | AX61: 0 | AY61: 0 | AZ61: 0
D62: ='Efficiency Levels'!C36 -> EL7 | E62: ='Efficiency Levels'!D36 -> 0 | H62: 0 | I62: 0 | J62: 0 | K62: 0 | L62: 0 | M62: 0 | N62: 0 | O62: 0 | P62: 0 | Q62: 0 | R62: 0 | S62: 0 | T62: 0 | U62: 0 | V62: 0 | W62: 0 | X62: 0 | Y62: 0 | Z62: 0 | AA62: 0 | AB62: 0 | AC62: 0 | AD62: 0 | AE62: 0 | AF62: 0 | AG62: 0 | AH62: 0 | AI62: 0 | AJ62: =AJ50 -> 0 | AK62: =AK50 -> 0 | AL62: 0 | AM62: 0 | AN62: 0 | AO62: 0 | AP62: 0 | AQ62: 0 | AR62: 0 | AS62: 0 | AT62: 0 | AU62: 0 | AV62: 0 | AW62: 0 | AX62: 0 | AY62: 0 | AZ62: 0
D63: TOTAL | H63: =SUM(H55:H62) -> 1 | I63: =SUM(I55:I62) -> 1 | J63: 1 | K63: 1 | L63: 1 | M63: 1 | N63: 1 | O63: 1 | P63: 1 | Q63: 1 | R63: 1 | S63: 1 | T63: 1 | U63: 1 | V63: 1 | W63: 1 | X63: 1 | Y63: 1 | Z63: 1 | AA63: 1 | AB63: 1 | AC63: 1 | AD63: 1 | AE63: 1 | AF63: 1 | AG63: 1 | AH63: 1 | AI63: 1 | AJ63: 1 | AK63: 1 | AL63: 1 | AM63: 1 | AN63: 1 | AO63: 1 | AP63: 1 | AQ63: 1 | AR63: 1 | AS63: 1 | AT63: 1 | AU63: 1 | AV63: 1 | AW63: 1 | AX63: 1 | AY63: 1 | AZ63: 1
D65: Sources | E65: DOE Automatic Commercial Ice Makers 2014, Notice of Proposed Rulemaking (NOPR) Technical Support Document Chapter 10, Table 10.2.2 Base Case Shipment Weighted Market Shares by Efficiency Level (page 10-3); TSL 3 is proposed in the NOPR. TSL 3 corresponds to different EL's for different product classes
D69: =CONCATENATE('Efficiency Levels'!$C43," - ",'Efficiency Levels'!$D43) -> PC3 - Ice Making Head-Water Cooled-Large-Batch-1
D71: PRE-Case | F71: Static Distribution
D72: Efficiency Level | E72: EL (kWh/day) | F72: 2006 | H72: 1990 | I72: =H72+1 -> 1991 | J72: =I72+1 -> 1992 | K72: =J72+1 -> 1993 | L72: =K72+1 -> 1994 | M72: =L72+1 -> 1995 | N72: =M72+1 -> 1996 | O72: =N72+1 -> 1997 | P72: =O72+1 -> 1998 | Q72: =P72+1 -> 1999 | R72: =Q72+1 -> 2000 | S72: =R72+1 -> 2001 | T72: =S72+1 -> 2002 | U72: =T72+1 -> 2003 | V72: =U72+1 -> 2004 | W72: =V72+1 -> 2005 | X72: =W72+1 -> 2006 | Y72: =X72+1 -> 2007 | Z72: =Y72+1 -> 2008 | AA72: =Z72+1 -> 2009 | AB72: =AA72+1 -> 2010 | AC72: =AB72+1 -> 2011 | AD72: =AC72+1 -> 2012 | AE72: =AD72+1 -> 2013 | AF72: =AE72+1 -> 2014 | AG72: =AF72+1 -> 2015 | AH72: =AG72+1 -> 2016 | AI72: =AH72+1 -> 2017 | AJ72: =AI72+1 -> 2018 | AK72: =AJ72+1 -> 2019 | AL72: =AK72+1 -> 2020 | AM72: =AL72+1 -> 2021 | AN72: =AM72+1 -> 2022 | AO72: =AN72+1 -> 2023 | AP72: =AO72+1 -> 2024 | AQ72: =AP72+1 -> 2025 | AR72: =AQ72+1 -> 2026 | AS72: =AR72+1 -> 2027 | AT72: =AS72+1 -> 2028 | AU72: =AT72+1 -> 2029 | AV72: =AU72+1 -> 2030 | AW72: =AV72+1 -> 2031 | AX72: =AW72+1 -> 2032 | AY72: =AX72+1 -> 2033 | AZ72: =AY72+1 -> 2034
D73: ='Efficiency Levels'!C46 -> EL0 | E73: ='Efficiency Levels'!D46 -> 7745.949985 | F73: 0 | H73: 1 | I73: 1 | J73: 1 | K73: 1 | L73: 1 | M73: 1 | N73: 1 | O73: 1 | P73: 1 | Q73: 1 | R73: 1 | S73: 1 | T73: 1 | U73: 1 | V73: 1 | W73: 1 | X73: 1 | Y73: 1 | Z73: 1 | AA73: 1 | AB73: =$F73 -> 0 | AC73: 0 | AD73: 0 | AE73: 0 | AF73: =$F73 -> 0 | AG73: 0 | AH73: 0 | AI73: 0 | AJ73: 0 | AK73: 0 | AL73: 0 | AM73: 0 | AN73: 0 | AO73: 0 | AP73: 0 | AQ73: 0 | AR73: 0 | AS73: 0 | AT73: 0 | AU73: 0 | AV73: 0 | AW73: 0 | AX73: 0 | AY73: 0 | AZ73: 0
D74: ='Efficiency Levels'!C47 -> EL1 | E74: ='Efficiency Levels'!D47 -> 10971.9 | F74: 0.7142857143 | H74: 0 | I74: 0 | J74: 0 | K74: 0 | L74: 0 | M74: 0 | N74: 0 | O74: 0 | P74: 0 | Q74: 0 | R74: 0 | S74: 0 | T74: 0 | U74: 0 | V74: 0 | W74: 0 | X74: 0 | Y74: 0 | Z74: 0 | AA74: 0 | AB74: 0.7142857143 | AC74: 0.7142857143 | AD74: 0.7142857143 | AE74: 0.7142857143 | AF74: 0.7142857143 | AG74: 0.7142857143 | AH74: 0.7142857143 | AI74: 0.7142857143 | AJ74: 0.7142857143 | AK74: 0.7142857143 | AL74: 0.7142857143 | AM74: 0.7142857143 | AN74: 0.7142857143 | AO74: 0.7142857143 | AP74: 0.7142857143 | AQ74: 0.7142857143 | AR74: 0.7142857143 | AS74: 0.7142857143 | AT74: 0.7142857143 | AU74: 0.7142857143 | AV74: 0.7142857143 | AW74: 0.7142857143 | AX74: 0.7142857143 | AY74: 0.7142857143 | AZ74: 0.7142857143
D75: ='Efficiency Levels'!C48 -> EL2 | E75: ='Efficiency Levels'!D48 -> 9876.9 | F75: 0 | H75: 0 | I75: 0 | J75: 0 | K75: 0 | L75: 0 | M75: 0 | N75: 0 | O75: 0 | P75: 0 | Q75: 0 | R75: 0 | S75: 0 | T75: 0 | U75: 0 | V75: 0 | W75: 0 | X75: 0 | Y75: 0 | Z75: 0 | AA75: 0 | AB75: 0 | AC75: 0 | AD75: 0 | AE75: 0 | AF75: 0 | AG75: 0 | AH75: 0 | AI75: 0 | AJ75: 0 | AK75: 0 | AL75: 0 | AM75: 0 | AN75: 0 | AO75: 0 | AP75: 0 | AQ75: 0 | AR75: 0 | AS75: 0 | AT75: 0 | AU75: 0 | AV75: 0 | AW75: 0 | AX75: 0 | AY75: 0 | AZ75: 0
D76: ='Efficiency Levels'!C49 -> EL3 | E76: ='Efficiency Levels'!D49 -> 9329.4 | F76: 0.04761904762 | H76: 0 | I76: 0 | J76: 0 | K76: 0 | L76: 0 | M76: 0 | N76: 0 | O76: 0 | P76: 0 | Q76: 0 | R76: 0 | S76: 0 | T76: 0 | U76: 0 | V76: 0 | W76: 0 | X76: 0 | Y76: 0 | Z76: 0 | AA76: 0 | AB76: 0.04761904762 | AC76: 0.04761904762 | AD76: 0.04761904762 | AE76: 0.04761904762 | AF76: 0.04761904762 | AG76: 0.04761904762 | AH76: 0.04761904762 | AI76: 0.04761904762 | AJ76: 0.04761904762 | AK76: 0.04761904762 | AL76: 0.04761904762 | AM76: 0.04761904762 | AN76: 0.04761904762 | AO76: 0.04761904762 | AP76: 0.04761904762 | AQ76: 0.04761904762 | AR76: 0.04761904762 | AS76: 0.04761904762 | AT76: 0.04761904762 | AU76: 0.04761904762 | AV76: 0.04761904762 | AW76: 0.04761904762 | AX76: 0.04761904762 | AY76: 0.04761904762 | AZ76: 0.04761904762
D77: ='Efficiency Levels'!C50 -> EL4 | E77: ='Efficiency Levels'!D50 -> 9146.9 | F77: 0.2380952381 | H77: 0 | I77: 0 | J77: 0 | K77: 0 | L77: 0 | M77: 0 | N77: 0 | O77: 0 | P77: 0 | Q77: 0 | R77: 0 | S77: 0 | T77: 0 | U77: 0 | V77: 0 | W77: 0 | X77: 0 | Y77: 0 | Z77: 0 | AA77: 0 | AB77: 0.2380952381 | AC77: 0.2380952381 | AD77: 0.2380952381 | AE77: 0.2380952381 | AF77: 0.2380952381 | AG77: 0.2380952381 | AH77: 0.2380952381 | AI77: 0.2380952381 | AJ77: 0.2380952381 | AK77: 0.2380952381 | AL77: 0.2380952381 | AM77: 0.2380952381 | AN77: 0.2380952381 | AO77: 0.2380952381 | AP77: 0.2380952381 | AQ77: 0.2380952381 | AR77: 0.2380952381 | AS77: 0.2380952381 | AT77: 0.2380952381 | AU77: 0.2380952381 | AV77: 0.2380952381 | AW77: 0.2380952381 | AX77: 0.2380952381 | AY77: 0.2380952381 | AZ77: 0.2380952381
D78: ='Efficiency Levels'!C51 -> EL5 | E78: ='Efficiency Levels'!D51 -> 0 | F78: 0 | H78: 0 | I78: 0 | J78: 0 | K78: 0 | L78: 0 | M78: 0 | N78: 0 | O78: 0 | P78: 0 | Q78: 0 | R78: 0 | S78: 0 | T78: 0 | U78: 0 | V78: 0 | W78: 0 | X78: 0 | Y78: 0 | Z78: 0 | AA78: 0 | AB78: 0 | AC78: 0 | AD78: 0 | AE78: 0 | AF78: 0 | AG78: 0 | AH78: 0 | AI78: 0 | AJ78: 0 | AK78: 0 | AL78: 0 | AM78: 0 | AN78: 0 | AO78: 0 | AP78: 0 | AQ78: 0 | AR78: 0 | AS78: 0 | AT78: 0 | AU78: 0 | AV78: 0 | AW78: 0 | AX78: 0 | AY78: 0 | AZ78: 0
D79: ='Efficiency Levels'!C52 -> EL6 | E79: ='Efficiency Levels'!D52 -> 0 | F79: 0 | H79: 0 | I79: 0 | J79: 0 | K79: 0 | L79: 0 | M79: 0 | N79: 0 | O79: 0 | P79: 0 | Q79: 0 | R79: 0 | S79: 0 | T79: 0 | U79: 0 | V79: 0 | W79: 0 | X79: 0 | Y79: 0 | Z79: 0 | AA79: 0 | AB79: =$F79 -> 0 | AC79: 0 | AD79: 0 | AE79: 0 | AF79: 0 | AG79: 0 | AH79: 0 | AI79: 0 | AJ79: 0 | AK79: 0 | AL79: 0 | AM79: 0 | AN79: 0 | AO79: 0 | AP79: 0 | AQ79: 0 | AR79: 0 | AS79: 0 | AT79: 0 | AU79: 0 | AV79: 0 | AW79: 0 | AX79: 0 | AY79: 0 | AZ79: 0
D80: ='Efficiency Levels'!C53 -> EL7 | E80: ='Efficiency Levels'!D53 -> 0 | F80: 0 | H80: 0 | I80: 0 | J80: 0 | K80: 0 | L80: 0 | M80: 0 | N80: 0 | O80: 0 | P80: 0 | Q80: 0 | R80: 0 | S80: 0 | T80: 0 | U80: 0 | V80: 0 | W80: 0 | X80: 0 | Y80: 0 | Z80: 0 | AA80: 0 | AB80: 0 | AC80: 0 | AD80: 0 | AE80: 0 | AF80: 0 | AG80: 0 | AH80: 0 | AI80: 0 | AJ80: 0 | AK80: 0 | AL80: 0 | AM80: 0 | AN80: 0 | AO80: 0 | AP80: 0 | AQ80: 0 | AR80: 0 | AS80: 0 | AT80: 0 | AU80: 0 | AV80: 0 | AW80: 0 | AX80: 0 | AY80: 0 | AZ80: 0
D81: TOTAL | F81: =SUM(F73:F80) -> 1 | H81: =SUM(H73:H80) -> 1 | I81: 1 | J81: 1 | K81: 1 | L81: 1 | M81: 1 | N81: 1 | O81: 1 | P81: 1 | Q81: 1 | R81: 1 | S81: 1 | T81: 1 | U81: 1 | V81: 1 | W81: 1 | X81: 1 | Y81: 1 | Z81: 1 | AA81: 1 | AB81: 1 | AC81: 1 | AD81: 1 | AE81: 1 | AF81: 1 | AG81: 1 | AH81: 1 | AI81: 1 | AJ81: 1 | AK81: 1 | AL81: 1 | AM81: 1 | AN81: 1 | AO81: 1 | AP81: 1 | AQ81: 1 | AR81: 1 | AS81: 1 | AT81: 1 | AU81: 1 | AV81: 1 | AW81: 1 | AX81: 1 | AY81: 1 | AZ81: 1
D83: POST-Case
D84: Efficiency Level | E84: EL (kWh/day) | H84: 1990 | I84: =H84+1 -> 1991 | J84: =I84+1 -> 1992 | K84: =J84+1 -> 1993 | L84: =K84+1 -> 1994 | M84: =L84+1 -> 1995 | N84: =M84+1 -> 1996 | O84: =N84+1 -> 1997 | P84: =O84+1 -> 1998 | Q84: =P84+1 -> 1999 | R84: =Q84+1 -> 2000 | S84: =R84+1 -> 2001 | T84: =S84+1 -> 2002 | U84: =T84+1 -> 2003 | V84: =U84+1 -> 2004 | W84: =V84+1 -> 2005 | X84: =X72 -> 2006 | Y84: 2007 | Z84: 2008 | AA84: 2009 | AB84: 2010 | AC84: 2011 | AD84: 2012 | AE84: 2013 | AF84: 2014 | AG84: 2015 | AH84: 2016 | AI84: 2017 | AJ84: 2018 | AK84: 2019 | AL84: 2020 | AM84: 2021 | AN84: 2022 | AO84: 2023 | AP84: 2024 | AQ84: 2025 | AR84: 2026 | AS84: 2027 | AT84: 2028 | AU84: 2029 | AV84: 2030 | AW84: 2031 | AX84: 2032 | AY84: 2033 | AZ84: 2034
D85: ='Efficiency Levels'!C46 -> EL0 | E85: ='Efficiency Levels'!D46 -> 7745.949985 | H85: =H73 -> 1 | I85: =I73 -> 1 | J85: 1 | K85: 1 | L85: 1 | M85: 1 | N85: 1 | O85: 1 | P85: 1 | Q85: 1 | R85: 1 | S85: 1 | T85: 1 | U85: 1 | V85: 1 | W85: 1 | X85: 1 | Y85: 1 | Z85: 1 | AA85: 1 | AB85: 0 | AC85: 0 | AD85: 0 | AE85: 0 | AF85: 0 | AG85: 0 | AH85: 0 | AI85: 0 | AJ85: 0 | AK85: 0 | AL85: 0 | AM85: 0 | AN85: 0 | AO85: 0 | AP85: 0 | AQ85: 0 | AR85: 0 | AS85: 0 | AT85: 0 | AU85: 0 | AV85: 0 | AW85: 0 | AX85: 0 | AY85: 0 | AZ85: 0
D86: ='Efficiency Levels'!C47 -> EL1 | E86: ='Efficiency Levels'!D47 -> 10971.9 | H86: =H74 -> 0 | I86: =I74 -> 0 | J86: 0 | K86: 0 | L86: 0 | M86: 0 | N86: 0 | O86: 0 | P86: 0 | Q86: 0 | R86: 0 | S86: 0 | T86: 0 | U86: 0 | V86: 0 | W86: 0 | X86: 0 | Y86: 0 | Z86: 0 | AA86: 0 | AB86: 0.7142857143 | AC86: 0.7142857143 | AD86: 0.7142857143 | AE86: 0.7142857143 | AF86: 0.7142857143 | AG86: 0.7142857143 | AH86: 0.7142857143 | AI86: 0.7142857143 | AJ86: 0 | AK86: 0 | AL86: 0 | AM86: 0 | AN86: 0 | AO86: 0 | AP86: 0 | AQ86: 0 | AR86: 0 | AS86: 0 | AT86: 0 | AU86: 0 | AV86: 0 | AW86: 0 | AX86: 0 | AY86: 0 | AZ86: 0
D87: ='Efficiency Levels'!C48 -> EL2 | E87: ='Efficiency Levels'!D48 -> 9876.9 | H87: =H75 -> 0 | I87: 0 | J87: 0 | K87: 0 | L87: 0 | M87: 0 | N87: 0 | O87: 0 | P87: 0 | Q87: 0 | R87: 0 | S87: 0 | T87: 0 | U87: 0 | V87: 0 | W87: 0 | X87: 0 | Y87: 0 | Z87: 0 | AA87: 0 | AB87: 0 | AC87: 0 | AD87: 0 | AE87: 0 | AF87: 0 | AG87: 0 | AH87: 0 | AI87: 0 | AJ87: 0.7142857143 | AK87: 0.7142857143 | AL87: 0.7142857143 | AM87: 0.7142857143 | AN87: 0.7142857143 | AO87: 0.7142857143 | AP87: 0.7142857143 | AQ87: 0.7142857143 | AR87: 0.7142857143 | AS87: 0.7142857143 | AT87: 0.7142857143 | AU87: 0.7142857143 | AV87: 0.7142857143 | AW87: 0.7142857143 | AX87: 0.7142857143 | AY87: 0.7142857143 | AZ87: 0.7142857143
D88: ='Efficiency Levels'!C49 -> EL3 | E88: ='Efficiency Levels'!D49 -> 9329.4 | H88: =H76 -> 0 | I88: 0 | J88: 0 | K88: 0 | L88: 0 | M88: 0 | N88: 0 | O88: 0 | P88: 0 | Q88: 0 | R88: 0 | S88: 0 | T88: 0 | U88: 0 | V88: 0 | W88: 0 | X88: 0 | Y88: 0 | Z88: 0 | AA88: 0 | AB88: 0.04761904762 | AC88: 0.04761904762 | AD88: 0.04761904762 | AE88: 0.04761904762 | AF88: 0.04761904762 | AG88: 0.04761904762 | AH88: 0.04761904762 | AI88: 0.04761904762 | AJ88: 0.04761904762 | AK88: 0.04761904762 | AL88: 0.04761904762 | AM88: 0.04761904762 | AN88: 0.04761904762 | AO88: 0.04761904762 | AP88: 0.04761904762 | AQ88: 0.04761904762 | AR88: 0.04761904762 | AS88: 0.04761904762 | AT88: 0.04761904762 | AU88: 0.04761904762 | AV88: 0.04761904762 | AW88: 0.04761904762 | AX88: 0.04761904762 | AY88: 0.04761904762 | AZ88: 0.04761904762
D89: ='Efficiency Levels'!C50 -> EL4 | E89: ='Efficiency Levels'!D50 -> 9146.9 | H89: =H77 -> 0 | I89: 0 | J89: 0 | K89: 0 | L89: 0 | M89: 0 | N89: 0 | O89: 0 | P89: 0 | Q89: 0 | R89: 0 | S89: 0 | T89: 0 | U89: 0 | V89: 0 | W89: 0 | X89: 0 | Y89: 0 | Z89: 0 | AA89: 0 | AB89: 0.2380952381 | AC89: 0.2380952381 | AD89: 0.2380952381 | AE89: 0.2380952381 | AF89: 0.2380952381 | AG89: 0.2380952381 | AH89: 0.2380952381 | AI89: 0.2380952381 | AJ89: 0.2380952381 | AK89: 0.2380952381 | AL89: 0.2380952381 | AM89: 0.2380952381 | AN89: 0.2380952381 | AO89: 0.2380952381 | AP89: 0.2380952381 | AQ89: 0.2380952381 | AR89: 0.2380952381 | AS89: 0.2380952381 | AT89: 0.2380952381 | AU89: 0.2380952381 | AV89: 0.2380952381 | AW89: 0.2380952381 | AX89: 0.2380952381 | AY89: 0.2380952381 | AZ89: 0.2380952381
D90: ='Efficiency Levels'!C51 -> EL5 | E90: ='Efficiency Levels'!D51 -> 0 | H90: =H78 -> 0 | I90: 0 | J90: 0 | K90: 0 | L90: 0 | M90: 0 | N90: 0 | O90: 0 | P90: 0 | Q90: 0 | R90: 0 | S90: 0 | T90: 0 | U90: 0 | V90: 0 | W90: 0 | X90: 0 | Y90: 0 | Z90: 0 | AA90: 0 | AB90: 0 | AC90: 0 | AD90: 0 | AE90: 0 | AF90: 0 | AG90: 0 | AH90: 0 | AI90: 0 | AJ90: =AJ78 -> 0 | AK90: =AK78 -> 0 | AL90: 0 | AM90: 0 | AN90: 0 | AO90: 0 | AP90: 0 | AQ90: 0 | AR90: 0 | AS90: 0 | AT90: 0 | AU90: 0 | AV90: 0 | AW90: 0 | AX90: 0 | AY90: 0 | AZ90: 0
D91: ='Efficiency Levels'!C52 -> EL6 | E91: ='Efficiency Levels'!D52 -> 0 | H91: =H79 -> 0 | I91: 0 | J91: 0 | K91: 0 | L91: 0 | M91: 0 | N91: 0 | O91: 0 | P91: 0 | Q91: 0 | R91: 0 | S91: 0 | T91: 0 | U91: 0 | V91: 0 | W91: 0 | X91: 0 | Y91: 0 | Z91: 0 | AA91: 0 | AB91: 0 | AC91: 0 | AD91: 0 | AE91: 0 | AF91: 0 | AG91: 0 | AH91: 0 | AI91: 0 | AJ91: 0 | AK91: 0 | AL91: 0 | AM91: 0 | AN91: 0 | AO91: 0 | AP91: 0 | AQ91: 0 | AR91: 0 | AS91: 0 | AT91: 0 | AU91: 0 | AV91: 0 | AW91: 0 | AX91: 0 | AY91: 0 | AZ91: 0
D92: ='Efficiency Levels'!C53 -> EL7 | E92: ='Efficiency Levels'!D53 -> 0 | H92: =H80 -> 0 | I92: 0 | J92: 0 | K92: 0 | L92: 0 | M92: 0 | N92: 0 | O92: 0 | P92: 0 | Q92: 0 | R92: 0 | S92: 0 | T92: 0 | U92: 0 | V92: 0 | W92: 0 | X92: 0 | Y92: 0 | Z92: 0 | AA92: 0 | AB92: 0 | AC92: 0 | AD92: 0 | AE92: 0 | AF92: 0 | AG92: 0 | AH92: 0 | AI92: 0 | AJ92: =AJ80 -> 0 | AK92: =AK80 -> 0 | AL92: 0 | AM92: 0 | AN92: 0 | AO92: 0 | AP92: 0 | AQ92: 0 | AR92: 0 | AS92: 0 | AT92: 0 | AU92: 0 | AV92: 0 | AW92: 0 | AX92: 0 | AY92: 0 | AZ92: 0
D93: TOTAL | H93: =SUM(H85:H92) -> 1 | I93: =SUM(I85:I92) -> 1 | J93: 1 | K93: 1 | L93: 1 | M93: 1 | N93: 1 | O93: 1 | P93: 1 | Q93: 1 | R93: 1 | S93: 1 | T93: 1 | U93: 1 | V93: 1 | W93: 1 | X93: 1 | Y93: 1 | Z93: 1 | AA93: 1 | AB93: 1 | AC93: 1 | AD93: 1 | AE93: 1 | AF93: 1 | AG93: 1 | AH93: 1 | AI93: 1 | AJ93: 1 | AK93: 1 | AL93: 1 | AM93: 1 | AN93: 1 | AO93: 1 | AP93: 1 | AQ93: 1 | AR93: 1 | AS93: 1 | AT93: 1 | AU93: 1 | AV93: 1 | AW93: 1 | AX93: 1 | AY93: 1 | AZ93: 1
D95: Sources | E95: DOE Automatic Commercial Ice Makers 2014, Notice of Proposed Rulemaking (NOPR) Technical Support Document Chapter 10, Table 10.2.2 Base Case Shipment Weighted Market Shares by Efficiency Level (page 10-3); TSL 3 is proposed in the NOPR. TSL 3 corresponds to different EL's for different product classes
D99: =CONCATENATE('Efficiency Levels'!$C60," - ",'Efficiency Levels'!$D60) -> PC4 - Ice Making Head-Water Cooled-Large-Batch-2
D101: PRE-Case | F101: Static Distribution
D102: Efficiency Level | E102: EL (kWh/day) | F102: 2006 | H102: 1990 | I102: =H102+1 -> 1991 | J102: =I102+1 -> 1992 | K102: =J102+1 -> 1993 | L102: =K102+1 -> 1994 | M102: =L102+1 -> 1995 | N102: =M102+1 -> 1996 | O102: =N102+1 -> 1997 | P102: =O102+1 -> 1998 | Q102: =P102+1 -> 1999 | R102: =Q102+1 -> 2000 | S102: =R102+1 -> 2001 | T102: =S102+1 -> 2002 | U102: =T102+1 -> 2003 | V102: =U102+1 -> 2004 | W102: =V102+1 -> 2005 | X102: =W102+1 -> 2006 | Y102: =X102+1 -> 2007 | Z102: =Y102+1 -> 2008 | AA102: =Z102+1 -> 2009 | AB102: =AA102+1 -> 2010 | AC102: =AB102+1 -> 2011 | AD102: =AC102+1 -> 2012 | AE102: =AD102+1 -> 2013 | AF102: =AE102+1 -> 2014 | AG102: =AF102+1 -> 2015 | AH102: =AG102+1 -> 2016 | AI102: =AH102+1 -> 2017 | AJ102: =AI102+1 -> 2018 | AK102: =AJ102+1 -> 2019 | AL102: =AK102+1 -> 2020 | AM102: =AL102+1 -> 2021 | AN102: =AM102+1 -> 2022 | AO102: =AN102+1 -> 2023 | AP102: =AO102+1 -> 2024 | AQ102: =AP102+1 -> 2025 | AR102: =AQ102+1 -> 2026 | AS102: =AR102+1 -> 2027 | AT102: =AS102+1 -> 2028 | AU102: =AT102+1 -> 2029 | AV102: =AU102+1 -> 2030 | AW102: =AV102+1 -> 2031 | AX102: =AW102+1 -> 2032 | AY102: =AX102+1 -> 2033 | AZ102: =AY102+1 -> 2034
D103: ='Efficiency Levels'!C63 -> EL0 | E103: ='Efficiency Levels'!D63 -> 7745.949985 | F103: 0 | H103: 1 | I103: 1 | J103: 1 | K103: 1 | L103: 1 | M103: 1 | N103: 1 | O103: 1 | P103: 1 | Q103: 1 | R103: 1 | S103: 1 | T103: 1 | U103: 1 | V103: 1 | W103: 1 | X103: 1 | Y103: 1 | Z103: 1 | AA103: 1 | AB103: =$F103 -> 0 | AC103: 0 | AD103: 0 | AE103: 0 | AF103: 0 | AG103: 0 | AH103: 0 | AI103: 0 | AJ103: =$F103 -> 0 | AK103: 0 | AL103: =$F103 -> 0 | AM103: 0 | AN103: 0 | AO103: 0 | AP103: 0 | AQ103: 0 | AR103: 0 | AS103: 0 | AT103: 0 | AU103: 0 | AV103: 0 | AW103: 0 | AX103: 0 | AY103: 0 | AZ103: 0
D104: ='Efficiency Levels'!C64 -> EL1 | E104: ='Efficiency Levels'!D64 -> 19001.9 | F104: 0.3333333333 | H104: 0 | I104: 0 | J104: 0 | K104: 0 | L104: 0 | M104: 0 | N104: 0 | O104: 0 | P104: 0 | Q104: 0 | R104: 0 | S104: 0 | T104: 0 | U104: 0 | V104: 0 | W104: 0 | X104: 0 | Y104: 0 | Z104: 0 | AA104: 0 | AB104: 0.3333333333 | AC104: 0.3333333333 | AD104: 0.3333333333 | AE104: 0.3333333333 | AF104: 0.3333333333 | AG104: 0.3333333333 | AH104: 0.3333333333 | AI104: 0.3333333333 | AJ104: 0.3333333333 | AK104: 0.3333333333 | AL104: 0.3333333333 | AM104: 0.3333333333 | AN104: 0.3333333333 | AO104: 0.3333333333 | AP104: 0.3333333333 | AQ104: 0.3333333333 | AR104: 0.3333333333 | AS104: 0.3333333333 | AT104: 0.3333333333 | AU104: 0.3333333333 | AV104: 0.3333333333 | AW104: 0.3333333333 | AX104: 0.3333333333 | AY104: 0.3333333333 | AZ104: 0.3333333333
D105: ='Efficiency Levels'!C65 -> EL2 | E105: ='Efficiency Levels'!D65 -> 17103.9 | F105: 0.5 | H105: 0 | I105: 0 | J105: 0 | K105: 0 | L105: 0 | M105: 0 | N105: 0 | O105: 0 | P105: 0 | Q105: 0 | R105: 0 | S105: 0 | T105: 0 | U105: 0 | V105: 0 | W105: 0 | X105: 0 | Y105: 0 | Z105: 0 | AA105: 0 | AB105: 0.5 | AC105: 0.5 | AD105: 0.5 | AE105: 0.5 | AF105: 0.5 | AG105: 0.5 | AH105: 0.5 | AI105: 0.5 | AJ105: 0.5 | AK105: 0.5 | AL105: 0.5 | AM105: 0.5 | AN105: 0.5 | AO105: 0.5 | AP105: 0.5 | AQ105: 0.5 | AR105: 0.5 | AS105: 0.5 | AT105: 0.5 | AU105: 0.5 | AV105: 0.5 | AW105: 0.5 | AX105: 0.5 | AY105: 0.5 | AZ105: 0.5
D106: ='Efficiency Levels'!C66 -> EL3 | E106: ='Efficiency Levels'!D66 -> 16154.9 | F106: 0 | H106: 0 | I106: 0 | J106: 0 | K106: 0 | L106: 0 | M106: 0 | N106: 0 | O106: 0 | P106: 0 | Q106: 0 | R106: 0 | S106: 0 | T106: 0 | U106: 0 | V106: 0 | W106: 0 | X106: 0 | Y106: 0 | Z106: 0 | AA106: 0 | AB106: 0 | AC106: 0 | AD106: 0 | AE106: 0 | AF106: 0 | AG106: 0 | AH106: 0 | AI106: 0 | AJ106: 0 | AK106: 0 | AL106: 0 | AM106: 0 | AN106: 0 | AO106: 0 | AP106: 0 | AQ106: 0 | AR106: 0 | AS106: 0 | AT106: 0 | AU106: 0 | AV106: 0 | AW106: 0 | AX106: 0 | AY106: 0 | AZ106: 0
D107: ='Efficiency Levels'!C67 -> EL4 | E107: ='Efficiency Levels'!D67 -> 16067.33641 | F107: 0.1666666667 | H107: 0 | I107: 0 | J107: 0 | K107: 0 | L107: 0 | M107: 0 | N107: 0 | O107: 0 | P107: 0 | Q107: 0 | R107: 0 | S107: 0 | T107: 0 | U107: 0 | V107: 0 | W107: 0 | X107: 0 | Y107: 0 | Z107: 0 | AA107: 0 | AB107: 0.1666666667 | AC107: 0.1666666667 | AD107: 0.1666666667 | AE107: 0.1666666667 | AF107: 0.1666666667 | AG107: 0.1666666667 | AH107: 0.1666666667 | AI107: 0.1666666667 | AJ107: 0.1666666667 | AK107: 0.1666666667 | AL107: 0.1666666667 | AM107: 0.1666666667 | AN107: 0.1666666667 | AO107: 0.1666666667 | AP107: 0.1666666667 | AQ107: 0.1666666667 | AR107: 0.1666666667 | AS107: 0.1666666667 | AT107: 0.1666666667 | AU107: 0.1666666667 | AV107: 0.1666666667 | AW107: 0.1666666667 | AX107: 0.1666666667 | AY107: 0.1666666667 | AZ107: 0.1666666667
D108: ='Efficiency Levels'!C68 -> EL5 | E108: ='Efficiency Levels'!D68 -> 0 | F108: 0 | H108: 0 | I108: 0 | J108: 0 | K108: 0 | L108: 0 | M108: 0 | N108: 0 | O108: 0 | P108: 0 | Q108: 0 | R108: 0 | S108: 0 | T108: 0 | U108: 0 | V108: 0 | W108: 0 | X108: 0 | Y108: 0 | Z108: 0 | AA108: 0 | AB108: 0 | AC108: 0 | AD108: 0 | AE108: 0 | AF108: 0 | AG108: 0 | AH108: 0 | AI108: 0 | AJ108: 0 | AK108: 0 | AL108: 0 | AM108: 0 | AN108: 0 | AO108: 0 | AP108: 0 | AQ108: 0 | AR108: 0 | AS108: 0 | AT108: 0 | AU108: 0 | AV108: 0 | AW108: 0 | AX108: 0 | AY108: 0 | AZ108: 0
D109: ='Efficiency Levels'!C69 -> EL6 | E109: ='Efficiency Levels'!D69 -> 0 | F109: 0 | H109: 0 | I109: 0 | J109: 0 | K109: 0 | L109: 0 | M109: 0 | N109: 0 | O109: 0 | P109: 0 | Q109: 0 | R109: 0 | S109: 0 | T109: 0 | U109: 0 | V109: 0 | W109: 0 | X109: 0 | Y109: 0 | Z109: 0 | AA109: 0 | AB109: 0 | AC109: 0 | AD109: 0 | AE109: 0 | AF109: 0 | AG109: 0 | AH109: 0 | AI109: 0 | AJ109: 0 | AK109: 0 | AL109: 0 | AM109: 0 | AN109: 0 | AO109: 0 | AP109: 0 | AQ109: 0 | AR109: 0 | AS109: 0 | AT109: 0 | AU109: 0 | AV109: 0 | AW109: 0 | AX109: 0 | AY109: 0 | AZ109: 0
D110: ='Efficiency Levels'!C70 -> EL7 | E110: ='Efficiency Levels'!D70 -> 0 | F110: 0 | H110: 0 | I110: 0 | J110: 0 | K110: 0 | L110: 0 | M110: 0 | N110: 0 | O110: 0 | P110: 0 | Q110: 0 | R110: 0 | S110: 0 | T110: 0 | U110: 0 | V110: 0 | W110: 0 | X110: 0 | Y110: 0 | Z110: 0 | AA110: 0 | AB110: 0 | AC110: 0 | AD110: 0 | AE110: 0 | AF110: 0 | AG110: 0 | AH110: 0 | AI110: 0 | AJ110: 0 | AK110: 0 | AL110: 0 | AM110: 0 | AN110: 0 | AO110: 0 | AP110: 0 | AQ110: 0 | AR110: 0 | AS110: 0 | AT110: 0 | AU110: 0 | AV110: 0 | AW110: 0 | AX110: 0 | AY110: 0 | AZ110: 0
D111: TOTAL | F111: =SUM(F103:F110) -> 1 | H111: =SUM(H103:H110) -> 1 | I111: 1 | J111: 1 | K111: 1 | L111: 1 | M111: 1 | N111: 1 | O111: 1 | P111: 1 | Q111: 1 | R111: 1 | S111: 1 | T111: 1 | U111: 1 | V111: 1 | W111: 1 | X111: 1 | Y111: 1 | Z111: 1 | AA111: 1 | AB111: 1 | AC111: 1 | AD111: 1 | AE111: 1 | AF111: 1 | AG111: 1 | AH111: 1 | AI111: 1 | AJ111: 1 | AK111: 1 | AL111: 1 | AM111: 1 | AN111: 1 | AO111: 1 | AP111: 1 | AQ111: 1 | AR111: 1 | AS111: 1 | AT111: 1 | AU111: 1 | AV111: 1 | AW111: 1 | AX111: 1 | AY111: 1 | AZ111: 1
D113: POST-Case
D114: Efficiency Level | E114: EL (kWh/day) | H114: 1990 | I114: =H114+1 -> 1991 | J114: =I114+1 -> 1992 | K114: =J114+1 -> 1993 | L114: =K114+1 -> 1994 | M114: =L114+1 -> 1995 | N114: =M114+1 -> 1996 | O114: =N114+1 -> 1997 | P114: =O114+1 -> 1998 | Q114: =P114+1 -> 1999 | R114: =Q114+1 -> 2000 | S114: =R114+1 -> 2001 | T114: =S114+1 -> 2002 | U114: =T114+1 -> 2003 | V114: =U114+1 -> 2004 | W114: =V114+1 -> 2005 | X114: =X102 -> 2006 | Y114: 2007 | Z114: 2008 | AA114: 2009 | AB114: 2010 | AC114: 2011 | AD114: 2012 | AE114: 2013 | AF114: 2014 | AG114: 2015 | AH114: 2016 | AI114: 2017 | AJ114: 2018 | AK114: 2019 | AL114: 2020 | AM114: 2021 | AN114: 2022 | AO114: 2023 | AP114: 2024 | AQ114: 2025 | AR114: 2026 | AS114: 2027 | AT114: 2028 | AU114: 2029 | AV114: 2030 | AW114: 2031 | AX114: 2032 | AY114: 2033 | AZ114: 2034
D115: ='Efficiency Levels'!C63 -> EL0 | E115: ='Efficiency Levels'!D63 -> 7745.949985 | H115: =H103 -> 1 | I115: =I103 -> 1 | J115: 1 | K115: 1 | L115: 1 | M115: 1 | N115: 1 | O115: 1 | P115: 1 | Q115: 1 | R115: 1 | S115: 1 | T115: 1 | U115: 1 | V115: 1 | W115: 1 | X115: 1 | Y115: 1 | Z115: 1 | AA115: 1 | AB115: 0 | AC115: 0 | AD115: 0 | AE115: 0 | AF115: 0 | AG115: 0 | AH115: 0 | AI115: 0 | AJ115: 0 | AK115: 0 | AL115: 0 | AM115: 0 | AN115: 0 | AO115: 0 | AP115: 0 | AQ115: 0 | AR115: 0 | AS115: 0 | AT115: 0 | AU115: 0 | AV115: 0 | AW115: 0 | AX115: 0 | AY115: 0 | AZ115: 0
D116: ='Efficiency Levels'!C64 -> EL1 | E116: ='Efficiency Levels'!D64 -> 19001.9 | H116: =H104 -> 0 | I116: =I104 -> 0 | J116: 0 | K116: 0 | L116: 0 | M116: 0 | N116: 0 | O116: 0 | P116: 0 | Q116: 0 | R116: 0 | S116: 0 | T116: 0 | U116: 0 | V116: 0 | W116: 0 | X116: 0 | Y116: 0 | Z116: 0 | AA116: 0 | AB116: 0.3333333333 | AC116: 0.3333333333 | AD116: 0.3333333333 | AE116: 0.3333333333 | AF116: 0.3333333333 | AG116: 0.3333333333 | AH116: 0.3333333333 | AI116: 0.3333333333 | AJ116: 0 | AK116: 0 | AL116: 0 | AM116: 0 | AN116: 0 | AO116: 0 | AP116: 0 | AQ116: 0 | AR116: 0 | AS116: 0 | AT116: 0 | AU116: 0 | AV116: 0 | AW116: 0 | AX116: 0 | AY116: 0 | AZ116: 0
D117: ='Efficiency Levels'!C65 -> EL2 | E117: ='Efficiency Levels'!D65 -> 17103.9 | H117: =H105 -> 0 | I117: 0 | J117: 0 | K117: 0 | L117: 0 | M117: 0 | N117: 0 | O117: 0 | P117: 0 | Q117: 0 | R117: 0 | S117: 0 | T117: 0 | U117: 0 | V117: 0 | W117: 0 | X117: 0 | Y117: 0 | Z117: 0 | AA117: 0 | AB117: 0.5 | AC117: 0.5 | AD117: 0.5 | AE117: 0.5 | AF117: 0.5 | AG117: 0.5 | AH117: 0.5 | AI117: 0.5 | AJ117: 0.8333333333 | AK117: 0.8333333333 | AL117: 0.8333333333 | AM117: 0.8333333333 | AN117: 0.8333333333 | AO117: 0.8333333333 | AP117: 0.8333333333 | AQ117: 0.8333333333 | AR117: 0.8333333333 | AS117: 0.8333333333 | AT117: 0.8333333333 | AU117: 0.8333333333 | AV117: 0.8333333333 | AW117: 0.8333333333 | AX117: 0.8333333333 | AY117: 0.8333333333 | AZ117: 0.8333333333
D118: ='Efficiency Levels'!C66 -> EL3 | E118: ='Efficiency Levels'!D66 -> 16154.9 | H118: =H106 -> 0 | I118: 0 | J118: 0 | K118: 0 | L118: 0 | M118: 0 | N118: 0 | O118: 0 | P118: 0 | Q118: 0 | R118: 0 | S118: 0 | T118: 0 | U118: 0 | V118: 0 | W118: 0 | X118: 0 | Y118: 0 | Z118: 0 | AA118: 0 | AB118: 0 | AC118: 0 | AD118: 0 | AE118: 0 | AF118: 0 | AG118: 0 | AH118: 0 | AI118: 0 | AJ118: 0 | AK118: 0 | AL118: 0 | AM118: 0 | AN118: 0 | AO118: 0 | AP118: 0 | AQ118: 0 | AR118: 0 | AS118: 0 | AT118: 0 | AU118: 0 | AV118: 0 | AW118: 0 | AX118: 0 | AY118: 0 | AZ118: 0
D119: ='Efficiency Levels'!C67 -> EL4 | E119: ='Efficiency Levels'!D67 -> 16067.33641 | H119: =H107 -> 0 | I119: 0 | J119: 0 | K119: 0 | L119: 0 | M119: 0 | N119: 0 | O119: 0 | P119: 0 | Q119: 0 | R119: 0 | S119: 0 | T119: 0 | U119: 0 | V119: 0 | W119: 0 | X119: 0 | Y119: 0 | Z119: 0 | AA119: 0 | AB119: 0.1666666667 | AC119: 0.1666666667 | AD119: 0.1666666667 | AE119: 0.1666666667 | AF119: 0.1666666667 | AG119: 0.1666666667 | AH119: 0.1666666667 | AI119: 0.1666666667 | AJ119: 0.1666666667 | AK119: 0.1666666667 | AL119: 0.1666666667 | AM119: 0.1666666667 | AN119: 0.1666666667 | AO119: 0.1666666667 | AP119: 0.1666666667 | AQ119: 0.1666666667 | AR119: 0.1666666667 | AS119: 0.1666666667 | AT119: 0.1666666667 | AU119: 0.1666666667 | AV119: 0.1666666667 | AW119: 0.1666666667 | AX119: 0.1666666667 | AY119: 0.1666666667 | AZ119: 0.1666666667
D120: ='Efficiency Levels'!C68 -> EL5 | E120: ='Efficiency Levels'!D68 -> 0 | H120: =H108 -> 0 | I120: 0 | J120: 0 | K120: 0 | L120: 0 | M120: 0 | N120: 0 | O120: 0 | P120: 0 | Q120: 0 | R120: 0 | S120: 0 | T120: 0 | U120: 0 | V120: 0 | W120: 0 | X120: 0 | Y120: 0 | Z120: 0 | AA120: 0 | AB120: 0 | AC120: 0 | AD120: 0 | AE120: 0 | AF120: 0 | AG120: 0 | AH120: 0 | AI120: 0 | AJ120: 0 | AK120: 0 | AL120: 0 | AM120: 0 | AN120: 0 | AO120: 0 | AP120: 0 | AQ120: 0 | AR120: 0 | AS120: 0 | AT120: 0 | AU120: 0 | AV120: 0 | AW120: 0 | AX120: 0 | AY120: 0 | AZ120: 0
D121: ='Efficiency Levels'!C69 -> EL6 | E121: ='Efficiency Levels'!D69 -> 0 | H121: =H109 -> 0 | I121: 0 | J121: 0 | K121: 0 | L121: 0 | M121: 0 | N121: 0 | O121: 0 | P121: 0 | Q121: 0 | R121: 0 | S121: 0 | T121: 0 | U121: 0 | V121: 0 | W121: 0 | X121: 0 | Y121: 0 | Z121: 0 | AA121: 0 | AB121: 0 | AC121: 0 | AD121: 0 | AE121: 0 | AF121: 0 | AG121: 0 | AH121: 0 | AI121: 0 | AJ121: 0 | AK121: 0 | AL121: 0 | AM121: 0 | AN121: 0 | AO121: 0 | AP121: 0 | AQ121: 0 | AR121: 0 | AS121: 0 | AT121: 0 | AU121: 0 | AV121: 0 | AW121: 0 | AX121: 0 | AY121: 0 | AZ121: 0
D122: ='Efficiency Levels'!C70 -> EL7 | E122: ='Efficiency Levels'!D70 -> 0 | H122: =H110 -> 0 | I122: 0 | J122: 0 | K122: 0 | L122: 0 | M122: 0 | N122: 0 | O122: 0 | P122: 0 | Q122: 0 | R122: 0 | S122: 0 | T122: 0 | U122: 0 | V122: 0 | W122: 0 | X122: 0 | Y122: 0 | Z122: 0 | AA122: 0 | AB122: 0 | AC122: 0 | AD122: 0 | AE122: 0 | AF122: 0 | AG122: 0 | AH122: 0 | AI122: 0 | AJ122: 0 | AK122: 0 | AL122: 0 | AM122: 0 | AN122: 0 | AO122: 0 | AP122: 0 | AQ122: 0 | AR122: 0 | AS122: 0 | AT122: 0 | AU122: 0 | AV122: 0 | AW122: 0 | AX122: 0 | AY122: 0 | AZ122: 0
D123: TOTAL | H123: =SUM(H115:H122) -> 1 | I123: =SUM(I115:I122) -> 1 | J123: 1 | K123: 1 | L123: 1 | M123: 1 | N123: 1 | O123: 1 | P123: 1 | Q123: 1 | R123: 1 | S123: 1 | T123: 1 | U123: 1 | V123: 1 | W123: 1 | X123: 1 | Y123: 1 | Z123: 1 | AA123: 1 | AB123: 1 | AC123: 1 | AD123: 1 | AE123: 1 | AF123: 1 | AG123: 1 | AH123: 1 | AI123: 1 | AJ123: 1 | AK123: 1 | AL123: 1 | AM123: 1 | AN123: 1 | AO123: 1 | AP123: 1 | AQ123: 1 | AR123: 1 | AS123: 1 | AT123: 1 | AU123: 1 | AV123: 1 | AW123: 1 | AX123: 1 | AY123: 1 | AZ123: 1
D125: Sources | E125: DOE Automatic Commercial Ice Makers 2014, Notice of Proposed Rulemaking (NOPR) Technical Support Document Chapter 10, Table 10.2.2 Base Case Shipment Weighted Market Shares by Efficiency Level (page 10-3); TSL 3 is proposed in the NOPR. TSL 3 corresponds to different EL's for different product classes
D129: =CONCATENATE('Efficiency Levels'!$C77," - ",'Efficiency Levels'!$D77) -> PC5 - Ice Making Head-Air Cooled-Small-Batch
D131: PRE-Case | F131: Static Distribution
D132: Efficiency Level | E132: EL (kWh/day) | F132: 2006 | H132: 1990 | I132: =H132+1 -> 1991 | J132: =I132+1 -> 1992 | K132: =J132+1 -> 1993 | L132: =K132+1 -> 1994 | M132: =L132+1 -> 1995 | N132: =M132+1 -> 1996 | O132: =N132+1 -> 1997 | P132: =O132+1 -> 1998 | Q132: =P132+1 -> 1999 | R132: =Q132+1 -> 2000 | S132: =R132+1 -> 2001 | T132: =S132+1 -> 2002 | U132: =T132+1 -> 2003 | V132: =U132+1 -> 2004 | W132: =V132+1 -> 2005 | X132: =W132+1 -> 2006 | Y132: =X132+1 -> 2007 | Z132: =Y132+1 -> 2008 | AA132: =Z132+1 -> 2009 | AB132: =AA132+1 -> 2010 | AC132: =AB132+1 -> 2011 | AD132: =AC132+1 -> 2012 | AE132: =AD132+1 -> 2013 | AF132: =AE132+1 -> 2014 | AG132: =AF132+1 -> 2015 | AH132: =AG132+1 -> 2016 | AI132: =AH132+1 -> 2017 | AJ132: =AI132+1 -> 2018 | AK132: =AJ132+1 -> 2019 | AL132: =AK132+1 -> 2020 | AM132: =AL132+1 -> 2021 | AN132: =AM132+1 -> 2022 | AO132: =AN132+1 -> 2023 | AP132: =AO132+1 -> 2024 | AQ132: =AP132+1 -> 2025 | AR132: =AQ132+1 -> 2026 | AS132: =AR132+1 -> 2027 | AT132: =AS132+1 -> 2028 | AU132: =AT132+1 -> 2029 | AV132: =AU132+1 -> 2030 | AW132: =AV132+1 -> 2031 | AX132: =AW132+1 -> 2032 | AY132: =AX132+1 -> 2033 | AZ132: =AY132+1 -> 2034
D133: ='Efficiency Levels'!C80 -> EL0 | E133: ='Efficiency Levels'!D80 -> 7804.871048 | F133: 0 | H133: 1 | I133: 1 | J133: 1 | K133: 1 | L133: 1 | M133: 1 | N133: 1 | O133: 1 | P133: 1 | Q133: 1 | R133: 1 | S133: 1 | T133: 1 | U133: 1 | V133: 1 | W133: 1 | X133: 1 | Y133: 1 | Z133: 1 | AA133: 1 | AB133: =$F133 -> 0 | AC133: 0 | AD133: 0 | AE133: 0 | AF133: 0 | AG133: 0 | AH133: 0 | AI133: 0 | AJ133: 0 | AK133: 0 | AL133: 0 | AM133: 0 | AN133: 0 | AO133: 0 | AP133: 0 | AQ133: 0 | AR133: 0 | AS133: 0 | AT133: 0 | AU133: 0 | AV133: 0 | AW133: 0 | AX133: 0 | AY133: 0 | AZ133: 0
D134: ='Efficiency Levels'!C81 -> EL1 | E134: ='Efficiency Levels'!D81 -> 4226.7 | F134: 0.3703703704 | H134: 0 | I134: 0 | J134: 0 | K134: 0 | L134: 0 | M134: 0 | N134: 0 | O134: 0 | P134: 0 | Q134: 0 | R134: 0 | S134: 0 | T134: 0 | U134: 0 | V134: 0 | W134: 0 | X134: 0 | Y134: 0 | Z134: 0 | AA134: 0 | AB134: 0.3703703704 | AC134: 0.3703703704 | AD134: 0.3703703704 | AE134: 0.3703703704 | AF134: 0.3703703704 | AG134: 0.3703703704 | AH134: 0.3703703704 | AI134: 0.3703703704 | AJ134: 0.3703703704 | AK134: 0.3703703704 | AL134: 0.3703703704 | AM134: 0.3703703704 | AN134: 0.3703703704 | AO134: 0.3703703704 | AP134: 0.3703703704 | AQ134: 0.3703703704 | AR134: 0.3703703704 | AS134: 0.3703703704 | AT134: 0.3703703704 | AU134: 0.3703703704 | AV134: 0.3703703704 | AW134: 0.3703703704 | AX134: 0.3703703704 | AY134: 0.3703703704 | AZ134: 0.3703703704
D135: ='Efficiency Levels'!C82 -> EL2 | E135: ='Efficiency Levels'!D82 -> 3806.22 | F135: 0.3148148148 | H135: 0 | I135: 0 | J135: 0 | K135: 0 | L135: 0 | M135: 0 | N135: 0 | O135: 0 | P135: 0 | Q135: 0 | R135: 0 | S135: 0 | T135: 0 | U135: 0 | V135: 0 | W135: 0 | X135: 0 | Y135: 0 | Z135: 0 | AA135: 0 | AB135: 0.3148148148 | AC135: 0.3148148148 | AD135: 0.3148148148 | AE135: 0.3148148148 | AF135: 0.3148148148 | AG135: 0.3148148148 | AH135: 0.3148148148 | AI135: 0.3148148148 | AJ135: 0.3148148148 | AK135: 0.3148148148 | AL135: 0.3148148148 | AM135: 0.3148148148 | AN135: 0.3148148148 | AO135: 0.3148148148 | AP135: 0.3148148148 | AQ135: 0.3148148148 | AR135: 0.3148148148 | AS135: 0.3148148148 | AT135: 0.3148148148 | AU135: 0.3148148148 | AV135: 0.3148148148 | AW135: 0.3148148148 | AX135: 0.3148148148 | AY135: 0.3148148148 | AZ135: 0.3148148148
D136: ='Efficiency Levels'!C83 -> EL3 | E136: ='Efficiency Levels'!D83 -> 3595.98 | F136: 0.2592592593 | H136: 0 | I136: 0 | J136: 0 | K136: 0 | L136: 0 | M136: 0 | N136: 0 | O136: 0 | P136: 0 | Q136: 0 | R136: 0 | S136: 0 | T136: 0 | U136: 0 | V136: 0 | W136: 0 | X136: 0 | Y136: 0 | Z136: 0 | AA136: 0 | AB136: 0.2592592593 | AC136: 0.2592592593 | AD136: 0.2592592593 | AE136: 0.2592592593 | AF136: 0.2592592593 | AG136: 0.2592592593 | AH136: 0.2592592593 | AI136: 0.2592592593 | AJ136: 0.2592592593 | AK136: 0.2592592593 | AL136: 0.2592592593 | AM136: 0.2592592593 | AN136: 0.2592592593 | AO136: 0.2592592593 | AP136: 0.2592592593 | AQ136: 0.2592592593 | AR136: 0.2592592593 | AS136: 0.2592592593 | AT136: 0.2592592593 | AU136: 0.2592592593 | AV136: 0.2592592593 | AW136: 0.2592592593 | AX136: 0.2592592593 | AY136: 0.2592592593 | AZ136: 0.2592592593
D137: ='Efficiency Levels'!C84 -> EL4 | E137: ='Efficiency Levels'!D84 -> 3385.74 | F137: 0.05555555556 | H137: 0 | I137: 0 | J137: 0 | K137: 0 | L137: 0 | M137: 0 | N137: 0 | O137: 0 | P137: 0 | Q137: 0 | R137: 0 | S137: 0 | T137: 0 | U137: 0 | V137: 0 | W137: 0 | X137: 0 | Y137: 0 | Z137: 0 | AA137: 0 | AB137: 0.05555555556 | AC137: 0.05555555556 | AD137: 0.05555555556 | AE137: 0.05555555556 | AF137: 0.05555555556 | AG137: 0.05555555556 | AH137: 0.05555555556 | AI137: 0.05555555556 | AJ137: 0.05555555556 | AK137: 0.05555555556 | AL137: 0.05555555556 | AM137: 0.05555555556 | AN137: 0.05555555556 | AO137: 0.05555555556 | AP137: 0.05555555556 | AQ137: 0.05555555556 | AR137: 0.05555555556 | AS137: 0.05555555556 | AT137: 0.05555555556 | AU137: 0.05555555556 | AV137: 0.05555555556 | AW137: 0.05555555556 | AX137: 0.05555555556 | AY137: 0.05555555556 | AZ137: 0.05555555556
D138: ='Efficiency Levels'!C85 -> EL5 | E138: ='Efficiency Levels'!D85 -> 3175.5 | F138: 0 | H138: 0 | I138: 0 | J138: 0 | K138: 0 | L138: 0 | M138: 0 | N138: 0 | O138: 0 | P138: 0 | Q138: 0 | R138: 0 | S138: 0 | T138: 0 | U138: 0 | V138: 0 | W138: 0 | X138: 0 | Y138: 0 | Z138: 0 | AA138: 0 | AB138: 0 | AC138: 0 | AD138: 0 | AE138: 0 | AF138: 0 | AG138: 0 | AH138: 0 | AI138: 0 | AJ138: 0 | AK138: 0 | AL138: 0 | AM138: 0 | AN138: 0 | AO138: 0 | AP138: 0 | AQ138: 0 | AR138: 0 | AS138: 0 | AT138: 0 | AU138: 0 | AV138: 0 | AW138: 0 | AX138: 0 | AY138: 0 | AZ138: 0
D139: ='Efficiency Levels'!C86 -> EL6 | E139: ='Efficiency Levels'!D86 -> 2965.26 | F139: 0 | H139: 0 | I139: 0 | J139: 0 | K139: 0 | L139: 0 | M139: 0 | N139: 0 | O139: 0 | P139: 0 | Q139: 0 | R139: 0 | S139: 0 | T139: 0 | U139: 0 | V139: 0 | W139: 0 | X139: 0 | Y139: 0 | Z139: 0 | AA139: 0 | AB139: =$F139 -> 0 | AC139: 0 | AD139: 0 | AE139: 0 | AF139: 0 | AG139: 0 | AH139: 0 | AI139: 0 | AJ139: 0 | AK139: 0 | AL139: 0 | AM139: 0 | AN139: 0 | AO139: 0 | AP139: 0 | AQ139: 0 | AR139: 0 | AS139: 0 | AT139: 0 | AU139: 0 | AV139: 0 | AW139: 0 | AX139: 0 | AY139: 0 | AZ139: 0
D140: ='Efficiency Levels'!C87 -> EL7 | E140: ='Efficiency Levels'!D87 -> 2908.777612 | F140: 0 | H140: 0 | I140: 0 | J140: 0 | K140: 0 | L140: 0 | M140: 0 | N140: 0 | O140: 0 | P140: 0 | Q140: 0 | R140: 0 | S140: 0 | T140: 0 | U140: 0 | V140: 0 | W140: 0 | X140: 0 | Y140: 0 | Z140: 0 | AA140: 0 | AB140: 0 | AC140: 0 | AD140: 0 | AE140: 0 | AF140: 0 | AG140: 0 | AH140: 0 | AI140: 0 | AJ140: 0 | AK140: 0 | AL140: 0 | AM140: 0 | AN140: 0 | AO140: 0 | AP140: 0 | AQ140: 0 | AR140: 0 | AS140: 0 | AT140: 0 | AU140: 0 | AV140: 0 | AW140: 0 | AX140: 0 | AY140: 0 | AZ140: 0
D141: TOTAL | F141: =SUM(F133:F140) -> 1 | H141: =SUM(H133:H140) -> 1 | I141: 1 | J141: 1 | K141: 1 | L141: 1 | M141: 1 | N141: 1 | O141: 1 | P141: 1 | Q141: 1 | R141: 1 | S141: 1 | T141: 1 | U141: 1 | V141: 1 | W141: 1 | X141: 1 | Y141: 1 | Z141: 1 | AA141: 1 | AB141: 1 | AC141: 1 | AD141: 1 | AE141: 1 | AF141: 1 | AG141: 1 | AH141: 1 | AI141: 1 | AJ141: 1 | AK141: 1 | AL141: 1 | AM141: 1 | AN141: 1 | AO141: 1 | AP141: 1 | AQ141: 1 | AR141: 1 | AS141: 1 | AT141: 1 | AU141: 1 | AV141: 1 | AW141: 1 | AX141: 1 | AY141: 1 | AZ141: 1
D143: POST-Case
D144: Efficiency Level | E144: EL (kWh/day) | H144: 1990 | I144: =H144+1 -> 1991 | J144: =I144+1 -> 1992 | K144: =J144+1 -> 1993 | L144: =K144+1 -> 1994 | M144: =L144+1 -> 1995 | N144: =M144+1 -> 1996 | O144: =N144+1 -> 1997 | P144: =O144+1 -> 1998 | Q144: =P144+1 -> 1999 | R144: =Q144+1 -> 2000 | S144: =R144+1 -> 2001 | T144: =S144+1 -> 2002 | U144: =T144+1 -> 2003 | V144: =U144+1 -> 2004 | W144: =V144+1 -> 2005 | X144: =X132 -> 2006 | Y144: 2007 | Z144: 2008 | AA144: 2009 | AB144: 2010 | AC144: 2011 | AD144: 2012 | AE144: 2013 | AF144: 2014 | AG144: 2015 | AH144: 2016 | AI144: 2017 | AJ144: 2018 | AK144: 2019 | AL144: 2020 | AM144: 2021 | AN144: 2022 | AO144: 2023 | AP144: 2024 | AQ144: 2025 | AR144: 2026 | AS144: 2027 | AT144: 2028 | AU144: 2029 | AV144: 2030 | AW144: 2031 | AX144: 2032 | AY144: 2033 | AZ144: 2034
D145: ='Efficiency Levels'!C80 -> EL0 | E145: ='Efficiency Levels'!D80 -> 7804.871048 | H145: =H133 -> 1 | I145: =I133 -> 1 | J145: 1 | K145: 1 | L145: 1 | M145: 1 | N145: 1 | O145: 1 | P145: 1 | Q145: 1 | R145: 1 | S145: 1 | T145: 1 | U145: 1 | V145: 1 | W145: 1 | X145: 1 | Y145: 1 | Z145: 1 | AA145: 1 | AB145: 0 | AC145: 0 | AD145: 0 | AE145: 0 | AF145: 0 | AG145: 0 | AH145: 0 | AI145: 0 | AJ145: 0 | AK145: 0 | AL145: 0 | AM145: 0 | AN145: 0 | AO145: 0 | AP145: 0 | AQ145: 0 | AR145: 0 | AS145: 0 | AT145: 0 | AU145: 0 | AV145: 0 | AW145: 0 | AX145: 0 | AY145: 0 | AZ145: 0
D146: ='Efficiency Levels'!C81 -> EL1 | E146: ='Efficiency Levels'!D81 -> 4226.7 | H146: =H134 -> 0 | I146: =I134 -> 0 | J146: 0 | K146: 0 | L146: 0 | M146: 0 | N146: 0 | O146: 0 | P146: 0 | Q146: 0 | R146: 0 | S146: 0 | T146: 0 | U146: 0 | V146: 0 | W146: 0 | X146: 0 | Y146: 0 | Z146: 0 | AA146: 0 | AB146: 0.3703703704 | AC146: 0.3703703704 | AD146: 0.3703703704 | AE146: 0.3703703704 | AF146: 0.3703703704 | AG146: 0.3703703704 | AH146: 0.3703703704 | AI146: 0.3703703704 | AJ146: 0 | AK146: 0 | AL146: 0 | AM146: 0 | AN146: 0 | AO146: 0 | AP146: 0 | AQ146: 0 | AR146: 0 | AS146: 0 | AT146: 0 | AU146: 0 | AV146: 0 | AW146: 0 | AX146: 0 | AY146: 0 | AZ146: 0
D147: ='Efficiency Levels'!C82 -> EL2 | E147: ='Efficiency Levels'!D82 -> 3806.22 | H147: =H135 -> 0 | I147: 0 | J147: 0 | K147: 0 | L147: 0 | M147: 0 | N147: 0 | O147: 0 | P147: 0 | Q147: 0 | R147: 0 | S147: 0 | T147: 0 | U147: 0 | V147: 0 | W147: 0 | X147: 0 | Y147: 0 | Z147: 0 | AA147: 0 | AB147: 0.3148148148 | AC147: 0.3148148148 | AD147: 0.3148148148 | AE147: 0.3148148148 | AF147: 0.3148148148 | AG147: 0.3148148148 | AH147: 0.3148148148 | AI147: 0.3148148148 | AJ147: 0 | AK147: 0 | AL147: 0 | AM147: 0 | AN147: 0 | AO147: 0 | AP147: 0 | AQ147: 0 | AR147: 0 | AS147: 0 | AT147: 0 | AU147: 0 | AV147: 0 | AW147: 0 | AX147: 0 | AY147: 0 | AZ147: 0
D148: ='Efficiency Levels'!C83 -> EL3 | E148: ='Efficiency Levels'!D83 -> 3595.98 | H148: =H136 -> 0 | I148: 0 | J148: 0 | K148: 0 | L148: 0 | M148: 0 | N148: 0 | O148: 0 | P148: 0 | Q148: 0 | R148: 0 | S148: 0 | T148: 0 | U148: 0 | V148: 0 | W148: 0 | X148: 0 | Y148: 0 | Z148: 0 | AA148: 0 | AB148: 0.2592592593 | AC148: 0.2592592593 | AD148: 0.2592592593 | AE148: 0.2592592593 | AF148: 0.2592592593 | AG148: 0.2592592593 | AH148: 0.2592592593 | AI148: 0.2592592593 | AJ148: 0 | AK148: 0 | AL148: 0 | AM148: 0 | AN148: 0 | AO148: 0 | AP148: 0 | AQ148: 0 | AR148: 0 | AS148: 0 | AT148: 0 | AU148: 0 | AV148: 0 | AW148: 0 | AX148: 0 | AY148: 0 | AZ148: 0
D149: ='Efficiency Levels'!C84 -> EL4 | E149: ='Efficiency Levels'!D84 -> 3385.74 | H149: =H137 -> 0 | I149: 0 | J149: 0 | K149: 0 | L149: 0 | M149: 0 | N149: 0 | O149: 0 | P149: 0 | Q149: 0 | R149: 0 | S149: 0 | T149: 0 | U149: 0 | V149: 0 | W149: 0 | X149: 0 | Y149: 0 | Z149: 0 | AA149: 0 | AB149: 0.05555555556 | AC149: 0.05555555556 | AD149: 0.05555555556 | AE149: 0.05555555556 | AF149: 0.05555555556 | AG149: 0.05555555556 | AH149: 0.05555555556 | AI149: 0.05555555556 | AJ149: 0 | AK149: 0 | AL149: 0 | AM149: 0 | AN149: 0 | AO149: 0 | AP149: 0 | AQ149: 0 | AR149: 0 | AS149: 0 | AT149: 0 | AU149: 0 | AV149: 0 | AW149: 0 | AX149: 0 | AY149: 0 | AZ149: 0
D150: ='Efficiency Levels'!C85 -> EL5 | E150: ='Efficiency Levels'!D85 -> 3175.5 | H150: =H138 -> 0 | I150: 0 | J150: 0 | K150: 0 | L150: 0 | M150: 0 | N150: 0 | O150: 0 | P150: 0 | Q150: 0 | R150: 0 | S150: 0 | T150: 0 | U150: 0 | V150: 0 | W150: 0 | X150: 0 | Y150: 0 | Z150: 0 | AA150: 0 | AB150: 0 | AC150: 0 | AD150: 0 | AE150: 0 | AF150: 0 | AG150: 0 | AH150: 0 | AI150: 0 | AJ150: 1 | AK150: 1 | AL150: 1 | AM150: 1 | AN150: 1 | AO150: 1 | AP150: 1 | AQ150: 1 | AR150: 1 | AS150: 1 | AT150: 1 | AU150: 1 | AV150: 1 | AW150: 1 | AX150: 1 | AY150: 1 | AZ150: 1
D151: ='Efficiency Levels'!C86 -> EL6 | E151: ='Efficiency Levels'!D86 -> 2965.26 | H151: =H139 -> 0 | I151: 0 | J151: 0 | K151: 0 | L151: 0 | M151: 0 | N151: 0 | O151: 0 | P151: 0 | Q151: 0 | R151: 0 | S151: 0 | T151: 0 | U151: 0 | V151: 0 | W151: 0 | X151: 0 | Y151: 0 | Z151: 0 | AA151: 0 | AB151: 0 | AC151: 0 | AD151: 0 | AE151: 0 | AF151: 0 | AG151: 0 | AH151: 0 | AI151: 0 | AJ151: 0 | AK151: 0 | AL151: 0 | AM151: 0 | AN151: 0 | AO151: 0 | AP151: 0 | AQ151: 0 | AR151: 0 | AS151: 0 | AT151: 0 | AU151: 0 | AV151: 0 | AW151: 0 | AX151: 0 | AY151: 0 | AZ151: 0
D152: ='Efficiency Levels'!C87 -> EL7 | E152: ='Efficiency Levels'!D87 -> 2908.777612 | H152: =H140 -> 0 | I152: 0 | J152: 0 | K152: 0 | L152: 0 | M152: 0 | N152: 0 | O152: 0 | P152: 0 | Q152: 0 | R152: 0 | S152: 0 | T152: 0 | U152: 0 | V152: 0 | W152: 0 | X152: 0 | Y152: 0 | Z152: 0 | AA152: 0 | AB152: 0 | AC152: 0 | AD152: 0 | AE152: 0 | AF152: 0 | AG152: 0 | AH152: 0 | AI152: 0 | AJ152: 0 | AK152: 0 | AL152: 0 | AM152: 0 | AN152: 0 | AO152: 0 | AP152: 0 | AQ152: 0 | AR152: 0 | AS152: 0 | AT152: 0 | AU152: 0 | AV152: 0 | AW152: 0 | AX152: 0 | AY152: 0 | AZ152: 0
D153: TOTAL | H153: =SUM(H145:H152) -> 1 | I153: =SUM(I145:I152) -> 1 | J153: 1 | K153: 1 | L153: 1 | M153: 1 | N153: 1 | O153: 1 | P153: 1 | Q153: 1 | R153: 1 | S153: 1 | T153: 1 | U153: 1 | V153: 1 | W153: 1 | X153: 1 | Y153: 1 | Z153: 1 | AA153: 1 | AB153: 1 | AC153: 1 | AD153: 1 | AE153: 1 | AF153: 1 | AG153: 1 | AH153: 1 | AI153: 1 | AJ153: 1 | AK153: 1 | AL153: 1 | AM153: 1 | AN153: 1 | AO153: 1 | AP153: 1 | AQ153: 1 | AR153: 1 | AS153: 1 | AT153: 1 | AU153: 1 | AV153: 1 | AW153: 1 | AX153: 1 | AY153: 1 | AZ153: 1
D155: Sources | E155: DOE Automatic Commercial Ice Makers 2014, Notice of Proposed Rulemaking (NOPR) Technical Support Document Chapter 10, Table 10.2.2 Base Case Shipment Weighted Market Shares by Efficiency Level (page 10-3); TSL 3 is proposed in the NOPR. TSL 3 corresponds to different EL's for different product classes
D159: =CONCATENATE('Efficiency Levels'!$C94," - ",'Efficiency Levels'!$D94) -> PC6 - Ice Making Head-Air Cooled-Large-Batch-1
D161: PRE-Case | F161: Static Distribution
D162: Efficiency Level | E162: EL (kWh/day) | F162: 2006 | H162: 1990 | I162: =H162+1 -> 1991 | J162: =I162+1 -> 1992 | K162: =J162+1 -> 1993 | L162: =K162+1 -> 1994 | M162: =L162+1 -> 1995 | N162: =M162+1 -> 1996 | O162: =N162+1 -> 1997 | P162: =O162+1 -> 1998 | Q162: =P162+1 -> 1999 | R162: =Q162+1 -> 2000 | S162: =R162+1 -> 2001 | T162: =S162+1 -> 2002 | U162: =T162+1 -> 2003 | V162: =U162+1 -> 2004 | W162: =V162+1 -> 2005 | X162: =W162+1 -> 2006 | Y162: =X162+1 -> 2007 | Z162: =Y162+1 -> 2008 | AA162: =Z162+1 -> 2009 | AB162: =AA162+1 -> 2010 | AC162: =AB162+1 -> 2011 | AD162: =AC162+1 -> 2012 | AE162: =AD162+1 -> 2013 | AF162: =AE162+1 -> 2014 | AG162: =AF162+1 -> 2015 | AH162: =AG162+1 -> 2016 | AI162: =AH162+1 -> 2017 | AJ162: =AI162+1 -> 2018 | AK162: =AJ162+1 -> 2019 | AL162: =AK162+1 -> 2020 | AM162: =AL162+1 -> 2021 | AN162: =AM162+1 -> 2022 | AO162: =AN162+1 -> 2023 | AP162: =AO162+1 -> 2024 | AQ162: =AP162+1 -> 2025 | AR162: =AQ162+1 -> 2026 | AS162: =AR162+1 -> 2027 | AT162: =AS162+1 -> 2028 | AU162: =AT162+1 -> 2029 | AV162: =AU162+1 -> 2030 | AW162: =AV162+1 -> 2031 | AX162: =AW162+1 -> 2032 | AY162: =AX162+1 -> 2033 | AZ162: =AY162+1 -> 2034
D163: ='Efficiency Levels'!C97 -> EL0 | E163: ='Efficiency Levels'!D97 -> 7804.871048 | F163: 0 | H163: 1 | I163: 1 | J163: 1 | K163: 1 | L163: 1 | M163: 1 | N163: 1 | O163: 1 | P163: 1 | Q163: 1 | R163: 1 | S163: 1 | T163: 1 | U163: 1 | V163: 1 | W163: 1 | X163: 1 | Y163: 1 | Z163: 1 | AA163: 1 | AB163: =$F163 -> 0 | AC163: 0 | AD163: 0 | AE163: 0 | AF163: 0 | AG163: 0 | AH163: 0 | AI163: 0 | AJ163: 0 | AK163: 0 | AL163: 0 | AM163: 0 | AN163: 0 | AO163: 0 | AP163: 0 | AQ163: 0 | AR163: 0 | AS163: 0 | AT163: 0 | AU163: 0 | AV163: 0 | AW163: 0 | AX163: 0 | AY163: 0 | AZ163: 0
D164: ='Efficiency Levels'!C98 -> EL1 | E164: ='Efficiency Levels'!D98 -> 8796.5 | F164: 0.4146341463 | H164: 0 | I164: 0 | J164: 0 | K164: 0 | L164: 0 | M164: 0 | N164: 0 | O164: 0 | P164: 0 | Q164: 0 | R164: 0 | S164: 0 | T164: 0 | U164: 0 | V164: 0 | W164: 0 | X164: 0 | Y164: 0 | Z164: 0 | AA164: 0 | AB164: 0.4146341463 | AC164: 0.4146341463 | AD164: 0.4146341463 | AE164: 0.4146341463 | AF164: 0.4146341463 | AG164: 0.4146341463 | AH164: 0.4146341463 | AI164: 0.4146341463 | AJ164: 0.4146341463 | AK164: 0.4146341463 | AL164: 0.4146341463 | AM164: 0.4146341463 | AN164: 0.4146341463 | AO164: 0.4146341463 | AP164: 0.4146341463 | AQ164: 0.4146341463 | AR164: 0.4146341463 | AS164: 0.4146341463 | AT164: 0.4146341463 | AU164: 0.4146341463 | AV164: 0.4146341463 | AW164: 0.4146341463 | AX164: 0.4146341463 | AY164: 0.4146341463 | AZ164: 0.4146341463
D165: ='Efficiency Levels'!C99 -> EL2 | E165: ='Efficiency Levels'!D99 -> 7919.04 | F165: 0.4390243902 | H165: 0 | I165: 0 | J165: 0 | K165: 0 | L165: 0 | M165: 0 | N165: 0 | O165: 0 | P165: 0 | Q165: 0 | R165: 0 | S165: 0 | T165: 0 | U165: 0 | V165: 0 | W165: 0 | X165: 0 | Y165: 0 | Z165: 0 | AA165: 0 | AB165: 0.4390243902 | AC165: 0.4390243902 | AD165: 0.4390243902 | AE165: 0.4390243902 | AF165: 0.4390243902 | AG165: 0.4390243902 | AH165: 0.4390243902 | AI165: 0.4390243902 | AJ165: 0.4390243902 | AK165: 0.4390243902 | AL165: 0.4390243902 | AM165: 0.4390243902 | AN165: 0.4390243902 | AO165: 0.4390243902 | AP165: 0.4390243902 | AQ165: 0.4390243902 | AR165: 0.4390243902 | AS165: 0.4390243902 | AT165: 0.4390243902 | AU165: 0.4390243902 | AV165: 0.4390243902 | AW165: 0.4390243902 | AX165: 0.4390243902 | AY165: 0.4390243902 | AZ165: 0.4390243902
D166: ='Efficiency Levels'!C100 -> EL3 | E166: ='Efficiency Levels'!D100 -> 7480.31 | F166: 0.07317073171 | H166: 0 | I166: 0 | J166: 0 | K166: 0 | L166: 0 | M166: 0 | N166: 0 | O166: 0 | P166: 0 | Q166: 0 | R166: 0 | S166: 0 | T166: 0 | U166: 0 | V166: 0 | W166: 0 | X166: 0 | Y166: 0 | Z166: 0 | AA166: 0 | AB166: 0.07317073171 | AC166: 0.07317073171 | AD166: 0.07317073171 | AE166: 0.07317073171 | AF166: 0.07317073171 | AG166: 0.07317073171 | AH166: 0.07317073171 | AI166: 0.07317073171 | AJ166: 0.07317073171 | AK166: 0.07317073171 | AL166: 0.07317073171 | AM166: 0.07317073171 | AN166: 0.07317073171 | AO166: 0.07317073171 | AP166: 0.07317073171 | AQ166: 0.07317073171 | AR166: 0.07317073171 | AS166: 0.07317073171 | AT166: 0.07317073171 | AU166: 0.07317073171 | AV166: 0.07317073171 | AW166: 0.07317073171 | AX166: 0.07317073171 | AY166: 0.07317073171 | AZ166: 0.07317073171
D167: ='Efficiency Levels'!C101 -> EL4 | E167: ='Efficiency Levels'!D101 -> 7041.58 | F167: 0.07317073171 | H167: 0 | I167: 0 | J167: 0 | K167: 0 | L167: 0 | M167: 0 | N167: 0 | O167: 0 | P167: 0 | Q167: 0 | R167: 0 | S167: 0 | T167: 0 | U167: 0 | V167: 0 | W167: 0 | X167: 0 | Y167: 0 | Z167: 0 | AA167: 0 | AB167: 0.07317073171 | AC167: 0.07317073171 | AD167: 0.07317073171 | AE167: 0.07317073171 | AF167: 0.07317073171 | AG167: 0.07317073171 | AH167: 0.07317073171 | AI167: 0.07317073171 | AJ167: 0.07317073171 | AK167: 0.07317073171 | AL167: 0.07317073171 | AM167: 0.07317073171 | AN167: 0.07317073171 | AO167: 0.07317073171 | AP167: 0.07317073171 | AQ167: 0.07317073171 | AR167: 0.07317073171 | AS167: 0.07317073171 | AT167: 0.07317073171 | AU167: 0.07317073171 | AV167: 0.07317073171 | AW167: 0.07317073171 | AX167: 0.07317073171 | AY167: 0.07317073171 | AZ167: 0.07317073171
D168: ='Efficiency Levels'!C102 -> EL5 | E168: ='Efficiency Levels'!D102 -> 6602.85 | F168: 0 | H168: 0 | I168: 0 | J168: 0 | K168: 0 | L168: 0 | M168: 0 | N168: 0 | O168: 0 | P168: 0 | Q168: 0 | R168: 0 | S168: 0 | T168: 0 | U168: 0 | V168: 0 | W168: 0 | X168: 0 | Y168: 0 | Z168: 0 | AA168: 0 | AB168: 0 | AC168: 0 | AD168: 0 | AE168: 0 | AF168: 0 | AG168: 0 | AH168: 0 | AI168: 0 | AJ168: 0 | AK168: 0 | AL168: 0 | AM168: 0 | AN168: 0 | AO168: 0 | AP168: 0 | AQ168: 0 | AR168: 0 | AS168: 0 | AT168: 0 | AU168: 0 | AV168: 0 | AW168: 0 | AX168: 0 | AY168: 0 | AZ168: 0
D169: ='Efficiency Levels'!C103 -> EL6 | E169: ='Efficiency Levels'!D103 -> 6213.115228 | F169: 0 | H169: 0 | I169: 0 | J169: 0 | K169: 0 | L169: 0 | M169: 0 | N169: 0 | O169: 0 | P169: 0 | Q169: 0 | R169: 0 | S169: 0 | T169: 0 | U169: 0 | V169: 0 | W169: 0 | X169: 0 | Y169: 0 | Z169: 0 | AA169: 0 | AB169: =$F169 -> 0 | AC169: 0 | AD169: 0 | AE169: 0 | AF169: 0 | AG169: 0 | AH169: 0 | AI169: 0 | AJ169: 0 | AK169: 0 | AL169: 0 | AM169: 0 | AN169: 0 | AO169: 0 | AP169: 0 | AQ169: 0 | AR169: 0 | AS169: 0 | AT169: 0 | AU169: 0 | AV169: 0 | AW169: 0 | AX169: 0 | AY169: 0 | AZ169: 0
D170: ='Efficiency Levels'!C104 -> EL7 | E170: ='Efficiency Levels'!D104 -> 0 | F170: 0 | H170: 0 | I170: 0 | J170: 0 | K170: 0 | L170: 0 | M170: 0 | N170: 0 | O170: 0 | P170: 0 | Q170: 0 | R170: 0 | S170: 0 | T170: 0 | U170: 0 | V170: 0 | W170: 0 | X170: 0 | Y170: 0 | Z170: 0 | AA170: 0 | AB170: 0 | AC170: 0 | AD170: 0 | AE170: 0 | AF170: 0 | AG170: 0 | AH170: 0 | AI170: 0 | AJ170: 0 | AK170: 0 | AL170: 0 | AM170: 0 | AN170: 0 | AO170: 0 | AP170: 0 | AQ170: 0 | AR170: 0 | AS170: 0 | AT170: 0 | AU170: 0 | AV170: 0 | AW170: 0 | AX170: 0 | AY170: 0 | AZ170: 0
D171: TOTAL | F171: =SUM(F163:F170) -> 1 | H171: =SUM(H163:H170) -> 1 | I171: 1 | J171: 1 | K171: 1 | L171: 1 | M171: 1 | N171: 1 | O171: 1 | P171: 1 | Q171: 1 | R171: 1 | S171: 1 | T171: 1 | U171: 1 | V171: 1 | W171: 1 | X171: 1 | Y171: 1 | Z171: 1 | AA171: 1 | AB171: 1 | AC171: 1 | AD171: 1 | AE171: 1 | AF171: 1 | AG171: 1 | AH171: 1 | AI171: 1 | AJ171: 1 | AK171: 1 | AL171: 1 | AM171: 1 | AN171: 1 | AO171: 1 | AP171: 1 | AQ171: 1 | AR171: 1 | AS171: 1 | AT171: 1 | AU171: 1 | AV171: 1 | AW171: 1 | AX171: 1 | AY171: 1 | AZ171: 1
D173: POST-Case
D174: Efficiency Level | E174: EL (kWh/day) | H174: 1990 | I174: =H174+1 -> 1991 | J174: =I174+1 -> 1992 | K174: =J174+1 -> 1993 | L174: =K174+1 -> 1994 | M174: =L174+1 -> 1995 | N174: =M174+1 -> 1996 | O174: =N174+1 -> 1997 | P174: =O174+1 -> 1998 | Q174: =P174+1 -> 1999 | R174: =Q174+1 -> 2000 | S174: =R174+1 -> 2001 | T174: =S174+1 -> 2002 | U174: =T174+1 -> 2003 | V174: =U174+1 -> 2004 | W174: =V174+1 -> 2005 | X174: =X162 -> 2006 | Y174: 2007 | Z174: 2008 | AA174: 2009 | AB174: 2010 | AC174: 2011 | AD174: 2012 | AE174: 2013 | AF174: 2014 | AG174: 2015 | AH174: 2016 | AI174: 2017 | AJ174: 2018 | AK174: 2019 | AL174: 2020 | AM174: 2021 | AN174: 2022 | AO174: 2023 | AP174: 2024 | AQ174: 2025 | AR174: 2026 | AS174: 2027 | AT174: 2028 | AU174: 2029 | AV174: 2030 | AW174: 2031 | AX174: 2032 | AY174: 2033 | AZ174: 2034
D175: ='Efficiency Levels'!C97 -> EL0 | E175: ='Efficiency Levels'!D97 -> 7804.871048 | H175: =H163 -> 1 | I175: =I163 -> 1 | J175: 1 | K175: 1 | L175: 1 | M175: 1 | N175: 1 | O175: 1 | P175: 1 | Q175: 1 | R175: 1 | S175: 1 | T175: 1 | U175: 1 | V175: 1 | W175: 1 | X175: 1 | Y175: 1 | Z175: 1 | AA175: 1 | AB175: 0 | AC175: 0 | AD175: 0 | AE175: 0 | AF175: 0 | AG175: 0 | AH175: 0 | AI175: 0 | AJ175: 0 | AK175: 0 | AL175: 0 | AM175: 0 | AN175: 0 | AO175: 0 | AP175: 0 | AQ175: 0 | AR175: 0 | AS175: 0 | AT175: 0 | AU175: 0 | AV175: 0 | AW175: 0 | AX175: 0 | AY175: 0 | AZ175: 0
D176: ='Efficiency Levels'!C98 -> EL1 | E176: ='Efficiency Levels'!D98 -> 8796.5 | H176: =H164 -> 0 | I176: =I164 -> 0 | J176: 0 | K176: 0 | L176: 0 | M176: 0 | N176: 0 | O176: 0 | P176: 0 | Q176: 0 | R176: 0 | S176: 0 | T176: 0 | U176: 0 | V176: 0 | W176: 0 | X176: 0 | Y176: 0 | Z176: 0 | AA176: 0 | AB176: 0.4146341463 | AC176: 0.4146341463 | AD176: 0.4146341463 | AE176: 0.4146341463 | AF176: 0.4146341463 | AG176: 0.4146341463 | AH176: 0.4146341463 | AI176: 0.4146341463 | AJ176: 0 | AK176: 0 | AL176: 0 | AM176: 0 | AN176: 0 | AO176: 0 | AP176: 0 | AQ176: 0 | AR176: 0 | AS176: 0 | AT176: 0 | AU176: 0 | AV176: 0 | AW176: 0 | AX176: 0 | AY176: 0 | AZ176: 0
D177: ='Efficiency Levels'!C99 -> EL2 | E177: ='Efficiency Levels'!D99 -> 7919.04 | H177: =H165 -> 0 | I177: 0 | J177: 0 | K177: 0 | L177: 0 | M177: 0 | N177: 0 | O177: 0 | P177: 0 | Q177: 0 | R177: 0 | S177: 0 | T177: 0 | U177: 0 | V177: 0 | W177: 0 | X177: 0 | Y177: 0 | Z177: 0 | AA177: 0 | AB177: 0.4390243902 | AC177: 0.4390243902 | AD177: 0.4390243902 | AE177: 0.4390243902 | AF177: 0.4390243902 | AG177: 0.4390243902 | AH177: 0.4390243902 | AI177: 0.4390243902 | AJ177: 0 | AK177: 0 | AL177: 0 | AM177: 0 | AN177: 0 | AO177: 0 | AP177: 0 | AQ177: 0 | AR177: 0 | AS177: 0 | AT177: 0 | AU177: 0 | AV177: 0 | AW177: 0 | AX177: 0 | AY177: 0 | AZ177: 0
D178: ='Efficiency Levels'!C100 -> EL3 | E178: ='Efficiency Levels'!D100 -> 7480.31 | H178: =H166 -> 0 | I178: 0 | J178: 0 | K178: 0 | L178: 0 | M178: 0 | N178: 0 | O178: 0 | P178: 0 | Q178: 0 | R178: 0 | S178: 0 | T178: 0 | U178: 0 | V178: 0 | W178: 0 | X178: 0 | Y178: 0 | Z178: 0 | AA178: 0 | AB178: 0.07317073171 | AC178: 0.07317073171 | AD178: 0.07317073171 | AE178: 0.07317073171 | AF178: 0.07317073171 | AG178: 0.07317073171 | AH178: 0.07317073171 | AI178: 0.07317073171 | AJ178: 0 | AK178: 0 | AL178: 0 | AM178: 0 | AN178: 0 | AO178: 0 | AP178: 0 | AQ178: 0 | AR178: 0 | AS178: 0 | AT178: 0 | AU178: 0 | AV178: 0 | AW178: 0 | AX178: 0 | AY178: 0 | AZ178: 0
D179: ='Efficiency Levels'!C101 -> EL4 | E179: ='Efficiency Levels'!D101 -> 7041.58 | H179: =H167 -> 0 | I179: 0 | J179: 0 | K179: 0 | L179: 0 | M179: 0 | N179: 0 | O179: 0 | P179: 0 | Q179: 0 | R179: 0 | S179: 0 | T179: 0 | U179: 0 | V179: 0 | W179: 0 | X179: 0 | Y179: 0 | Z179: 0 | AA179: 0 | AB179: 0.07317073171 | AC179: 0.07317073171 | AD179: 0.07317073171 | AE179: 0.07317073171 | AF179: 0.07317073171 | AG179: 0.07317073171 | AH179: 0.07317073171 | AI179: 0.07317073171 | AJ179: 0 | AK179: 0 | AL179: 0 | AM179: 0 | AN179: 0 | AO179: 0 | AP179: 0 | AQ179: 0 | AR179: 0 | AS179: 0 | AT179: 0 | AU179: 0 | AV179: 0 | AW179: 0 | AX179: 0 | AY179: 0 | AZ179: 0
D180: ='Efficiency Levels'!C102 -> EL5 | E180: ='Efficiency Levels'!D102 -> 6602.85 | H180: =H168 -> 0 | I180: 0 | J180: 0 | K180: 0 | L180: 0 | M180: 0 | N180: 0 | O180: 0 | P180: 0 | Q180: 0 | R180: 0 | S180: 0 | T180: 0 | U180: 0 | V180: 0 | W180: 0 | X180: 0 | Y180: 0 | Z180: 0 | AA180: 0 | AB180: 0 | AC180: 0 | AD180: 0 | AE180: 0 | AF180: 0 | AG180: 0 | AH180: 0 | AI180: 0 | AJ180: 1 | AK180: 1 | AL180: 1 | AM180: 1 | AN180: 1 | AO180: 1 | AP180: 1 | AQ180: 1 | AR180: 1 | AS180: 1 | AT180: 1 | AU180: 1 | AV180: 1 | AW180: 1 | AX180: 1 | AY180: 1 | AZ180: 1
D181: ='Efficiency Levels'!C103 -> EL6 | E181: ='Efficiency Levels'!D103 -> 6213.115228 | H181: =H169 -> 0 | I181: 0 | J181: 0 | K181: 0 | L181: 0 | M181: 0 | N181: 0 | O181: 0 | P181: 0 | Q181: 0 | R181: 0 | S181: 0 | T181: 0 | U181: 0 | V181: 0 | W181: 0 | X181: 0 | Y181: 0 | Z181: 0 | AA181: 0 | AB181: 0 | AC181: 0 | AD181: 0 | AE181: 0 | AF181: 0 | AG181: 0 | AH181: 0 | AI181: 0 | AJ181: 0 | AK181: 0 | AL181: 0 | AM181: 0 | AN181: 0 | AO181: 0 | AP181: 0 | AQ181: 0 | AR181: 0 | AS181: 0 | AT181: 0 | AU181: 0 | AV181: 0 | AW181: 0 | AX181: 0 | AY181: 0 | AZ181: 0
D182: ='Efficiency Levels'!C104 -> EL7 | E182: ='Efficiency Levels'!D104 -> 0 | H182: =H170 -> 0 | I182: 0 | J182: 0 | K182: 0 | L182: 0 | M182: 0 | N182: 0 | O182: 0 | P182: 0 | Q182: 0 | R182: 0 | S182: 0 | T182: 0 | U182: 0 | V182: 0 | W182: 0 | X182: 0 | Y182: 0 | Z182: 0 | AA182: 0 | AB182: 0 | AC182: 0 | AD182: 0 | AE182: 0 | AF182: 0 | AG182: 0 | AH182: 0 | AI182: 0 | AJ182: 0 | AK182: 0 | AL182: 0 | AM182: 0 | AN182: 0 | AO182: 0 | AP182: 0 | AQ182: 0 | AR182: 0 | AS182: 0 | AT182: 0 | AU182: 0 | AV182: 0 | AW182: 0 | AX182: 0 | AY182: 0 | AZ182: 0
D183: TOTAL | H183: =SUM(H175:H182) -> 1 | I183: =SUM(I175:I182) -> 1 | J183: 1 | K183: 1 | L183: 1 | M183: 1 | N183: 1 | O183: 1 | P183: 1 | Q183: 1 | R183: 1 | S183: 1 | T183: 1 | U183: 1 | V183: 1 | W183: 1 | X183: 1 | Y183: 1 | Z183: 1 | AA183: 1 | AB183: 1 | AC183: 1 | AD183: 1 | AE183: 1 | AF183: 1 | AG183: 1 | AH183: 1 | AI183: 1 | AJ183: 1 | AK183: 1 | AL183: 1 | AM183: 1 | AN183: 1 | AO183: 1 | AP183: 1 | AQ183: 1 | AR183: 1 | AS183: 1 | AT183: 1 | AU183: 1 | AV183: 1 | AW183: 1 | AX183: 1 | AY183: 1 | AZ183: 1
D185: Sources | E185: DOE Automatic Commercial Ice Makers 2014, Notice of Proposed Rulemaking (NOPR) Technical Support Document Chapter 10, Table 10.2.2 Base Case Shipment Weighted Market Shares by Efficiency Level (page 10-3); TSL 3 is proposed in the NOPR. TSL 3 corresponds to different EL's for different product classes
D189: =CONCATENATE('Efficiency Levels'!$C111," - ",'Efficiency Levels'!$D111) -> PC7 - Ice Making Head-Air Cooled-Large-Batch-2
D191: PRE-Case | F191: Static Distribution
D192: Efficiency Level | E192: EL (kWh/day) | F192: 2006 | H192: 1990 | I192: =H192+1 -> 1991 | J192: =I192+1 -> 1992 | K192: =J192+1 -> 1993 | L192: =K192+1 -> 1994 | M192: =L192+1 -> 1995 | N192: =M192+1 -> 1996 | O192: =N192+1 -> 1997 | P192: =O192+1 -> 1998 | Q192: =P192+1 -> 1999 | R192: =Q192+1 -> 2000 | S192: =R192+1 -> 2001 | T192: =S192+1 -> 2002 | U192: =T192+1 -> 2003 | V192: =U192+1 -> 2004 | W192: =V192+1 -> 2005 | X192: =W192+1 -> 2006 | Y192: =X192+1 -> 2007 | Z192: =Y192+1 -> 2008 | AA192: =Z192+1 -> 2009 | AB192: =AA192+1 -> 2010 | AC192: =AB192+1 -> 2011 | AD192: =AC192+1 -> 2012 | AE192: =AD192+1 -> 2013 | AF192: =AE192+1 -> 2014 | AG192: =AF192+1 -> 2015 | AH192: =AG192+1 -> 2016 | AI192: =AH192+1 -> 2017 | AJ192: =AI192+1 -> 2018 | AK192: =AJ192+1 -> 2019 | AL192: =AK192+1 -> 2020 | AM192: =AL192+1 -> 2021 | AN192: =AM192+1 -> 2022 | AO192: =AN192+1 -> 2023 | AP192: =AO192+1 -> 2024 | AQ192: =AP192+1 -> 2025 | AR192: =AQ192+1 -> 2026 | AS192: =AR192+1 -> 2027 | AT192: =AS192+1 -> 2028 | AU192: =AT192+1 -> 2029 | AV192: =AU192+1 -> 2030 | AW192: =AV192+1 -> 2031 | AX192: =AW192+1 -> 2032 | AY192: =AX192+1 -> 2033 | AZ192: =AY192+1 -> 2034
D193: ='Efficiency Levels'!C114 -> EL0 | E193: ='Efficiency Levels'!D114 -> 7804.871048 | F193: 0 | H193: 1 | I193: 1 | J193: 1 | K193: 1 | L193: 1 | M193: 1 | N193: 1 | O193: 1 | P193: 1 | Q193: 1 | R193: 1 | S193: 1 | T193: 1 | U193: 1 | V193: 1 | W193: 1 | X193: 1 | Y193: 1 | Z193: 1 | AA193: 1 | AB193: =$F193 -> 0 | AC193: 0 | AD193: 0 | AE193: 0 | AF193: 0 | AG193: 0 | AH193: 0 | AI193: 0 | AJ193: 0 | AK193: 0 | AL193: 0 | AM193: 0 | AN193: 0 | AO193: 0 | AP193: 0 | AQ193: 0 | AR193: 0 | AS193: 0 | AT193: 0 | AU193: 0 | AV193: 0 | AW193: 0 | AX193: 0 | AY193: 0 | AZ193: 0
D194: ='Efficiency Levels'!C115 -> EL1 | E194: ='Efficiency Levels'!D115 -> 14366.4 | F194: 0.3333333333 | H194: 0 | I194: 0 | J194: 0 | K194: 0 | L194: 0 | M194: 0 | N194: 0 | O194: 0 | P194: 0 | Q194: 0 | R194: 0 | S194: 0 | T194: 0 | U194: 0 | V194: 0 | W194: 0 | X194: 0 | Y194: 0 | Z194: 0 | AA194: 0 | AB194: 0.3333333333 | AC194: 0.3333333333 | AD194: 0.3333333333 | AE194: 0.3333333333 | AF194: 0.3333333333 | AG194: 0.3333333333 | AH194: 0.3333333333 | AI194: 0.3333333333 | AJ194: 0.3333333333 | AK194: 0.3333333333 | AL194: 0.3333333333 | AM194: 0.3333333333 | AN194: 0.3333333333 | AO194: 0.3333333333 | AP194: 0.3333333333 | AQ194: 0.3333333333 | AR194: 0.3333333333 | AS194: 0.3333333333 | AT194: 0.3333333333 | AU194: 0.3333333333 | AV194: 0.3333333333 | AW194: 0.3333333333 | AX194: 0.3333333333 | AY194: 0.3333333333 | AZ194: 0.3333333333
D195: ='Efficiency Levels'!C116 -> EL2 | E195: ='Efficiency Levels'!D116 -> 12931.95 | F195: 0.2666666667 | H195: 0 | I195: 0 | J195: 0 | K195: 0 | L195: 0 | M195: 0 | N195: 0 | O195: 0 | P195: 0 | Q195: 0 | R195: 0 | S195: 0 | T195: 0 | U195: 0 | V195: 0 | W195: 0 | X195: 0 | Y195: 0 | Z195: 0 | AA195: 0 | AB195: 0.2666666667 | AC195: 0.2666666667 | AD195: 0.2666666667 | AE195: 0.2666666667 | AF195: 0.2666666667 | AG195: 0.2666666667 | AH195: 0.2666666667 | AI195: 0.2666666667 | AJ195: 0.2666666667 | AK195: 0.2666666667 | AL195: 0.2666666667 | AM195: 0.2666666667 | AN195: 0.2666666667 | AO195: 0.2666666667 | AP195: 0.2666666667 | AQ195: 0.2666666667 | AR195: 0.2666666667 | AS195: 0.2666666667 | AT195: 0.2666666667 | AU195: 0.2666666667 | AV195: 0.2666666667 | AW195: 0.2666666667 | AX195: 0.2666666667 | AY195: 0.2666666667 | AZ195: 0.2666666667
D196: ='Efficiency Levels'!C117 -> EL3 | E196: ='Efficiency Levels'!D117 -> 12214.725 | F196: 0.2666666667 | H196: 0 | I196: 0 | J196: 0 | K196: 0 | L196: 0 | M196: 0 | N196: 0 | O196: 0 | P196: 0 | Q196: 0 | R196: 0 | S196: 0 | T196: 0 | U196: 0 | V196: 0 | W196: 0 | X196: 0 | Y196: 0 | Z196: 0 | AA196: 0 | AB196: 0.2666666667 | AC196: 0.2666666667 | AD196: 0.2666666667 | AE196: 0.2666666667 | AF196: 0.2666666667 | AG196: 0.2666666667 | AH196: 0.2666666667 | AI196: 0.2666666667 | AJ196: 0.2666666667 | AK196: 0.2666666667 | AL196: 0.2666666667 | AM196: 0.2666666667 | AN196: 0.2666666667 | AO196: 0.2666666667 | AP196: 0.2666666667 | AQ196: 0.2666666667 | AR196: 0.2666666667 | AS196: 0.2666666667 | AT196: 0.2666666667 | AU196: 0.2666666667 | AV196: 0.2666666667 | AW196: 0.2666666667 | AX196: 0.2666666667 | AY196: 0.2666666667 | AZ196: 0.2666666667
D197: ='Efficiency Levels'!C118 -> EL4 | E197: ='Efficiency Levels'!D118 -> 11497.5 | F197: 0.1333333333 | H197: 0 | I197: 0 | J197: 0 | K197: 0 | L197: 0 | M197: 0 | N197: 0 | O197: 0 | P197: 0 | Q197: 0 | R197: 0 | S197: 0 | T197: 0 | U197: 0 | V197: 0 | W197: 0 | X197: 0 | Y197: 0 | Z197: 0 | AA197: 0 | AB197: 0.1333333333 | AC197: 0.1333333333 | AD197: 0.1333333333 | AE197: 0.1333333333 | AF197: 0.1333333333 | AG197: 0.1333333333 | AH197: 0.1333333333 | AI197: 0.1333333333 | AJ197: 0.1333333333 | AK197: 0.1333333333 | AL197: 0.1333333333 | AM197: 0.1333333333 | AN197: 0.1333333333 | AO197: 0.1333333333 | AP197: 0.1333333333 | AQ197: 0.1333333333 | AR197: 0.1333333333 | AS197: 0.1333333333 | AT197: 0.1333333333 | AU197: 0.1333333333 | AV197: 0.1333333333 | AW197: 0.1333333333 | AX197: 0.1333333333 | AY197: 0.1333333333 | AZ197: 0.1333333333
D198: ='Efficiency Levels'!C119 -> EL5 | E198: ='Efficiency Levels'!D119 -> 0 | F198: 0 | H198: 0 | I198: 0 | J198: 0 | K198: 0 | L198: 0 | M198: 0 | N198: 0 | O198: 0 | P198: 0 | Q198: 0 | R198: 0 | S198: 0 | T198: 0 | U198: 0 | V198: 0 | W198: 0 | X198: 0 | Y198: 0 | Z198: 0 | AA198: 0 | AB198: 0 | AC198: 0 | AD198: 0 | AE198: 0 | AF198: 0 | AG198: 0 | AH198: 0 | AI198: 0 | AJ198: 0 | AK198: 0 | AL198: 0 | AM198: 0 | AN198: 0 | AO198: 0 | AP198: 0 | AQ198: 0 | AR198: 0 | AS198: 0 | AT198: 0 | AU198: 0 | AV198: 0 | AW198: 0 | AX198: 0 | AY198: 0 | AZ198: 0
D199: ='Efficiency Levels'!C120 -> EL6 | E199: ='Efficiency Levels'!D120 -> 0 | F199: 0 | H199: 0 | I199: 0 | J199: 0 | K199: 0 | L199: 0 | M199: 0 | N199: 0 | O199: 0 | P199: 0 | Q199: 0 | R199: 0 | S199: 0 | T199: 0 | U199: 0 | V199: 0 | W199: 0 | X199: 0 | Y199: 0 | Z199: 0 | AA199: 0 | AB199: =$F199 -> 0 | AC199: 0 | AD199: 0 | AE199: 0 | AF199: 0 | AG199: 0 | AH199: 0 | AI199: 0 | AJ199: 0 | AK199: 0 | AL199: 0 | AM199: 0 | AN199: 0 | AO199: 0 | AP199: 0 | AQ199: 0 | AR199: 0 | AS199: 0 | AT199: 0 | AU199: 0 | AV199: 0 | AW199: 0 | AX199: 0 | AY199: 0 | AZ199: 0
D200: ='Efficiency Levels'!C121 -> EL7 | E200: ='Efficiency Levels'!D121 -> 0 | F200: 0 | H200: 0 | I200: 0 | J200: 0 | K200: 0 | L200: 0 | M200: 0 | N200: 0 | O200: 0 | P200: 0 | Q200: 0 | R200: 0 | S200: 0 | T200: 0 | U200: 0 | V200: 0 | W200: 0 | X200: 0 | Y200: 0 | Z200: 0 | AA200: 0 | AB200: 0 | AC200: 0 | AD200: 0 | AE200: 0 | AF200: 0 | AG200: 0 | AH200: 0 | AI200: 0 | AJ200: 0 | AK200: 0 | AL200: 0 | AM200: 0 | AN200: 0 | AO200: 0 | AP200: 0 | AQ200: 0 | AR200: 0 | AS200: 0 | AT200: 0 | AU200: 0 | AV200: 0 | AW200: 0 | AX200: 0 | AY200: 0 | AZ200: 0
D201: TOTAL | F201: =SUM(F193:F200) -> 1 | H201: =SUM(H193:H200) -> 1 | I201: 1 | J201: 1 | K201: 1 | L201: 1 | M201: 1 | N201: 1 | O201: 1 | P201: 1 | Q201: 1 | R201: 1 | S201: 1 | T201: 1 | U201: 1 | V201: 1 | W201: 1 | X201: 1 | Y201: 1 | Z201: 1 | AA201: 1 | AB201: 1 | AC201: 1 | AD201: 1 | AE201: 1 | AF201: 1 | AG201: 1 | AH201: 1 | AI201: 1 | AJ201: 1 | AK201: 1 | AL201: 1 | AM201: 1 | AN201: 1 | AO201: 1 | AP201: 1 | AQ201: 1 | AR201: 1 | AS201: 1 | AT201: 1 | AU201: 1 | AV201: 1 | AW201: 1 | AX201: 1 | AY201: 1 | AZ201: 1
D203: POST-Case
D204: Efficiency Level | E204: EL (kWh/day) | H204: 1990 | I204: =H204+1 -> 1991 | J204: =I204+1 -> 1992 | K204: =J204+1 -> 1993 | L204: =K204+1 -> 1994 | M204: =L204+1 -> 1995 | N204: =M204+1 -> 1996 | O204: =N204+1 -> 1997 | P204: =O204+1 -> 1998 | Q204: =P204+1 -> 1999 | R204: =Q204+1 -> 2000 | S204: =R204+1 -> 2001 | T204: =S204+1 -> 2002 | U204: =T204+1 -> 2003 | V204: =U204+1 -> 2004 | W204: =V204+1 -> 2005 | X204: =X192 -> 2006 | Y204: 2007 | Z204: 2008 | AA204: 2009 | AB204: 2010 | AC204: 2011 | AD204: 2012 | AE204: 2013 | AF204: 2014 | AG204: 2015 | AH204: 2016 | AI204: 2017 | AJ204: 2018 | AK204: 2019 | AL204: 2020 | AM204: 2021 | AN204: 2022 | AO204: 2023 | AP204: 2024 | AQ204: 2025 | AR204: 2026 | AS204: 2027 | AT204: 2028 | AU204: 2029 | AV204: 2030 | AW204: 2031 | AX204: 2032 | AY204: 2033 | AZ204: 2034
D205: ='Efficiency Levels'!$C114 -> EL0 | E205: ='Efficiency Levels'!D114 -> 7804.871048 | H205: =H193 -> 1 | I205: =I193 -> 1 | J205: 1 | K205: 1 | L205: 1 | M205: 1 | N205: 1 | O205: 1 | P205: 1 | Q205: 1 | R205: 1 | S205: 1 | T205: 1 | U205: 1 | V205: 1 | W205: 1 | X205: 1 | Y205: 1 | Z205: 1 | AA205: 1 | AB205: 0 | AC205: 0 | AD205: 0 | AE205: 0 | AF205: 0 | AG205: 0 | AH205: 0 | AI205: 0 | AJ205: 0 | AK205: 0 | AL205: 0 | AM205: 0 | AN205: 0 | AO205: 0 | AP205: 0 | AQ205: 0 | AR205: 0 | AS205: 0 | AT205: 0 | AU205: 0 | AV205: 0 | AW205: 0 | AX205: 0 | AY205: 0 | AZ205: 0
D206: ='Efficiency Levels'!$C115 -> EL1 | E206: ='Efficiency Levels'!D115 -> 14366.4 | H206: =H194 -> 0 | I206: =I194 -> 0 | J206: 0 | K206: 0 | L206: 0 | M206: 0 | N206: 0 | O206: 0 | P206: 0 | Q206: 0 | R206: 0 | S206: 0 | T206: 0 | U206: 0 | V206: 0 | W206: 0 | X206: 0 | Y206: 0 | Z206: 0 | AA206: 0 | AB206: 0.3333333333 | AC206: 0.3333333333 | AD206: 0.3333333333 | AE206: 0.3333333333 | AF206: 0.3333333333 | AG206: 0.3333333333 | AH206: 0.3333333333 | AI206: 0.3333333333 | AJ206: 0 | AK206: 0 | AL206: 0 | AM206: 0 | AN206: 0 | AO206: 0 | AP206: 0 | AQ206: 0 | AR206: 0 | AS206: 0 | AT206: 0 | AU206: 0 | AV206: 0 | AW206: 0 | AX206: 0 | AY206: 0 | AZ206: 0
D207: ='Efficiency Levels'!$C116 -> EL2 | E207: ='Efficiency Levels'!D116 -> 12931.95 | H207: =H195 -> 0 | I207: 0 | J207: 0 | K207: 0 | L207: 0 | M207: 0 | N207: 0 | O207: 0 | P207: 0 | Q207: 0 | R207: 0 | S207: 0 | T207: 0 | U207: 0 | V207: 0 | W207: 0 | X207: 0 | Y207: 0 | Z207: 0 | AA207: 0 | AB207: 0.2666666667 | AC207: 0.2666666667 | AD207: 0.2666666667 | AE207: 0.2666666667 | AF207: 0.2666666667 | AG207: 0.2666666667 | AH207: 0.2666666667 | AI207: 0.2666666667 | AJ207: 0 | AK207: 0 | AL207: 0 | AM207: 0 | AN207: 0 | AO207: 0 | AP207: 0 | AQ207: 0 | AR207: 0 | AS207: 0 | AT207: 0 | AU207: 0 | AV207: 0 | AW207: 0 | AX207: 0 | AY207: 0 | AZ207: 0
D208: ='Efficiency Levels'!$C117 -> EL3 | E208: ='Efficiency Levels'!D117 -> 12214.725 | H208: =H196 -> 0 | I208: 0 | J208: 0 | K208: 0 | L208: 0 | M208: 0 | N208: 0 | O208: 0 | P208: 0 | Q208: 0 | R208: 0 | S208: 0 | T208: 0 | U208: 0 | V208: 0 | W208: 0 | X208: 0 | Y208: 0 | Z208: 0 | AA208: 0 | AB208: 0.2666666667 | AC208: 0.2666666667 | AD208: 0.2666666667 | AE208: 0.2666666667 | AF208: 0.2666666667 | AG208: 0.2666666667 | AH208: 0.2666666667 | AI208: 0.2666666667 | AJ208: 0.8666666667 | AK208: 0.8666666667 | AL208: 0.8666666667 | AM208: 0.8666666667 | AN208: 0.8666666667 | AO208: 0.8666666667 | AP208: 0.8666666667 | AQ208: 0.8666666667 | AR208: 0.8666666667 | AS208: 0.8666666667 | AT208: 0.8666666667 | AU208: 0.8666666667 | AV208: 0.8666666667 | AW208: 0.8666666667 | AX208: 0.8666666667 | AY208: 0.8666666667 | AZ208: 0.8666666667
D209: ='Efficiency Levels'!$C118 -> EL4 | E209: ='Efficiency Levels'!D118 -> 11497.5 | H209: =H197 -> 0 | I209: 0 | J209: 0 | K209: 0 | L209: 0 | M209: 0 | N209: 0 | O209: 0 | P209: 0 | Q209: 0 | R209: 0 | S209: 0 | T209: 0 | U209: 0 | V209: 0 | W209: 0 | X209: 0 | Y209: 0 | Z209: 0 | AA209: 0 | AB209: 0.1333333333 | AC209: 0.1333333333 | AD209: 0.1333333333 | AE209: 0.1333333333 | AF209: 0.1333333333 | AG209: 0.1333333333 | AH209: 0.1333333333 | AI209: 0.1333333333 | AJ209: 0.1333333333 | AK209: 0.1333333333 | AL209: 0.1333333333 | AM209: 0.1333333333 | AN209: 0.1333333333 | AO209: 0.1333333333 | AP209: 0.1333333333 | AQ209: 0.1333333333 | AR209: 0.1333333333 | AS209: 0.1333333333 | AT209: 0.1333333333 | AU209: 0.1333333333 | AV209: 0.1333333333 | AW209: 0.1333333333 | AX209: 0.1333333333 | AY209: 0.1333333333 | AZ209: 0.1333333333
D210: ='Efficiency Levels'!$C119 -> EL5 | E210: ='Efficiency Levels'!D119 -> 0 | H210: =H198 -> 0 | I210: 0 | J210: 0 | K210: 0 | L210: 0 | M210: 0 | N210: 0 | O210: 0 | P210: 0 | Q210: 0 | R210: 0 | S210: 0 | T210: 0 | U210: 0 | V210: 0 | W210: 0 | X210: 0 | Y210: 0 | Z210: 0 | AA210: 0 | AB210: 0 | AC210: 0 | AD210: 0 | AE210: 0 | AF210: 0 | AG210: 0 | AH210: 0 | AI210: 0 | AJ210: 0 | AK210: 0 | AL210: 0 | AM210: 0 | AN210: 0 | AO210: 0 | AP210: 0 | AQ210: 0 | AR210: 0 | AS210: 0 | AT210: 0 | AU210: 0 | AV210: 0 | AW210: 0 | AX210: 0 | AY210: 0 | AZ210: 0
D211: ='Efficiency Levels'!$C120 -> EL6 | E211: ='Efficiency Levels'!D120 -> 0 | H211: =H199 -> 0 | I211: 0 | J211: 0 | K211: 0 | L211: 0 | M211: 0 | N211: 0 | O211: 0 | P211: 0 | Q211: 0 | R211: 0 | S211: 0 | T211: 0 | U211: 0 | V211: 0 | W211: 0 | X211: 0 | Y211: 0 | Z211: 0 | AA211: 0 | AB211: 0 | AC211: 0 | AD211: 0 | AE211: 0 | AF211: 0 | AG211: 0 | AH211: 0 | AI211: 0 | AJ211: 0 | AK211: 0 | AL211: 0 | AM211: 0 | AN211: 0 | AO211: 0 | AP211: 0 | AQ211: 0 | AR211: 0 | AS211: 0 | AT211: 0 | AU211: 0 | AV211: 0 | AW211: 0 | AX211: 0 | AY211: 0 | AZ211: 0
D212: ='Efficiency Levels'!$C121 -> EL7 | E212: ='Efficiency Levels'!D121 -> 0 | H212: =H200 -> 0 | I212: 0 | J212: 0 | K212: 0 | L212: 0 | M212: 0 | N212: 0 | O212: 0 | P212: 0 | Q212: 0 | R212: 0 | S212: 0 | T212: 0 | U212: 0 | V212: 0 | W212: 0 | X212: 0 | Y212: 0 | Z212: 0 | AA212: 0 | AB212: 0 | AC212: 0 | AD212: 0 | AE212: 0 | AF212: 0 | AG212: 0 | AH212: 0 | AI212: 0 | AJ212: 0 | AK212: 0 | AL212: 0 | AM212: 0 | AN212: 0 | AO212: 0 | AP212: 0 | AQ212: 0 | AR212: 0 | AS212: 0 | AT212: 0 | AU212: 0 | AV212: 0 | AW212: 0 | AX212: 0 | AY212: 0 | AZ212: 0
D213: TOTAL | H213: =SUM(H205:H212) -> 1 | I213: =SUM(I205:I212) -> 1 | J213: 1 | K213: 1 | L213: 1 | M213: 1 | N213: 1 | O213: 1 | P213: 1 | Q213: 1 | R213: 1 | S213: 1 | T213: 1 | U213: 1 | V213: 1 | W213: 1 | X213: 1 | Y213: 1 | Z213: 1 | AA213: 1 | AB213: 1 | AC213: 1 | AD213: 1 | AE213: 1 | AF213: 1 | AG213: 1 | AH213: 1 | AI213: 1 | AJ213: 1 | AK213: 1 | AL213: 1 | AM213: 1 | AN213: 1 | AO213: 1 | AP213: 1 | AQ213: 1 | AR213: 1 | AS213: 1 | AT213: 1 | AU213: 1 | AV213: 1 | AW213: 1 | AX213: 1 | AY213: 1 | AZ213: 1
D215: Sources | E215: DOE Automatic Commercial Ice Makers 2014, Notice of Proposed Rulemaking (NOPR) Technical Support Document Chapter 10, Table 10.2.2 Base Case Shipment Weighted Market Shares by Efficiency Level (page 10-3); TSL 3 is proposed in the NOPR. TSL 3 corresponds to different EL's for different product classes
D219: =CONCATENATE('Efficiency Levels'!$C128," - ",'Efficiency Levels'!$D128) -> PC8 - Remote Condensing Unit-Not Remote Condensor-Large-Batch-1
D221: PRE-Case | F221: Static Distribution
D222: Efficiency Level | E222: EL (kWh/day) | F222: 2006 | H222: 1990 | I222: =H222+1 -> 1991 | J222: =I222+1 -> 1992 | K222: =J222+1 -> 1993 | L222: =K222+1 -> 1994 | M222: =L222+1 -> 1995 | N222: =M222+1 -> 1996 | O222: =N222+1 -> 1997 | P222: =O222+1 -> 1998 | Q222: =P222+1 -> 1999 | R222: =Q222+1 -> 2000 | S222: =R222+1 -> 2001 | T222: =S222+1 -> 2002 | U222: =T222+1 -> 2003 | V222: =U222+1 -> 2004 | W222: =V222+1 -> 2005 | X222: =W222+1 -> 2006 | Y222: =X222+1 -> 2007 | Z222: =Y222+1 -> 2008 | AA222: =Z222+1 -> 2009 | AB222: =AA222+1 -> 2010 | AC222: =AB222+1 -> 2011 | AD222: =AC222+1 -> 2012 | AE222: =AD222+1 -> 2013 | AF222: =AE222+1 -> 2014 | AG222: =AF222+1 -> 2015 | AH222: =AG222+1 -> 2016 | AI222: =AH222+1 -> 2017 | AJ222: =AI222+1 -> 2018 | AK222: =AJ222+1 -> 2019 | AL222: =AK222+1 -> 2020 | AM222: =AL222+1 -> 2021 | AN222: =AM222+1 -> 2022 | AO222: =AN222+1 -> 2023 | AP222: =AO222+1 -> 2024 | AQ222: =AP222+1 -> 2025 | AR222: =AQ222+1 -> 2026 | AS222: =AR222+1 -> 2027 | AT222: =AS222+1 -> 2028 | AU222: =AT222+1 -> 2029 | AV222: =AU222+1 -> 2030 | AW222: =AV222+1 -> 2031 | AX222: =AW222+1 -> 2032 | AY222: =AX222+1 -> 2033 | AZ222: =AY222+1 -> 2034
D223: ='Efficiency Levels'!C131 -> EL0 | E223: ='Efficiency Levels'!D131 -> 9645.636 | F223: 0 | H223: 1 | I223: 1 | J223: 1 | K223: 1 | L223: 1 | M223: 1 | N223: 1 | O223: 1 | P223: 1 | Q223: 1 | R223: 1 | S223: 1 | T223: 1 | U223: 1 | V223: 1 | W223: 1 | X223: 1 | Y223: 1 | Z223: 1 | AA223: 1 | AB223: =$F223 -> 0 | AC223: 0 | AD223: 0 | AE223: 0 | AF223: 0 | AG223: 0 | AH223: 0 | AI223: 0 | AJ223: 0 | AK223: 0 | AL223: 0 | AM223: 0 | AN223: 0 | AO223: 0 | AP223: 0 | AQ223: 0 | AR223: 0 | AS223: 0 | AT223: 0 | AU223: 0 | AV223: 0 | AW223: 0 | AX223: 0 | AY223: 0 | AZ223: 0
D224: ='Efficiency Levels'!C132 -> EL1 | E224: ='Efficiency Levels'!D132 -> 13983.15 | F224: 0.4285714286 | H224: 0 | I224: 0 | J224: 0 | K224: 0 | L224: 0 | M224: 0 | N224: 0 | O224: 0 | P224: 0 | Q224: 0 | R224: 0 | S224: 0 | T224: 0 | U224: 0 | V224: 0 | W224: 0 | X224: 0 | Y224: 0 | Z224: 0 | AA224: 0 | AB224: 0.4285714286 | AC224: 0.4285714286 | AD224: 0.4285714286 | AE224: 0.4285714286 | AF224: 0.4285714286 | AG224: 0.4285714286 | AH224: 0.4285714286 | AI224: 0.4285714286 | AJ224: 0.4285714286 | AK224: 0.4285714286 | AL224: 0.4285714286 | AM224: 0.4285714286 | AN224: 0.4285714286 | AO224: 0.4285714286 | AP224: 0.4285714286 | AQ224: 0.4285714286 | AR224: 0.4285714286 | AS224: 0.4285714286 | AT224: 0.4285714286 | AU224: 0.4285714286 | AV224: 0.4285714286 | AW224: 0.4285714286 | AX224: 0.4285714286 | AY224: 0.4285714286 | AZ224: 0.4285714286
D225: ='Efficiency Levels'!C133 -> EL2 | E225: ='Efficiency Levels'!D133 -> 12726.6375 | F225: 0.3928571429 | H225: 0 | I225: 0 | J225: 0 | K225: 0 | L225: 0 | M225: 0 | N225: 0 | O225: 0 | P225: 0 | Q225: 0 | R225: 0 | S225: 0 | T225: 0 | U225: 0 | V225: 0 | W225: 0 | X225: 0 | Y225: 0 | Z225: 0 | AA225: 0 | AB225: 0.3928571429 | AC225: 0.3928571429 | AD225: 0.3928571429 | AE225: 0.3928571429 | AF225: 0.3928571429 | AG225: 0.3928571429 | AH225: 0.3928571429 | AI225: 0.3928571429 | AJ225: 0.3928571429 | AK225: 0.3928571429 | AL225: 0.3928571429 | AM225: 0.3928571429 | AN225: 0.3928571429 | AO225: 0.3928571429 | AP225: 0.3928571429 | AQ225: 0.3928571429 | AR225: 0.3928571429 | AS225: 0.3928571429 | AT225: 0.3928571429 | AU225: 0.3928571429 | AV225: 0.3928571429 | AW225: 0.3928571429 | AX225: 0.3928571429 | AY225: 0.3928571429 | AZ225: 0.3928571429
D226: ='Efficiency Levels'!C134 -> EL3 | E226: ='Efficiency Levels'!D134 -> 11888.9625 | F226: 0.08928571429 | H226: 0 | I226: 0 | J226: 0 | K226: 0 | L226: 0 | M226: 0 | N226: 0 | O226: 0 | P226: 0 | Q226: 0 | R226: 0 | S226: 0 | T226: 0 | U226: 0 | V226: 0 | W226: 0 | X226: 0 | Y226: 0 | Z226: 0 | AA226: 0 | AB226: 0.08928571429 | AC226: 0.08928571429 | AD226: 0.08928571429 | AE226: 0.08928571429 | AF226: 0.08928571429 | AG226: 0.08928571429 | AH226: 0.08928571429 | AI226: 0.08928571429 | AJ226: 0.08928571429 | AK226: 0.08928571429 | AL226: 0.08928571429 | AM226: 0.08928571429 | AN226: 0.08928571429 | AO226: 0.08928571429 | AP226: 0.08928571429 | AQ226: 0.08928571429 | AR226: 0.08928571429 | AS226: 0.08928571429 | AT226: 0.08928571429 | AU226: 0.08928571429 | AV226: 0.08928571429 | AW226: 0.08928571429 | AX226: 0.08928571429 | AY226: 0.08928571429 | AZ226: 0.08928571429
D227: ='Efficiency Levels'!C135 -> EL4 | E227: ='Efficiency Levels'!D135 -> 11190.9 | F227: 0 | H227: 0 | I227: 0 | J227: 0 | K227: 0 | L227: 0 | M227: 0 | N227: 0 | O227: 0 | P227: 0 | Q227: 0 | R227: 0 | S227: 0 | T227: 0 | U227: 0 | V227: 0 | W227: 0 | X227: 0 | Y227: 0 | Z227: 0 | AA227: 0 | AB227: 0 | AC227: 0 | AD227: 0 | AE227: 0 | AF227: 0 | AG227: 0 | AH227: 0 | AI227: 0 | AJ227: 0 | AK227: 0 | AL227: 0 | AM227: 0 | AN227: 0 | AO227: 0 | AP227: 0 | AQ227: 0 | AR227: 0 | AS227: 0 | AT227: 0 | AU227: 0 | AV227: 0 | AW227: 0 | AX227: 0 | AY227: 0 | AZ227: 0
D228: ='Efficiency Levels'!C136 -> EL5 | E228: ='Efficiency Levels'!D136 -> 11107.96188 | F228: 0.08928571429 | H228: 0 | I228: 0 | J228: 0 | K228: 0 | L228: 0 | M228: 0 | N228: 0 | O228: 0 | P228: 0 | Q228: 0 | R228: 0 | S228: 0 | T228: 0 | U228: 0 | V228: 0 | W228: 0 | X228: 0 | Y228: 0 | Z228: 0 | AA228: 0 | AB228: 0.08928571429 | AC228: 0.08928571429 | AD228: 0.08928571429 | AE228: 0.08928571429 | AF228: 0.08928571429 | AG228: 0.08928571429 | AH228: 0.08928571429 | AI228: 0.08928571429 | AJ228: 0.08928571429 | AK228: 0.08928571429 | AL228: 0.08928571429 | AM228: 0.08928571429 | AN228: 0.08928571429 | AO228: 0.08928571429 | AP228: 0.08928571429 | AQ228: 0.08928571429 | AR228: 0.08928571429 | AS228: 0.08928571429 | AT228: 0.08928571429 | AU228: 0.08928571429 | AV228: 0.08928571429 | AW228: 0.08928571429 | AX228: 0.08928571429 | AY228: 0.08928571429 | AZ228: 0.08928571429
D229: ='Efficiency Levels'!C137 -> EL6 | E229: ='Efficiency Levels'!D137 -> 0 | F229: 0 | H229: 0 | I229: 0 | J229: 0 | K229: 0 | L229: 0 | M229: 0 | N229: 0 | O229: 0 | P229: 0 | Q229: 0 | R229: 0 | S229: 0 | T229: 0 | U229: 0 | V229: 0 | W229: 0 | X229: 0 | Y229: 0 | Z229: 0 | AA229: 0 | AB229: =$F229 -> 0 | AC229: 0 | AD229: 0 | AE229: 0 | AF229: 0 | AG229: 0 | AH229: 0 | AI229: 0 | AJ229: 0 | AK229: 0 | AL229: 0 | AM229: 0 | AN229: 0 | AO229: 0 | AP229: 0 | AQ229: 0 | AR229: 0 | AS229: 0 | AT229: 0 | AU229: 0 | AV229: 0 | AW229: 0 | AX229: 0 | AY229: 0 | AZ229: 0
D230: ='Efficiency Levels'!C138 -> EL7 | E230: ='Efficiency Levels'!D138 -> 0 | F230: 0 | H230: 0 | I230: 0 | J230: 0 | K230: 0 | L230: 0 | M230: 0 | N230: 0 | O230: 0 | P230: 0 | Q230: 0 | R230: 0 | S230: 0 | T230: 0 | U230: 0 | V230: 0 | W230: 0 | X230: 0 | Y230: 0 | Z230: 0 | AA230: 0 | AB230: 0 | AC230: 0 | AD230: 0 | AE230: 0 | AF230: 0 | AG230: 0 | AH230: 0 | AI230: 0 | AJ230: 0 | AK230: 0 | AL230: 0 | AM230: 0 | AN230: 0 | AO230: 0 | AP230: 0 | AQ230: 0 | AR230: 0 | AS230: 0 | AT230: 0 | AU230: 0 | AV230: 0 | AW230: 0 | AX230: 0 | AY230: 0 | AZ230: 0
D231: TOTAL | F231: =SUM(F223:F230) -> 1 | H231: =SUM(H223:H230) -> 1 | I231: 1 | J231: 1 | K231: 1 | L231: 1 | M231: 1 | N231: 1 | O231: 1 | P231: 1 | Q231: 1 | R231: 1 | S231: 1 | T231: 1 | U231: 1 | V231: 1 | W231: 1 | X231: 1 | Y231: 1 | Z231: 1 | AA231: 1 | AB231: 1 | AC231: 1 | AD231: 1 | AE231: 1 | AF231: 1 | AG231: 1 | AH231: 1 | AI231: 1 | AJ231: 1 | AK231: 1 | AL231: 1 | AM231: 1 | AN231: 1 | AO231: 1 | AP231: 1 | AQ231: 1 | AR231: 1 | AS231: 1 | AT231: 1 | AU231: 1 | AV231: 1 | AW231: 1 | AX231: 1 | AY231: 1 | AZ231: 1
D233: POST-Case
D234: Efficiency Level | E234: EL (kWh/day) | H234: 1990 | I234: =H234+1 -> 1991 | J234: =I234+1 -> 1992 | K234: =J234+1 -> 1993 | L234: =K234+1 -> 1994 | M234: =L234+1 -> 1995 | N234: =M234+1 -> 1996 | O234: =N234+1 -> 1997 | P234: =O234+1 -> 1998 | Q234: =P234+1 -> 1999 | R234: =Q234+1 -> 2000 | S234: =R234+1 -> 2001 | T234: =S234+1 -> 2002 | U234: =T234+1 -> 2003 | V234: =U234+1 -> 2004 | W234: =V234+1 -> 2005 | X234: =X222 -> 2006 | Y234: 2007 | Z234: 2008 | AA234: 2009 | AB234: 2010 | AC234: 2011 | AD234: 2012 | AE234: 2013 | AF234: 2014 | AG234: 2015 | AH234: 2016 | AI234: 2017 | AJ234: 2018 | AK234: 2019 | AL234: 2020 | AM234: 2021 | AN234: 2022 | AO234: 2023 | AP234: 2024 | AQ234: 2025 | AR234: 2026 | AS234: 2027 | AT234: 2028 | AU234: 2029 | AV234: 2030 | AW234: 2031 | AX234: 2032 | AY234: 2033 | AZ234: 2034
D235: ='Efficiency Levels'!C131 -> EL0 | E235: ='Efficiency Levels'!D131 -> 9645.636 | H235: =H223 -> 1 | I235: =I223 -> 1 | J235: 1 | K235: 1 | L235: 1 | M235: 1 | N235: 1 | O235: 1 | P235: 1 | Q235: 1 | R235: 1 | S235: 1 | T235: 1 | U235: 1 | V235: 1 | W235: 1 | X235: 1 | Y235: 1 | Z235: 1 | AA235: 1 | AB235: 0 | AC235: 0 | AD235: 0 | AE235: 0 | AF235: 0 | AG235: 0 | AH235: 0 | AI235: 0 | AJ235: 0 | AK235: 0 | AL235: 0 | AM235: 0 | AN235: 0 | AO235: 0 | AP235: 0 | AQ235: 0 | AR235: 0 | AS235: 0 | AT235: 0 | AU235: 0 | AV235: 0 | AW235: 0 | AX235: 0 | AY235: 0 | AZ235: 0
D236: ='Efficiency Levels'!C132 -> EL1 | E236: ='Efficiency Levels'!D132 -> 13983.15 | H236: =H224 -> 0 | I236: =I224 -> 0 | J236: 0 | K236: 0 | L236: 0 | M236: 0 | N236: 0 | O236: 0 | P236: 0 | Q236: 0 | R236: 0 | S236: 0 | T236: 0 | U236: 0 | V236: 0 | W236: 0 | X236: 0 | Y236: 0 | Z236: 0 | AA236: 0 | AB236: 0.4285714286 | AC236: 0.4285714286 | AD236: 0.4285714286 | AE236: 0.4285714286 | AF236: 0.4285714286 | AG236: 0.4285714286 | AH236: 0.4285714286 | AI236: 0.4285714286 | AJ236: 0 | AK236: 0 | AL236: 0 | AM236: 0 | AN236: 0 | AO236: 0 | AP236: 0 | AQ236: 0 | AR236: 0 | AS236: 0 | AT236: 0 | AU236: 0 | AV236: 0 | AW236: 0 | AX236: 0 | AY236: 0 | AZ236: 0
D237: ='Efficiency Levels'!C133 -> EL2 | E237: ='Efficiency Levels'!D133 -> 12726.6375 | H237: =H225 -> 0 | I237: 0 | J237: 0 | K237: 0 | L237: 0 | M237: 0 | N237: 0 | O237: 0 | P237: 0 | Q237: 0 | R237: 0 | S237: 0 | T237: 0 | U237: 0 | V237: 0 | W237: 0 | X237: 0 | Y237: 0 | Z237: 0 | AA237: 0 | AB237: 0.3928571429 | AC237: 0.3928571429 | AD237: 0.3928571429 | AE237: 0.3928571429 | AF237: 0.3928571429 | AG237: 0.3928571429 | AH237: 0.3928571429 | AI237: 0.3928571429 | AJ237: 0 | AK237: 0 | AL237: 0 | AM237: 0 | AN237: 0 | AO237: 0 | AP237: 0 | AQ237: 0 | AR237: 0 | AS237: 0 | AT237: 0 | AU237: 0 | AV237: 0 | AW237: 0 | AX237: 0 | AY237: 0 | AZ237: 0
D238: ='Efficiency Levels'!C134 -> EL3 | E238: ='Efficiency Levels'!D134 -> 11888.9625 | H238: =H226 -> 0 | I238: 0 | J238: 0 | K238: 0 | L238: 0 | M238: 0 | N238: 0 | O238: 0 | P238: 0 | Q238: 0 | R238: 0 | S238: 0 | T238: 0 | U238: 0 | V238: 0 | W238: 0 | X238: 0 | Y238: 0 | Z238: 0 | AA238: 0 | AB238: 0.08928571429 | AC238: 0.08928571429 | AD238: 0.08928571429 | AE238: 0.08928571429 | AF238: 0.08928571429 | AG238: 0.08928571429 | AH238: 0.08928571429 | AI238: 0.08928571429 | AJ238: 0.9107142857 | AK238: 0.9107142857 | AL238: 0.9107142857 | AM238: 0.9107142857 | AN238: 0.9107142857 | AO238: 0.9107142857 | AP238: 0.9107142857 | AQ238: 0.9107142857 | AR238: 0.9107142857 | AS238: 0.9107142857 | AT238: 0.9107142857 | AU238: 0.9107142857 | AV238: 0.9107142857 | AW238: 0.9107142857 | AX238: 0.9107142857 | AY238: 0.9107142857 | AZ238: 0.9107142857
D239: ='Efficiency Levels'!C135 -> EL4 | E239: ='Efficiency Levels'!D135 -> 11190.9 | H239: =H227 -> 0 | I239: 0 | J239: 0 | K239: 0 | L239: 0 | M239: 0 | N239: 0 | O239: 0 | P239: 0 | Q239: 0 | R239: 0 | S239: 0 | T239: 0 | U239: 0 | V239: 0 | W239: 0 | X239: 0 | Y239: 0 | Z239: 0 | AA239: 0 | AB239: 0 | AC239: 0 | AD239: 0 | AE239: 0 | AF239: 0 | AG239: 0 | AH239: 0 | AI239: 0 | AJ239: 0 | AK239: 0 | AL239: 0 | AM239: 0 | AN239: 0 | AO239: 0 | AP239: 0 | AQ239: 0 | AR239: 0 | AS239: 0 | AT239: 0 | AU239: 0 | AV239: 0 | AW239: 0 | AX239: 0 | AY239: 0 | AZ239: 0
D240: ='Efficiency Levels'!C136 -> EL5 | E240: ='Efficiency Levels'!D136 -> 11107.96188 | H240: =H228 -> 0 | I240: 0 | J240: 0 | K240: 0 | L240: 0 | M240: 0 | N240: 0 | O240: 0 | P240: 0 | Q240: 0 | R240: 0 | S240: 0 | T240: 0 | U240: 0 | V240: 0 | W240: 0 | X240: 0 | Y240: 0 | Z240: 0 | AA240: 0 | AB240: 0.08928571429 | AC240: 0.08928571429 | AD240: 0.08928571429 | AE240: 0.08928571429 | AF240: 0.08928571429 | AG240: 0.08928571429 | AH240: 0.08928571429 | AI240: 0.08928571429 | AJ240: 0.08928571429 | AK240: 0.08928571429 | AL240: 0.08928571429 | AM240: 0.08928571429 | AN240: 0.08928571429 | AO240: 0.08928571429 | AP240: 0.08928571429 | AQ240: 0.08928571429 | AR240: 0.08928571429 | AS240: 0.08928571429 | AT240: 0.08928571429 | AU240: 0.08928571429 | AV240: 0.08928571429 | AW240: 0.08928571429 | AX240: 0.08928571429 | AY240: 0.08928571429 | AZ240: 0.08928571429
D241: ='Efficiency Levels'!C137 -> EL6 | E241: ='Efficiency Levels'!D137 -> 0 | H241: =H229 -> 0 | I241: 0 | J241: 0 | K241: 0 | L241: 0 | M241: 0 | N241: 0 | O241: 0 | P241: 0 | Q241: 0 | R241: 0 | S241: 0 | T241: 0 | U241: 0 | V241: 0 | W241: 0 | X241: 0 | Y241: 0 | Z241: 0 | AA241: 0 | AB241: 0 | AC241: 0 | AD241: 0 | AE241: 0 | AF241: 0 | AG241: 0 | AH241: 0 | AI241: 0 | AJ241: 0 | AK241: 0 | AL241: 0 | AM241: 0 | AN241: 0 | AO241: 0 | AP241: 0 | AQ241: 0 | AR241: 0 | AS241: 0 | AT241: 0 | AU241: 0 | AV241: 0 | AW241: 0 | AX241: 0 | AY241: 0 | AZ241: 0
D242: ='Efficiency Levels'!C138 -> EL7 | E242: ='Efficiency Levels'!D138 -> 0 | H242: =H230 -> 0 | I242: 0 | J242: 0 | K242: 0 | L242: 0 | M242: 0 | N242: 0 | O242: 0 | P242: 0 | Q242: 0 | R242: 0 | S242: 0 | T242: 0 | U242: 0 | V242: 0 | W242: 0 | X242: 0 | Y242: 0 | Z242: 0 | AA242: 0 | AB242: 0 | AC242: 0 | AD242: 0 | AE242: 0 | AF242: 0 | AG242: 0 | AH242: 0 | AI242: 0 | AJ242: 0 | AK242: 0 | AL242: 0 | AM242: 0 | AN242: 0 | AO242: 0 | AP242: 0 | AQ242: 0 | AR242: 0 | AS242: 0 | AT242: 0 | AU242: 0 | AV242: 0 | AW242: 0 | AX242: 0 | AY242: 0 | AZ242: 0
D243: TOTAL | H243: =SUM(H235:H242) -> 1 | I243: =SUM(I235:I242) -> 1 | J243: 1 | K243: 1 | L243: 1 | M243: 1 | N243: 1 | O243: 1 | P243: 1 | Q243: 1 | R243: 1 | S243: 1 | T243: 1 | U243: 1 | V243: 1 | W243: 1 | X243: 1 | Y243: 1 | Z243: 1 | AA243: 1 | AB243: 1 | AC243: 1 | AD243: 1 | AE243: 1 | AF243: 1 | AG243: 1 | AH243: 1 | AI243: 1 | AJ243: 1 | AK243: 1 | AL243: 1 | AM243: 1 | AN243: 1 | AO243: 1 | AP243: 1 | AQ243: 1 | AR243: 1 | AS243: 1 | AT243: 1 | AU243: 1 | AV243: 1 | AW243: 1 | AX243: 1 | AY243: 1 | AZ243: 1
D245: Sources | E245: DOE Automatic Commercial Ice Makers 2014, Notice of Proposed Rulemaking (NOPR) Technical Support Document Chapter 10, Table 10.2.2 Base Case Shipment Weighted Market Shares by Efficiency Level (page 10-3); TSL 3 is proposed in the NOPR. TSL 3 corresponds to different EL's for different product classes
D249: =CONCATENATE('Efficiency Levels'!$C145," - ",'Efficiency Levels'!$D145) -> PC9 - Remote Condensing Unit-Not Remote Condensor-Large-Batch-2
D251: PRE-Case | F251: Static Distribution
D252: Efficiency Level | E252: EL (kWh/day) | F252: 2006 | H252: 1990 | I252: =H252+1 -> 1991 | J252: =I252+1 -> 1992 | K252: =J252+1 -> 1993 | L252: =K252+1 -> 1994 | M252: =L252+1 -> 1995 | N252: =M252+1 -> 1996 | O252: =N252+1 -> 1997 | P252: =O252+1 -> 1998 | Q252: =P252+1 -> 1999 | R252: =Q252+1 -> 2000 | S252: =R252+1 -> 2001 | T252: =S252+1 -> 2002 | U252: =T252+1 -> 2003 | V252: =U252+1 -> 2004 | W252: =V252+1 -> 2005 | X252: =W252+1 -> 2006 | Y252: =X252+1 -> 2007 | Z252: =Y252+1 -> 2008 | AA252: =Z252+1 -> 2009 | AB252: =AA252+1 -> 2010 | AC252: =AB252+1 -> 2011 | AD252: =AC252+1 -> 2012 | AE252: =AD252+1 -> 2013 | AF252: =AE252+1 -> 2014 | AG252: =AF252+1 -> 2015 | AH252: =AG252+1 -> 2016 | AI252: =AH252+1 -> 2017 | AJ252: =AI252+1 -> 2018 | AK252: =AJ252+1 -> 2019 | AL252: =AK252+1 -> 2020 | AM252: =AL252+1 -> 2021 | AN252: =AM252+1 -> 2022 | AO252: =AN252+1 -> 2023 | AP252: =AO252+1 -> 2024 | AQ252: =AP252+1 -> 2025 | AR252: =AQ252+1 -> 2026 | AS252: =AR252+1 -> 2027 | AT252: =AS252+1 -> 2028 | AU252: =AT252+1 -> 2029 | AV252: =AU252+1 -> 2030 | AW252: =AV252+1 -> 2031 | AX252: =AW252+1 -> 2032 | AY252: =AX252+1 -> 2033 | AZ252: =AY252+1 -> 2034
D253: ='Efficiency Levels'!C148 -> EL0 | E253: ='Efficiency Levels'!D148 -> 9645.636 | F253: 0 | H253: 1 | I253: 1 | J253: 1 | K253: 1 | L253: 1 | M253: 1 | N253: 1 | O253: 1 | P253: 1 | Q253: 1 | R253: 1 | S253: 1 | T253: 1 | U253: 1 | V253: 1 | W253: 1 | X253: 1 | Y253: 1 | Z253: 1 | AA253: 1 | AB253: =$F253 -> 0 | AC253: 0 | AD253: 0 | AE253: 0 | AF253: 0 | AG253: 0 | AH253: 0 | AI253: 0 | AJ253: 0 | AK253: 0 | AL253: 0 | AM253: 0 | AN253: 0 | AO253: 0 | AP253: 0 | AQ253: 0 | AR253: 0 | AS253: 0 | AT253: 0 | AU253: 0 | AV253: 0 | AW253: 0 | AX253: 0 | AY253: 0 | AZ253: 0
D254: ='Efficiency Levels'!C149 -> EL1 | E254: ='Efficiency Levels'!D149 -> 22359.9 | F254: 0.2727272727 | H254: 0 | I254: 0 | J254: 0 | K254: 0 | L254: 0 | M254: 0 | N254: 0 | O254: 0 | P254: 0 | Q254: 0 | R254: 0 | S254: 0 | T254: 0 | U254: 0 | V254: 0 | W254: 0 | X254: 0 | Y254: 0 | Z254: 0 | AA254: 0 | AB254: 0.2727272727 | AC254: 0.2727272727 | AD254: 0.2727272727 | AE254: 0.2727272727 | AF254: 0.2727272727 | AG254: 0.2727272727 | AH254: 0.2727272727 | AI254: 0.2727272727 | AJ254: 0.2727272727 | AK254: 0.2727272727 | AL254: 0.2727272727 | AM254: 0.2727272727 | AN254: 0.2727272727 | AO254: 0.2727272727 | AP254: 0.2727272727 | AQ254: 0.2727272727 | AR254: 0.2727272727 | AS254: 0.2727272727 | AT254: 0.2727272727 | AU254: 0.2727272727 | AV254: 0.2727272727 | AW254: 0.2727272727 | AX254: 0.2727272727 | AY254: 0.2727272727 | AZ254: 0.2727272727
... 163 more rows

Sheet 6P UEC Development
C2: 6P UEC Development
C4: NAVIGATION
C6: COMMENTS
C8: UEC CALCULATION
C10: Duty Cycle and Percent of Self Contained Ice Makers
D11: Value
C12: Duty Cycle | D12: 0.5
C13: Percent of ice-making heads partitioned to self-contained category | D13: 0.5
C15: Sources: | D15: 6P Conservation Supply Curve Files: Refrigerators Freezers Ice Makers Beverage Vending, ‘IceARI’ tab, cells R28:R29 (RTF Recommendation from May 27, 2008; Self-Contained Category for Census Bureau)
C19: 6P Product Class UEC Calculation with Percent Mix
D20: Average of Ice Harvest Rate (lb/24hr) | E20: Count of Units averaged in 6P | F20: Percent Mix | I20: Energy Use (kWh/100 lbs ice) | J20: Energy Use (kWh/year) | K20: Weighted Energy Savings (kWh/year)
F21: Self-contained <200 | G21: Self-contained >200 | H21: Not Self-contained | I21: Fed Std | J21: Fed Std
C22: Ice Making Head - Air (IMH-A) > 200 lb/day | D22: 698.625 | E22: 112 | F22: 0 | G22: =E22*$D$13/$G$30 -> 0.4226415094 | H22: =E22/SUM(E22:E23)*D13 -> 0.2382978723 | I22: =6.89-0.0011*D22 -> 6.1215125 | J22: =I22*365*$D22*$D$13/100 -> 7804.871048 | K22: =$J22*F22+$J22*G22+$J22*H22 -> 5158.546646
C23: Ice Making Head - Water (IMH-W) > 200 lb/day | D23: 931.796748 | E23: 123 | F23: 0 | G23: =E23*$D$13/$G$30 -> 0.4641509434 | H23: =E23/SUM(E22:E23)*D13 -> 0.2617021277 | I23: =5.58-0.0011*D23 -> 4.555023577 | J23: 7745.949985 | K23: =$J23*F23+$J23*G23+$J23*H23 -> 5622.421585
C24: Remote Condensing Unit - Air (RCU-A) > 200 lb/day | D24: 1036.329412 | E24: 170 | F24: 0 | G24: 0 | H24: =1-D13 -> 0.5 | I24: 5.1 | J24: 9645.636 | K24: 4822.818
C25: Self Contained - Air (SC-A) < 200 lb/day | D25: 101.3157895 | E25: 19 | F25: =E25/SUM(E25,E27) -> 0.6333333333 | G25: 0 | H25: 0 | I25: =18-0.0469*D25 -> 13.24828947 | J25: 2449.626156 | K25: 1551.429899
C26: Self Contained - Air (SC-A) > 200 lb/day | D26: 244.875 | E26: 8 | F26: 0 | G26: =E26/G30 -> 0.06037735849 | H26: 0 | I26: 9.8 | J26: 4379.589375 | K26: 264.4280377
C27: Self Contained - Water (SC-W) < 200 lb/day | D27: 157 | E27: 11 | F27: =E27/SUM(E27,E25) -> 0.3666666667 | G27: 0 | H27: 0 | I27: =11.4-0.019*D27 -> 8.417 | J27: 2411.680925 | K27: 884.2830058
C28: Self Contained - Water (SC-W) > 200 lb/day | D28: 256.1428571 | E28: 7 | F28: 0 | G28: =E28/G30 -> 0.05283018868 | H28: 0 | I28: 7.6 | J28: 3552.701429 | K28: 187.6898868
C29: Total | E29: =SUM(E22:E28) -> 450 | F29: =SUM(F22:F28) -> 1 | G29: =SUM(G22:G28) -> 1 | H29: =SUM(H22:H28) -> 1
F30: Self Contained > 200 count | G30: =E28+E26+E23*D13+E22*D13 -> 132.5
C33: 6P Weighted UEC by Ice Maker Type
D34: 6P Weighted UEC (kWh/year)
C35: Self-Contained <200 | D35: =SUMPRODUCT(F22:F28,J22:J28) -> 2435.712904
C36: Self-Contained >200 | D36: =SUMPRODUCT(G22:G28,J22:J28) -> 7346.070398
C37: Not Self-Contained | D37: =SUMPRODUCT(H22:H28,J22:J28) -> 8709.833757
C39: Lifetime (years) | D39: 10
C41: Sources: | D41: Calculated in previous model using data from 6P Conservation Supply Curve Files: Refrigerators Freezers Ice Makers Beverage Vending, ‘IceARI’ tab, cells R31:AG39 (Unknown Origin)
C45: Annual US Sales of Ice Makers and Weighted Market Share
C46: Ice making Equipment | D46: Approximate Annual Sales in US 2001 | F46: Weighted Market Share
C47: Self-contained cubers <200 lbs/day | D47: 124326 | E47: =D47/$D$53 -> 0.4221094267 | F47: =E47/SUM($E$47:$E$49) -> 0.5337712519
C48: Self-contained cubers >200 lbs/day | D48: 64405 | E48: =D48/$D$53 -> 0.2186667119 | F48: =E48/SUM($E$47:$E$49) -> 0.2765112485
C49: Not self-contained cubers | D49: 44189 | E49: 0.1500297078 | F49: 0.1897174996
C50: Self-contained flakers <300 lbs/day | D50: 3421 | E50: 0.01161491843 | F50: Not analyzed in 6P
C51: Self-contained falkers >300 lbs/day | D51: 8688 | E51: 0.02949734327
C52: Ice & Drink Dispensers | D52: 49506 | E52: 0.1680818918
C53: Total | D53: 294535 | E53: 1 | F53: =SUM(F47:F52) -> 1
C55: Notes | D55: 6P shipment forecast uses a top down approach, where the total number of ice-makers are distributed amongst the different product classes.
C56: Sources: | D56: 6P Conservation Supply Curve Files: Refrigerators Freezers Ice Makers Beverage Vending, ‘IceARI’ tab, cells A240:C247 (Census Bureau 2002 data)
C60: Market Share Calculation
D61: Energy Use (kWh/year) | E61: Percent Mix (Self-contained <200) | F61: Percent Mix (Self-contained >200) | G61: Percent Mix (Not Self-contained) | H61: Overall Market Share
C62: Ice Making Head - Air (IMH-A) > 200 lb/day | D62: =VLOOKUP(C62,$C$22:$K$28,8,0) -> 7804.871048 | E62: =F22 -> 0 | F62: 0.4226415094 | G62: 0.2382978723 | H62: =E62*$F$47+F62*$F$48+G62*$F$49 -> 0.1620744079
C63: Ice Making Head - Water (IMH-W) > 200 lb/day | D63: =VLOOKUP(C63,$C$22:$K$28,8,0) -> 7745.949985 | E63: 0 | F63: 0.4641509434 | G63: 0.2617021277 | H63: =E63*$F$47+F63*$F$48+G63*$F$49 -> 0.1779924301
C64: Remote Condensing Unit - Air (RCU-A) > 200 lb/day | D64: 9645.636 | E64: 0 | F64: 0 | G64: 0.5 | H64: 0.09485874979
C65: Self Contained - Air (SC-A) < 200 lb/day | D65: 2449.626156 | E65: 0.6333333333 | F65: 0 | G65: 0 | H65: 0.3380551262
C66: Self Contained - Air (SC-A) > 200 lb/day | D66: 4379.589375 | E66: 0 | F66: 0.06037735849 | G66: 0 | H66: 0.01669501878
C67: Self Contained - Water (SC-W) < 200 lb/day | D67: 2411.680925 | E67: 0.3666666667 | F67: 0 | G67: 0 | H67: 0.1957161257
C68: Self Contained - Water (SC-W) > 200 lb/day | D68: 3552.701429 | E68: 0 | F68: 0.05283018868 | G68: 0 | H68: 0.01460814143
C72: 6P Average UEC (kWh/year) | D72: =SUMPRODUCT(D35:D37,F47:F49) -> 4983.792506
C74: Notes: | D74: Calculated based on 6P weighted UEC (cells D31:D33) and Weighted Market Share (cells F41:F43)

Sheet Shipments and Stock
C2: Shipments and Stock
C4: NAVIGATION
C6: COMMENTS
C8: Building Type
C9: =Results!C9 -> TOTAL
C12: Automatic_Commercial_Icemakers
E13: 1987 | F13: 1988 | G13: 1989 | H13: 1990 | I13: 1991 | J13: 1992 | K13: 1993 | L13: 1994 | M13: 1995 | N13: 1996 | O13: 1997 | P13: 1998 | Q13: 1999 | R13: 2000 | S13: 2001 | T13: 2002 | U13: 2003 | V13: 2004 | W13: 2005 | X13: 2006 | Y13: 2007 | Z13: 2008 | AA13: 2009 | AB13: 2010 | AC13: 2011 | AD13: 2012 | AE13: 2013 | AF13: 2014 | AG13: 2015 | AH13: 2016 | AI13: 2017 | AJ13: 2018 | AK13: 2019 | AL13: 2020 | AM13: 2021 | AN13: 2022 | AO13: 2023 | AP13: 2024 | AQ13: 2025 | AR13: 2026 | AS13: 2027 | AT13: 2028 | AU13: 2029 | AV13: 2030 | AW13: 2031 | AX13: 2032 | AY13: 2033 | AZ13: 2034
C14: 6P Shipments | D14: (units) | E14: pre-dates plan | F14: pre-dates plan | G14: pre-dates plan | H14: pre-dates plan | I14: pre-dates plan | J14: pre-dates plan | K14: pre-dates plan | L14: pre-dates plan | M14: pre-dates plan | N14: pre-dates plan | O14: pre-dates plan | P14: pre-dates plan | Q14: pre-dates plan | R14: pre-dates plan | S14: pre-dates plan | T14: pre-dates plan | U14: pre-dates plan | V14: pre-dates plan | W14: pre-dates plan | X14: pre-dates plan | Y14: pre-dates plan | Z14: pre-dates plan | AA14: pre-dates plan | AB14: =INDEX('[1]6P Shipments'!$D$11:$L$35,MATCH(AB$13,'[1]6P Shipments'!$C$11:$C$35,0),MATCH($C$12,'[1]6P Shipments'!$D$10:$L$10,0)) -> 12270.91242 | AC14: =INDEX('[1]6P Shipments'!$D$11:$L$35,MATCH(AC$13,'[1]6P Shipments'!$C$11:$C$35,0),MATCH($C$12,'[1]6P Shipments'!$D$10:$L$10,0)) -> 12529.37829 | AD14: =INDEX('[1]6P Shipments'!$D$11:$L$35,MATCH(AD$13,'[1]6P Shipments'!$C$11:$C$35,0),MATCH($C$12,'[1]6P Shipments'!$D$10:$L$10,0)) -> 12790.31481 | AE14: =INDEX('[1]6P Shipments'!$D$11:$L$35,MATCH(AE$13,'[1]6P Shipments'!$C$11:$C$35,0),MATCH($C$12,'[1]6P Shipments'!$D$10:$L$10,0)) -> 13056.16852 | AF14: =INDEX('[1]6P Shipments'!$D$11:$L$35,MATCH(AF$13,'[1]6P Shipments'!$C$11:$C$35,0),MATCH($C$12,'[1]6P Shipments'!$D$10:$L$10,0)) -> 13293.36687 | AG14: =INDEX('[1]6P Shipments'!$D$11:$L$35,MATCH(AG$13,'[1]6P Shipments'!$C$11:$C$35,0),MATCH($C$12,'[1]6P Shipments'!$D$10:$L$10,0)) -> 13504.41824 | AH14: =INDEX('[1]6P Shipments'!$D$11:$L$35,MATCH(AH$13,'[1]6P Shipments'!$C$11:$C$35,0),MATCH($C$12,'[1]6P Shipments'!$D$10:$L$10,0)) -> 13691.4769 | AI14: =INDEX('[1]6P Shipments'!$D$11:$L$35,MATCH(AI$13,'[1]6P Shipments'!$C$11:$C$35,0),MATCH($C$12,'[1]6P Shipments'!$D$10:$L$10,0)) -> 13857.05367 | AJ14: =INDEX('[1]6P Shipments'!$D$11:$L$35,MATCH(AJ$13,'[1]6P Shipments'!$C$11:$C$35,0),MATCH($C$12,'[1]6P Shipments'!$D$10:$L$10,0)) -> 14004.26977 | AK14: =INDEX('[1]6P Shipments'!$D$11:$L$35,MATCH(AK$13,'[1]6P Shipments'!$C$11:$C$35,0),MATCH($C$12,'[1]6P Shipments'!$D$10:$L$10,0)) -> 14136.88945 | AL14: =INDEX('[1]6P Shipments'!$D$11:$L$35,MATCH(AL$13,'[1]6P Shipments'!$C$11:$C$35,0),MATCH($C$12,'[1]6P Shipments'!$D$10:$L$10,0)) -> 14257.45654 | AM14: =INDEX('[1]6P Shipments'!$D$11:$L$35,MATCH(AM$13,'[1]6P Shipments'!$C$11:$C$35,0),MATCH($C$12,'[1]6P Shipments'!$D$10:$L$10,0)) -> 14370.06153 | AN14: =INDEX('[1]6P Shipments'!$D$11:$L$35,MATCH(AN$13,'[1]6P Shipments'!$C$11:$C$35,0),MATCH($C$12,'[1]6P Shipments'!$D$10:$L$10,0)) -> 14479.42355 | AO14: =INDEX('[1]6P Shipments'!$D$11:$L$35,MATCH(AO$13,'[1]6P Shipments'!$C$11:$C$35,0),MATCH($C$12,'[1]6P Shipments'!$D$10:$L$10,0)) -> 14588.96927 | AP14: =INDEX('[1]6P Shipments'!$D$11:$L$35,MATCH(AP$13,'[1]6P Shipments'!$C$11:$C$35,0),MATCH($C$12,'[1]6P Shipments'!$D$10:$L$10,0)) -> 14700.81345 | AQ14: =INDEX('[1]6P Shipments'!$D$11:$L$35,MATCH(AQ$13,'[1]6P Shipments'!$C$11:$C$35,0),MATCH($C$12,'[1]6P Shipments'!$D$10:$L$10,0)) -> 14815.75525 | AR14: =INDEX('[1]6P Shipments'!$D$11:$L$35,MATCH(AR$13,'[1]6P Shipments'!$C$11:$C$35,0),MATCH($C$12,'[1]6P Shipments'!$D$10:$L$10,0)) -> 14934.18844 | AS14: =INDEX('[1]6P Shipments'!$D$11:$L$35,MATCH(AS$13,'[1]6P Shipments'!$C$11:$C$35,0),MATCH($C$12,'[1]6P Shipments'!$D$10:$L$10,0)) -> 15056.21428 | AT14: =INDEX('[1]6P Shipments'!$D$11:$L$35,MATCH(AT$13,'[1]6P Shipments'!$C$11:$C$35,0),MATCH($C$12,'[1]6P Shipments'!$D$10:$L$10,0)) -> 15181.84927 | AU14: =INDEX('[1]6P Shipments'!$D$11:$L$35,MATCH(AU$13,'[1]6P Shipments'!$C$11:$C$35,0),MATCH($C$12,'[1]6P Shipments'!$D$10:$L$10,0)) -> 15311.46022 | AV14: =INDEX('[1]6P Shipments'!$D$11:$L$35,MATCH(AV$13,'[1]6P Shipments'!$C$11:$C$35,0),MATCH($C$12,'[1]6P Shipments'!$D$10:$L$10,0)) -> 15444.93863 | AW14: =INDEX('[1]6P Shipments'!$D$11:$L$35,MATCH(AW$13,'[1]6P Shipments'!$C$11:$C$35,0),MATCH($C$12,'[1]6P Shipments'!$D$10:$L$10,0)) -> 15444.93863 | AX14: =INDEX('[1]6P Shipments'!$D$11:$L$35,MATCH(AX$13,'[1]6P Shipments'!$C$11:$C$35,0),MATCH($C$12,'[1]6P Shipments'!$D$10:$L$10,0)) -> 15444.93863 | AY14: =INDEX('[1]6P Shipments'!$D$11:$L$35,MATCH(AY$13,'[1]6P Shipments'!$C$11:$C$35,0),MATCH($C$12,'[1]6P Shipments'!$D$10:$L$10,0)) -> 15444.93863 | AZ14: =INDEX('[1]6P Shipments'!$D$11:$L$35,MATCH(AZ$13,'[1]6P Shipments'!$C$11:$C$35,0),MATCH($C$12,'[1]6P Shipments'!$D$10:$L$10,0)) -> 15444.93863
C15: Replacement Shipments | D15: (units) | E15: =OFFSET(INDEX('[1]SHIPMENTS - TOTAL'!$E$8:$BF$467,MATCH($C$12,'[1]SHIPMENTS - TOTAL'!$C$8:$C$25,0),MATCH(E$13,'[1]SHIPMENTS - TOTAL'!$E$7:$BF$7,0)),MATCH($C$9,'[1]SHIPMENTS - TOTAL'!$D$2:$D$467,0)-1,0) ->  | F15: =OFFSET(INDEX('[1]SHIPMENTS - TOTAL'!$E$8:$BF$467,MATCH($C$12,'[1]SHIPMENTS - TOTAL'!$C$8:$C$25,0),MATCH(F$13,'[1]SHIPMENTS - TOTAL'!$E$7:$BF$7,0)),MATCH($C$9,'[1]SHIPMENTS - TOTAL'!$D$2:$D$467,0)-1,0) ->  | G15: =OFFSET(INDEX('[1]SHIPMENTS - TOTAL'!$E$8:$BF$467,MATCH($C$12,'[1]SHIPMENTS - TOTAL'!$C$8:$C$25,0),MATCH(G$13,'[1]SHIPMENTS - TOTAL'!$E$7:$BF$7,0)),MATCH($C$9,'[1]SHIPMENTS - TOTAL'!$D$2:$D$467,0)-1,0) ->  | H15: =OFFSET(INDEX('[1]SHIPMENTS - TOTAL'!$E$8:$BF$467,MATCH($C$12,'[1]SHIPMENTS - TOTAL'!$C$8:$C$25,0),MATCH(H$13,'[1]SHIPMENTS - TOTAL'!$E$7:$BF$7,0)),MATCH($C$9,'[1]SHIPMENTS - TOTAL'!$D$2:$D$467,0)-1,0) ->  | I15: =OFFSET(INDEX('[1]SHIPMENTS - TOTAL'!$E$8:$BF$467,MATCH($C$12,'[1]SHIPMENTS - TOTAL'!$C$8:$C$25,0),MATCH(I$13,'[1]SHIPMENTS - TOTAL'!$E$7:$BF$7,0)),MATCH($C$9,'[1]SHIPMENTS - TOTAL'!$D$2:$D$467,0)-1,0) ->  | J15: =OFFSET(INDEX('[1]SHIPMENTS - TOTAL'!$E$8:$BF$467,MATCH($C$12,'[1]SHIPMENTS - TOTAL'!$C$8:$C$25,0),MATCH(J$13,'[1]SHIPMENTS - TOTAL'!$E$7:$BF$7,0)),MATCH($C$9,'[1]SHIPMENTS - TOTAL'!$D$2:$D$467,0)-1,0) ->  | K15: =OFFSET(INDEX('[1]SHIPMENTS - TOTAL'!$E$8:$BF$467,MATCH($C$12,'[1]SHIPMENTS - TOTAL'!$C$8:$C$25,0),MATCH(K$13,'[1]SHIPMENTS - TOTAL'!$E$7:$BF$7,0)),MATCH($C$9,'[1]SHIPMENTS - TOTAL'!$D$2:$D$467,0)-1,0) ->  | L15: =OFFSET(INDEX('[1]SHIPMENTS - TOTAL'!$E$8:$BF$467,MATCH($C$12,'[1]SHIPMENTS - TOTAL'!$C$8:$C$25,0),MATCH(L$13,'[1]SHIPMENTS - TOTAL'!$E$7:$BF$7,0)),MATCH($C$9,'[1]SHIPMENTS - TOTAL'!$D$2:$D$467,0)-1,0) ->  | M15: =OFFSET(INDEX('[1]SHIPMENTS - TOTAL'!$E$8:$BF$467,MATCH($C$12,'[1]SHIPMENTS - TOTAL'!$C$8:$C$25,0),MATCH(M$13,'[1]SHIPMENTS - TOTAL'!$E$7:$BF$7,0)),MATCH($C$9,'[1]SHIPMENTS - TOTAL'!$D$2:$D$467,0)-1,0) ->  | N15: =OFFSET(INDEX('[1]SHIPMENTS - TOTAL'!$E$8:$BF$467,MATCH($C$12,'[1]SHIPMENTS - TOTAL'!$C$8:$C$25,0),MATCH(N$13,'[1]SHIPMENTS - TOTAL'!$E$7:$BF$7,0)),MATCH($C$9,'[1]SHIPMENTS - TOTAL'!$D$2:$D$467,0)-1,0) ->  | O15: =OFFSET(INDEX('[1]SHIPMENTS - TOTAL'!$E$8:$BF$467,MATCH($C$12,'[1]SHIPMENTS - TOTAL'!$C$8:$C$25,0),MATCH(O$13,'[1]SHIPMENTS - TOTAL'!$E$7:$BF$7,0)),MATCH($C$9,'[1]SHIPMENTS - TOTAL'!$D$2:$D$467,0)-1,0) ->  | P15: =OFFSET(INDEX('[1]SHIPMENTS - TOTAL'!$E$8:$BF$467,MATCH($C$12,'[1]SHIPMENTS - TOTAL'!$C$8:$C$25,0),MATCH(P$13,'[1]SHIPMENTS - TOTAL'!$E$7:$BF$7,0)),MATCH($C$9,'[1]SHIPMENTS - TOTAL'!$D$2:$D$467,0)-1,0) ->  | Q15: =OFFSET(INDEX('[1]SHIPMENTS - TOTAL'!$E$8:$BF$467,MATCH($C$12,'[1]SHIPMENTS - TOTAL'!$C$8:$C$25,0),MATCH(Q$13,'[1]SHIPMENTS - TOTAL'!$E$7:$BF$7,0)),MATCH($C$9,'[1]SHIPMENTS - TOTAL'!$D$2:$D$467,0)-1,0) ->  | R15: =OFFSET(INDEX('[1]SHIPMENTS - TOTAL'!$E$8:$BF$467,MATCH($C$12,'[1]SHIPMENTS - TOTAL'!$C$8:$C$25,0),MATCH(R$13,'[1]SHIPMENTS - TOTAL'!$E$7:$BF$7,0)),MATCH($C$9,'[1]SHIPMENTS - TOTAL'!$D$2:$D$467,0)-1,0) ->  | S15: =OFFSET(INDEX('[1]SHIPMENTS - TOTAL'!$E$8:$BF$467,MATCH($C$12,'[1]SHIPMENTS - TOTAL'!$C$8:$C$25,0),MATCH(S$13,'[1]SHIPMENTS - TOTAL'!$E$7:$BF$7,0)),MATCH($C$9,'[1]SHIPMENTS - TOTAL'!$D$2:$D$467,0)-1,0) ->  | T15: =OFFSET(INDEX('[1]SHIPMENTS - TOTAL'!$E$8:$BF$467,MATCH($C$12,'[1]SHIPMENTS - TOTAL'!$C$8:$C$25,0),MATCH(T$13,'[1]SHIPMENTS - TOTAL'!$E$7:$BF$7,0)),MATCH($C$9,'[1]SHIPMENTS - TOTAL'!$D$2:$D$467,0)-1,0) ->  | U15: =OFFSET(INDEX('[1]SHIPMENTS - TOTAL'!$E$8:$BF$467,MATCH($C$12,'[1]SHIPMENTS - TOTAL'!$C$8:$C$25,0),MATCH(U$13,'[1]SHIPMENTS - TOTAL'!$E$7:$BF$7,0)),MATCH($C$9,'[1]SHIPMENTS - TOTAL'!$D$2:$D$467,0)-1,0) ->  | V15: =OFFSET(INDEX('[1]SHIPMENTS - TOTAL'!$E$8:$BF$467,MATCH($C$12,'[1]SHIPMENTS - TOTAL'!$C$8:$C$25,0),MATCH(V$13,'[1]SHIPMENTS - TOTAL'!$E$7:$BF$7,0)),MATCH($C$9,'[1]SHIPMENTS - TOTAL'!$D$2:$D$467,0)-1,0) ->  | W15: =OFFSET(INDEX('[1]SHIPMENTS - TOTAL'!$E$8:$BF$467,MATCH($C$12,'[1]SHIPMENTS - TOTAL'!$C$8:$C$25,0),MATCH(W$13,'[1]SHIPMENTS - TOTAL'!$E$7:$BF$7,0)),MATCH($C$9,'[1]SHIPMENTS - TOTAL'!$D$2:$D$467,0)-1,0) ->  | X15: =OFFSET(INDEX('[1]SHIPMENTS - TOTAL'!$E$8:$BF$467,MATCH($C$12,'[1]SHIPMENTS - TOTAL'!$C$8:$C$25,0),MATCH(X$13,'[1]SHIPMENTS - TOTAL'!$E$7:$BF$7,0)),MATCH($C$9,'[1]SHIPMENTS - TOTAL'!$D$2:$D$467,0)-1,0) ->  | Y15: =OFFSET(INDEX('[1]SHIPMENTS - TOTAL'!$E$8:$BF$467,MATCH($C$12,'[1]SHIPMENTS - TOTAL'!$C$8:$C$25,0),MATCH(Y$13,'[1]SHIPMENTS - TOTAL'!$E$7:$BF$7,0)),MATCH($C$9,'[1]SHIPMENTS - TOTAL'!$D$2:$D$467,0)-1,0) ->  | Z15: =OFFSET(INDEX('[1]SHIPMENTS - TOTAL'!$E$8:$BF$467,MATCH($C$12,'[1]SHIPMENTS - TOTAL'!$C$8:$C$25,0),MATCH(Z$13,'[1]SHIPMENTS - TOTAL'!$E$7:$BF$7,0)),MATCH($C$9,'[1]SHIPMENTS - TOTAL'!$D$2:$D$467,0)-1,0) ->  | AA15: =OFFSET(INDEX('[1]SHIPMENTS - TOTAL'!$E$8:$BF$467,MATCH($C$12,'[1]SHIPMENTS - TOTAL'!$C$8:$C$25,0),MATCH(AA$13,'[1]SHIPMENTS - TOTAL'!$E$7:$BF$7,0)),MATCH($C$9,'[1]SHIPMENTS - TOTAL'!$D$2:$D$467,0)-1,0) ->  | AB15: =OFFSET(INDEX('[1]SHIPMENTS - TOTAL'!$E$8:$BF$467,MATCH($C$12,'[1]SHIPMENTS - TOTAL'!$C$8:$C$25,0),MATCH(AB$13,'[1]SHIPMENTS - TOTAL'!$E$7:$BF$7,0)),MATCH($C$9,'[1]SHIPMENTS - TOTAL'!$D$2:$D$467,0)-1,0) ->  | AC15: =OFFSET(INDEX('[1]SHIPMENTS - TOTAL'!$E$8:$BF$467,MATCH($C$12,'[1]SHIPMENTS - TOTAL'!$C$8:$C$25,0),MATCH(AC$13,'[1]SHIPMENTS - TOTAL'!$E$7:$BF$7,0)),MATCH($C$9,'[1]SHIPMENTS - TOTAL'!$D$2:$D$467,0)-1,0) ->  | AD15: =OFFSET(INDEX('[1]SHIPMENTS - TOTAL'!$E$8:$BF$467,MATCH($C$12,'[1]SHIPMENTS - TOTAL'!$C$8:$C$25,0),MATCH(AD$13,'[1]SHIPMENTS - TOTAL'!$E$7:$BF$7,0)),MATCH($C$9,'[1]SHIPMENTS - TOTAL'!$D$2:$D$467,0)-1,0) ->  | AE15: =OFFSET(INDEX('[1]SHIPMENTS - TOTAL'!$E$8:$BF$467,MATCH($C$12,'[1]SHIPMENTS - TOTAL'!$C$8:$C$25,0),MATCH(AE$13,'[1]SHIPMENTS - TOTAL'!$E$7:$BF$7,0)),MATCH($C$9,'[1]SHIPMENTS - TOTAL'!$D$2:$D$467,0)-1,0) ->  | AF15: =OFFSET(INDEX('[1]SHIPMENTS - TOTAL'!$E$8:$BF$467,MATCH($C$12,'[1]SHIPMENTS - TOTAL'!$C$8:$C$25,0),MATCH(AF$13,'[1]SHIPMENTS - TOTAL'!$E$7:$BF$7,0)),MATCH($C$9,'[1]SHIPMENTS - TOTAL'!$D$2:$D$467,0)-1,0) ->  | AG15: =OFFSET(INDEX('[1]SHIPMENTS - TOTAL'!$E$8:$BF$467,MATCH($C$12,'[1]SHIPMENTS - TOTAL'!$C$8:$C$25,0),MATCH(AG$13,'[1]SHIPMENTS - TOTAL'!$E$7:$BF$7,0)),MATCH($C$9,'[1]SHIPMENTS - TOTAL'!$D$2:$D$467,0)-1,0) ->  | AH15: =OFFSET(INDEX('[1]SHIPMENTS - TOTAL'!$E$8:$BF$467,MATCH($C$12,'[1]SHIPMENTS - TOTAL'!$C$8:$C$25,0),MATCH(AH$13,'[1]SHIPMENTS - TOTAL'!$E$7:$BF$7,0)),MATCH($C$9,'[1]SHIPMENTS - TOTAL'!$D$2:$D$467,0)-1,0) ->  | AI15: =OFFSET(INDEX('[1]SHIPMENTS - TOTAL'!$E$8:$BF$467,MATCH($C$12,'[1]SHIPMENTS - TOTAL'!$C$8:$C$25,0),MATCH(AI$13,'[1]SHIPMENTS - TOTAL'!$E$7:$BF$7,0)),MATCH($C$9,'[1]SHIPMENTS - TOTAL'!$D$2:$D$467,0)-1,0) ->  | AJ15: =OFFSET(INDEX('[1]SHIPMENTS - TOTAL'!$E$8:$BF$467,MATCH($C$12,'[1]SHIPMENTS - TOTAL'!$C$8:$C$25,0),MATCH(AJ$13,'[1]SHIPMENTS - TOTAL'!$E$7:$BF$7,0)),MATCH($C$9,'[1]SHIPMENTS - TOTAL'!$D$2:$D$467,0)-1,0) ->  | AK15: =OFFSET(INDEX('[1]SHIPMENTS - TOTAL'!$E$8:$BF$467,MATCH($C$12,'[1]SHIPMENTS - TOTAL'!$C$8:$C$25,0),MATCH(AK$13,'[1]SHIPMENTS - TOTAL'!$E$7:$BF$7,0)),MATCH($C$9,'[1]SHIPMENTS - TOTAL'!$D$2:$D$467,0)-1,0) ->  | AL15: =OFFSET(INDEX('[1]SHIPMENTS - TOTAL'!$E$8:$BF$467,MATCH($C$12,'[1]SHIPMENTS - TOTAL'!$C$8:$C$25,0),MATCH(AL$13,'[1]SHIPMENTS - TOTAL'!$E$7:$BF$7,0)),MATCH($C$9,'[1]SHIPMENTS - TOTAL'!$D$2:$D$467,0)-1,0) ->  | AM15: =OFFSET(INDEX('[1]SHIPMENTS - TOTAL'!$E$8:$BF$467,MATCH($C$12,'[1]SHIPMENTS - TOTAL'!$C$8:$C$25,0),MATCH(AM$13,'[1]SHIPMENTS - TOTAL'!$E$7:$BF$7,0)),MATCH($C$9,'[1]SHIPMENTS - TOTAL'!$D$2:$D$467,0)-1,0) ->  | AN15: =OFFSET(INDEX('[1]SHIPMENTS - TOTAL'!$E$8:$BF$467,MATCH($C$12,'[1]SHIPMENTS - TOTAL'!$C$8:$C$25,0),MATCH(AN$13,'[1]SHIPMENTS - TOTAL'!$E$7:$BF$7,0)),MATCH($C$9,'[1]SHIPMENTS - TOTAL'!$D$2:$D$467,0)-1,0) ->  | AO15: =OFFSET(INDEX('[1]SHIPMENTS - TOTAL'!$E$8:$BF$467,MATCH($C$12,'[1]SHIPMENTS - TOTAL'!$C$8:$C$25,0),MATCH(AO$13,'[1]SHIPMENTS - TOTAL'!$E$7:$BF$7,0)),MATCH($C$9,'[1]SHIPMENTS - TOTAL'!$D$2:$D$467,0)-1,0) ->  | AP15: =OFFSET(INDEX('[1]SHIPMENTS - TOTAL'!$E$8:$BF$467,MATCH($C$12,'[1]SHIPMENTS - TOTAL'!$C$8:$C$25,0),MATCH(AP$13,'[1]SHIPMENTS - TOTAL'!$E$7:$BF$7,0)),MATCH($C$9,'[1]SHIPMENTS - TOTAL'!$D$2:$D$467,0)-1,0) ->  | AQ15: =OFFSET(INDEX('[1]SHIPMENTS - TOTAL'!$E$8:$BF$467,MATCH($C$12,'[1]SHIPMENTS - TOTAL'!$C$8:$C$25,0),MATCH(AQ$13,'[1]SHIPMENTS - TOTAL'!$E$7:$BF$7,0)),MATCH($C$9,'[1]SHIPMENTS - TOTAL'!$D$2:$D$467,0)-1,0) ->  | AR15: =OFFSET(INDEX('[1]SHIPMENTS - TOTAL'!$E$8:$BF$467,MATCH($C$12,'[1]SHIPMENTS - TOTAL'!$C$8:$C$25,0),MATCH(AR$13,'[1]SHIPMENTS - TOTAL'!$E$7:$BF$7,0)),MATCH($C$9,'[1]SHIPMENTS - TOTAL'!$D$2:$D$467,0)-1,0) ->  | AS15: =OFFSET(INDEX('[1]SHIPMENTS - TOTAL'!$E$8:$BF$467,MATCH($C$12,'[1]SHIPMENTS - TOTAL'!$C$8:$C$25,0),MATCH(AS$13,'[1]SHIPMENTS - TOTAL'!$E$7:$BF$7,0)),MATCH($C$9,'[1]SHIPMENTS - TOTAL'!$D$2:$D$467,0)-1,0) ->  | AT15: =OFFSET(INDEX('[1]SHIPMENTS - TOTAL'!$E$8:$BF$467,MATCH($C$12,'[1]SHIPMENTS - TOTAL'!$C$8:$C$25,0),MATCH(AT$13,'[1]SHIPMENTS - TOTAL'!$E$7:$BF$7,0)),MATCH($C$9,'[1]SHIPMENTS - TOTAL'!$D$2:$D$467,0)-1,0) ->  | AU15: =OFFSET(INDEX('[1]SHIPMENTS - TOTAL'!$E$8:$BF$467,MATCH($C$12,'[1]SHIPMENTS - TOTAL'!$C$8:$C$25,0),MATCH(AU$13,'[1]SHIPMENTS - TOTAL'!$E$7:$BF$7,0)),MATCH($C$9,'[1]SHIPMENTS - TOTAL'!$D$2:$D$467,0)-1,0) ->  | AV15: =OFFSET(INDEX('[1]SHIPMENTS - TOTAL'!$E$8:$BF$467,MATCH($C$12,'[1]SHIPMENTS - TOTAL'!$C$8:$C$25,0),MATCH(AV$13,'[1]SHIPMENTS - TOTAL'!$E$7:$BF$7,0)),MATCH($C$9,'[1]SHIPMENTS - TOTAL'!$D$2:$D$467,0)-1,0) ->  | AW15: =OFFSET(INDEX('[1]SHIPMENTS - TOTAL'!$E$8:$BF$467,MATCH($C$12,'[1]SHIPMENTS - TOTAL'!$C$8:$C$25,0),MATCH(AW$13,'[1]SHIPMENTS - TOTAL'!$E$7:$BF$7,0)),MATCH($C$9,'[1]SHIPMENTS - TOTAL'!$D$2:$D$467,0)-1,0) ->  | AX15: =OFFSET(INDEX('[1]SHIPMENTS - TOTAL'!$E$8:$BF$467,MATCH($C$12,'[1]SHIPMENTS - TOTAL'!$C$8:$C$25,0),MATCH(AX$13,'[1]SHIPMENTS - TOTAL'!$E$7:$BF$7,0)),MATCH($C$9,'[1]SHIPMENTS - TOTAL'!$D$2:$D$467,0)-1,0) ->  | AY15: =OFFSET(INDEX('[1]SHIPMENTS - TOTAL'!$E$8:$BF$467,MATCH($C$12,'[1]SHIPMENTS - TOTAL'!$C$8:$C$25,0),MATCH(AY$13,'[1]SHIPMENTS - TOTAL'!$E$7:$BF$7,0)),MATCH($C$9,'[1]SHIPMENTS - TOTAL'!$D$2:$D$467,0)-1,0) ->  | AZ15: =OFFSET(INDEX('[1]SHIPMENTS - TOTAL'!$E$8:$BF$467,MATCH($C$12,'[1]SHIPMENTS - TOTAL'!$C$8:$C$25,0),MATCH(AZ$13,'[1]SHIPMENTS - TOTAL'!$E$7:$BF$7,0)),MATCH($C$9,'[1]SHIPMENTS - TOTAL'!$D$2:$D$467,0)-1,0) -> 
C16: Net New Shipments | D16: (units) | E16: =OFFSET(INDEX('[1]SHIPMENTS - TOTAL'!$E$8:$BF$467,MATCH($C$12,'[1]SHIPMENTS - TOTAL'!$C$8:$C$25,0),MATCH(E$13,'[1]SHIPMENTS - TOTAL'!$E$7:$BF$7,0)),MATCH($C$9,'[1]SHIPMENTS - TOTAL'!$D$2:$D$467,0)-1+1,0) ->  | F16: =OFFSET(INDEX('[1]SHIPMENTS - TOTAL'!$E$8:$BF$467,MATCH($C$12,'[1]SHIPMENTS - TOTAL'!$C$8:$C$25,0),MATCH(F$13,'[1]SHIPMENTS - TOTAL'!$E$7:$BF$7,0)),MATCH($C$9,'[1]SHIPMENTS - TOTAL'!$D$2:$D$467,0)-1+1,0) ->  | G16: =OFFSET(INDEX('[1]SHIPMENTS - TOTAL'!$E$8:$BF$467,MATCH($C$12,'[1]SHIPMENTS - TOTAL'!$C$8:$C$25,0),MATCH(G$13,'[1]SHIPMENTS - TOTAL'!$E$7:$BF$7,0)),MATCH($C$9,'[1]SHIPMENTS - TOTAL'!$D$2:$D$467,0)-1+1,0) ->  | H16: =OFFSET(INDEX('[1]SHIPMENTS - TOTAL'!$E$8:$BF$467,MATCH($C$12,'[1]SHIPMENTS - TOTAL'!$C$8:$C$25,0),MATCH(H$13,'[1]SHIPMENTS - TOTAL'!$E$7:$BF$7,0)),MATCH($C$9,'[1]SHIPMENTS - TOTAL'!$D$2:$D$467,0)-1+1,0) ->  | I16: =OFFSET(INDEX('[1]SHIPMENTS - TOTAL'!$E$8:$BF$467,MATCH($C$12,'[1]SHIPMENTS - TOTAL'!$C$8:$C$25,0),MATCH(I$13,'[1]SHIPMENTS - TOTAL'!$E$7:$BF$7,0)),MATCH($C$9,'[1]SHIPMENTS - TOTAL'!$D$2:$D$467,0)-1+1,0) ->  | J16: =OFFSET(INDEX('[1]SHIPMENTS - TOTAL'!$E$8:$BF$467,MATCH($C$12,'[1]SHIPMENTS - TOTAL'!$C$8:$C$25,0),MATCH(J$13,'[1]SHIPMENTS - TOTAL'!$E$7:$BF$7,0)),MATCH($C$9,'[1]SHIPMENTS - TOTAL'!$D$2:$D$467,0)-1+1,0) ->  | K16: =OFFSET(INDEX('[1]SHIPMENTS - TOTAL'!$E$8:$BF$467,MATCH($C$12,'[1]SHIPMENTS - TOTAL'!$C$8:$C$25,0),MATCH(K$13,'[1]SHIPMENTS - TOTAL'!$E$7:$BF$7,0)),MATCH($C$9,'[1]SHIPMENTS - TOTAL'!$D$2:$D$467,0)-1+1,0) ->  | L16: =OFFSET(INDEX('[1]SHIPMENTS - TOTAL'!$E$8:$BF$467,MATCH($C$12,'[1]SHIPMENTS - TOTAL'!$C$8:$C$25,0),MATCH(L$13,'[1]SHIPMENTS - TOTAL'!$E$7:$BF$7,0)),MATCH($C$9,'[1]SHIPMENTS - TOTAL'!$D$2:$D$467,0)-1+1,0) ->  | M16: =OFFSET(INDEX('[1]SHIPMENTS - TOTAL'!$E$8:$BF$467,MATCH($C$12,'[1]SHIPMENTS - TOTAL'!$C$8:$C$25,0),MATCH(M$13,'[1]SHIPMENTS - TOTAL'!$E$7:$BF$7,0)),MATCH($C$9,'[1]SHIPMENTS - TOTAL'!$D$2:$D$467,0)-1+1,0) ->  | N16: =OFFSET(INDEX('[1]SHIPMENTS - TOTAL'!$E$8:$BF$467,MATCH($C$12,'[1]SHIPMENTS - TOTAL'!$C$8:$C$25,0),MATCH(N$13,'[1]SHIPMENTS - TOTAL'!$E$7:$BF$7,0)),MATCH($C$9,'[1]SHIPMENTS - TOTAL'!$D$2:$D$467,0)-1+1,0) ->  | O16: =OFFSET(INDEX('[1]SHIPMENTS - TOTAL'!$E$8:$BF$467,MATCH($C$12,'[1]SHIPMENTS - TOTAL'!$C$8:$C$25,0),MATCH(O$13,'[1]SHIPMENTS - TOTAL'!$E$7:$BF$7,0)),MATCH($C$9,'[1]SHIPMENTS - TOTAL'!$D$2:$D$467,0)-1+1,0) ->  | P16: =OFFSET(INDEX('[1]SHIPMENTS - TOTAL'!$E$8:$BF$467,MATCH($C$12,'[1]SHIPMENTS - TOTAL'!$C$8:$C$25,0),MATCH(P$13,'[1]SHIPMENTS - TOTAL'!$E$7:$BF$7,0)),MATCH($C$9,'[1]SHIPMENTS - TOTAL'!$D$2:$D$467,0)-1+1,0) ->  | Q16: =OFFSET(INDEX('[1]SHIPMENTS - TOTAL'!$E$8:$BF$467,MATCH($C$12,'[1]SHIPMENTS - TOTAL'!$C$8:$C$25,0),MATCH(Q$13,'[1]SHIPMENTS - TOTAL'!$E$7:$BF$7,0)),MATCH($C$9,'[1]SHIPMENTS - TOTAL'!$D$2:$D$467,0)-1+1,0) ->  | R16: =OFFSET(INDEX('[1]SHIPMENTS - TOTAL'!$E$8:$BF$467,MATCH($C$12,'[1]SHIPMENTS - TOTAL'!$C$8:$C$25,0),MATCH(R$13,'[1]SHIPMENTS - TOTAL'!$E$7:$BF$7,0)),MATCH($C$9,'[1]SHIPMENTS - TOTAL'!$D$2:$D$467,0)-1+1,0) ->  | S16: =OFFSET(INDEX('[1]SHIPMENTS - TOTAL'!$E$8:$BF$467,MATCH($C$12,'[1]SHIPMENTS - TOTAL'!$C$8:$C$25,0),MATCH(S$13,'[1]SHIPMENTS - TOTAL'!$E$7:$BF$7,0)),MATCH($C$9,'[1]SHIPMENTS - TOTAL'!$D$2:$D$467,0)-1+1,0) ->  | T16: =OFFSET(INDEX('[1]SHIPMENTS - TOTAL'!$E$8:$BF$467,MATCH($C$12,'[1]SHIPMENTS - TOTAL'!$C$8:$C$25,0),MATCH(T$13,'[1]SHIPMENTS - TOTAL'!$E$7:$BF$7,0)),MATCH($C$9,'[1]SHIPMENTS - TOTAL'!$D$2:$D$467,0)-1+1,0) ->  | U16: =OFFSET(INDEX('[1]SHIPMENTS - TOTAL'!$E$8:$BF$467,MATCH($C$12,'[1]SHIPMENTS - TOTAL'!$C$8:$C$25,0),MATCH(U$13,'[1]SHIPMENTS - TOTAL'!$E$7:$BF$7,0)),MATCH($C$9,'[1]SHIPMENTS - TOTAL'!$D$2:$D$467,0)-1+1,0) ->  | V16: =OFFSET(INDEX('[1]SHIPMENTS - TOTAL'!$E$8:$BF$467,MATCH($C$12,'[1]SHIPMENTS - TOTAL'!$C$8:$C$25,0),MATCH(V$13,'[1]SHIPMENTS - TOTAL'!$E$7:$BF$7,0)),MATCH($C$9,'[1]SHIPMENTS - TOTAL'!$D$2:$D$467,0)-1+1,0) ->  | W16: =OFFSET(INDEX('[1]SHIPMENTS - TOTAL'!$E$8:$BF$467,MATCH($C$12,'[1]SHIPMENTS - TOTAL'!$C$8:$C$25,0),MATCH(W$13,'[1]SHIPMENTS - TOTAL'!$E$7:$BF$7,0)),MATCH($C$9,'[1]SHIPMENTS - TOTAL'!$D$2:$D$467,0)-1+1,0) ->  | X16: =OFFSET(INDEX('[1]SHIPMENTS - TOTAL'!$E$8:$BF$467,MATCH($C$12,'[1]SHIPMENTS - TOTAL'!$C$8:$C$25,0),MATCH(X$13,'[1]SHIPMENTS - TOTAL'!$E$7:$BF$7,0)),MATCH($C$9,'[1]SHIPMENTS - TOTAL'!$D$2:$D$467,0)-1+1,0) ->  | Y16: =OFFSET(INDEX('[1]SHIPMENTS - TOTAL'!$E$8:$BF$467,MATCH($C$12,'[1]SHIPMENTS - TOTAL'!$C$8:$C$25,0),MATCH(Y$13,'[1]SHIPMENTS - TOTAL'!$E$7:$BF$7,0)),MATCH($C$9,'[1]SHIPMENTS - TOTAL'!$D$2:$D$467,0)-1+1,0) ->  | Z16: =OFFSET(INDEX('[1]SHIPMENTS - TOTAL'!$E$8:$BF$467,MATCH($C$12,'[1]SHIPMENTS - TOTAL'!$C$8:$C$25,0),MATCH(Z$13,'[1]SHIPMENTS - TOTAL'!$E$7:$BF$7,0)),MATCH($C$9,'[1]SHIPMENTS - TOTAL'!$D$2:$D$467,0)-1+1,0) ->  | AA16: =OFFSET(INDEX('[1]SHIPMENTS - TOTAL'!$E$8:$BF$467,MATCH($C$12,'[1]SHIPMENTS - TOTAL'!$C$8:$C$25,0),MATCH(AA$13,'[1]SHIPMENTS - TOTAL'!$E$7:$BF$7,0)),MATCH($C$9,'[1]SHIPMENTS - TOTAL'!$D$2:$D$467,0)-1+1,0) ->  | AB16: =OFFSET(INDEX('[1]SHIPMENTS - TOTAL'!$E$8:$BF$467,MATCH($C$12,'[1]SHIPMENTS - TOTAL'!$C$8:$C$25,0),MATCH(AB$13,'[1]SHIPMENTS - TOTAL'!$E$7:$BF$7,0)),MATCH($C$9,'[1]SHIPMENTS - TOTAL'!$D$2:$D$467,0)-1+1,0) ->  | AC16: =OFFSET(INDEX('[1]SHIPMENTS - TOTAL'!$E$8:$BF$467,MATCH($C$12,'[1]SHIPMENTS - TOTAL'!$C$8:$C$25,0),MATCH(AC$13,'[1]SHIPMENTS - TOTAL'!$E$7:$BF$7,0)),MATCH($C$9,'[1]SHIPMENTS - TOTAL'!$D$2:$D$467,0)-1+1,0) ->  | AD16: =OFFSET(INDEX('[1]SHIPMENTS - TOTAL'!$E$8:$BF$467,MATCH($C$12,'[1]SHIPMENTS - TOTAL'!$C$8:$C$25,0),MATCH(AD$13,'[1]SHIPMENTS - TOTAL'!$E$7:$BF$7,0)),MATCH($C$9,'[1]SHIPMENTS - TOTAL'!$D$2:$D$467,0)-1+1,0) ->  | AE16: =OFFSET(INDEX('[1]SHIPMENTS - TOTAL'!$E$8:$BF$467,MATCH($C$12,'[1]SHIPMENTS - TOTAL'!$C$8:$C$25,0),MATCH(AE$13,'[1]SHIPMENTS - TOTAL'!$E$7:$BF$7,0)),MATCH($C$9,'[1]SHIPMENTS - TOTAL'!$D$2:$D$467,0)-1+1,0) ->  | AF16: =OFFSET(INDEX('[1]SHIPMENTS - TOTAL'!$E$8:$BF$467,MATCH($C$12,'[1]SHIPMENTS - TOTAL'!$C$8:$C$25,0),MATCH(AF$13,'[1]SHIPMENTS - TOTAL'!$E$7:$BF$7,0)),MATCH($C$9,'[1]SHIPMENTS - TOTAL'!$D$2:$D$467,0)-1+1,0) ->  | AG16: =OFFSET(INDEX('[1]SHIPMENTS - TOTAL'!$E$8:$BF$467,MATCH($C$12,'[1]SHIPMENTS - TOTAL'!$C$8:$C$25,0),MATCH(AG$13,'[1]SHIPMENTS - TOTAL'!$E$7:$BF$7,0)),MATCH($C$9,'[1]SHIPMENTS - TOTAL'!$D$2:$D$467,0)-1+1,0) ->  | AH16: =OFFSET(INDEX('[1]SHIPMENTS - TOTAL'!$E$8:$BF$467,MATCH($C$12,'[1]SHIPMENTS - TOTAL'!$C$8:$C$25,0),MATCH(AH$13,'[1]SHIPMENTS - TOTAL'!$E$7:$BF$7,0)),MATCH($C$9,'[1]SHIPMENTS - TOTAL'!$D$2:$D$467,0)-1+1,0) ->  | AI16: =OFFSET(INDEX('[1]SHIPMENTS - TOTAL'!$E$8:$BF$467,MATCH($C$12,'[1]SHIPMENTS - TOTAL'!$C$8:$C$25,0),MATCH(AI$13,'[1]SHIPMENTS - TOTAL'!$E$7:$BF$7,0)),MATCH($C$9,'[1]SHIPMENTS - TOTAL'!$D$2:$D$467,0)-1+1,0) ->  | AJ16: =OFFSET(INDEX('[1]SHIPMENTS - TOTAL'!$E$8:$BF$467,MATCH($C$12,'[1]SHIPMENTS - TOTAL'!$C$8:$C$25,0),MATCH(AJ$13,'[1]SHIPMENTS - TOTAL'!$E$7:$BF$7,0)),MATCH($C$9,'[1]SHIPMENTS - TOTAL'!$D$2:$D$467,0)-1+1,0) ->  | AK16: =OFFSET(INDEX('[1]SHIPMENTS - TOTAL'!$E$8:$BF$467,MATCH($C$12,'[1]SHIPMENTS - TOTAL'!$C$8:$C$25,0),MATCH(AK$13,'[1]SHIPMENTS - TOTAL'!$E$7:$BF$7,0)),MATCH($C$9,'[1]SHIPMENTS - TOTAL'!$D$2:$D$467,0)-1+1,0) ->  | AL16: =OFFSET(INDEX('[1]SHIPMENTS - TOTAL'!$E$8:$BF$467,MATCH($C$12,'[1]SHIPMENTS - TOTAL'!$C$8:$C$25,0),MATCH(AL$13,'[1]SHIPMENTS - TOTAL'!$E$7:$BF$7,0)),MATCH($C$9,'[1]SHIPMENTS - TOTAL'!$D$2:$D$467,0)-1+1,0) ->  | AM16: =OFFSET(INDEX('[1]SHIPMENTS - TOTAL'!$E$8:$BF$467,MATCH($C$12,'[1]SHIPMENTS - TOTAL'!$C$8:$C$25,0),MATCH(AM$13,'[1]SHIPMENTS - TOTAL'!$E$7:$BF$7,0)),MATCH($C$9,'[1]SHIPMENTS - TOTAL'!$D$2:$D$467,0)-1+1,0) ->  | AN16: =OFFSET(INDEX('[1]SHIPMENTS - TOTAL'!$E$8:$BF$467,MATCH($C$12,'[1]SHIPMENTS - TOTAL'!$C$8:$C$25,0),MATCH(AN$13,'[1]SHIPMENTS - TOTAL'!$E$7:$BF$7,0)),MATCH($C$9,'[1]SHIPMENTS - TOTAL'!$D$2:$D$467,0)-1+1,0) ->  | AO16: =OFFSET(INDEX('[1]SHIPMENTS - TOTAL'!$E$8:$BF$467,MATCH($C$12,'[1]SHIPMENTS - TOTAL'!$C$8:$C$25,0),MATCH(AO$13,'[1]SHIPMENTS - TOTAL'!$E$7:$BF$7,0)),MATCH($C$9,'[1]SHIPMENTS - TOTAL'!$D$2:$D$467,0)-1+1,0) ->  | AP16: =OFFSET(INDEX('[1]SHIPMENTS - TOTAL'!$E$8:$BF$467,MATCH($C$12,'[1]SHIPMENTS - TOTAL'!$C$8:$C$25,0),MATCH(AP$13,'[1]SHIPMENTS - TOTAL'!$E$7:$BF$7,0)),MATCH($C$9,'[1]SHIPMENTS - TOTAL'!$D$2:$D$467,0)-1+1,0) ->  | AQ16: =OFFSET(INDEX('[1]SHIPMENTS - TOTAL'!$E$8:$BF$467,MATCH($C$12,'[1]SHIPMENTS - TOTAL'!$C$8:$C$25,0),MATCH(AQ$13,'[1]SHIPMENTS - TOTAL'!$E$7:$BF$7,0)),MATCH($C$9,'[1]SHIPMENTS - TOTAL'!$D$2:$D$467,0)-1+1,0) ->  | AR16: =OFFSET(INDEX('[1]SHIPMENTS - TOTAL'!$E$8:$BF$467,MATCH($C$12,'[1]SHIPMENTS - TOTAL'!$C$8:$C$25,0),MATCH(AR$13,'[1]SHIPMENTS - TOTAL'!$E$7:$BF$7,0)),MATCH($C$9,'[1]SHIPMENTS - TOTAL'!$D$2:$D$467,0)-1+1,0) ->  | AS16: =OFFSET(INDEX('[1]SHIPMENTS - TOTAL'!$E$8:$BF$467,MATCH($C$12,'[1]SHIPMENTS - TOTAL'!$C$8:$C$25,0),MATCH(AS$13,'[1]SHIPMENTS - TOTAL'!$E$7:$BF$7,0)),MATCH($C$9,'[1]SHIPMENTS - TOTAL'!$D$2:$D$467,0)-1+1,0) ->  | AT16: =OFFSET(INDEX('[1]SHIPMENTS - TOTAL'!$E$8:$BF$467,MATCH($C$12,'[1]SHIPMENTS - TOTAL'!$C$8:$C$25,0),MATCH(AT$13,'[1]SHIPMENTS - TOTAL'!$E$7:$BF$7,0)),MATCH($C$9,'[1]SHIPMENTS - TOTAL'!$D$2:$D$467,0)-1+1,0) ->  | AU16: =OFFSET(INDEX('[1]SHIPMENTS - TOTAL'!$E$8:$BF$467,MATCH($C$12,'[1]SHIPMENTS - TOTAL'!$C$8:$C$25,0),MATCH(AU$13,'[1]SHIPMENTS - TOTAL'!$E$7:$BF$7,0)),MATCH($C$9,'[1]SHIPMENTS - TOTAL'!$D$2:$D$467,0)-1+1,0) ->  | AV16: =OFFSET(INDEX('[1]SHIPMENTS - TOTAL'!$E$8:$BF$467,MATCH($C$12,'[1]SHIPMENTS - TOTAL'!$C$8:$C$25,0),MATCH(AV$13,'[1]SHIPMENTS - TOTAL'!$E$7:$BF$7,0)),MATCH($C$9,'[1]SHIPMENTS - TOTAL'!$D$2:$D$467,0)-1+1,0) ->  | AW16: =OFFSET(INDEX('[1]SHIPMENTS - TOTAL'!$E$8:$BF$467,MATCH($C$12,'[1]SHIPMENTS - TOTAL'!$C$8:$C$25,0),MATCH(AW$13,'[1]SHIPMENTS - TOTAL'!$E$7:$BF$7,0)),MATCH($C$9,'[1]SHIPMENTS - TOTAL'!$D$2:$D$467,0)-1+1,0) ->  | AX16: =OFFSET(INDEX('[1]SHIPMENTS - TOTAL'!$E$8:$BF$467,MATCH($C$12,'[1]SHIPMENTS - TOTAL'!$C$8:$C$25,0),MATCH(AX$13,'[1]SHIPMENTS - TOTAL'!$E$7:$BF$7,0)),MATCH($C$9,'[1]SHIPMENTS - TOTAL'!$D$2:$D$467,0)-1+1,0) ->  | AY16: =OFFSET(INDEX('[1]SHIPMENTS - TOTAL'!$E$8:$BF$467,MATCH($C$12,'[1]SHIPMENTS - TOTAL'!$C$8:$C$25,0),MATCH(AY$13,'[1]SHIPMENTS - TOTAL'!$E$7:$BF$7,0)),MATCH($C$9,'[1]SHIPMENTS - TOTAL'!$D$2:$D$467,0)-1+1,0) ->  | AZ16: =OFFSET(INDEX('[1]SHIPMENTS - TOTAL'!$E$8:$BF$467,MATCH($C$12,'[1]SHIPMENTS - TOTAL'!$C$8:$C$25,0),MATCH(AZ$13,'[1]SHIPMENTS - TOTAL'!$E$7:$BF$7,0)),MATCH($C$9,'[1]SHIPMENTS - TOTAL'!$D$2:$D$467,0)-1+1,0) -> 
C17: Total Model Shipments | D17: (units) | E17: =SUM(E15:E16) -> 
C18: Model Installed Stock | D18: (units) | E18: =OFFSET(INDEX('[1]STOCK - TOTAL'!$E$8:$BF$305,MATCH($C$12,'[1]STOCK - TOTAL'!$C$8:$C$16,0),MATCH(E$13,'[1]STOCK - TOTAL'!$E$7:$BF$7,0)),MATCH($C$9,'[1]STOCK - TOTAL'!$D:$D,0)-2,0) ->  | F18: =OFFSET(INDEX('[1]STOCK - TOTAL'!$E$8:$BF$305,MATCH($C$12,'[1]STOCK - TOTAL'!$C$8:$C$16,0),MATCH(F$13,'[1]STOCK - TOTAL'!$E$7:$BF$7,0)),MATCH($C$9,'[1]STOCK - TOTAL'!$D:$D,0)-2,0) ->  | G18: =OFFSET(INDEX('[1]STOCK - TOTAL'!$E$8:$BF$305,MATCH($C$12,'[1]STOCK - TOTAL'!$C$8:$C$16,0),MATCH(G$13,'[1]STOCK - TOTAL'!$E$7:$BF$7,0)),MATCH($C$9,'[1]STOCK - TOTAL'!$D:$D,0)-2,0) ->  | H18: =OFFSET(INDEX('[1]STOCK - TOTAL'!$E$8:$BF$305,MATCH($C$12,'[1]STOCK - TOTAL'!$C$8:$C$16,0),MATCH(H$13,'[1]STOCK - TOTAL'!$E$7:$BF$7,0)),MATCH($C$9,'[1]STOCK - TOTAL'!$D:$D,0)-2,0) ->  | I18: =OFFSET(INDEX('[1]STOCK - TOTAL'!$E$8:$BF$305,MATCH($C$12,'[1]STOCK - TOTAL'!$C$8:$C$16,0),MATCH(I$13,'[1]STOCK - TOTAL'!$E$7:$BF$7,0)),MATCH($C$9,'[1]STOCK - TOTAL'!$D:$D,0)-2,0) ->  | J18: =OFFSET(INDEX('[1]STOCK - TOTAL'!$E$8:$BF$305,MATCH($C$12,'[1]STOCK - TOTAL'!$C$8:$C$16,0),MATCH(J$13,'[1]STOCK - TOTAL'!$E$7:$BF$7,0)),MATCH($C$9,'[1]STOCK - TOTAL'!$D:$D,0)-2,0) ->  | K18: =OFFSET(INDEX('[1]STOCK - TOTAL'!$E$8:$BF$305,MATCH($C$12,'[1]STOCK - TOTAL'!$C$8:$C$16,0),MATCH(K$13,'[1]STOCK - TOTAL'!$E$7:$BF$7,0)),MATCH($C$9,'[1]STOCK - TOTAL'!$D:$D,0)-2,0) ->  | L18: =OFFSET(INDEX('[1]STOCK - TOTAL'!$E$8:$BF$305,MATCH($C$12,'[1]STOCK - TOTAL'!$C$8:$C$16,0),MATCH(L$13,'[1]STOCK - TOTAL'!$E$7:$BF$7,0)),MATCH($C$9,'[1]STOCK - TOTAL'!$D:$D,0)-2,0) ->  | M18: =OFFSET(INDEX('[1]STOCK - TOTAL'!$E$8:$BF$305,MATCH($C$12,'[1]STOCK - TOTAL'!$C$8:$C$16,0),MATCH(M$13,'[1]STOCK - TOTAL'!$E$7:$BF$7,0)),MATCH($C$9,'[1]STOCK - TOTAL'!$D:$D,0)-2,0) ->  | N18: =OFFSET(INDEX('[1]STOCK - TOTAL'!$E$8:$BF$305,MATCH($C$12,'[1]STOCK - TOTAL'!$C$8:$C$16,0),MATCH(N$13,'[1]STOCK - TOTAL'!$E$7:$BF$7,0)),MATCH($C$9,'[1]STOCK - TOTAL'!$D:$D,0)-2,0) ->  | O18: =OFFSET(INDEX('[1]STOCK - TOTAL'!$E$8:$BF$305,MATCH($C$12,'[1]STOCK - TOTAL'!$C$8:$C$16,0),MATCH(O$13,'[1]STOCK - TOTAL'!$E$7:$BF$7,0)),MATCH($C$9,'[1]STOCK - TOTAL'!$D:$D,0)-2,0) ->  | P18: =OFFSET(INDEX('[1]STOCK - TOTAL'!$E$8:$BF$305,MATCH($C$12,'[1]STOCK - TOTAL'!$C$8:$C$16,0),MATCH(P$13,'[1]STOCK - TOTAL'!$E$7:$BF$7,0)),MATCH($C$9,'[1]STOCK - TOTAL'!$D:$D,0)-2,0) ->  | Q18: =OFFSET(INDEX('[1]STOCK - TOTAL'!$E$8:$BF$305,MATCH($C$12,'[1]STOCK - TOTAL'!$C$8:$C$16,0),MATCH(Q$13,'[1]STOCK - TOTAL'!$E$7:$BF$7,0)),MATCH($C$9,'[1]STOCK - TOTAL'!$D:$D,0)-2,0) ->  | R18: =OFFSET(INDEX('[1]STOCK - TOTAL'!$E$8:$BF$305,MATCH($C$12,'[1]STOCK - TOTAL'!$C$8:$C$16,0),MATCH(R$13,'[1]STOCK - TOTAL'!$E$7:$BF$7,0)),MATCH($C$9,'[1]STOCK - TOTAL'!$D:$D,0)-2,0) ->  | S18: =OFFSET(INDEX('[1]STOCK - TOTAL'!$E$8:$BF$305,MATCH($C$12,'[1]STOCK - TOTAL'!$C$8:$C$16,0),MATCH(S$13,'[1]STOCK - TOTAL'!$E$7:$BF$7,0)),MATCH($C$9,'[1]STOCK - TOTAL'!$D:$D,0)-2,0) ->  | T18: =OFFSET(INDEX('[1]STOCK - TOTAL'!$E$8:$BF$305,MATCH($C$12,'[1]STOCK - TOTAL'!$C$8:$C$16,0),MATCH(T$13,'[1]STOCK - TOTAL'!$E$7:$BF$7,0)),MATCH($C$9,'[1]STOCK - TOTAL'!$D:$D,0)-2,0) ->  | U18: =OFFSET(INDEX('[1]STOCK - TOTAL'!$E$8:$BF$305,MATCH($C$12,'[1]STOCK - TOTAL'!$C$8:$C$16,0),MATCH(U$13,'[1]STOCK - TOTAL'!$E$7:$BF$7,0)),MATCH($C$9,'[1]STOCK - TOTAL'!$D:$D,0)-2,0) ->  | V18: =OFFSET(INDEX('[1]STOCK - TOTAL'!$E$8:$BF$305,MATCH($C$12,'[1]STOCK - TOTAL'!$C$8:$C$16,0),MATCH(V$13,'[1]STOCK - TOTAL'!$E$7:$BF$7,0)),MATCH($C$9,'[1]STOCK - TOTAL'!$D:$D,0)-2,0) ->  | W18: =OFFSET(INDEX('[1]STOCK - TOTAL'!$E$8:$BF$305,MATCH($C$12,'[1]STOCK - TOTAL'!$C$8:$C$16,0),MATCH(W$13,'[1]STOCK - TOTAL'!$E$7:$BF$7,0)),MATCH($C$9,'[1]STOCK - TOTAL'!$D:$D,0)-2,0) ->  | X18: =OFFSET(INDEX('[1]STOCK - TOTAL'!$E$8:$BF$305,MATCH($C$12,'[1]STOCK - TOTAL'!$C$8:$C$16,0),MATCH(X$13,'[1]STOCK - TOTAL'!$E$7:$BF$7,0)),MATCH($C$9,'[1]STOCK - TOTAL'!$D:$D,0)-2,0) ->  | Y18: =OFFSET(INDEX('[1]STOCK - TOTAL'!$E$8:$BF$305,MATCH($C$12,'[1]STOCK - TOTAL'!$C$8:$C$16,0),MATCH(Y$13,'[1]STOCK - TOTAL'!$E$7:$BF$7,0)),MATCH($C$9,'[1]STOCK - TOTAL'!$D:$D,0)-2,0) ->  | Z18: =OFFSET(INDEX('[1]STOCK - TOTAL'!$E$8:$BF$305,MATCH($C$12,'[1]STOCK - TOTAL'!$C$8:$C$16,0),MATCH(Z$13,'[1]STOCK - TOTAL'!$E$7:$BF$7,0)),MATCH($C$9,'[1]STOCK - TOTAL'!$D:$D,0)-2,0) ->  | AA18: =OFFSET(INDEX('[1]STOCK - TOTAL'!$E$8:$BF$305,MATCH($C$12,'[1]STOCK - TOTAL'!$C$8:$C$16,0),MATCH(AA$13,'[1]STOCK - TOTAL'!$E$7:$BF$7,0)),MATCH($C$9,'[1]STOCK - TOTAL'!$D:$D,0)-2,0) ->  | AB18: =OFFSET(INDEX('[1]STOCK - TOTAL'!$E$8:$BF$305,MATCH($C$12,'[1]STOCK - TOTAL'!$C$8:$C$16,0),MATCH(AB$13,'[1]STOCK - TOTAL'!$E$7:$BF$7,0)),MATCH($C$9,'[1]STOCK - TOTAL'!$D:$D,0)-2,0) ->  | AC18: =OFFSET(INDEX('[1]STOCK - TOTAL'!$E$8:$BF$305,MATCH($C$12,'[1]STOCK - TOTAL'!$C$8:$C$16,0),MATCH(AC$13,'[1]STOCK - TOTAL'!$E$7:$BF$7,0)),MATCH($C$9,'[1]STOCK - TOTAL'!$D:$D,0)-2,0) ->  | AD18: =OFFSET(INDEX('[1]STOCK - TOTAL'!$E$8:$BF$305,MATCH($C$12,'[1]STOCK - TOTAL'!$C$8:$C$16,0),MATCH(AD$13,'[1]STOCK - TOTAL'!$E$7:$BF$7,0)),MATCH($C$9,'[1]STOCK - TOTAL'!$D:$D,0)-2,0) ->  | AE18: =OFFSET(INDEX('[1]STOCK - TOTAL'!$E$8:$BF$305,MATCH($C$12,'[1]STOCK - TOTAL'!$C$8:$C$16,0),MATCH(AE$13,'[1]STOCK - TOTAL'!$E$7:$BF$7,0)),MATCH($C$9,'[1]STOCK - TOTAL'!$D:$D,0)-2,0) ->  | AF18: =OFFSET(INDEX('[1]STOCK - TOTAL'!$E$8:$BF$305,MATCH($C$12,'[1]STOCK - TOTAL'!$C$8:$C$16,0),MATCH(AF$13,'[1]STOCK - TOTAL'!$E$7:$BF$7,0)),MATCH($C$9,'[1]STOCK - TOTAL'!$D:$D,0)-2,0) ->  | AG18: =OFFSET(INDEX('[1]STOCK - TOTAL'!$E$8:$BF$305,MATCH($C$12,'[1]STOCK - TOTAL'!$C$8:$C$16,0),MATCH(AG$13,'[1]STOCK - TOTAL'!$E$7:$BF$7,0)),MATCH($C$9,'[1]STOCK - TOTAL'!$D:$D,0)-2,0) ->  | AH18: =OFFSET(INDEX('[1]STOCK - TOTAL'!$E$8:$BF$305,MATCH($C$12,'[1]STOCK - TOTAL'!$C$8:$C$16,0),MATCH(AH$13,'[1]STOCK - TOTAL'!$E$7:$BF$7,0)),MATCH($C$9,'[1]STOCK - TOTAL'!$D:$D,0)-2,0) ->  | AI18: =OFFSET(INDEX('[1]STOCK - TOTAL'!$E$8:$BF$305,MATCH($C$12,'[1]STOCK - TOTAL'!$C$8:$C$16,0),MATCH(AI$13,'[1]STOCK - TOTAL'!$E$7:$BF$7,0)),MATCH($C$9,'[1]STOCK - TOTAL'!$D:$D,0)-2,0) ->  | AJ18: =OFFSET(INDEX('[1]STOCK - TOTAL'!$E$8:$BF$305,MATCH($C$12,'[1]STOCK - TOTAL'!$C$8:$C$16,0),MATCH(AJ$13,'[1]STOCK - TOTAL'!$E$7:$BF$7,0)),MATCH($C$9,'[1]STOCK - TOTAL'!$D:$D,0)-2,0) ->  | AK18: =OFFSET(INDEX('[1]STOCK - TOTAL'!$E$8:$BF$305,MATCH($C$12,'[1]STOCK - TOTAL'!$C$8:$C$16,0),MATCH(AK$13,'[1]STOCK - TOTAL'!$E$7:$BF$7,0)),MATCH($C$9,'[1]STOCK - TOTAL'!$D:$D,0)-2,0) ->  | AL18: =OFFSET(INDEX('[1]STOCK - TOTAL'!$E$8:$BF$305,MATCH($C$12,'[1]STOCK - TOTAL'!$C$8:$C$16,0),MATCH(AL$13,'[1]STOCK - TOTAL'!$E$7:$BF$7,0)),MATCH($C$9,'[1]STOCK - TOTAL'!$D:$D,0)-2,0) ->  | AM18: =OFFSET(INDEX('[1]STOCK - TOTAL'!$E$8:$BF$305,MATCH($C$12,'[1]STOCK - TOTAL'!$C$8:$C$16,0),MATCH(AM$13,'[1]STOCK - TOTAL'!$E$7:$BF$7,0)),MATCH($C$9,'[1]STOCK - TOTAL'!$D:$D,0)-2,0) ->  | AN18: =OFFSET(INDEX('[1]STOCK - TOTAL'!$E$8:$BF$305,MATCH($C$12,'[1]STOCK - TOTAL'!$C$8:$C$16,0),MATCH(AN$13,'[1]STOCK - TOTAL'!$E$7:$BF$7,0)),MATCH($C$9,'[1]STOCK - TOTAL'!$D:$D,0)-2,0) ->  | AO18: =OFFSET(INDEX('[1]STOCK - TOTAL'!$E$8:$BF$305,MATCH($C$12,'[1]STOCK - TOTAL'!$C$8:$C$16,0),MATCH(AO$13,'[1]STOCK - TOTAL'!$E$7:$BF$7,0)),MATCH($C$9,'[1]STOCK - TOTAL'!$D:$D,0)-2,0) ->  | AP18: =OFFSET(INDEX('[1]STOCK - TOTAL'!$E$8:$BF$305,MATCH($C$12,'[1]STOCK - TOTAL'!$C$8:$C$16,0),MATCH(AP$13,'[1]STOCK - TOTAL'!$E$7:$BF$7,0)),MATCH($C$9,'[1]STOCK - TOTAL'!$D:$D,0)-2,0) ->  | AQ18: =OFFSET(INDEX('[1]STOCK - TOTAL'!$E$8:$BF$305,MATCH($C$12,'[1]STOCK - TOTAL'!$C$8:$C$16,0),MATCH(AQ$13,'[1]STOCK - TOTAL'!$E$7:$BF$7,0)),MATCH($C$9,'[1]STOCK - TOTAL'!$D:$D,0)-2,0) ->  | AR18: =OFFSET(INDEX('[1]STOCK - TOTAL'!$E$8:$BF$305,MATCH($C$12,'[1]STOCK - TOTAL'!$C$8:$C$16,0),MATCH(AR$13,'[1]STOCK - TOTAL'!$E$7:$BF$7,0)),MATCH($C$9,'[1]STOCK - TOTAL'!$D:$D,0)-2,0) ->  | AS18: =OFFSET(INDEX('[1]STOCK - TOTAL'!$E$8:$BF$305,MATCH($C$12,'[1]STOCK - TOTAL'!$C$8:$C$16,0),MATCH(AS$13,'[1]STOCK - TOTAL'!$E$7:$BF$7,0)),MATCH($C$9,'[1]STOCK - TOTAL'!$D:$D,0)-2,0) ->  | AT18: =OFFSET(INDEX('[1]STOCK - TOTAL'!$E$8:$BF$305,MATCH($C$12,'[1]STOCK - TOTAL'!$C$8:$C$16,0),MATCH(AT$13,'[1]STOCK - TOTAL'!$E$7:$BF$7,0)),MATCH($C$9,'[1]STOCK - TOTAL'!$D:$D,0)-2,0) ->  | AU18: =OFFSET(INDEX('[1]STOCK - TOTAL'!$E$8:$BF$305,MATCH($C$12,'[1]STOCK - TOTAL'!$C$8:$C$16,0),MATCH(AU$13,'[1]STOCK - TOTAL'!$E$7:$BF$7,0)),MATCH($C$9,'[1]STOCK - TOTAL'!$D:$D,0)-2,0) ->  | AV18: =OFFSET(INDEX('[1]STOCK - TOTAL'!$E$8:$BF$305,MATCH($C$12,'[1]STOCK - TOTAL'!$C$8:$C$16,0),MATCH(AV$13,'[1]STOCK - TOTAL'!$E$7:$BF$7,0)),MATCH($C$9,'[1]STOCK - TOTAL'!$D:$D,0)-2,0) ->  | AW18: =OFFSET(INDEX('[1]STOCK - TOTAL'!$E$8:$BF$305,MATCH($C$12,'[1]STOCK - TOTAL'!$C$8:$C$16,0),MATCH(AW$13,'[1]STOCK - TOTAL'!$E$7:$BF$7,0)),MATCH($C$9,'[1]STOCK - TOTAL'!$D:$D,0)-2,0) ->  | AX18: =OFFSET(INDEX('[1]STOCK - TOTAL'!$E$8:$BF$305,MATCH($C$12,'[1]STOCK - TOTAL'!$C$8:$C$16,0),MATCH(AX$13,'[1]STOCK - TOTAL'!$E$7:$BF$7,0)),MATCH($C$9,'[1]STOCK - TOTAL'!$D:$D,0)-2,0) ->  | AY18: =OFFSET(INDEX('[1]STOCK - TOTAL'!$E$8:$BF$305,MATCH($C$12,'[1]STOCK - TOTAL'!$C$8:$C$16,0),MATCH(AY$13,'[1]STOCK - TOTAL'!$E$7:$BF$7,0)),MATCH($C$9,'[1]STOCK - TOTAL'!$D:$D,0)-2,0) ->  | AZ18: =OFFSET(INDEX('[1]STOCK - TOTAL'!$E$8:$BF$305,MATCH($C$12,'[1]STOCK - TOTAL'!$C$8:$C$16,0),MATCH(AZ$13,'[1]STOCK - TOTAL'!$E$7:$BF$7,0)),MATCH($C$9,'[1]STOCK - TOTAL'!$D:$D,0)-2,0) -> 

Sheet UEC Development
C2: UEC Development
C4: NAVIGATION
C6: COMMENTS
C9: =CONCATENATE('Efficiency Levels'!C9," - ",'Efficiency Levels'!D9) -> PC1 - Ice Making Head-Water Cooled-Small-Batch
D11: Per Cycle Energy Consumption
C12: Efficiency Level | D12: Energy Factor | E12: Yearly
D13: kWh/day | E13: kWh/year
C14: ='Efficiency Levels'!C12&" - "&LEFT('Efficiency Levels'!D12,4) -> EL0 - 7745 | D14: N/A | E14: ='Efficiency Levels'!D12 -> 7745.949985
C15: ='Efficiency Levels'!C13&" - "&LEFT('Efficiency Levels'!D13,4) -> EL1 - 3389 | D15: N/A | E15: ='Efficiency Levels'!D13 -> 3389.025
C16: ='Efficiency Levels'!C14&" - "&LEFT('Efficiency Levels'!D14,4) -> EL2 - 3052 | D16: N/A | E16: ='Efficiency Levels'!D14 -> 3052.3125
C17: ='Efficiency Levels'!C15&" - "&LEFT('Efficiency Levels'!D15,4) -> EL3 - 2883 | D17: N/A | E17: ='Efficiency Levels'!D15 -> 2883.95625
C18: ='Efficiency Levels'!C16&" - "&LEFT('Efficiency Levels'!D16,4) -> EL4 - 2715 | D18: N/A | E18: ='Efficiency Levels'!D16 -> 2715.6
C19: ='Efficiency Levels'!C17&" - "&LEFT('Efficiency Levels'!D17,4) -> EL5 - 2547 | D19: N/A | E19: ='Efficiency Levels'!D17 -> 2547.24375
C20: ='Efficiency Levels'!C18&" - "&LEFT('Efficiency Levels'!D18,4) -> EL6 - 2399 | D20: N/A | E20: ='Efficiency Levels'!D18 -> 2399.965811
C21: ='Efficiency Levels'!C19&" - "&LEFT('Efficiency Levels'!D19,4) -> EL7 - | D21: N/A | E21: ='Efficiency Levels'!D19 -> 0
C25: =CONCATENATE('Efficiency Levels'!C26," - ",'Efficiency Levels'!D26) -> PC2 - Ice Making Head-Water Cooled-Med-Batch
D27: Per Cycle Energy Consumption
C28: Efficiency Level | D28: Energy Factor | E28: Yearly
D29: kWh/day | E29: kWh/year
C30: ='Efficiency Levels'!C29&" - "&LEFT('Efficiency Levels'!D29,4) -> EL0 - 7745 | D30: N/A | E30: ='Efficiency Levels'!D29 -> 7745.949985
C31: ='Efficiency Levels'!C30&" - "&LEFT('Efficiency Levels'!D30,4) -> EL1 - 7227 | D31: N/A | E31: ='Efficiency Levels'!D30 -> 7227.45625
C32: ='Efficiency Levels'!C31&" - "&LEFT('Efficiency Levels'!D31,4) -> EL2 - 6506 | D32: N/A | E32: ='Efficiency Levels'!D31 -> 6506.900625
C33: ='Efficiency Levels'!C32&" - "&LEFT('Efficiency Levels'!D32,4) -> EL3 - 6146 | D33: N/A | E33: ='Efficiency Levels'!D32 -> 6146.622812
C34: ='Efficiency Levels'!C33&" - "&LEFT('Efficiency Levels'!D33,4) -> EL4 - 5786 | D34: N/A | E34: ='Efficiency Levels'!D33 -> 5786.345
C35: ='Efficiency Levels'!C34&" - "&LEFT('Efficiency Levels'!D34,4) -> EL5 - 5690 | D35: N/A | E35: ='Efficiency Levels'!D34 -> 5690.86765
C36: ='Efficiency Levels'!C35&" - "&LEFT('Efficiency Levels'!D35,4) -> EL6 - | D36: N/A | E36: ='Efficiency Levels'!D35 -> 0
C37: ='Efficiency Levels'!C36&" - "&LEFT('Efficiency Levels'!D36,4) -> EL7 - | D37: N/A | E37: ='Efficiency Levels'!D36 -> 0
C41: =CONCATENATE('Efficiency Levels'!C43," - ",'Efficiency Levels'!D43) -> PC3 - Ice Making Head-Water Cooled-Large-Batch-1
D43: Per Cycle Energy Consumption
C44: Efficiency Level | D44: Energy Factor | E44: Yearly
D45: kWh/day | E45: kWh/year
C46: ='Efficiency Levels'!C46&" - "&LEFT('Efficiency Levels'!D46,4) -> EL0 - 7745 | D46: N/A | E46: ='Efficiency Levels'!D46 -> 7745.949985
C47: ='Efficiency Levels'!C47&" - "&LEFT('Efficiency Levels'!D47,4) -> EL1 - 1097 | D47: N/A | E47: ='Efficiency Levels'!D47 -> 10971.9
C48: ='Efficiency Levels'!C48&" - "&LEFT('Efficiency Levels'!D48,4) -> EL2 - 9876 | D48: N/A | E48: ='Efficiency Levels'!D48 -> 9876.9
C49: ='Efficiency Levels'!C49&" - "&LEFT('Efficiency Levels'!D49,4) -> EL3 - 9329 | D49: N/A | E49: ='Efficiency Levels'!D49 -> 9329.4
C50: ='Efficiency Levels'!C50&" - "&LEFT('Efficiency Levels'!D50,4) -> EL4 - 9146 | D50: N/A | E50: ='Efficiency Levels'!D50 -> 9146.9
C51: ='Efficiency Levels'!C51&" - "&LEFT('Efficiency Levels'!D51,4) -> EL5 - | D51: N/A | E51: ='Efficiency Levels'!D51 -> 0
C52: ='Efficiency Levels'!C52&" - "&LEFT('Efficiency Levels'!D52,4) -> EL6 - | D52: N/A | E52: ='Efficiency Levels'!D52 -> 0
C53: ='Efficiency Levels'!C53&" - "&LEFT('Efficiency Levels'!D53,4) -> EL7 - | D53: N/A | E53: ='Efficiency Levels'!D53 -> 0
C57: =CONCATENATE('Efficiency Levels'!C60," - ",'Efficiency Levels'!D60) -> PC4 - Ice Making Head-Water Cooled-Large-Batch-2
D59: Per Cycle Energy Consumption
C60: Efficiency Level | D60: Energy Factor | E60: Yearly
D61: kWh/day | E61: kWh/year
C62: ='Efficiency Levels'!C63&" - "&LEFT('Efficiency Levels'!D63,4) -> EL0 - 7745 | D62: N/A | E62: ='Efficiency Levels'!D63 -> 7745.949985
C63: ='Efficiency Levels'!C64&" - "&LEFT('Efficiency Levels'!D64,5) -> EL1 - 19001 | D63: N/A | E63: ='Efficiency Levels'!D64 -> 19001.9
C64: ='Efficiency Levels'!C65&" - "&LEFT('Efficiency Levels'!D65,5) -> EL2 - 17103 | D64: N/A | E64: ='Efficiency Levels'!D65 -> 17103.9
C65: ='Efficiency Levels'!C66&" - "&LEFT('Efficiency Levels'!D66,5) -> EL3 - 16154 | D65: N/A | E65: ='Efficiency Levels'!D66 -> 16154.9
C66: ='Efficiency Levels'!C67&" - "&LEFT('Efficiency Levels'!D67,5) -> EL4 - 16067 | D66: N/A | E66: ='Efficiency Levels'!D67 -> 16067.33641
C67: ='Efficiency Levels'!C68&" - "&LEFT('Efficiency Levels'!D68,5) -> EL5 - | D67: N/A | E67: ='Efficiency Levels'!D68 -> 0
C68: ='Efficiency Levels'!C69&" - "&LEFT('Efficiency Levels'!D69,5) -> EL6 - | D68: N/A | E68: ='Efficiency Levels'!D69 -> 0
C69: ='Efficiency Levels'!C70&" - "&LEFT('Efficiency Levels'!D70,5) -> EL7 - | D69: N/A | E69: ='Efficiency Levels'!D70 -> 0
C73: =CONCATENATE('Efficiency Levels'!C77," - ",'Efficiency Levels'!D77) -> PC5 - Ice Making Head-Air Cooled-Small-Batch
D75: Per Cycle Energy Consumption
C76: Efficiency Level | D76: Energy Factor | E76: Yearly
D77: kWh/day | E77: kWh/year
C78: ='Efficiency Levels'!C80&" - "&LEFT('Efficiency Levels'!D80,4) -> EL0 - 7804 | D78: N/A | E78: ='Efficiency Levels'!D80 -> 7804.871048
C79: ='Efficiency Levels'!C81&" - "&LEFT('Efficiency Levels'!D81,4) -> EL1 - 4226 | D79: N/A | E79: ='Efficiency Levels'!D81 -> 4226.7
C80: ='Efficiency Levels'!C82&" - "&LEFT('Efficiency Levels'!D82,4) -> EL2 - 3806 | D80: N/A | E80: ='Efficiency Levels'!D82 -> 3806.22
C81: ='Efficiency Levels'!C83&" - "&LEFT('Efficiency Levels'!D83,4) -> EL3 - 3595 | D81: N/A | E81: ='Efficiency Levels'!D83 -> 3595.98
C82: ='Efficiency Levels'!C84&" - "&LEFT('Efficiency Levels'!D84,4) -> EL4 - 3385 | D82: N/A | E82: ='Efficiency Levels'!D84 -> 3385.74
C83: ='Efficiency Levels'!C85&" - "&LEFT('Efficiency Levels'!D85,4) -> EL5 - 3175 | D83: N/A | E83: ='Efficiency Levels'!D85 -> 3175.5
C84: ='Efficiency Levels'!C86&" - "&LEFT('Efficiency Levels'!D86,4) -> EL6 - 2965 | D84: N/A | E84: ='Efficiency Levels'!D86 -> 2965.26
C85: ='Efficiency Levels'!C87&" - "&LEFT('Efficiency Levels'!D87,4) -> EL7 - 2908 | D85: N/A | E85: ='Efficiency Levels'!D87 -> 2908.777612
C89: =CONCATENATE('Efficiency Levels'!C94," - ",'Efficiency Levels'!D94) -> PC6 - Ice Making Head-Air Cooled-Large-Batch-1
D91: Per Cycle Energy Consumption
C92: Efficiency Level | D92: Energy Factor | E92: Yearly
D93: kWh/day | E93: kWh/year
C94: ='Efficiency Levels'!C97&" - "&LEFT('Efficiency Levels'!D97,4) -> EL0 - 7804 | D94: N/A | E94: ='Efficiency Levels'!D97 -> 7804.871048
C95: ='Efficiency Levels'!C98&" - "&LEFT('Efficiency Levels'!D98,4) -> EL1 - 8796 | D95: N/A | E95: ='Efficiency Levels'!D98 -> 8796.5
C96: ='Efficiency Levels'!C99&" - "&LEFT('Efficiency Levels'!D99,4) -> EL2 - 7919 | D96: N/A | E96: ='Efficiency Levels'!D99 -> 7919.04
C97: ='Efficiency Levels'!C100&" - "&LEFT('Efficiency Levels'!D100,4) -> EL3 - 7480 | D97: N/A | E97: ='Efficiency Levels'!D100 -> 7480.31
C98: ='Efficiency Levels'!C101&" - "&LEFT('Efficiency Levels'!D101,4) -> EL4 - 7041 | D98: N/A | E98: ='Efficiency Levels'!D101 -> 7041.58
C99: ='Efficiency Levels'!C102&" - "&LEFT('Efficiency Levels'!D102,4) -> EL5 - 6602 | D99: N/A | E99: ='Efficiency Levels'!D102 -> 6602.85
C100: ='Efficiency Levels'!C103&" - "&LEFT('Efficiency Levels'!D103,4) -> EL6 - 6213 | D100: N/A | E100: ='Efficiency Levels'!D103 -> 6213.115228
C101: ='Efficiency Levels'!C104&" - "&LEFT('Efficiency Levels'!D104,4) -> EL7 - | D101: N/A | E101: ='Efficiency Levels'!D104 -> 0
C105: =CONCATENATE('Efficiency Levels'!C111," - ",'Efficiency Levels'!D111) -> PC7 - Ice Making Head-Air Cooled-Large-Batch-2
D107: Per Cycle Energy Consumption
C108: Efficiency Level | D108: Energy Factor | E108: Yearly
D109: kWh/day | E109: kWh/year
C110: ='Efficiency Levels'!C114&" - "&LEFT('Efficiency Levels'!D114,4) -> EL0 - 7804 | D110: N/A | E110: ='Efficiency Levels'!D114 -> 7804.871048
C111: ='Efficiency Levels'!C115&" - "&LEFT('Efficiency Levels'!D115,5) -> EL1 - 14366 | D111: N/A | E111: ='Efficiency Levels'!D115 -> 14366.4
C112: ='Efficiency Levels'!C116&" - "&LEFT('Efficiency Levels'!D116,5) -> EL2 - 12931 | D112: N/A | E112: ='Efficiency Levels'!D116 -> 12931.95
C113: ='Efficiency Levels'!C117&" - "&LEFT('Efficiency Levels'!D117,5) -> EL3 - 12214 | D113: N/A | E113: ='Efficiency Levels'!D117 -> 12214.725
C114: ='Efficiency Levels'!C118&" - "&LEFT('Efficiency Levels'!D118,5) -> EL4 - 11497 | D114: N/A | E114: ='Efficiency Levels'!D118 -> 11497.5
C115: ='Efficiency Levels'!C119&" - "&LEFT('Efficiency Levels'!D119,5) -> EL5 - | D115: N/A | E115: ='Efficiency Levels'!D119 -> 0
C116: ='Efficiency Levels'!C120&" - "&LEFT('Efficiency Levels'!D120,5) -> EL6 - | D116: N/A | E116: ='Efficiency Levels'!D120 -> 0
C117: ='Efficiency Levels'!C121&" - "&LEFT('Efficiency Levels'!D121,5) -> EL7 - | D117: N/A | E117: ='Efficiency Levels'!D121 -> 0
C121: =CONCATENATE('Efficiency Levels'!C128," - ",'Efficiency Levels'!D128) -> PC8 - Remote Condensing Unit-Not Remote Condensor-Large-Batch-1
D123: Per Cycle Energy Consumption
C124: Efficiency Level | D124: Energy Factor | E124: Yearly
D125: kWh/day | E125: kWh/year
C126: ='Efficiency Levels'!C131&" - "&LEFT('Efficiency Levels'!D131,4) -> EL0 - 9645 | D126: N/A | E126: ='Efficiency Levels'!D131 -> 9645.636
C127: ='Efficiency Levels'!C132&" - "&LEFT('Efficiency Levels'!D132,5) -> EL1 - 13983 | D127: N/A | E127: ='Efficiency Levels'!D132 -> 13983.15
C128: ='Efficiency Levels'!C133&" - "&LEFT('Efficiency Levels'!D133,5) -> EL2 - 12726 | D128: N/A | E128: ='Efficiency Levels'!D133 -> 12726.6375
C129: ='Efficiency Levels'!C134&" - "&LEFT('Efficiency Levels'!D134,5) -> EL3 - 11888 | D129: N/A | E129: ='Efficiency Levels'!D134 -> 11888.9625
C130: ='Efficiency Levels'!C135&" - "&LEFT('Efficiency Levels'!D135,5) -> EL4 - 11190 | D130: N/A | E130: ='Efficiency Levels'!D135 -> 11190.9
C131: ='Efficiency Levels'!C136&" - "&LEFT('Efficiency Levels'!D136,5) -> EL5 - 11107 | D131: N/A | E131: ='Efficiency Levels'!D136 -> 11107.96188
C132: ='Efficiency Levels'!C137&" - "&LEFT('Efficiency Levels'!D137,5) -> EL6 - | D132: N/A | E132: ='Efficiency Levels'!D137 -> 0
C133: ='Efficiency Levels'!C138&" - "&LEFT('Efficiency Levels'!D138,5) -> EL7 - | D133: N/A | E133: ='Efficiency Levels'!D138 -> 0
C137: =CONCATENATE('Efficiency Levels'!C145," - ",'Efficiency Levels'!D145) -> PC9 - Remote Condensing Unit-Not Remote Condensor-Large-Batch-2
D139: Per Cycle Energy Consumption
C140: Efficiency Level | D140: Energy Factor | E140: Yearly
D141: kWh/day | E141: kWh/year
C142: ='Efficiency Levels'!C148&" - "&LEFT('Efficiency Levels'!D148,4) -> EL0 - 9645 | D142: N/A | E142: ='Efficiency Levels'!D148 -> 9645.636
C143: ='Efficiency Levels'!C149&" - "&LEFT('Efficiency Levels'!D149,5) -> EL1 - 22359 | D143: N/A | E143: ='Efficiency Levels'!D149 -> 22359.9
C144: ='Efficiency Levels'!C150&" - "&LEFT('Efficiency Levels'!D150,5) -> EL2 - 20349 | D144: N/A | E144: ='Efficiency Levels'!D150 -> 20349.48
C145: ='Efficiency Levels'!C151&" - "&LEFT('Efficiency Levels'!D151,5) -> EL3 - 19009 | D145: N/A | E145: ='Efficiency Levels'!D151 -> 19009.2
C146: ='Efficiency Levels'!C152&" - "&LEFT('Efficiency Levels'!D152,5) -> EL4 - 17892 | D146: N/A | E146: ='Efficiency Levels'!D152 -> 17892.3
C147: ='Efficiency Levels'!C153&" - "&LEFT('Efficiency Levels'!D153,5) -> EL5 - 17778 | D147: N/A | E147: ='Efficiency Levels'!D153 -> 17778.86484
C148: ='Efficiency Levels'!C154&" - "&LEFT('Efficiency Levels'!D154,5) -> EL6 - | D148: N/A | E148: ='Efficiency Levels'!D154 -> 0
C149: ='Efficiency Levels'!C155&" - "&LEFT('Efficiency Levels'!D155,5) -> EL7 - | D149: N/A | E149: ='Efficiency Levels'!D155 -> 0
C153: =CONCATENATE('Efficiency Levels'!C162," - ",'Efficiency Levels'!D162) -> PC10 - Self-Contained Unit-Water Cooled-Large-Batch
D155: Per Cycle Energy Consumption
C156: Efficiency Level | D156: Energy Factor | E156: Yearly
D157: kWh/day | E157: kWh/year
C158: ='Efficiency Levels'!C165&" - "&LEFT('Efficiency Levels'!D165,4) -> EL0 - 3552 | D158: N/A | E158: ='Efficiency Levels'!D165 -> 3552.701429
C159: ='Efficiency Levels'!C166&" - "&LEFT('Efficiency Levels'!D166,4) -> EL1 - 4182 | D159: N/A | E159: ='Efficiency Levels'!D166 -> 4182.9
C160: ='Efficiency Levels'!C167&" - "&LEFT('Efficiency Levels'!D167,4) -> EL2 - 3891 | D160: N/A | E160: ='Efficiency Levels'!D167 -> 3891.63
C161: ='Efficiency Levels'!C168&" - "&LEFT('Efficiency Levels'!D168,4) -> EL3 - 3558 | D161: N/A | E161: ='Efficiency Levels'!D168 -> 3558.75
C162: ='Efficiency Levels'!C169&" - "&LEFT('Efficiency Levels'!D169,4) -> EL4 - 3350 | D162: N/A | E162: ='Efficiency Levels'!D169 -> 3350.7
C163: ='Efficiency Levels'!C170&" - "&LEFT('Efficiency Levels'!D170,4) -> EL5 - 3142 | D163: N/A | E163: ='Efficiency Levels'!D170 -> 3142.65
C164: ='Efficiency Levels'!C171&" - "&LEFT('Efficiency Levels'!D171,4) -> EL6 - 2934 | D164: N/A | E164: ='Efficiency Levels'!D171 -> 2934.6
C165: ='Efficiency Levels'!C172&" - "&LEFT('Efficiency Levels'!D172,4) -> EL7 - 2924 | D165: N/A | E165: ='Efficiency Levels'!D172 -> 2924.66665
C169: =CONCATENATE('Efficiency Levels'!C179," - ",'Efficiency Levels'!D179) -> PC11 - Self-Contained Unit-Air-Cooled-Small-Batch
D171: Per Cycle Energy Consumption
C172: Efficiency Level | D172: Energy Factor | E172: Yearly
D173: kWh/day | E173: kWh/year
C174: ='Efficiency Levels'!C182&" - "&LEFT('Efficiency Levels'!D182,4) -> EL0 - 2449 | D174: N/A | E174: ='Efficiency Levels'!D182 -> 2449.626156
C175: ='Efficiency Levels'!C183&" - "&LEFT('Efficiency Levels'!D183,4) -> EL1 - 2599 | D175: N/A | E175: ='Efficiency Levels'!D183 -> 2599.53
C176: ='Efficiency Levels'!C184&" - "&LEFT('Efficiency Levels'!D184,4) -> EL2 - 2419 | D176: N/A | E176: ='Efficiency Levels'!D184 -> 2419.0959
C177: ='Efficiency Levels'!C185&" - "&LEFT('Efficiency Levels'!D185,4) -> EL3 - 2212 | D177: N/A | E177: ='Efficiency Levels'!D185 -> 2212.8855
C178: ='Efficiency Levels'!C186&" - "&LEFT('Efficiency Levels'!D186,4) -> EL4 - 2084 | D178: N/A | E178: ='Efficiency Levels'!D186 -> 2084.004
C179: ='Efficiency Levels'!C187&" - "&LEFT('Efficiency Levels'!D187,4) -> EL5 - 1955 | D179: N/A | E179: ='Efficiency Levels'!D187 -> 1955.1225
C180: ='Efficiency Levels'!C188&" - "&LEFT('Efficiency Levels'!D188,4) -> EL6 - 1826 | D180: N/A | E180: ='Efficiency Levels'!D188 -> 1826.241
C181: ='Efficiency Levels'!C189&" - "&LEFT('Efficiency Levels'!D189,4) -> EL7 - 1585 | D181: N/A | E181: ='Efficiency Levels'!D189 -> 1585.262567
C185: =CONCATENATE('Efficiency Levels'!C196," - ",'Efficiency Levels'!D196) -> PC12 - Self-Contained Unit-Air-Cooled-Large-Batch
D187: Per Cycle Energy Consumption
C188: Efficiency Level | D188: Energy Factor | E188: Yearly
D189: kWh/day | E189: kWh/year
C190: ='Efficiency Levels'!C199&" - "&LEFT('Efficiency Levels'!D199,4) -> EL0 - 4379 | D190: N/A | E190: ='Efficiency Levels'!D199 -> 4379.589375
C191: ='Efficiency Levels'!C200&" - "&LEFT('Efficiency Levels'!D200,4) -> EL1 - 3598 | D191: N/A | E191: ='Efficiency Levels'!D200 -> 3598.9
C192: ='Efficiency Levels'!C201&" - "&LEFT('Efficiency Levels'!D201,4) -> EL2 - 3348 | D192: N/A | E192: ='Efficiency Levels'!D201 -> 3348.51
C193: ='Efficiency Levels'!C202&" - "&LEFT('Efficiency Levels'!D202,4) -> EL3 - 3062 | D193: N/A | E193: ='Efficiency Levels'!D202 -> 3062.35
C194: ='Efficiency Levels'!C203&" - "&LEFT('Efficiency Levels'!D203,4) -> EL4 - 2883 | D194: N/A | E194: ='Efficiency Levels'!D203 -> 2883.5
C195: ='Efficiency Levels'!C204&" - "&LEFT('Efficiency Levels'!D204,4) -> EL5 - 2704 | D195: N/A | E195: ='Efficiency Levels'!D204 -> 2704.65
C196: ='Efficiency Levels'!C205&" - "&LEFT('Efficiency Levels'!D205,4) -> EL6 - 2525 | D196: N/A | E196: ='Efficiency Levels'!D205 -> 2525.8
C197: ='Efficiency Levels'!C206&" - "&LEFT('Efficiency Levels'!D206,4) -> EL7 - 2351 | D197: N/A | E197: ='Efficiency Levels'!D206 -> 2351.094487
C201: =CONCATENATE('Efficiency Levels'!C213," - ",'Efficiency Levels'!D213) -> PC13 - Ice-Making Head-Air-Cooled-Small-Continous
D203: Per Cycle Energy Consumption
C204: Efficiency Level | D204: Energy Factor | E204: Yearly
D205: kWh/day | E205: kWh/year
C206: ='Efficiency Levels'!C216&" - "&LEFT('Efficiency Levels'!D216,4) -> EL0 - 5141 | D206: N/A | E206: ='Efficiency Levels'!D216 -> 5141.9375
C207: ='Efficiency Levels'!C217&" - "&LEFT('Efficiency Levels'!D217,4) -> EL1 - 4629 | D207: N/A | E207: ='Efficiency Levels'!D217 -> 4629.93375
C208: ='Efficiency Levels'!C218&" - "&LEFT('Efficiency Levels'!D218,4) -> EL2 - 4373 | D208: N/A | E208: ='Efficiency Levels'!D218 -> 4373.931875
C209: ='Efficiency Levels'!C219&" - "&LEFT('Efficiency Levels'!D219,4) -> EL3 - 4117 | D209: N/A | E209: ='Efficiency Levels'!D219 -> 4117.93
C210: ='Efficiency Levels'!C220&" - "&LEFT('Efficiency Levels'!D220,4) -> EL4 - 3861 | D210: N/A | E210: ='Efficiency Levels'!D220 -> 3861.928125
C211: ='Efficiency Levels'!C221&" - "&LEFT('Efficiency Levels'!D221,4) -> EL5 - 3605 | D211: N/A | E211: ='Efficiency Levels'!D221 -> 3605.92625
C212: ='Efficiency Levels'!C222&" - "&LEFT('Efficiency Levels'!D222,4) -> EL6 - 3555 | D212: N/A | E212: ='Efficiency Levels'!D222 -> 3555.288516
C213: ='Efficiency Levels'!C223&" - "&LEFT('Efficiency Levels'!D223,4) -> EL7 - | D213: N/A | E213: ='Efficiency Levels'!D223 -> 0
C217: =CONCATENATE('Efficiency Levels'!C230," - ",'Efficiency Levels'!D230) -> PC14 - Ice-Making Head-Air-Cooled-Large-Continuous
D219: Per Cycle Energy Consumption
C220: Efficiency Level | D220: Energy Factor | E220: Yearly
D221: kWh/day | E221: kWh/year
C222: ='Efficiency Levels'!C233&" - "&LEFT('Efficiency Levels'!D233,4) -> EL0 - 9898 | D222: N/A | E222: ='Efficiency Levels'!D233 -> 9898.8
C223: ='Efficiency Levels'!C234&" - "&LEFT('Efficiency Levels'!D234,4) -> EL1 - 8911 | D223: N/A | E223: ='Efficiency Levels'!D234 -> 8911.11
C224: ='Efficiency Levels'!C235&" - "&LEFT('Efficiency Levels'!D235,4) -> EL2 - 8417 | D224: N/A | E224: ='Efficiency Levels'!D235 -> 8417.265
C225: ='Efficiency Levels'!C236&" - "&LEFT('Efficiency Levels'!D236,4) -> EL3 - 7923 | D225: N/A | E225: ='Efficiency Levels'!D236 -> 7923.42
C226: ='Efficiency Levels'!C237&" - "&LEFT('Efficiency Levels'!D237,4) -> EL4 - 7429 | D226: N/A | E226: ='Efficiency Levels'!D237 -> 7429.575
C227: ='Efficiency Levels'!C238&" - "&LEFT('Efficiency Levels'!D238,4) -> EL5 - 6935 | D227: N/A | E227: ='Efficiency Levels'!D238 -> 6935.73
C228: ='Efficiency Levels'!C239&" - "&LEFT('Efficiency Levels'!D239,4) -> EL6 - 6912 | D228: N/A | E228: ='Efficiency Levels'!D239 -> 6912.02544
C229: ='Efficiency Levels'!C240&" - "&LEFT('Efficiency Levels'!D240,4) -> EL7 - | D229: N/A | E229: ='Efficiency Levels'!D240 -> 0
C233: =CONCATENATE('Efficiency Levels'!C247," - ",'Efficiency Levels'!D247) -> PC15 - Self-Contained Unit-Air-Cooled-Small-Continuous
D235: Per Cycle Energy Consumption
C236: Efficiency Level | D236: Energy Factor | E236: Yearly
D237: kWh/day | E237: kWh/year
C238: ='Efficiency Levels'!C250&" - "&LEFT('Efficiency Levels'!D250,4) -> EL0 - 2192 | D238: N/A | E238: ='Efficiency Levels'!D250 -> 2192.0075
C239: ='Efficiency Levels'!C251&" - "&LEFT('Efficiency Levels'!D251,4) -> EL1 - 2040 | D239: N/A | E239: ='Efficiency Levels'!D251 -> 2040.099975
C240: ='Efficiency Levels'!C252&" - "&LEFT('Efficiency Levels'!D252,4) -> EL2 - 1866 | D240: N/A | E240: ='Efficiency Levels'!D252 -> 1866.491375
C241: ='Efficiency Levels'!C253&" - "&LEFT('Efficiency Levels'!D253,4) -> EL3 - 1757 | D241: N/A | E241: ='Efficiency Levels'!D253 -> 1757.986
C242: ='Efficiency Levels'!C254&" - "&LEFT('Efficiency Levels'!D254,4) -> EL4 - 1649 | D242: N/A | E242: ='Efficiency Levels'!D254 -> 1649.480625
C243: ='Efficiency Levels'!C255&" - "&LEFT('Efficiency Levels'!D255,4) -> EL5 - 1580 | D243: N/A | E243: ='Efficiency Levels'!D255 -> 1580.094006
C244: ='Efficiency Levels'!C256&" - "&LEFT('Efficiency Levels'!D256,4) -> EL6 - | D244: N/A | E244: ='Efficiency Levels'!D256 -> 0
C245: ='Efficiency Levels'!C257&" - "&LEFT('Efficiency Levels'!D257,4) -> EL7 - | D245: N/A | E245: ='Efficiency Levels'!D257 -> 0

Sheet UEC
C2: Weighted Annual UEC
C4: NAVIGATION
C6: COMMENTS
C9: Market UEC (Shipment Weighted Average)
D10: 1990 | E10: =D10+1 -> 1991 | F10: =E10+1 -> 1992 | G10: 1993 | H10: 1994 | I10: 1995 | J10: 1996 | K10: 1997 | L10: 1998 | M10: 1999 | N10: 2000 | O10: 2001 | P10: 2002 | Q10: 2003 | R10: 2004 | S10: 2005 | T10: 2006 | U10: 2007 | V10: 2008 | W10: 2009 | X10: 2010 | Y10: 2011 | Z10: 2012 | AA10: 2013 | AB10: 2014 | AC10: 2015 | AD10: 2016 | AE10: 2017 | AF10: 2018 | AG10: 2019 | AH10: 2020 | AI10: 2021 | AJ10: 2022 | AK10: 2023 | AL10: 2024 | AM10: 2025 | AN10: 2026 | AO10: 2027 | AP10: 2028 | AQ10: 2029 | AR10: 2030 | AS10: 2031 | AT10: 2032 | AU10: 2033 | AV10: 2034
C11: PRE-Case UEC | D11: ='Product Class Dist'!D$10*SUMPRODUCT('Efficiency Dist'!H13:H20,PC1_UEC)+'Product Class Dist'!D$11*SUMPRODUCT('Efficiency Dist'!H43:H50,PC2_UEC)+'Product Class Dist'!D$12*SUMPRODUCT('Efficiency Dist'!H73:H80,PC3_UEC)+'Product Class Dist'!D$13*SUMPRODUCT('Efficiency Dist'!H103:H110,PC4_UEC)+'Product Class Dist'!D$14*SUMPRODUCT('Efficiency Dist'!H133:H140,PC5_UEC)+'Product Class Dist'!D$15*SUMPRODUCT('Efficiency Dist'!H163:H170,PC6_UEC)+'Product Class Dist'!D$16*SUMPRODUCT('Efficiency Dist'!H193:H200,PC7_UEC)+'Product Class Dist'!D$17*SUMPRODUCT('Efficiency Dist'!H223:H230,PC8_UEC)+'Product Class Dist'!D$18*SUMPRODUCT('Efficiency Dist'!H253:H260,PC9_UEC)+'Product Class Dist'!D$19*SUMPRODUCT('Efficiency Dist'!H283:H290,PC10_UEC)+'Product Class Dist'!D$20*SUMPRODUCT('Efficiency Dist'!H313:H320,PC11_UEC)+'Product Class Dist'!D$21*SUMPRODUCT('Efficiency Dist'!H343:H350,PC12_UEC)+'Product Class Dist'!D$22*SUMPRODUCT('Efficiency Dist'!H373:H380,PC13_UEC)+'Product Class Dist'!D$23*SUMPRODUCT('Efficiency Dist'!H403:H410,PC14_UEC)+'Product Class Dist'!D$24*SUMPRODUCT('Efficiency Dist'!H433:H440,PC15_UEC) -> 6165.139992 | E11: ='Product Class Dist'!E$10*SUMPRODUCT('Efficiency Dist'!I13:I20,PC1_UEC)+'Product Class Dist'!E$11*SUMPRODUCT('Efficiency Dist'!I43:I50,PC2_UEC)+'Product Class Dist'!E$12*SUMPRODUCT('Efficiency Dist'!I73:I80,PC3_UEC)+'Product Class Dist'!E$13*SUMPRODUCT('Efficiency Dist'!I103:I110,PC4_UEC)+'Product Class Dist'!E$14*SUMPRODUCT('Efficiency Dist'!I133:I140,PC5_UEC)+'Product Class Dist'!E$15*SUMPRODUCT('Efficiency Dist'!I163:I170,PC6_UEC)+'Product Class Dist'!E$16*SUMPRODUCT('Efficiency Dist'!I193:I200,PC7_UEC)+'Product Class Dist'!E$17*SUMPRODUCT('Efficiency Dist'!I223:I230,PC8_UEC)+'Product Class Dist'!E$18*SUMPRODUCT('Efficiency Dist'!I253:I260,PC9_UEC)+'Product Class Dist'!E$19*SUMPRODUCT('Efficiency Dist'!I283:I290,PC10_UEC)+'Product Class Dist'!E$20*SUMPRODUCT('Efficiency Dist'!I313:I320,PC11_UEC)+'Product Class Dist'!E$21*SUMPRODUCT('Efficiency Dist'!I343:I350,PC12_UEC)+'Product Class Dist'!E$22*SUMPRODUCT('Efficiency Dist'!I373:I380,PC13_UEC)+'Product Class Dist'!E$23*SUMPRODUCT('Efficiency Dist'!I403:I410,PC14_UEC)+'Product Class Dist'!E$24*SUMPRODUCT('Efficiency Dist'!I433:I440,PC15_UEC) -> 6165.139992 | F11: ='Product Class Dist'!F$10*SUMPRODUCT('Efficiency Dist'!J13:J20,PC1_UEC)+'Product Class Dist'!F$11*SUMPRODUCT('Efficiency Dist'!J43:J50,PC2_UEC)+'Product Class Dist'!F$12*SUMPRODUCT('Efficiency Dist'!J73:J80,PC3_UEC)+'Product Class Dist'!F$13*SUMPRODUCT('Efficiency Dist'!J103:J110,PC4_UEC)+'Product Class Dist'!F$14*SUMPRODUCT('Efficiency Dist'!J133:J140,PC5_UEC)+'Product Class Dist'!F$15*SUMPRODUCT('Efficiency Dist'!J163:J170,PC6_UEC)+'Product Class Dist'!F$16*SUMPRODUCT('Efficiency Dist'!J193:J200,PC7_UEC)+'Product Class Dist'!F$17*SUMPRODUCT('Efficiency Dist'!J223:J230,PC8_UEC)+'Product Class Dist'!F$18*SUMPRODUCT('Efficiency Dist'!J253:J260,PC9_UEC)+'Product Class Dist'!F$19*SUMPRODUCT('Efficiency Dist'!J283:J290,PC10_UEC)+'Product Class Dist'!F$20*SUMPRODUCT('Efficiency Dist'!J313:J320,PC11_UEC)+'Product Class Dist'!F$21*SUMPRODUCT('Efficiency Dist'!J343:J350,PC12_UEC)+'Product Class Dist'!F$22*SUMPRODUCT('Efficiency Dist'!J373:J380,PC13_UEC)+'Product Class Dist'!F$23*SUMPRODUCT('Efficiency Dist'!J403:J410,PC14_UEC)+'Product Class Dist'!F$24*SUMPRODUCT('Efficiency Dist'!J433:J440,PC15_UEC) -> 6165.139992 | G11: ='Product Class Dist'!G$10*SUMPRODUCT('Efficiency Dist'!K13:K20,PC1_UEC)+'Product Class Dist'!G$11*SUMPRODUCT('Efficiency Dist'!K43:K50,PC2_UEC)+'Product Class Dist'!G$12*SUMPRODUCT('Efficiency Dist'!K73:K80,PC3_UEC)+'Product Class Dist'!G$13*SUMPRODUCT('Efficiency Dist'!K103:K110,PC4_UEC)+'Product Class Dist'!G$14*SUMPRODUCT('Efficiency Dist'!K133:K140,PC5_UEC)+'Product Class Dist'!G$15*SUMPRODUCT('Efficiency Dist'!K163:K170,PC6_UEC)+'Product Class Dist'!G$16*SUMPRODUCT('Efficiency Dist'!K193:K200,PC7_UEC)+'Product Class Dist'!G$17*SUMPRODUCT('Efficiency Dist'!K223:K230,PC8_UEC)+'Product Class Dist'!G$18*SUMPRODUCT('Efficiency Dist'!K253:K260,PC9_UEC)+'Product Class Dist'!G$19*SUMPRODUCT('Efficiency Dist'!K283:K290,PC10_UEC)+'Product Class Dist'!G$20*SUMPRODUCT('Efficiency Dist'!K313:K320,PC11_UEC)+'Product Class Dist'!G$21*SUMPRODUCT('Efficiency Dist'!K343:K350,PC12_UEC)+'Product Class Dist'!G$22*SUMPRODUCT('Efficiency Dist'!K373:K380,PC13_UEC)+'Product Class Dist'!G$23*SUMPRODUCT('Efficiency Dist'!K403:K410,PC14_UEC)+'Product Class Dist'!G$24*SUMPRODUCT('Efficiency Dist'!K433:K440,PC15_UEC) -> 6165.139992 | H11: ='Product Class Dist'!H$10*SUMPRODUCT('Efficiency Dist'!L13:L20,PC1_UEC)+'Product Class Dist'!H$11*SUMPRODUCT('Efficiency Dist'!L43:L50,PC2_UEC)+'Product Class Dist'!H$12*SUMPRODUCT('Efficiency Dist'!L73:L80,PC3_UEC)+'Product Class Dist'!H$13*SUMPRODUCT('Efficiency Dist'!L103:L110,PC4_UEC)+'Product Class Dist'!H$14*SUMPRODUCT('Efficiency Dist'!L133:L140,PC5_UEC)+'Product Class Dist'!H$15*SUMPRODUCT('Efficiency Dist'!L163:L170,PC6_UEC)+'Product Class Dist'!H$16*SUMPRODUCT('Efficiency Dist'!L193:L200,PC7_UEC)+'Product Class Dist'!H$17*SUMPRODUCT('Efficiency Dist'!L223:L230,PC8_UEC)+'Product Class Dist'!H$18*SUMPRODUCT('Efficiency Dist'!L253:L260,PC9_UEC)+'Product Class Dist'!H$19*SUMPRODUCT('Efficiency Dist'!L283:L290,PC10_UEC)+'Product Class Dist'!H$20*SUMPRODUCT('Efficiency Dist'!L313:L320,PC11_UEC)+'Product Class Dist'!H$21*SUMPRODUCT('Efficiency Dist'!L343:L350,PC12_UEC)+'Product Class Dist'!H$22*SUMPRODUCT('Efficiency Dist'!L373:L380,PC13_UEC)+'Product Class Dist'!H$23*SUMPRODUCT('Efficiency Dist'!L403:L410,PC14_UEC)+'Product Class Dist'!H$24*SUMPRODUCT('Efficiency Dist'!L433:L440,PC15_UEC) -> 6165.139992 | I11: ='Product Class Dist'!I$10*SUMPRODUCT('Efficiency Dist'!M13:M20,PC1_UEC)+'Product Class Dist'!I$11*SUMPRODUCT('Efficiency Dist'!M43:M50,PC2_UEC)+'Product Class Dist'!I$12*SUMPRODUCT('Efficiency Dist'!M73:M80,PC3_UEC)+'Product Class Dist'!I$13*SUMPRODUCT('Efficiency Dist'!M103:M110,PC4_UEC)+'Product Class Dist'!I$14*SUMPRODUCT('Efficiency Dist'!M133:M140,PC5_UEC)+'Product Class Dist'!I$15*SUMPRODUCT('Efficiency Dist'!M163:M170,PC6_UEC)+'Product Class Dist'!I$16*SUMPRODUCT('Efficiency Dist'!M193:M200,PC7_UEC)+'Product Class Dist'!I$17*SUMPRODUCT('Efficiency Dist'!M223:M230,PC8_UEC)+'Product Class Dist'!I$18*SUMPRODUCT('Efficiency Dist'!M253:M260,PC9_UEC)+'Product Class Dist'!I$19*SUMPRODUCT('Efficiency Dist'!M283:M290,PC10_UEC)+'Product Class Dist'!I$20*SUMPRODUCT('Efficiency Dist'!M313:M320,PC11_UEC)+'Product Class Dist'!I$21*SUMPRODUCT('Efficiency Dist'!M343:M350,PC12_UEC)+'Product Class Dist'!I$22*SUMPRODUCT('Efficiency Dist'!M373:M380,PC13_UEC)+'Product Class Dist'!I$23*SUMPRODUCT('Efficiency Dist'!M403:M410,PC14_UEC)+'Product Class Dist'!I$24*SUMPRODUCT('Efficiency Dist'!M433:M440,PC15_UEC) -> 6165.139992 | J11: ='Product Class Dist'!J$10*SUMPRODUCT('Efficiency Dist'!N13:N20,PC1_UEC)+'Product Class Dist'!J$11*SUMPRODUCT('Efficiency Dist'!N43:N50,PC2_UEC)+'Product Class Dist'!J$12*SUMPRODUCT('Efficiency Dist'!N73:N80,PC3_UEC)+'Product Class Dist'!J$13*SUMPRODUCT('Efficiency Dist'!N103:N110,PC4_UEC)+'Product Class Dist'!J$14*SUMPRODUCT('Efficiency Dist'!N133:N140,PC5_UEC)+'Product Class Dist'!J$15*SUMPRODUCT('Efficiency Dist'!N163:N170,PC6_UEC)+'Product Class Dist'!J$16*SUMPRODUCT('Efficiency Dist'!N193:N200,PC7_UEC)+'Product Class Dist'!J$17*SUMPRODUCT('Efficiency Dist'!N223:N230,PC8_UEC)+'Product Class Dist'!J$18*SUMPRODUCT('Efficiency Dist'!N253:N260,PC9_UEC)+'Product Class Dist'!J$19*SUMPRODUCT('Efficiency Dist'!N283:N290,PC10_UEC)+'Product Class Dist'!J$20*SUMPRODUCT('Efficiency Dist'!N313:N320,PC11_UEC)+'Product Class Dist'!J$21*SUMPRODUCT('Efficiency Dist'!N343:N350,PC12_UEC)+'Product Class Dist'!J$22*SUMPRODUCT('Efficiency Dist'!N373:N380,PC13_UEC)+'Product Class Dist'!J$23*SUMPRODUCT('Efficiency Dist'!N403:N410,PC14_UEC)+'Product Class Dist'!J$24*SUMPRODUCT('Efficiency Dist'!N433:N440,PC15_UEC) -> 6165.139992 | K11: ='Product Class Dist'!K$10*SUMPRODUCT('Efficiency Dist'!O13:O20,PC1_UEC)+'Product Class Dist'!K$11*SUMPRODUCT('Efficiency Dist'!O43:O50,PC2_UEC)+'Product Class Dist'!K$12*SUMPRODUCT('Efficiency Dist'!O73:O80,PC3_UEC)+'Product Class Dist'!K$13*SUMPRODUCT('Efficiency Dist'!O103:O110,PC4_UEC)+'Product Class Dist'!K$14*SUMPRODUCT('Efficiency Dist'!O133:O140,PC5_UEC)+'Product Class Dist'!K$15*SUMPRODUCT('Efficiency Dist'!O163:O170,PC6_UEC)+'Product Class Dist'!K$16*SUMPRODUCT('Efficiency Dist'!O193:O200,PC7_UEC)+'Product Class Dist'!K$17*SUMPRODUCT('Efficiency Dist'!O223:O230,PC8_UEC)+'Product Class Dist'!K$18*SUMPRODUCT('Efficiency Dist'!O253:O260,PC9_UEC)+'Product Class Dist'!K$19*SUMPRODUCT('Efficiency Dist'!O283:O290,PC10_UEC)+'Product Class Dist'!K$20*SUMPRODUCT('Efficiency Dist'!O313:O320,PC11_UEC)+'Product Class Dist'!K$21*SUMPRODUCT('Efficiency Dist'!O343:O350,PC12_UEC)+'Product Class Dist'!K$22*SUMPRODUCT('Efficiency Dist'!O373:O380,PC13_UEC)+'Product Class Dist'!K$23*SUMPRODUCT('Efficiency Dist'!O403:O410,PC14_UEC)+'Product Class Dist'!K$24*SUMPRODUCT('Efficiency Dist'!O433:O440,PC15_UEC) -> 6165.139992 | L11: ='Product Class Dist'!L$10*SUMPRODUCT('Efficiency Dist'!P13:P20,PC1_UEC)+'Product Class Dist'!L$11*SUMPRODUCT('Efficiency Dist'!P43:P50,PC2_UEC)+'Product Class Dist'!L$12*SUMPRODUCT('Efficiency Dist'!P73:P80,PC3_UEC)+'Product Class Dist'!L$13*SUMPRODUCT('Efficiency Dist'!P103:P110,PC4_UEC)+'Product Class Dist'!L$14*SUMPRODUCT('Efficiency Dist'!P133:P140,PC5_UEC)+'Product Class Dist'!L$15*SUMPRODUCT('Efficiency Dist'!P163:P170,PC6_UEC)+'Product Class Dist'!L$16*SUMPRODUCT('Efficiency Dist'!P193:P200,PC7_UEC)+'Product Class Dist'!L$17*SUMPRODUCT('Efficiency Dist'!P223:P230,PC8_UEC)+'Product Class Dist'!L$18*SUMPRODUCT('Efficiency Dist'!P253:P260,PC9_UEC)+'Product Class Dist'!L$19*SUMPRODUCT('Efficiency Dist'!P283:P290,PC10_UEC)+'Product Class Dist'!L$20*SUMPRODUCT('Efficiency Dist'!P313:P320,PC11_UEC)+'Product Class Dist'!L$21*SUMPRODUCT('Efficiency Dist'!P343:P350,PC12_UEC)+'Product Class Dist'!L$22*SUMPRODUCT('Efficiency Dist'!P373:P380,PC13_UEC)+'Product Class Dist'!L$23*SUMPRODUCT('Efficiency Dist'!P403:P410,PC14_UEC)+'Product Class Dist'!L$24*SUMPRODUCT('Efficiency Dist'!P433:P440,PC15_UEC) -> 6165.139992 | M11: ='Product Class Dist'!M$10*SUMPRODUCT('Efficiency Dist'!Q13:Q20,PC1_UEC)+'Product Class Dist'!M$11*SUMPRODUCT('Efficiency Dist'!Q43:Q50,PC2_UEC)+'Product Class Dist'!M$12*SUMPRODUCT('Efficiency Dist'!Q73:Q80,PC3_UEC)+'Product Class Dist'!M$13*SUMPRODUCT('Efficiency Dist'!Q103:Q110,PC4_UEC)+'Product Class Dist'!M$14*SUMPRODUCT('Efficiency Dist'!Q133:Q140,PC5_UEC)+'Product Class Dist'!M$15*SUMPRODUCT('Efficiency Dist'!Q163:Q170,PC6_UEC)+'Product Class Dist'!M$16*SUMPRODUCT('Efficiency Dist'!Q193:Q200,PC7_UEC)+'Product Class Dist'!M$17*SUMPRODUCT('Efficiency Dist'!Q223:Q230,PC8_UEC)+'Product Class Dist'!M$18*SUMPRODUCT('Efficiency Dist'!Q253:Q260,PC9_UEC)+'Product Class Dist'!M$19*SUMPRODUCT('Efficiency Dist'!Q283:Q290,PC10_UEC)+'Product Class Dist'!M$20*SUMPRODUCT('Efficiency Dist'!Q313:Q320,PC11_UEC)+'Product Class Dist'!M$21*SUMPRODUCT('Efficiency Dist'!Q343:Q350,PC12_UEC)+'Product Class Dist'!M$22*SUMPRODUCT('Efficiency Dist'!Q373:Q380,PC13_UEC)+'Product Class Dist'!M$23*SUMPRODUCT('Efficiency Dist'!Q403:Q410,PC14_UEC)+'Product Class Dist'!M$24*SUMPRODUCT('Efficiency Dist'!Q433:Q440,PC15_UEC) -> 6165.139992 | N11: ='Product Class Dist'!N$10*SUMPRODUCT('Efficiency Dist'!R13:R20,PC1_UEC)+'Product Class Dist'!N$11*SUMPRODUCT('Efficiency Dist'!R43:R50,PC2_UEC)+'Product Class Dist'!N$12*SUMPRODUCT('Efficiency Dist'!R73:R80,PC3_UEC)+'Product Class Dist'!N$13*SUMPRODUCT('Efficiency Dist'!R103:R110,PC4_UEC)+'Product Class Dist'!N$14*SUMPRODUCT('Efficiency Dist'!R133:R140,PC5_UEC)+'Product Class Dist'!N$15*SUMPRODUCT('Efficiency Dist'!R163:R170,PC6_UEC)+'Product Class Dist'!N$16*SUMPRODUCT('Efficiency Dist'!R193:R200,PC7_UEC)+'Product Class Dist'!N$17*SUMPRODUCT('Efficiency Dist'!R223:R230,PC8_UEC)+'Product Class Dist'!N$18*SUMPRODUCT('Efficiency Dist'!R253:R260,PC9_UEC)+'Product Class Dist'!N$19*SUMPRODUCT('Efficiency Dist'!R283:R290,PC10_UEC)+'Product Class Dist'!N$20*SUMPRODUCT('Efficiency Dist'!R313:R320,PC11_UEC)+'Product Class Dist'!N$21*SUMPRODUCT('Efficiency Dist'!R343:R350,PC12_UEC)+'Product Class Dist'!N$22*SUMPRODUCT('Efficiency Dist'!R373:R380,PC13_UEC)+'Product Class Dist'!N$23*SUMPRODUCT('Efficiency Dist'!R403:R410,PC14_UEC)+'Product Class Dist'!N$24*SUMPRODUCT('Efficiency Dist'!R433:R440,PC15_UEC) -> 6165.139992 | O11: ='Product Class Dist'!O$10*SUMPRODUCT('Efficiency Dist'!S13:S20,PC1_UEC)+'Product Class Dist'!O$11*SUMPRODUCT('Efficiency Dist'!S43:S50,PC2_UEC)+'Product Class Dist'!O$12*SUMPRODUCT('Efficiency Dist'!S73:S80,PC3_UEC)+'Product Class Dist'!O$13*SUMPRODUCT('Efficiency Dist'!S103:S110,PC4_UEC)+'Product Class Dist'!O$14*SUMPRODUCT('Efficiency Dist'!S133:S140,PC5_UEC)+'Product Class Dist'!O$15*SUMPRODUCT('Efficiency Dist'!S163:S170,PC6_UEC)+'Product Class Dist'!O$16*SUMPRODUCT('Efficiency Dist'!S193:S200,PC7_UEC)+'Product Class Dist'!O$17*SUMPRODUCT('Efficiency Dist'!S223:S230,PC8_UEC)+'Product Class Dist'!O$18*SUMPRODUCT('Efficiency Dist'!S253:S260,PC9_UEC)+'Product Class Dist'!O$19*SUMPRODUCT('Efficiency Dist'!S283:S290,PC10_UEC)+'Product Class Dist'!O$20*SUMPRODUCT('Efficiency Dist'!S313:S320,PC11_UEC)+'Product Class Dist'!O$21*SUMPRODUCT('Efficiency Dist'!S343:S350,PC12_UEC)+'Product Class Dist'!O$22*SUMPRODUCT('Efficiency Dist'!S373:S380,PC13_UEC)+'Product Class Dist'!O$23*SUMPRODUCT('Efficiency Dist'!S403:S410,PC14_UEC)+'Product Class Dist'!O$24*SUMPRODUCT('Efficiency Dist'!S433:S440,PC15_UEC) -> 6165.139992 | P11: ='Product Class Dist'!P$10*SUMPRODUCT('Efficiency Dist'!T13:T20,PC1_UEC)+'Product Class Dist'!P$11*SUMPRODUCT('Efficiency Dist'!T43:T50,PC2_UEC)+'Product Class Dist'!P$12*SUMPRODUCT('Efficiency Dist'!T73:T80,PC3_UEC)+'Product Class Dist'!P$13*SUMPRODUCT('Efficiency Dist'!T103:T110,PC4_UEC)+'Product Class Dist'!P$14*SUMPRODUCT('Efficiency Dist'!T133:T140,PC5_UEC)+'Product Class Dist'!P$15*SUMPRODUCT('Efficiency Dist'!T163:T170,PC6_UEC)+'Product Class Dist'!P$16*SUMPRODUCT('Efficiency Dist'!T193:T200,PC7_UEC)+'Product Class Dist'!P$17*SUMPRODUCT('Efficiency Dist'!T223:T230,PC8_UEC)+'Product Class Dist'!P$18*SUMPRODUCT('Efficiency Dist'!T253:T260,PC9_UEC)+'Product Class Dist'!P$19*SUMPRODUCT('Efficiency Dist'!T283:T290,PC10_UEC)+'Product Class Dist'!P$20*SUMPRODUCT('Efficiency Dist'!T313:T320,PC11_UEC)+'Product Class Dist'!P$21*SUMPRODUCT('Efficiency Dist'!T343:T350,PC12_UEC)+'Product Class Dist'!P$22*SUMPRODUCT('Efficiency Dist'!T373:T380,PC13_UEC)+'Product Class Dist'!P$23*SUMPRODUCT('Efficiency Dist'!T403:T410,PC14_UEC)+'Product Class Dist'!P$24*SUMPRODUCT('Efficiency Dist'!T433:T440,PC15_UEC) -> 6165.139992 | Q11: ='Product Class Dist'!Q$10*SUMPRODUCT('Efficiency Dist'!U13:U20,PC1_UEC)+'Product Class Dist'!Q$11*SUMPRODUCT('Efficiency Dist'!U43:U50,PC2_UEC)+'Product Class Dist'!Q$12*SUMPRODUCT('Efficiency Dist'!U73:U80,PC3_UEC)+'Product Class Dist'!Q$13*SUMPRODUCT('Efficiency Dist'!U103:U110,PC4_UEC)+'Product Class Dist'!Q$14*SUMPRODUCT('Efficiency Dist'!U133:U140,PC5_UEC)+'Product Class Dist'!Q$15*SUMPRODUCT('Efficiency Dist'!U163:U170,PC6_UEC)+'Product Class Dist'!Q$16*SUMPRODUCT('Efficiency Dist'!U193:U200,PC7_UEC)+'Product Class Dist'!Q$17*SUMPRODUCT('Efficiency Dist'!U223:U230,PC8_UEC)+'Product Class Dist'!Q$18*SUMPRODUCT('Efficiency Dist'!U253:U260,PC9_UEC)+'Product Class Dist'!Q$19*SUMPRODUCT('Efficiency Dist'!U283:U290,PC10_UEC)+'Product Class Dist'!Q$20*SUMPRODUCT('Efficiency Dist'!U313:U320,PC11_UEC)+'Product Class Dist'!Q$21*SUMPRODUCT('Efficiency Dist'!U343:U350,PC12_UEC)+'Product Class Dist'!Q$22*SUMPRODUCT('Efficiency Dist'!U373:U380,PC13_UEC)+'Product Class Dist'!Q$23*SUMPRODUCT('Efficiency Dist'!U403:U410,PC14_UEC)+'Product Class Dist'!Q$24*SUMPRODUCT('Efficiency Dist'!U433:U440,PC15_UEC) -> 6165.139992 | R11: ='Product Class Dist'!R$10*SUMPRODUCT('Efficiency Dist'!V13:V20,PC1_UEC)+'Product Class Dist'!R$11*SUMPRODUCT('Efficiency Dist'!V43:V50,PC2_UEC)+'Product Class Dist'!R$12*SUMPRODUCT('Efficiency Dist'!V73:V80,PC3_UEC)+'Product Class Dist'!R$13*SUMPRODUCT('Efficiency Dist'!V103:V110,PC4_UEC)+'Product Class Dist'!R$14*SUMPRODUCT('Efficiency Dist'!V133:V140,PC5_UEC)+'Product Class Dist'!R$15*SUMPRODUCT('Efficiency Dist'!V163:V170,PC6_UEC)+'Product Class Dist'!R$16*SUMPRODUCT('Efficiency Dist'!V193:V200,PC7_UEC)+'Product Class Dist'!R$17*SUMPRODUCT('Efficiency Dist'!V223:V230,PC8_UEC)+'Product Class Dist'!R$18*SUMPRODUCT('Efficiency Dist'!V253:V260,PC9_UEC)+'Product Class Dist'!R$19*SUMPRODUCT('Efficiency Dist'!V283:V290,PC10_UEC)+'Product Class Dist'!R$20*SUMPRODUCT('Efficiency Dist'!V313:V320,PC11_UEC)+'Product Class Dist'!R$21*SUMPRODUCT('Efficiency Dist'!V343:V350,PC12_UEC)+'Product Class Dist'!R$22*SUMPRODUCT('Efficiency Dist'!V373:V380,PC13_UEC)+'Product Class Dist'!R$23*SUMPRODUCT('Efficiency Dist'!V403:V410,PC14_UEC)+'Product Class Dist'!R$24*SUMPRODUCT('Efficiency Dist'!V433:V440,PC15_UEC) -> 6165.139992 | S11: ='Product Class Dist'!S$10*SUMPRODUCT('Efficiency Dist'!W13:W20,PC1_UEC)+'Product Class Dist'!S$11*SUMPRODUCT('Efficiency Dist'!W43:W50,PC2_UEC)+'Product Class Dist'!S$12*SUMPRODUCT('Efficiency Dist'!W73:W80,PC3_UEC)+'Product Class Dist'!S$13*SUMPRODUCT('Efficiency Dist'!W103:W110,PC4_UEC)+'Product Class Dist'!S$14*SUMPRODUCT('Efficiency Dist'!W133:W140,PC5_UEC)+'Product Class Dist'!S$15*SUMPRODUCT('Efficiency Dist'!W163:W170,PC6_UEC)+'Product Class Dist'!S$16*SUMPRODUCT('Efficiency Dist'!W193:W200,PC7_UEC)+'Product Class Dist'!S$17*SUMPRODUCT('Efficiency Dist'!W223:W230,PC8_UEC)+'Product Class Dist'!S$18*SUMPRODUCT('Efficiency Dist'!W253:W260,PC9_UEC)+'Product Class Dist'!S$19*SUMPRODUCT('Efficiency Dist'!W283:W290,PC10_UEC)+'Product Class Dist'!S$20*SUMPRODUCT('Efficiency Dist'!W313:W320,PC11_UEC)+'Product Class Dist'!S$21*SUMPRODUCT('Efficiency Dist'!W343:W350,PC12_UEC)+'Product Class Dist'!S$22*SUMPRODUCT('Efficiency Dist'!W373:W380,PC13_UEC)+'Product Class Dist'!S$23*SUMPRODUCT('Efficiency Dist'!W403:W410,PC14_UEC)+'Product Class Dist'!S$24*SUMPRODUCT('Efficiency Dist'!W433:W440,PC15_UEC) -> 6165.139992 | T11: ='Product Class Dist'!T$10*SUMPRODUCT('Efficiency Dist'!X13:X20,PC1_UEC)+'Product Class Dist'!T$11*SUMPRODUCT('Efficiency Dist'!X43:X50,PC2_UEC)+'Product Class Dist'!T$12*SUMPRODUCT('Efficiency Dist'!X73:X80,PC3_UEC)+'Product Class Dist'!T$13*SUMPRODUCT('Efficiency Dist'!X103:X110,PC4_UEC)+'Product Class Dist'!T$14*SUMPRODUCT('Efficiency Dist'!X133:X140,PC5_UEC)+'Product Class Dist'!T$15*SUMPRODUCT('Efficiency Dist'!X163:X170,PC6_UEC)+'Product Class Dist'!T$16*SUMPRODUCT('Efficiency Dist'!X193:X200,PC7_UEC)+'Product Class Dist'!T$17*SUMPRODUCT('Efficiency Dist'!X223:X230,PC8_UEC)+'Product Class Dist'!T$18*SUMPRODUCT('Efficiency Dist'!X253:X260,PC9_UEC)+'Product Class Dist'!T$19*SUMPRODUCT('Efficiency Dist'!X283:X290,PC10_UEC)+'Product Class Dist'!T$20*SUMPRODUCT('Efficiency Dist'!X313:X320,PC11_UEC)+'Product Class Dist'!T$21*SUMPRODUCT('Efficiency Dist'!X343:X350,PC12_UEC)+'Product Class Dist'!T$22*SUMPRODUCT('Efficiency Dist'!X373:X380,PC13_UEC)+'Product Class Dist'!T$23*SUMPRODUCT('Efficiency Dist'!X403:X410,PC14_UEC)+'Product Class Dist'!T$24*SUMPRODUCT('Efficiency Dist'!X433:X440,PC15_UEC) -> 6165.139992 | U11: ='Product Class Dist'!U$10*SUMPRODUCT('Efficiency Dist'!Y13:Y20,PC1_UEC)+'Product Class Dist'!U$11*SUMPRODUCT('Efficiency Dist'!Y43:Y50,PC2_UEC)+'Product Class Dist'!U$12*SUMPRODUCT('Efficiency Dist'!Y73:Y80,PC3_UEC)+'Product Class Dist'!U$13*SUMPRODUCT('Efficiency Dist'!Y103:Y110,PC4_UEC)+'Product Class Dist'!U$14*SUMPRODUCT('Efficiency Dist'!Y133:Y140,PC5_UEC)+'Product Class Dist'!U$15*SUMPRODUCT('Efficiency Dist'!Y163:Y170,PC6_UEC)+'Product Class Dist'!U$16*SUMPRODUCT('Efficiency Dist'!Y193:Y200,PC7_UEC)+'Product Class Dist'!U$17*SUMPRODUCT('Efficiency Dist'!Y223:Y230,PC8_UEC)+'Product Class Dist'!U$18*SUMPRODUCT('Efficiency Dist'!Y253:Y260,PC9_UEC)+'Product Class Dist'!U$19*SUMPRODUCT('Efficiency Dist'!Y283:Y290,PC10_UEC)+'Product Class Dist'!U$20*SUMPRODUCT('Efficiency Dist'!Y313:Y320,PC11_UEC)+'Product Class Dist'!U$21*SUMPRODUCT('Efficiency Dist'!Y343:Y350,PC12_UEC)+'Product Class Dist'!U$22*SUMPRODUCT('Efficiency Dist'!Y373:Y380,PC13_UEC)+'Product Class Dist'!U$23*SUMPRODUCT('Efficiency Dist'!Y403:Y410,PC14_UEC)+'Product Class Dist'!U$24*SUMPRODUCT('Efficiency Dist'!Y433:Y440,PC15_UEC) -> 6165.139992 | V11: ='Product Class Dist'!V$10*SUMPRODUCT('Efficiency Dist'!Z13:Z20,PC1_UEC)+'Product Class Dist'!V$11*SUMPRODUCT('Efficiency Dist'!Z43:Z50,PC2_UEC)+'Product Class Dist'!V$12*SUMPRODUCT('Efficiency Dist'!Z73:Z80,PC3_UEC)+'Product Class Dist'!V$13*SUMPRODUCT('Efficiency Dist'!Z103:Z110,PC4_UEC)+'Product Class Dist'!V$14*SUMPRODUCT('Efficiency Dist'!Z133:Z140,PC5_UEC)+'Product Class Dist'!V$15*SUMPRODUCT('Efficiency Dist'!Z163:Z170,PC6_UEC)+'Product Class Dist'!V$16*SUMPRODUCT('Efficiency Dist'!Z193:Z200,PC7_UEC)+'Product Class Dist'!V$17*SUMPRODUCT('Efficiency Dist'!Z223:Z230,PC8_UEC)+'Product Class Dist'!V$18*SUMPRODUCT('Efficiency Dist'!Z253:Z260,PC9_UEC)+'Product Class Dist'!V$19*SUMPRODUCT('Efficiency Dist'!Z283:Z290,PC10_UEC)+'Product Class Dist'!V$20*SUMPRODUCT('Efficiency Dist'!Z313:Z320,PC11_UEC)+'Product Class Dist'!V$21*SUMPRODUCT('Efficiency Dist'!Z343:Z350,PC12_UEC)+'Product Class Dist'!V$22*SUMPRODUCT('Efficiency Dist'!Z373:Z380,PC13_UEC)+'Product Class Dist'!V$23*SUMPRODUCT('Efficiency Dist'!Z403:Z410,PC14_UEC)+'Product Class Dist'!V$24*SUMPRODUCT('Efficiency Dist'!Z433:Z440,PC15_UEC) -> 6165.139992 | W11: ='Product Class Dist'!W$10*SUMPRODUCT('Efficiency Dist'!AA13:AA20,PC1_UEC)+'Product Class Dist'!W$11*SUMPRODUCT('Efficiency Dist'!AA43:AA50,PC2_UEC)+'Product Class Dist'!W$12*SUMPRODUCT('Efficiency Dist'!AA73:AA80,PC3_UEC)+'Product Class Dist'!W$13*SUMPRODUCT('Efficiency Dist'!AA103:AA110,PC4_UEC)+'Product Class Dist'!W$14*SUMPRODUCT('Efficiency Dist'!AA133:AA140,PC5_UEC)+'Product Class Dist'!W$15*SUMPRODUCT('Efficiency Dist'!AA163:AA170,PC6_UEC)+'Product Class Dist'!W$16*SUMPRODUCT('Efficiency Dist'!AA193:AA200,PC7_UEC)+'Product Class Dist'!W$17*SUMPRODUCT('Efficiency Dist'!AA223:AA230,PC8_UEC)+'Product Class Dist'!W$18*SUMPRODUCT('Efficiency Dist'!AA253:AA260,PC9_UEC)+'Product Class Dist'!W$19*SUMPRODUCT('Efficiency Dist'!AA283:AA290,PC10_UEC)+'Product Class Dist'!W$20*SUMPRODUCT('Efficiency Dist'!AA313:AA320,PC11_UEC)+'Product Class Dist'!W$21*SUMPRODUCT('Efficiency Dist'!AA343:AA350,PC12_UEC)+'Product Class Dist'!W$22*SUMPRODUCT('Efficiency Dist'!AA373:AA380,PC13_UEC)+'Product Class Dist'!W$23*SUMPRODUCT('Efficiency Dist'!AA403:AA410,PC14_UEC)+'Product Class Dist'!W$24*SUMPRODUCT('Efficiency Dist'!AA433:AA440,PC15_UEC) -> 6165.139992 | X11: ='Product Class Dist'!X$10*SUMPRODUCT('Efficiency Dist'!AB13:AB20,PC1_UEC)+'Product Class Dist'!X$11*SUMPRODUCT('Efficiency Dist'!AB43:AB50,PC2_UEC)+'Product Class Dist'!X$12*SUMPRODUCT('Efficiency Dist'!AB73:AB80,PC3_UEC)+'Product Class Dist'!X$13*SUMPRODUCT('Efficiency Dist'!AB103:AB110,PC4_UEC)+'Product Class Dist'!X$14*SUMPRODUCT('Efficiency Dist'!AB133:AB140,PC5_UEC)+'Product Class Dist'!X$15*SUMPRODUCT('Efficiency Dist'!AB163:AB170,PC6_UEC)+'Product Class Dist'!X$16*SUMPRODUCT('Efficiency Dist'!AB193:AB200,PC7_UEC)+'Product Class Dist'!X$17*SUMPRODUCT('Efficiency Dist'!AB223:AB230,PC8_UEC)+'Product Class Dist'!X$18*SUMPRODUCT('Efficiency Dist'!AB253:AB260,PC9_UEC)+'Product Class Dist'!X$19*SUMPRODUCT('Efficiency Dist'!AB283:AB290,PC10_UEC)+'Product Class Dist'!X$20*SUMPRODUCT('Efficiency Dist'!AB313:AB320,PC11_UEC)+'Product Class Dist'!X$21*SUMPRODUCT('Efficiency Dist'!AB343:AB350,PC12_UEC)+'Product Class Dist'!X$22*SUMPRODUCT('Efficiency Dist'!AB373:AB380,PC13_UEC)+'Product Class Dist'!X$23*SUMPRODUCT('Efficiency Dist'!AB403:AB410,PC14_UEC)+'Product Class Dist'!X$24*SUMPRODUCT('Efficiency Dist'!AB433:AB440,PC15_UEC) -> 5104.061514 | Y11: ='Product Class Dist'!Y$10*SUMPRODUCT('Efficiency Dist'!AC13:AC20,PC1_UEC)+'Product Class Dist'!Y$11*SUMPRODUCT('Efficiency Dist'!AC43:AC50,PC2_UEC)+'Product Class Dist'!Y$12*SUMPRODUCT('Efficiency Dist'!AC73:AC80,PC3_UEC)+'Product Class Dist'!Y$13*SUMPRODUCT('Efficiency Dist'!AC103:AC110,PC4_UEC)+'Product Class Dist'!Y$14*SUMPRODUCT('Efficiency Dist'!AC133:AC140,PC5_UEC)+'Product Class Dist'!Y$15*SUMPRODUCT('Efficiency Dist'!AC163:AC170,PC6_UEC)+'Product Class Dist'!Y$16*SUMPRODUCT('Efficiency Dist'!AC193:AC200,PC7_UEC)+'Product Class Dist'!Y$17*SUMPRODUCT('Efficiency Dist'!AC223:AC230,PC8_UEC)+'Product Class Dist'!Y$18*SUMPRODUCT('Efficiency Dist'!AC253:AC260,PC9_UEC)+'Product Class Dist'!Y$19*SUMPRODUCT('Efficiency Dist'!AC283:AC290,PC10_UEC)+'Product Class Dist'!Y$20*SUMPRODUCT('Efficiency Dist'!AC313:AC320,PC11_UEC)+'Product Class Dist'!Y$21*SUMPRODUCT('Efficiency Dist'!AC343:AC350,PC12_UEC)+'Product Class Dist'!Y$22*SUMPRODUCT('Efficiency Dist'!AC373:AC380,PC13_UEC)+'Product Class Dist'!Y$23*SUMPRODUCT('Efficiency Dist'!AC403:AC410,PC14_UEC)+'Product Class Dist'!Y$24*SUMPRODUCT('Efficiency Dist'!AC433:AC440,PC15_UEC) -> 5104.061514 | Z11: ='Product Class Dist'!Z$10*SUMPRODUCT('Efficiency Dist'!AD13:AD20,PC1_UEC)+'Product Class Dist'!Z$11*SUMPRODUCT('Efficiency Dist'!AD43:AD50,PC2_UEC)+'Product Class Dist'!Z$12*SUMPRODUCT('Efficiency Dist'!AD73:AD80,PC3_UEC)+'Product Class Dist'!Z$13*SUMPRODUCT('Efficiency Dist'!AD103:AD110,PC4_UEC)+'Product Class Dist'!Z$14*SUMPRODUCT('Efficiency Dist'!AD133:AD140,PC5_UEC)+'Product Class Dist'!Z$15*SUMPRODUCT('Efficiency Dist'!AD163:AD170,PC6_UEC)+'Product Class Dist'!Z$16*SUMPRODUCT('Efficiency Dist'!AD193:AD200,PC7_UEC)+'Product Class Dist'!Z$17*SUMPRODUCT('Efficiency Dist'!AD223:AD230,PC8_UEC)+'Product Class Dist'!Z$18*SUMPRODUCT('Efficiency Dist'!AD253:AD260,PC9_UEC)+'Product Class Dist'!Z$19*SUMPRODUCT('Efficiency Dist'!AD283:AD290,PC10_UEC)+'Product Class Dist'!Z$20*SUMPRODUCT('Efficiency Dist'!AD313:AD320,PC11_UEC)+'Product Class Dist'!Z$21*SUMPRODUCT('Efficiency Dist'!AD343:AD350,PC12_UEC)+'Product Class Dist'!Z$22*SUMPRODUCT('Efficiency Dist'!AD373:AD380,PC13_UEC)+'Product Class Dist'!Z$23*SUMPRODUCT('Efficiency Dist'!AD403:AD410,PC14_UEC)+'Product Class Dist'!Z$24*SUMPRODUCT('Efficiency Dist'!AD433:AD440,PC15_UEC) -> 5104.061514 | AA11: ='Product Class Dist'!AA$10*SUMPRODUCT('Efficiency Dist'!AE13:AE20,PC1_UEC)+'Product Class Dist'!AA$11*SUMPRODUCT('Efficiency Dist'!AE43:AE50,PC2_UEC)+'Product Class Dist'!AA$12*SUMPRODUCT('Efficiency Dist'!AE73:AE80,PC3_UEC)+'Product Class Dist'!AA$13*SUMPRODUCT('Efficiency Dist'!AE103:AE110,PC4_UEC)+'Product Class Dist'!AA$14*SUMPRODUCT('Efficiency Dist'!AE133:AE140,PC5_UEC)+'Product Class Dist'!AA$15*SUMPRODUCT('Efficiency Dist'!AE163:AE170,PC6_UEC)+'Product Class Dist'!AA$16*SUMPRODUCT('Efficiency Dist'!AE193:AE200,PC7_UEC)+'Product Class Dist'!AA$17*SUMPRODUCT('Efficiency Dist'!AE223:AE230,PC8_UEC)+'Product Class Dist'!AA$18*SUMPRODUCT('Efficiency Dist'!AE253:AE260,PC9_UEC)+'Product Class Dist'!AA$19*SUMPRODUCT('Efficiency Dist'!AE283:AE290,PC10_UEC)+'Product Class Dist'!AA$20*SUMPRODUCT('Efficiency Dist'!AE313:AE320,PC11_UEC)+'Product Class Dist'!AA$21*SUMPRODUCT('Efficiency Dist'!AE343:AE350,PC12_UEC)+'Product Class Dist'!AA$22*SUMPRODUCT('Efficiency Dist'!AE373:AE380,PC13_UEC)+'Product Class Dist'!AA$23*SUMPRODUCT('Efficiency Dist'!AE403:AE410,PC14_UEC)+'Product Class Dist'!AA$24*SUMPRODUCT('Efficiency Dist'!AE433:AE440,PC15_UEC) -> 5104.061514 | AB11: ='Product Class Dist'!AB$10*SUMPRODUCT('Efficiency Dist'!AF13:AF20,PC1_UEC)+'Product Class Dist'!AB$11*SUMPRODUCT('Efficiency Dist'!AF43:AF50,PC2_UEC)+'Product Class Dist'!AB$12*SUMPRODUCT('Efficiency Dist'!AF73:AF80,PC3_UEC)+'Product Class Dist'!AB$13*SUMPRODUCT('Efficiency Dist'!AF103:AF110,PC4_UEC)+'Product Class Dist'!AB$14*SUMPRODUCT('Efficiency Dist'!AF133:AF140,PC5_UEC)+'Product Class Dist'!AB$15*SUMPRODUCT('Efficiency Dist'!AF163:AF170,PC6_UEC)+'Product Class Dist'!AB$16*SUMPRODUCT('Efficiency Dist'!AF193:AF200,PC7_UEC)+'Product Class Dist'!AB$17*SUMPRODUCT('Efficiency Dist'!AF223:AF230,PC8_UEC)+'Product Class Dist'!AB$18*SUMPRODUCT('Efficiency Dist'!AF253:AF260,PC9_UEC)+'Product Class Dist'!AB$19*SUMPRODUCT('Efficiency Dist'!AF283:AF290,PC10_UEC)+'Product Class Dist'!AB$20*SUMPRODUCT('Efficiency Dist'!AF313:AF320,PC11_UEC)+'Product Class Dist'!AB$21*SUMPRODUCT('Efficiency Dist'!AF343:AF350,PC12_UEC)+'Product Class Dist'!AB$22*SUMPRODUCT('Efficiency Dist'!AF373:AF380,PC13_UEC)+'Product Class Dist'!AB$23*SUMPRODUCT('Efficiency Dist'!AF403:AF410,PC14_UEC)+'Product Class Dist'!AB$24*SUMPRODUCT('Efficiency Dist'!AF433:AF440,PC15_UEC) -> 5104.061514 | AC11: ='Product Class Dist'!AC$10*SUMPRODUCT('Efficiency Dist'!AG13:AG20,PC1_UEC)+'Product Class Dist'!AC$11*SUMPRODUCT('Efficiency Dist'!AG43:AG50,PC2_UEC)+'Product Class Dist'!AC$12*SUMPRODUCT('Efficiency Dist'!AG73:AG80,PC3_UEC)+'Product Class Dist'!AC$13*SUMPRODUCT('Efficiency Dist'!AG103:AG110,PC4_UEC)+'Product Class Dist'!AC$14*SUMPRODUCT('Efficiency Dist'!AG133:AG140,PC5_UEC)+'Product Class Dist'!AC$15*SUMPRODUCT('Efficiency Dist'!AG163:AG170,PC6_UEC)+'Product Class Dist'!AC$16*SUMPRODUCT('Efficiency Dist'!AG193:AG200,PC7_UEC)+'Product Class Dist'!AC$17*SUMPRODUCT('Efficiency Dist'!AG223:AG230,PC8_UEC)+'Product Class Dist'!AC$18*SUMPRODUCT('Efficiency Dist'!AG253:AG260,PC9_UEC)+'Product Class Dist'!AC$19*SUMPRODUCT('Efficiency Dist'!AG283:AG290,PC10_UEC)+'Product Class Dist'!AC$20*SUMPRODUCT('Efficiency Dist'!AG313:AG320,PC11_UEC)+'Product Class Dist'!AC$21*SUMPRODUCT('Efficiency Dist'!AG343:AG350,PC12_UEC)+'Product Class Dist'!AC$22*SUMPRODUCT('Efficiency Dist'!AG373:AG380,PC13_UEC)+'Product Class Dist'!AC$23*SUMPRODUCT('Efficiency Dist'!AG403:AG410,PC14_UEC)+'Product Class Dist'!AC$24*SUMPRODUCT('Efficiency Dist'!AG433:AG440,PC15_UEC) -> 5104.061514 | AD11: ='Product Class Dist'!AD$10*SUMPRODUCT('Efficiency Dist'!AH13:AH20,PC1_UEC)+'Product Class Dist'!AD$11*SUMPRODUCT('Efficiency Dist'!AH43:AH50,PC2_UEC)+'Product Class Dist'!AD$12*SUMPRODUCT('Efficiency Dist'!AH73:AH80,PC3_UEC)+'Product Class Dist'!AD$13*SUMPRODUCT('Efficiency Dist'!AH103:AH110,PC4_UEC)+'Product Class Dist'!AD$14*SUMPRODUCT('Efficiency Dist'!AH133:AH140,PC5_UEC)+'Product Class Dist'!AD$15*SUMPRODUCT('Efficiency Dist'!AH163:AH170,PC6_UEC)+'Product Class Dist'!AD$16*SUMPRODUCT('Efficiency Dist'!AH193:AH200,PC7_UEC)+'Product Class Dist'!AD$17*SUMPRODUCT('Efficiency Dist'!AH223:AH230,PC8_UEC)+'Product Class Dist'!AD$18*SUMPRODUCT('Efficiency Dist'!AH253:AH260,PC9_UEC)+'Product Class Dist'!AD$19*SUMPRODUCT('Efficiency Dist'!AH283:AH290,PC10_UEC)+'Product Class Dist'!AD$20*SUMPRODUCT('Efficiency Dist'!AH313:AH320,PC11_UEC)+'Product Class Dist'!AD$21*SUMPRODUCT('Efficiency Dist'!AH343:AH350,PC12_UEC)+'Product Class Dist'!AD$22*SUMPRODUCT('Efficiency Dist'!AH373:AH380,PC13_UEC)+'Product Class Dist'!AD$23*SUMPRODUCT('Efficiency Dist'!AH403:AH410,PC14_UEC)+'Product Class Dist'!AD$24*SUMPRODUCT('Efficiency Dist'!AH433:AH440,PC15_UEC) -> 5104.061514 | AE11: ='Product Class Dist'!AE$10*SUMPRODUCT('Efficiency Dist'!AI13:AI20,PC1_UEC)+'Product Class Dist'!AE$11*SUMPRODUCT('Efficiency Dist'!AI43:AI50,PC2_UEC)+'Product Class Dist'!AE$12*SUMPRODUCT('Efficiency Dist'!AI73:AI80,PC3_UEC)+'Product Class Dist'!AE$13*SUMPRODUCT('Efficiency Dist'!AI103:AI110,PC4_UEC)+'Product Class Dist'!AE$14*SUMPRODUCT('Efficiency Dist'!AI133:AI140,PC5_UEC)+'Product Class Dist'!AE$15*SUMPRODUCT('Efficiency Dist'!AI163:AI170,PC6_UEC)+'Product Class Dist'!AE$16*SUMPRODUCT('Efficiency Dist'!AI193:AI200,PC7_UEC)+'Product Class Dist'!AE$17*SUMPRODUCT('Efficiency Dist'!AI223:AI230,PC8_UEC)+'Product Class Dist'!AE$18*SUMPRODUCT('Efficiency Dist'!AI253:AI260,PC9_UEC)+'Product Class Dist'!AE$19*SUMPRODUCT('Efficiency Dist'!AI283:AI290,PC10_UEC)+'Product Class Dist'!AE$20*SUMPRODUCT('Efficiency Dist'!AI313:AI320,PC11_UEC)+'Product Class Dist'!AE$21*SUMPRODUCT('Efficiency Dist'!AI343:AI350,PC12_UEC)+'Product Class Dist'!AE$22*SUMPRODUCT('Efficiency Dist'!AI373:AI380,PC13_UEC)+'Product Class Dist'!AE$23*SUMPRODUCT('Efficiency Dist'!AI403:AI410,PC14_UEC)+'Product Class Dist'!AE$24*SUMPRODUCT('Efficiency Dist'!AI433:AI440,PC15_UEC) -> 5104.061514 | AF11: ='Product Class Dist'!AF$10*SUMPRODUCT('Efficiency Dist'!AJ13:AJ20,PC1_UEC)+'Product Class Dist'!AF$11*SUMPRODUCT('Efficiency Dist'!AJ43:AJ50,PC2_UEC)+'Product Class Dist'!AF$12*SUMPRODUCT('Efficiency Dist'!AJ73:AJ80,PC3_UEC)+'Product Class Dist'!AF$13*SUMPRODUCT('Efficiency Dist'!AJ103:AJ110,PC4_UEC)+'Product Class Dist'!AF$14*SUMPRODUCT('Efficiency Dist'!AJ133:AJ140,PC5_UEC)+'Product Class Dist'!AF$15*SUMPRODUCT('Efficiency Dist'!AJ163:AJ170,PC6_UEC)+'Product Class Dist'!AF$16*SUMPRODUCT('Efficiency Dist'!AJ193:AJ200,PC7_UEC)+'Product Class Dist'!AF$17*SUMPRODUCT('Efficiency Dist'!AJ223:AJ230,PC8_UEC)+'Product Class Dist'!AF$18*SUMPRODUCT('Efficiency Dist'!AJ253:AJ260,PC9_UEC)+'Product Class Dist'!AF$19*SUMPRODUCT('Efficiency Dist'!AJ283:AJ290,PC10_UEC)+'Product Class Dist'!AF$20*SUMPRODUCT('Efficiency Dist'!AJ313:AJ320,PC11_UEC)+'Product Class Dist'!AF$21*SUMPRODUCT('Efficiency Dist'!AJ343:AJ350,PC12_UEC)+'Product Class Dist'!AF$22*SUMPRODUCT('Efficiency Dist'!AJ373:AJ380,PC13_UEC)+'Product Class Dist'!AF$23*SUMPRODUCT('Efficiency Dist'!AJ403:AJ410,PC14_UEC)+'Product Class Dist'!AF$24*SUMPRODUCT('Efficiency Dist'!AJ433:AJ440,PC15_UEC) -> 5104.061514 | AG11: ='Product Class Dist'!AG$10*SUMPRODUCT('Efficiency Dist'!AK13:AK20,PC1_UEC)+'Product Class Dist'!AG$11*SUMPRODUCT('Efficiency Dist'!AK43:AK50,PC2_UEC)+'Product Class Dist'!AG$12*SUMPRODUCT('Efficiency Dist'!AK73:AK80,PC3_UEC)+'Product Class Dist'!AG$13*SUMPRODUCT('Efficiency Dist'!AK103:AK110,PC4_UEC)+'Product Class Dist'!AG$14*SUMPRODUCT('Efficiency Dist'!AK133:AK140,PC5_UEC)+'Product Class Dist'!AG$15*SUMPRODUCT('Efficiency Dist'!AK163:AK170,PC6_UEC)+'Product Class Dist'!AG$16*SUMPRODUCT('Efficiency Dist'!AK193:AK200,PC7_UEC)+'Product Class Dist'!AG$17*SUMPRODUCT('Efficiency Dist'!AK223:AK230,PC8_UEC)+'Product Class Dist'!AG$18*SUMPRODUCT('Efficiency Dist'!AK253:AK260,PC9_UEC)+'Product Class Dist'!AG$19*SUMPRODUCT('Efficiency Dist'!AK283:AK290,PC10_UEC)+'Product Class Dist'!AG$20*SUMPRODUCT('Efficiency Dist'!AK313:AK320,PC11_UEC)+'Product Class Dist'!AG$21*SUMPRODUCT('Efficiency Dist'!AK343:AK350,PC12_UEC)+'Product Class Dist'!AG$22*SUMPRODUCT('Efficiency Dist'!AK373:AK380,PC13_UEC)+'Product Class Dist'!AG$23*SUMPRODUCT('Efficiency Dist'!AK403:AK410,PC14_UEC)+'Product Class Dist'!AG$24*SUMPRODUCT('Efficiency Dist'!AK433:AK440,PC15_UEC) -> 5104.061514 | AH11: ='Product Class Dist'!AH$10*SUMPRODUCT('Efficiency Dist'!AL13:AL20,PC1_UEC)+'Product Class Dist'!AH$11*SUMPRODUCT('Efficiency Dist'!AL43:AL50,PC2_UEC)+'Product Class Dist'!AH$12*SUMPRODUCT('Efficiency Dist'!AL73:AL80,PC3_UEC)+'Product Class Dist'!AH$13*SUMPRODUCT('Efficiency Dist'!AL103:AL110,PC4_UEC)+'Product Class Dist'!AH$14*SUMPRODUCT('Efficiency Dist'!AL133:AL140,PC5_UEC)+'Product Class Dist'!AH$15*SUMPRODUCT('Efficiency Dist'!AL163:AL170,PC6_UEC)+'Product Class Dist'!AH$16*SUMPRODUCT('Efficiency Dist'!AL193:AL200,PC7_UEC)+'Product Class Dist'!AH$17*SUMPRODUCT('Efficiency Dist'!AL223:AL230,PC8_UEC)+'Product Class Dist'!AH$18*SUMPRODUCT('Efficiency Dist'!AL253:AL260,PC9_UEC)+'Product Class Dist'!AH$19*SUMPRODUCT('Efficiency Dist'!AL283:AL290,PC10_UEC)+'Product Class Dist'!AH$20*SUMPRODUCT('Efficiency Dist'!AL313:AL320,PC11_UEC)+'Product Class Dist'!AH$21*SUMPRODUCT('Efficiency Dist'!AL343:AL350,PC12_UEC)+'Product Class Dist'!AH$22*SUMPRODUCT('Efficiency Dist'!AL373:AL380,PC13_UEC)+'Product Class Dist'!AH$23*SUMPRODUCT('Efficiency Dist'!AL403:AL410,PC14_UEC)+'Product Class Dist'!AH$24*SUMPRODUCT('Efficiency Dist'!AL433:AL440,PC15_UEC) -> 5104.061514 | AI11: ='Product Class Dist'!AI$10*SUMPRODUCT('Efficiency Dist'!AM13:AM20,PC1_UEC)+'Product Class Dist'!AI$11*SUMPRODUCT('Efficiency Dist'!AM43:AM50,PC2_UEC)+'Product Class Dist'!AI$12*SUMPRODUCT('Efficiency Dist'!AM73:AM80,PC3_UEC)+'Product Class Dist'!AI$13*SUMPRODUCT('Efficiency Dist'!AM103:AM110,PC4_UEC)+'Product Class Dist'!AI$14*SUMPRODUCT('Efficiency Dist'!AM133:AM140,PC5_UEC)+'Product Class Dist'!AI$15*SUMPRODUCT('Efficiency Dist'!AM163:AM170,PC6_UEC)+'Product Class Dist'!AI$16*SUMPRODUCT('Efficiency Dist'!AM193:AM200,PC7_UEC)+'Product Class Dist'!AI$17*SUMPRODUCT('Efficiency Dist'!AM223:AM230,PC8_UEC)+'Product Class Dist'!AI$18*SUMPRODUCT('Efficiency Dist'!AM253:AM260,PC9_UEC)+'Product Class Dist'!AI$19*SUMPRODUCT('Efficiency Dist'!AM283:AM290,PC10_UEC)+'Product Class Dist'!AI$20*SUMPRODUCT('Efficiency Dist'!AM313:AM320,PC11_UEC)+'Product Class Dist'!AI$21*SUMPRODUCT('Efficiency Dist'!AM343:AM350,PC12_UEC)+'Product Class Dist'!AI$22*SUMPRODUCT('Efficiency Dist'!AM373:AM380,PC13_UEC)+'Product Class Dist'!AI$23*SUMPRODUCT('Efficiency Dist'!AM403:AM410,PC14_UEC)+'Product Class Dist'!AI$24*SUMPRODUCT('Efficiency Dist'!AM433:AM440,PC15_UEC) -> 5104.061514 | AJ11: ='Product Class Dist'!AJ$10*SUMPRODUCT('Efficiency Dist'!AN13:AN20,PC1_UEC)+'Product Class Dist'!AJ$11*SUMPRODUCT('Efficiency Dist'!AN43:AN50,PC2_UEC)+'Product Class Dist'!AJ$12*SUMPRODUCT('Efficiency Dist'!AN73:AN80,PC3_UEC)+'Product Class Dist'!AJ$13*SUMPRODUCT('Efficiency Dist'!AN103:AN110,PC4_UEC)+'Product Class Dist'!AJ$14*SUMPRODUCT('Efficiency Dist'!AN133:AN140,PC5_UEC)+'Product Class Dist'!AJ$15*SUMPRODUCT('Efficiency Dist'!AN163:AN170,PC6_UEC)+'Product Class Dist'!AJ$16*SUMPRODUCT('Efficiency Dist'!AN193:AN200,PC7_UEC)+'Product Class Dist'!AJ$17*SUMPRODUCT('Efficiency Dist'!AN223:AN230,PC8_UEC)+'Product Class Dist'!AJ$18*SUMPRODUCT('Efficiency Dist'!AN253:AN260,PC9_UEC)+'Product Class Dist'!AJ$19*SUMPRODUCT('Efficiency Dist'!AN283:AN290,PC10_UEC)+'Product Class Dist'!AJ$20*SUMPRODUCT('Efficiency Dist'!AN313:AN320,PC11_UEC)+'Product Class Dist'!AJ$21*SUMPRODUCT('Efficiency Dist'!AN343:AN350,PC12_UEC)+'Product Class Dist'!AJ$22*SUMPRODUCT('Efficiency Dist'!AN373:AN380,PC13_UEC)+'Product Class Dist'!AJ$23*SUMPRODUCT('Efficiency Dist'!AN403:AN410,PC14_UEC)+'Product Class Dist'!AJ$24*SUMPRODUCT('Efficiency Dist'!AN433:AN440,PC15_UEC) -> 5104.061514 | AK11: ='Product Class Dist'!AK$10*SUMPRODUCT('Efficiency Dist'!AO13:AO20,PC1_UEC)+'Product Class Dist'!AK$11*SUMPRODUCT('Efficiency Dist'!AO43:AO50,PC2_UEC)+'Product Class Dist'!AK$12*SUMPRODUCT('Efficiency Dist'!AO73:AO80,PC3_UEC)+'Product Class Dist'!AK$13*SUMPRODUCT('Efficiency Dist'!AO103:AO110,PC4_UEC)+'Product Class Dist'!AK$14*SUMPRODUCT('Efficiency Dist'!AO133:AO140,PC5_UEC)+'Product Class Dist'!AK$15*SUMPRODUCT('Efficiency Dist'!AO163:AO170,PC6_UEC)+'Product Class Dist'!AK$16*SUMPRODUCT('Efficiency Dist'!AO193:AO200,PC7_UEC)+'Product Class Dist'!AK$17*SUMPRODUCT('Efficiency Dist'!AO223:AO230,PC8_UEC)+'Product Class Dist'!AK$18*SUMPRODUCT('Efficiency Dist'!AO253:AO260,PC9_UEC)+'Product Class Dist'!AK$19*SUMPRODUCT('Efficiency Dist'!AO283:AO290,PC10_UEC)+'Product Class Dist'!AK$20*SUMPRODUCT('Efficiency Dist'!AO313:AO320,PC11_UEC)+'Product Class Dist'!AK$21*SUMPRODUCT('Efficiency Dist'!AO343:AO350,PC12_UEC)+'Product Class Dist'!AK$22*SUMPRODUCT('Efficiency Dist'!AO373:AO380,PC13_UEC)+'Product Class Dist'!AK$23*SUMPRODUCT('Efficiency Dist'!AO403:AO410,PC14_UEC)+'Product Class Dist'!AK$24*SUMPRODUCT('Efficiency Dist'!AO433:AO440,PC15_UEC) -> 5104.061514 | AL11: ='Product Class Dist'!AL$10*SUMPRODUCT('Efficiency Dist'!AP13:AP20,PC1_UEC)+'Product Class Dist'!AL$11*SUMPRODUCT('Efficiency Dist'!AP43:AP50,PC2_UEC)+'Product Class Dist'!AL$12*SUMPRODUCT('Efficiency Dist'!AP73:AP80,PC3_UEC)+'Product Class Dist'!AL$13*SUMPRODUCT('Efficiency Dist'!AP103:AP110,PC4_UEC)+'Product Class Dist'!AL$14*SUMPRODUCT('Efficiency Dist'!AP133:AP140,PC5_UEC)+'Product Class Dist'!AL$15*SUMPRODUCT('Efficiency Dist'!AP163:AP170,PC6_UEC)+'Product Class Dist'!AL$16*SUMPRODUCT('Efficiency Dist'!AP193:AP200,PC7_UEC)+'Product Class Dist'!AL$17*SUMPRODUCT('Efficiency Dist'!AP223:AP230,PC8_UEC)+'Product Class Dist'!AL$18*SUMPRODUCT('Efficiency Dist'!AP253:AP260,PC9_UEC)+'Product Class Dist'!AL$19*SUMPRODUCT('Efficiency Dist'!AP283:AP290,PC10_UEC)+'Product Class Dist'!AL$20*SUMPRODUCT('Efficiency Dist'!AP313:AP320,PC11_UEC)+'Product Class Dist'!AL$21*SUMPRODUCT('Efficiency Dist'!AP343:AP350,PC12_UEC)+'Product Class Dist'!AL$22*SUMPRODUCT('Efficiency Dist'!AP373:AP380,PC13_UEC)+'Product Class Dist'!AL$23*SUMPRODUCT('Efficiency Dist'!AP403:AP410,PC14_UEC)+'Product Class Dist'!AL$24*SUMPRODUCT('Efficiency Dist'!AP433:AP440,PC15_UEC) -> 5104.061514 | AM11: ='Product Class Dist'!AM$10*SUMPRODUCT('Efficiency Dist'!AQ13:AQ20,PC1_UEC)+'Product Class Dist'!AM$11*SUMPRODUCT('Efficiency Dist'!AQ43:AQ50,PC2_UEC)+'Product Class Dist'!AM$12*SUMPRODUCT('Efficiency Dist'!AQ73:AQ80,PC3_UEC)+'Product Class Dist'!AM$13*SUMPRODUCT('Efficiency Dist'!AQ103:AQ110,PC4_UEC)+'Product Class Dist'!AM$14*SUMPRODUCT('Efficiency Dist'!AQ133:AQ140,PC5_UEC)+'Product Class Dist'!AM$15*SUMPRODUCT('Efficiency Dist'!AQ163:AQ170,PC6_UEC)+'Product Class Dist'!AM$16*SUMPRODUCT('Efficiency Dist'!AQ193:AQ200,PC7_UEC)+'Product Class Dist'!AM$17*SUMPRODUCT('Efficiency Dist'!AQ223:AQ230,PC8_UEC)+'Product Class Dist'!AM$18*SUMPRODUCT('Efficiency Dist'!AQ253:AQ260,PC9_UEC)+'Product Class Dist'!AM$19*SUMPRODUCT('Efficiency Dist'!AQ283:AQ290,PC10_UEC)+'Product Class Dist'!AM$20*SUMPRODUCT('Efficiency Dist'!AQ313:AQ320,PC11_UEC)+'Product Class Dist'!AM$21*SUMPRODUCT('Efficiency Dist'!AQ343:AQ350,PC12_UEC)+'Product Class Dist'!AM$22*SUMPRODUCT('Efficiency Dist'!AQ373:AQ380,PC13_UEC)+'Product Class Dist'!AM$23*SUMPRODUCT('Efficiency Dist'!AQ403:AQ410,PC14_UEC)+'Product Class Dist'!AM$24*SUMPRODUCT('Efficiency Dist'!AQ433:AQ440,PC15_UEC) -> 5104.061514 | AN11: ='Product Class Dist'!AN$10*SUMPRODUCT('Efficiency Dist'!AR13:AR20,PC1_UEC)+'Product Class Dist'!AN$11*SUMPRODUCT('Efficiency Dist'!AR43:AR50,PC2_UEC)+'Product Class Dist'!AN$12*SUMPRODUCT('Efficiency Dist'!AR73:AR80,PC3_UEC)+'Product Class Dist'!AN$13*SUMPRODUCT('Efficiency Dist'!AR103:AR110,PC4_UEC)+'Product Class Dist'!AN$14*SUMPRODUCT('Efficiency Dist'!AR133:AR140,PC5_UEC)+'Product Class Dist'!AN$15*SUMPRODUCT('Efficiency Dist'!AR163:AR170,PC6_UEC)+'Product Class Dist'!AN$16*SUMPRODUCT('Efficiency Dist'!AR193:AR200,PC7_UEC)+'Product Class Dist'!AN$17*SUMPRODUCT('Efficiency Dist'!AR223:AR230,PC8_UEC)+'Product Class Dist'!AN$18*SUMPRODUCT('Efficiency Dist'!AR253:AR260,PC9_UEC)+'Product Class Dist'!AN$19*SUMPRODUCT('Efficiency Dist'!AR283:AR290,PC10_UEC)+'Product Class Dist'!AN$20*SUMPRODUCT('Efficiency Dist'!AR313:AR320,PC11_UEC)+'Product Class Dist'!AN$21*SUMPRODUCT('Efficiency Dist'!AR343:AR350,PC12_UEC)+'Product Class Dist'!AN$22*SUMPRODUCT('Efficiency Dist'!AR373:AR380,PC13_UEC)+'Product Class Dist'!AN$23*SUMPRODUCT('Efficiency Dist'!AR403:AR410,PC14_UEC)+'Product Class Dist'!AN$24*SUMPRODUCT('Efficiency Dist'!AR433:AR440,PC15_UEC) -> 5104.061514 | AO11: ='Product Class Dist'!AO$10*SUMPRODUCT('Efficiency Dist'!AS13:AS20,PC1_UEC)+'Product Class Dist'!AO$11*SUMPRODUCT('Efficiency Dist'!AS43:AS50,PC2_UEC)+'Product Class Dist'!AO$12*SUMPRODUCT('Efficiency Dist'!AS73:AS80,PC3_UEC)+'Product Class Dist'!AO$13*SUMPRODUCT('Efficiency Dist'!AS103:AS110,PC4_UEC)+'Product Class Dist'!AO$14*SUMPRODUCT('Efficiency Dist'!AS133:AS140,PC5_UEC)+'Product Class Dist'!AO$15*SUMPRODUCT('Efficiency Dist'!AS163:AS170,PC6_UEC)+'Product Class Dist'!AO$16*SUMPRODUCT('Efficiency Dist'!AS193:AS200,PC7_UEC)+'Product Class Dist'!AO$17*SUMPRODUCT('Efficiency Dist'!AS223:AS230,PC8_UEC)+'Product Class Dist'!AO$18*SUMPRODUCT('Efficiency Dist'!AS253:AS260,PC9_UEC)+'Product Class Dist'!AO$19*SUMPRODUCT('Efficiency Dist'!AS283:AS290,PC10_UEC)+'Product Class Dist'!AO$20*SUMPRODUCT('Efficiency Dist'!AS313:AS320,PC11_UEC)+'Product Class Dist'!AO$21*SUMPRODUCT('Efficiency Dist'!AS343:AS350,PC12_UEC)+'Product Class Dist'!AO$22*SUMPRODUCT('Efficiency Dist'!AS373:AS380,PC13_UEC)+'Product Class Dist'!AO$23*SUMPRODUCT('Efficiency Dist'!AS403:AS410,PC14_UEC)+'Product Class Dist'!AO$24*SUMPRODUCT('Efficiency Dist'!AS433:AS440,PC15_UEC) -> 5104.061514 | AP11: ='Product Class Dist'!AP$10*SUMPRODUCT('Efficiency Dist'!AT13:AT20,PC1_UEC)+'Product Class Dist'!AP$11*SUMPRODUCT('Efficiency Dist'!AT43:AT50,PC2_UEC)+'Product Class Dist'!AP$12*SUMPRODUCT('Efficiency Dist'!AT73:AT80,PC3_UEC)+'Product Class Dist'!AP$13*SUMPRODUCT('Efficiency Dist'!AT103:AT110,PC4_UEC)+'Product Class Dist'!AP$14*SUMPRODUCT('Efficiency Dist'!AT133:AT140,PC5_UEC)+'Product Class Dist'!AP$15*SUMPRODUCT('Efficiency Dist'!AT163:AT170,PC6_UEC)+'Product Class Dist'!AP$16*SUMPRODUCT('Efficiency Dist'!AT193:AT200,PC7_UEC)+'Product Class Dist'!AP$17*SUMPRODUCT('Efficiency Dist'!AT223:AT230,PC8_UEC)+'Product Class Dist'!AP$18*SUMPRODUCT('Efficiency Dist'!AT253:AT260,PC9_UEC)+'Product Class Dist'!AP$19*SUMPRODUCT('Efficiency Dist'!AT283:AT290,PC10_UEC)+'Product Class Dist'!AP$20*SUMPRODUCT('Efficiency Dist'!AT313:AT320,PC11_UEC)+'Product Class Dist'!AP$21*SUMPRODUCT('Efficiency Dist'!AT343:AT350,PC12_UEC)+'Product Class Dist'!AP$22*SUMPRODUCT('Efficiency Dist'!AT373:AT380,PC13_UEC)+'Product Class Dist'!AP$23*SUMPRODUCT('Efficiency Dist'!AT403:AT410,PC14_UEC)+'Product Class Dist'!AP$24*SUMPRODUCT('Efficiency Dist'!AT433:AT440,PC15_UEC) -> 5104.061514 | AQ11: ='Product Class Dist'!AQ$10*SUMPRODUCT('Efficiency Dist'!AU13:AU20,PC1_UEC)+'Product Class Dist'!AQ$11*SUMPRODUCT('Efficiency Dist'!AU43:AU50,PC2_UEC)+'Product Class Dist'!AQ$12*SUMPRODUCT('Efficiency Dist'!AU73:AU80,PC3_UEC)+'Product Class Dist'!AQ$13*SUMPRODUCT('Efficiency Dist'!AU103:AU110,PC4_UEC)+'Product Class Dist'!AQ$14*SUMPRODUCT('Efficiency Dist'!AU133:AU140,PC5_UEC)+'Product Class Dist'!AQ$15*SUMPRODUCT('Efficiency Dist'!AU163:AU170,PC6_UEC)+'Product Class Dist'!AQ$16*SUMPRODUCT('Efficiency Dist'!AU193:AU200,PC7_UEC)+'Product Class Dist'!AQ$17*SUMPRODUCT('Efficiency Dist'!AU223:AU230,PC8_UEC)+'Product Class Dist'!AQ$18*SUMPRODUCT('Efficiency Dist'!AU253:AU260,PC9_UEC)+'Product Class Dist'!AQ$19*SUMPRODUCT('Efficiency Dist'!AU283:AU290,PC10_UEC)+'Product Class Dist'!AQ$20*SUMPRODUCT('Efficiency Dist'!AU313:AU320,PC11_UEC)+'Product Class Dist'!AQ$21*SUMPRODUCT('Efficiency Dist'!AU343:AU350,PC12_UEC)+'Product Class Dist'!AQ$22*SUMPRODUCT('Efficiency Dist'!AU373:AU380,PC13_UEC)+'Product Class Dist'!AQ$23*SUMPRODUCT('Efficiency Dist'!AU403:AU410,PC14_UEC)+'Product Class Dist'!AQ$24*SUMPRODUCT('Efficiency Dist'!AU433:AU440,PC15_UEC) -> 5104.061514 | AR11: ='Product Class Dist'!AR$10*SUMPRODUCT('Efficiency Dist'!AV13:AV20,PC1_UEC)+'Product Class Dist'!AR$11*SUMPRODUCT('Efficiency Dist'!AV43:AV50,PC2_UEC)+'Product Class Dist'!AR$12*SUMPRODUCT('Efficiency Dist'!AV73:AV80,PC3_UEC)+'Product Class Dist'!AR$13*SUMPRODUCT('Efficiency Dist'!AV103:AV110,PC4_UEC)+'Product Class Dist'!AR$14*SUMPRODUCT('Efficiency Dist'!AV133:AV140,PC5_UEC)+'Product Class Dist'!AR$15*SUMPRODUCT('Efficiency Dist'!AV163:AV170,PC6_UEC)+'Product Class Dist'!AR$16*SUMPRODUCT('Efficiency Dist'!AV193:AV200,PC7_UEC)+'Product Class Dist'!AR$17*SUMPRODUCT('Efficiency Dist'!AV223:AV230,PC8_UEC)+'Product Class Dist'!AR$18*SUMPRODUCT('Efficiency Dist'!AV253:AV260,PC9_UEC)+'Product Class Dist'!AR$19*SUMPRODUCT('Efficiency Dist'!AV283:AV290,PC10_UEC)+'Product Class Dist'!AR$20*SUMPRODUCT('Efficiency Dist'!AV313:AV320,PC11_UEC)+'Product Class Dist'!AR$21*SUMPRODUCT('Efficiency Dist'!AV343:AV350,PC12_UEC)+'Product Class Dist'!AR$22*SUMPRODUCT('Efficiency Dist'!AV373:AV380,PC13_UEC)+'Product Class Dist'!AR$23*SUMPRODUCT('Efficiency Dist'!AV403:AV410,PC14_UEC)+'Product Class Dist'!AR$24*SUMPRODUCT('Efficiency Dist'!AV433:AV440,PC15_UEC) -> 5104.061514 | AS11: ='Product Class Dist'!AS$10*SUMPRODUCT('Efficiency Dist'!AW13:AW20,PC1_UEC)+'Product Class Dist'!AS$11*SUMPRODUCT('Efficiency Dist'!AW43:AW50,PC2_UEC)+'Product Class Dist'!AS$12*SUMPRODUCT('Efficiency Dist'!AW73:AW80,PC3_UEC)+'Product Class Dist'!AS$13*SUMPRODUCT('Efficiency Dist'!AW103:AW110,PC4_UEC)+'Product Class Dist'!AS$14*SUMPRODUCT('Efficiency Dist'!AW133:AW140,PC5_UEC)+'Product Class Dist'!AS$15*SUMPRODUCT('Efficiency Dist'!AW163:AW170,PC6_UEC)+'Product Class Dist'!AS$16*SUMPRODUCT('Efficiency Dist'!AW193:AW200,PC7_UEC)+'Product Class Dist'!AS$17*SUMPRODUCT('Efficiency Dist'!AW223:AW230,PC8_UEC)+'Product Class Dist'!AS$18*SUMPRODUCT('Efficiency Dist'!AW253:AW260,PC9_UEC)+'Product Class Dist'!AS$19*SUMPRODUCT('Efficiency Dist'!AW283:AW290,PC10_UEC)+'Product Class Dist'!AS$20*SUMPRODUCT('Efficiency Dist'!AW313:AW320,PC11_UEC)+'Product Class Dist'!AS$21*SUMPRODUCT('Efficiency Dist'!AW343:AW350,PC12_UEC)+'Product Class Dist'!AS$22*SUMPRODUCT('Efficiency Dist'!AW373:AW380,PC13_UEC)+'Product Class Dist'!AS$23*SUMPRODUCT('Efficiency Dist'!AW403:AW410,PC14_UEC)+'Product Class Dist'!AS$24*SUMPRODUCT('Efficiency Dist'!AW433:AW440,PC15_UEC) -> 5104.061514 | AT11: ='Product Class Dist'!AT$10*SUMPRODUCT('Efficiency Dist'!AX13:AX20,PC1_UEC)+'Product Class Dist'!AT$11*SUMPRODUCT('Efficiency Dist'!AX43:AX50,PC2_UEC)+'Product Class Dist'!AT$12*SUMPRODUCT('Efficiency Dist'!AX73:AX80,PC3_UEC)+'Product Class Dist'!AT$13*SUMPRODUCT('Efficiency Dist'!AX103:AX110,PC4_UEC)+'Product Class Dist'!AT$14*SUMPRODUCT('Efficiency Dist'!AX133:AX140,PC5_UEC)+'Product Class Dist'!AT$15*SUMPRODUCT('Efficiency Dist'!AX163:AX170,PC6_UEC)+'Product Class Dist'!AT$16*SUMPRODUCT('Efficiency Dist'!AX193:AX200,PC7_UEC)+'Product Class Dist'!AT$17*SUMPRODUCT('Efficiency Dist'!AX223:AX230,PC8_UEC)+'Product Class Dist'!AT$18*SUMPRODUCT('Efficiency Dist'!AX253:AX260,PC9_UEC)+'Product Class Dist'!AT$19*SUMPRODUCT('Efficiency Dist'!AX283:AX290,PC10_UEC)+'Product Class Dist'!AT$20*SUMPRODUCT('Efficiency Dist'!AX313:AX320,PC11_UEC)+'Product Class Dist'!AT$21*SUMPRODUCT('Efficiency Dist'!AX343:AX350,PC12_UEC)+'Product Class Dist'!AT$22*SUMPRODUCT('Efficiency Dist'!AX373:AX380,PC13_UEC)+'Product Class Dist'!AT$23*SUMPRODUCT('Efficiency Dist'!AX403:AX410,PC14_UEC)+'Product Class Dist'!AT$24*SUMPRODUCT('Efficiency Dist'!AX433:AX440,PC15_UEC) -> 5104.061514 | AU11: ='Product Class Dist'!AU$10*SUMPRODUCT('Efficiency Dist'!AY13:AY20,PC1_UEC)+'Product Class Dist'!AU$11*SUMPRODUCT('Efficiency Dist'!AY43:AY50,PC2_UEC)+'Product Class Dist'!AU$12*SUMPRODUCT('Efficiency Dist'!AY73:AY80,PC3_UEC)+'Product Class Dist'!AU$13*SUMPRODUCT('Efficiency Dist'!AY103:AY110,PC4_UEC)+'Product Class Dist'!AU$14*SUMPRODUCT('Efficiency Dist'!AY133:AY140,PC5_UEC)+'Product Class Dist'!AU$15*SUMPRODUCT('Efficiency Dist'!AY163:AY170,PC6_UEC)+'Product Class Dist'!AU$16*SUMPRODUCT('Efficiency Dist'!AY193:AY200,PC7_UEC)+'Product Class Dist'!AU$17*SUMPRODUCT('Efficiency Dist'!AY223:AY230,PC8_UEC)+'Product Class Dist'!AU$18*SUMPRODUCT('Efficiency Dist'!AY253:AY260,PC9_UEC)+'Product Class Dist'!AU$19*SUMPRODUCT('Efficiency Dist'!AY283:AY290,PC10_UEC)+'Product Class Dist'!AU$20*SUMPRODUCT('Efficiency Dist'!AY313:AY320,PC11_UEC)+'Product Class Dist'!AU$21*SUMPRODUCT('Efficiency Dist'!AY343:AY350,PC12_UEC)+'Product Class Dist'!AU$22*SUMPRODUCT('Efficiency Dist'!AY373:AY380,PC13_UEC)+'Product Class Dist'!AU$23*SUMPRODUCT('Efficiency Dist'!AY403:AY410,PC14_UEC)+'Product Class Dist'!AU$24*SUMPRODUCT('Efficiency Dist'!AY433:AY440,PC15_UEC) -> 5104.061514 | AV11: ='Product Class Dist'!AV$10*SUMPRODUCT('Efficiency Dist'!AZ13:AZ20,PC1_UEC)+'Product Class Dist'!AV$11*SUMPRODUCT('Efficiency Dist'!AZ43:AZ50,PC2_UEC)+'Product Class Dist'!AV$12*SUMPRODUCT('Efficiency Dist'!AZ73:AZ80,PC3_UEC)+'Product Class Dist'!AV$13*SUMPRODUCT('Efficiency Dist'!AZ103:AZ110,PC4_UEC)+'Product Class Dist'!AV$14*SUMPRODUCT('Efficiency Dist'!AZ133:AZ140,PC5_UEC)+'Product Class Dist'!AV$15*SUMPRODUCT('Efficiency Dist'!AZ163:AZ170,PC6_UEC)+'Product Class Dist'!AV$16*SUMPRODUCT('Efficiency Dist'!AZ193:AZ200,PC7_UEC)+'Product Class Dist'!AV$17*SUMPRODUCT('Efficiency Dist'!AZ223:AZ230,PC8_UEC)+'Product Class Dist'!AV$18*SUMPRODUCT('Efficiency Dist'!AZ253:AZ260,PC9_UEC)+'Product Class Dist'!AV$19*SUMPRODUCT('Efficiency Dist'!AZ283:AZ290,PC10_UEC)+'Product Class Dist'!AV$20*SUMPRODUCT('Efficiency Dist'!AZ313:AZ320,PC11_UEC)+'Product Class Dist'!AV$21*SUMPRODUCT('Efficiency Dist'!AZ343:AZ350,PC12_UEC)+'Product Class Dist'!AV$22*SUMPRODUCT('Efficiency Dist'!AZ373:AZ380,PC13_UEC)+'Product Class Dist'!AV$23*SUMPRODUCT('Efficiency Dist'!AZ403:AZ410,PC14_UEC)+'Product Class Dist'!AV$24*SUMPRODUCT('Efficiency Dist'!AZ433:AZ440,PC15_UEC) -> 5104.061514
